Workbook

Sheet AER only (hidden)
B1: Data in these columns used for data validation and database purposes.
B2: Date last modified: | C2: 2017-01-16 | D2: added (Albury and Victora) for AGN
C3: 2016-10-17 | D3: updated TransGrid's correct legal name, corrected TasNetworks (T) to June financial year
C4: 2017-02-01 | D4: inserted Power and Water, added NRs (dms_FeederCat_1 and dms_FeederCat_2)
C5: 2017-03-03 | D5: inserted AEMO as a business | AC5: FOR ELECTRICITY BUSINESSES ONLY
AC6: Feeder Types | AG6: TasNetworks (D) | AH6: MAIFI flag | AI6: Feeder Names
AC7: CBD | AD7: Urban | AE7: Short rural | AF7: long rural | AG7: EXTRA
B8: dms_TradingName_List | C8: dms_TradingNameFull_List | D8: dms_ABN_List | E8: dms_JurisdictionList | F8: dms_Sector_List | G8: dms_Segment_List | H8: dms_FormControl_List | I8: dms_RPT_List | J8: dms_RPTMonth_List | K8: dms_CRCPlength_List | L8: dms_FRCPlength_List | M8: dms_663_List | N8: dms_DeterminationRef_List | O8: dms_Addr1_List | P8: dms_Addr2_List | Q8: dms_Suburb_List | R8: dms_State_List | S8: dms_PostCode_List | T8: dms_PAddr1_List | U8: dms_PAddr2_List | V8: dms_PSuburb_List | W8: dms_PState_List | X8: dms_PPostCode_List | Y8: dms_ContactName1_List | Z8: dms_ContactPh1_List | AA8: dms_ContactEmail_List | AB8: Column1 | AC8: dms_CBD_flag | AD8: dms_Urban_flag | AE8: dms_ShortRural_flag | AF8: dms_LongRural_flag | AG8: dms_FeederType_5_flag | AH8: dms_MAIFI_flag_List | AI8: dms_FeederName_1 | AJ8: dms_FeederName_2 | AK8: dms_FeederName_3 | AL8: dms_FeederName_4 | AM8: dms_FeederName_5
B9: ActewAGL Distribution | C9: ActewAGL Distribution | D9: 76670568688 | E9: ACT | F9: Electricity | G9: Distribution | H9: Revenue cap | I9: Financial | J9: June | K9: 5 | L9: 5 | M9: 5 | N9: 2014-19 Distribution Determination | O9: 40 Bunda Street | Q9: CANBERRA | R9: ACT | S9: 2600 | T9: GPO BOX 366 | V9: CANBERRA | W9: ACT | X9: 2601 | Y9: Robert Walker | Z9: 02 6248 3847 | AA9: robert.walker@actewagle.com.au | AC9: NO | AD9: YES | AE9: YES | AF9: NO | AG9: NO | AI9: CBD | AJ9: Urban | AK9: Short rural | AL9: Long rural | AN9: ActewAGL Distribution
B10: ActewAGL Distribution (Tx Assets) | C10: ActewAGL Distribution (Tx Assets) | D10: 76670568688 | E10: ACT | F10: Electricity | G10: Distribution | H10: Revenue cap | I10: Financial | J10: June | K10: 5 | L10: 5 | M10: 5 | N10: distribution determination | O10: 40 Bunda Street | Q10: CANBERRA | R10: ACT | S10: 2600 | T10: GPO BOX 366 | V10: CANBERRA | W10: ACT | X10: 2601 | Y10: Robert Walker | Z10: 02 6248 3847 | AA10: robert.walker@actewagle.com.au | AI10: CBD | AJ10: Urban | AK10: Short rural | AL10: Long rural | AN10: ActewAGL Distribution (Tx Assets)
B11: ActewAGL Gas | C11: ActewAGL Gas | D11: 76670568688 | E11: ACT | F11: Gas | G11: Distribution | H11: Weighted average price cap | I11: Financial | J11: June | K11: 5 | L11: 5 | M11: x | O11: 40 Bunda Street | Q11: CANBERRA | R11: ACT | S11: 2600 | T11: GPO BOX 366 | V11: CANBERRA | W11: ACT | X11: 2601 | Y11: Philip Deamer | Z11: 02 6248 3438 | AA11: GasAAReview@actewagl.com.au | AN11: ActewAGL Gas
B12: AEMO | C12: Australian Energy Market Operator Ltd | D12: 94072010327 | E12: Vic | F12: Electricity | G12: Transmission | H12: - | I12: Financial | J12: March | K12: 5 | L12: 5 | M12: x | N12: - | O12: Level 22 | P12: 530 Collins Street | Q12: MELBOURNE | R12: VIC | S12: 3000 | T12: GPO Box 2008 | V12: MELBOURNE | W12: VIC | X12: 3001 | AN12: AEMO
B13: AGN (Albury and Victoria) | C13: Australian Gas Networks Limited (reporting data for Albury and Victoria) | D13: 19078551685 | E13: Vic | F13: Gas | G13: Distribution | H13: Weighted average price cap | I13: Calendar | J13: December | K13: 5 | L13: 5 | M13: x | O13: Level 6 | P13: 400 King William Street | Q13: ADELAIDE | R13: SA | S13: 5000 | T13: PO Box 6468 | U13: Halifax Street | V13: ADELAIDE | W13: SA | X13: 5000 | Y13: Craig de Laine | Z13: 08 8418 1129 | AA13: craig.delaine@agn.com.au | AI13: CBD | AJ13: Urban | AK13: Short rural | AL13: Long rural | AN13: AGN (Albury)
B14: AGN (Albury) | C14: Australian Gas Networks Limited (reporting data for Albury) | D14: 19078551685 | E14: Vic | F14: Gas | G14: Distribution | H14: Weighted average price cap | I14: Calendar | J14: December | K14: 5 | L14: 5 | M14: x | O14: Level 6 | P14: 400 King William Street | Q14: ADELAIDE | R14: SA | S14: 5000 | T14: PO Box 6468 | U14: Halifax Street | V14: ADELAIDE | W14: SA | X14: 5000 | Y14: Craig de Laine | Z14: 08 8418 1129 | AA14: craig.delaine@agn.com.au | AI14: CBD | AJ14: Urban | AK14: Short rural | AL14: Long rural
B15: AGN (SA) | C15: Australian Gas Networks Limited (reporting data for SA) | D15: 19078551685 | E15: SA | F15: Gas | G15: Distribution | H15: Weighted average price cap | I15: Financial | J15: June | K15: 5 | L15: 5 | M15: 5 | N15: distribution determination | O15: Level 6 | P15: 400 King William Street | Q15: ADELAIDE | R15: SA | S15: 5000 | T15: PO Box 6468 | U15: Halifax Street | V15: ADELAIDE | W15: SA | X15: 5000 | Y15: Craig de Laine | Z15: 08 8418 1129 | AA15: craig.delaine@agn.com.au | AN15: AGN (SA)
B16: AGN (Victoria) | C16: Australian Gas Networks Limited (reporting data for Victoria) | D16: 19078551685 | E16: Vic | F16: Gas | G16: Distribution | H16: Weighted average price cap | I16: Calendar | J16: December | K16: 5 | L16: 5 | M16: x | AN16: AGN (Victoria)
B17: Amadeus | C17: APT Pipelines (NT) Pty Ltd | D17: 39009737393 | E17: NT | F17: Gas | G17: Transmission | H17: Weighted average price cap | I17: Financial | J17: June | K17: 5 | L17: 5 | M17: x | N17: n/a | O17: Level 19, HSBC Building | P17: 580 George Street | Q17: SYDNEY | R17: NSW | S17: 2000 | T17: Level 19, HSBC Building | U17: 580 George Street | V17: SYDNEY | W17: NSW | X17: 2000 | Y17: Alexandra Curran | Z17: 02 9275 0020 | AA17: alexandra.curran@apa.com.au | AN17: Amadeus
B18: APA GasNet | C18: APA GasNet Australia (Operations) Pty Ltd | D18: 065083009 | E18: Vic | F18: Gas | G18: Transmission | H18: Weighted average price cap | I18: Calendar | J18: December | K18: 5 | L18: 5 | M18: x | O18: Level 19, HSBC Building | P18: 580 George Street | Q18: SYDNEY | R18: NSW | S18: 2000 | T18: PO Box R41 | V18: ROYAL EXCHANGE | W18: NSW | X18: 1225 | Z18: 02 9693 0000 | AN18: APA GasNet
B19: Ausgrid | C19: Ausgrid | D19: 78508211731 | E19: NSW | F19: Electricity | G19: Distribution | H19: Revenue cap | I19: Financial | J19: June | K19: 5 | L19: 5 | M19: 5 | N19: 2014-19 Distribution Determination | O19: 570 George St | Q19: SYDNEY | R19: NSW | S19: 2000 | T19: GPO Box 4009 | V19: SYDNEY | W19: NSW | X19: 2001 | Y19: John Thomson | Z19: (02) 9269 2312 | AA19: john.thomson@ausgrid.com.au | AC19: YES | AD19: YES | AE19: YES | AF19: YES | AG19: NO | AI19: CBD | AJ19: Urban | AK19: Short rural | AL19: Long rural | AN19: Ausgrid
B20: Ausgrid (Tx Assets) | C20: Ausgrid (Tx Assets) | D20: 67505337385 | E20: NSW | F20: Electricity | G20: Distribution | H20: Revenue cap | I20: Financial | J20: June | K20: 5 | L20: 5 | M20: 5 | N20: distribution determination | R20: NSW | AI20: CBD | AJ20: Urban | AK20: Short rural | AL20: Long rural | AN20: Ausgrid (Tx Assets)
B21: AusNet (D) | C21: AusNet Electricity Services Pty Ltd | D21: 91064651118 | E21: Vic | F21: Electricity | G21: Distribution | H21: Revenue cap | I21: Calendar | J21: December | K21: 5 | L21: 5 | M21: 2 | N21: 2016-20 Distribution Determination | O21: Level 32 | P21: 2 Southbank Boulevard | Q21: SOUTHBANK | R21: Vic | S21: 3006 | T21: Locked Bag 14051 | V21: MELBOURNE CITY MAIL CENTRE | W21: VIC | X21: 8001 | Y21: Hannah Williams | Z21: 03 9683 4088 | AA21: hwilliams@powercor.com.au | AD21: YES | AE21: YES | AF21: YES | AG21: NO | AI21: CBD | AJ21: Urban | AK21: Short rural | AL21: Long rural | AN21: AusNet (D)
B22: AusNet (Gas) | C22: AusNet Gas Services | D22: 086015036 | E22: Vic | F22: Gas | G22: Distribution | H22: Weighted average price cap | I22: Calendar | J22: December | K22: 5 | L22: 5 | M22: X | AN22: AusNet (Gas)
B23: AusNet (T) | C23: Ausnet Services (Transmission) Ltd | D23: 48116124362 | E23: Vic | F23: Electricity | G23: Transmission | H23: Revenue cap | I23: Financial | J23: March | K23: 5 | L23: 5 | M23: 2 | N23: transmission determination | O23: Level 32 | P23: 2 Southbank Boulevard | Q23: SOUTHBANK | R23: Vic | S23: 3006 | T23: Locked Bag 14051 | V23: MELBOURNE CITY MAIL CENTRE | W23: Vic | X23: 8001 | Y23: Clare Thompson | Z23: 03 9695 6670 | AA23: clare.e.thompson@ausnetservices.com.au | AI23: CBD | AJ23: Urban | AK23: Short rural | AL23: Long rural | AN23: AusNet (T)
B24: Australian Distribution Co. | C24: Australian Distribution Co. | D24: 11222333444 | E24: - | F24: Electricity | G24: Distribution | H24: Revenue cap | I24: Financial | J24: June | K24: 5 | L24: 5 | M24: 2 | N24: distribution determination | O24: 123 Straight Street | Q24: SYDNEY | R24: NSW | S24: 2000 | T24: PO Box 123 | V24: SYDNEY | W24: NSW | X24: 2000 | Y24: Bob Smith | Z24: 02 1234 5678 | AA24: bob@auselec.net.au | AI24: CBD | AJ24: Urban | AK24: Short rural | AL24: Long rural | AN24: Australian Distribution Co.
B25: Australian Distribution Co. (Vic) | C25: Australian Distribution Co. (Victoria) | D25: 11222333444 | E25: Vic | F25: Electricity | G25: Distribution | H25: Revenue cap | I25: Calendar | J25: December | K25: 5 | L25: 5 | M25: 2 | N25: distribution determination | O25: 123 Straight Street | Q25: MELBOURNE | R25: Vic | S25: 3000 | T25: PO Box 123 | V25: MELBOURNE | W25: VIC | X25: 3000 | Y25: Bob Smith | Z25: 02 1234 5678 | AA25: bob@auselec.net.au | AI25: CBD | AJ25: Urban | AK25: Short rural | AL25: Long rural | AN25: Australian Distribution Co. (Vic)
B26: Australian Transmission Co. | C26: Australian Transmission Co. | D26: 11222333444 | E26: - | F26: Electricity | G26: Transmission | H26: Revenue cap | I26: Financial | J26: June | K26: 5 | L26: 5 | M26: 5 | N26: transmission determination | O26: 123 Straight Street | Q26: SYDNEY | R26: NSW | S26: 2000 | T26: PO Box 123 | V26: SYDNEY | W26: NSW | X26: 2000 | Y26: Bob Smith | Z26: 02 1234 5678 | AA26: bob@auselec.net.au | AI26: CBD | AJ26: Urban | AK26: Short rural | AL26: Long rural | AN26: Australian Transmission Co.
B27: CitiPower | C27: CitiPower | D27: 76064651056 | E27: Vic | F27: Electricity | G27: Distribution | H27: Revenue cap | I27: Calendar | J27: December | K27: 5 | L27: 5 | M27: 2 | N27: 2016-20 Distribution Determination | O27: 40 Market Street | Q27: MELBOURNE | R27: Vic | S27: 3000 | T27: Locked Bag 14090 | V27: MELBOURNE | W27: VIC | X27: 8001 | Y27: Hannah Williams | Z27: 03 9683 4088 | AA27: hwilliams@powercor.com.au | AC27: YES | AD27: YES | AE27: NO | AF27: NO | AG27: NO | AI27: CBD | AJ27: Urban | AK27: Short rural | AL27: Long rural | AN27: CitiPower
B28: Directlink | C28: Directlink | D28: 16779340889 | E28: Qld | F28: Electricity | G28: Transmission | H28: Revenue cap | I28: Financial | J28: June | K28: 9 | L28: 5 | M28: 5 | N28: transmission determination | O28: Level 19, HSBC Building | P28: 580 George Street | Q28: SYDNEY | R28: NSW | S28: 2000 | T28: PO Box R41 | V28: ROYAL EXCHANGE | W28: NSW | X28: 1225 | Y28: Scott Young | Z28: 02 9275 0031 | AA28: scott.young@apa.com.au | AI28: CBD | AJ28: Urban | AK28: Short rural | AL28: Long rural | AN28: Directlink
B29: ElectraNet | C29: ElectraNet | D29: 41094482416 | E29: SA | F29: Electricity | G29: Transmission | H29: Revenue cap | I29: Financial | J29: June | K29: 5 | L29: 5 | M29: 5 | N29: transmission determination | O29: 52-55 East Terrace | P29: Rymill Park | Q29: ADELAIDE | R29: SA | S29: 5000 | T29: PO Box 7096 | U29: Hutt Street Post Office | V29: ADELAIDE | W29: SA | X29: 5000 | Y29: Bill Jackson | Z29: 08 8404 7969 | AA29: jackson.bill@electranet.com.au | AI29: CBD | AJ29: Urban | AK29: Short rural | AL29: Long rural | AN29: ElectraNet
B30: Endeavour Energy | C30: Endeavour Energy | D30: 59253130878 | E30: NSW | F30: Electricity | G30: Distribution | H30: Revenue cap | I30: Financial | J30: June | K30: 5 | L30: 5 | M30: 5 | N30: 2014-19 Distribution Determination | O30: 51 Huntingwood Drive | Q30: HUNTINGWOOD | R30: NSW | S30: 2148 | T30: PO Box 811 | V30: SEVEN HILLS | W30: NSW | X30: 1730 | Y30: Jon Hocking | Z30: 02 9853 4386 / 0407 348 156 | AA30: Jon.Hocking@Endeavourenergy.com.au | AC30: NO | AD30: YES | AE30: YES | AF30: YES | AG30: NO | AI30: CBD | AJ30: Urban | AK30: Short rural | AL30: Long rural | AN30: Endeavour Energy
B31: Energex | C31: Energex | D31: 40078849055 | E31: Qld | F31: Electricity | G31: Distribution | H31: Revenue cap | I31: Financial | J31: June | K31: 5 | L31: 5 | M31: 5 | N31: 2015-20 Distribution Determination | O31: 26 Reddacliff Street | Q31: NEWSTEAD | R31: Qld | S31: 4006 | T31: 26 Reddacliff Street | V31: NEWSTEAD | W31: QLD | X31: 4006 | Y31: Nicola Roscoe | Z31: 07 3664 5891 | AA31: nicolaroscoe@energex.com.au | AC31: YES | AD31: YES | AE31: YES | AF31: NO | AG31: NO | AI31: CBD | AJ31: Urban | AK31: Short rural | AL31: Long rural | AN31: Energex
B32: Ergon Energy | C32: Ergon Energy | D32: 50087646062 | E32: Qld | F32: Electricity | G32: Distribution | H32: Revenue cap | I32: Financial | J32: June | K32: 5 | L32: 5 | M32: 5 | N32: 2015-20 Distribution Determination | O32: 22 Walker Street | Q32: TOWNSVILLE | R32: Qld | S32: 4810 | T32: Po Box 264 | V32: FORTITUDE VALLEY | W32: QLD | X32: 4006 | Y32: Jenny Doyle, Group Manager Regulatory Affairs | Z32: (07) 3851 6416 | AA32: jenny.doyle@ergon.com.au | AC32: NO | AD32: YES | AE32: YES | AF32: YES | AG32: NO | AI32: CBD | AJ32: Urban | AK32: Short rural | AL32: Long rural | AN32: Ergon Energy
B33: Essential Energy | C33: Essential Energy | D33: 37428185226 | E33: NSW | F33: Electricity | G33: Distribution | H33: Revenue cap | I33: Financial | J33: June | K33: 5 | L33: 5 | M33: 5 | N33: 2014-19 Distribution Determination | O33: 8 Buller Street | Q33: PORT MACQUARIE | R33: NSW | S33: 2444 | T33: PO Box 5730 | V33: PORT MACQUARIE | W33: NSW | X33: 2444 | Y33: Catherine Waddell | Z33: 02 6338 3553 | AA33: catherine.waddell@essentialenergy.com.au | AE33: YES | AF33: YES | AG33: NO | AI33: CBD | AJ33: Urban | AK33: Short rural | AL33: Long rural | AN33: Essential Energy
B34: Jemena Electricity | C34: Jemena Electricity | D34: 82064651083 | E34: Vic | F34: Electricity | G34: Distribution | H34: Revenue cap | I34: Calendar | J34: December | K34: 5 | L34: 5 | M34: 2 | N34: 2016-20 Distribution Determination | O34: Level 16 | P34: 567 Collins Street | Q34: MELBOURNE | R34: VIC | S34: 3000 | T34: PO Box 16182 | V34: MELBOURNE | W34: VIC | X34: 8001 | Y34: Matthew Serpell | Z34: 03 9173 8231 | AA34: matthew.serpell@jemena.com.au | AE34: YES | AF34: NO | AG34: NO | AI34: CBD | AJ34: Urban | AK34: Short rural | AL34: Long rural | AN34: Jemena Electricity
B35: JGN | C35: Jemena Gas Networks (NSW) Ltd | D35: 003 004 322 | E35: NSW | F35: Gas | G35: Distribution | H35: Weighted average price cap | I35: Financial | J35: June | K35: 5 | L35: 5 | AN35: JGN
B36: Multinet Gas | C36: Multinet Gas (DB No.1) Pty Ltd (ACN 086 026 986), Multinet Gas (DB No.2) Pty Ltd (ACN 086 230 122) | D36: 086026986 | E36: Vic | F36: Gas | G36: Distribution | H36: Weighted average price cap | I36: Calendar | J36: December | K36: 5 | L36: 5 | M36: x | O36: 6 Nexus Court | Q36: MULGRAVE | R36: Vic | S36: 3149 | Y36: Stephanie McDougall | Z36: 03 8846 9538 | AA36: Stephanie.McDougall@ue.com.au | AN36: Multinet Gas
B37: Murraylink | C37: Murraylink | D37: 79181207909 | E37: SA | F37: Electricity | G37: Transmission | H37: Revenue cap | I37: Financial | J37: June | K37: 5 | L37: 5 | M37: 5 | N37: transmission determination | AI37: CBD | AJ37: Urban | AK37: Short rural | AL37: Long rural | AN37: Murraylink
B38: Power and Water | C38: Power and Water Corporation | D38: 15947352360 | E38: NT | F38: Electricity | G38: Distribution | H38: Revenue cap | I38: Financial | J38: June | K38: 5 | L38: 5 | M38: x | N38: distribution determination | O38: GPO Box 1921 | Q38: DARWIN | R38: NT | S38: 0801 | T38: GPO Box 1921 | V38: DARWIN | W38: NT | X38: 0801 | Y38: Lucy Moon | Z38: 08 8924 5822 | AA38: Lucy.Moon@powerwater.com.au | AC38: YES | AD38: YES | AE38: YES | AF38: YES | AG38: NO
B39: Powercor Australia | C39: Powercor Australia | D39: 89064651109 | E39: Vic | F39: Electricity | G39: Distribution | H39: Revenue cap | I39: Calendar | J39: December | K39: 5 | L39: 5 | M39: 2 | N39: 2016-20 Distribution Determination | O39: 40 Market Street | Q39: MELBOURNE | R39: Vic | S39: 3000 | T39: Locked bag 14090 | V39: MELBOURNE | W39: VIC | X39: 8001 | Y39: Hannah Williams | Z39: 03 9683 4088 | AA39: hwilliams@powercor.com.au | AE39: YES | AF39: YES | AG39: NO | AI39: CBD | AJ39: Urban | AK39: Short rural | AL39: Long rural | AN39: Powercor Australia
B40: Powerlink | C40: Queensland Electricity Transmission Corporation Limited trading as Powerlink Queensland | D40: 82078849233 | E40: Qld | F40: Electricity | G40: Transmission | H40: Revenue cap | I40: Financial | J40: June | K40: 5 | L40: 5 | M40: 5 | N40: transmission determination | O40: 33 Harold St | Q40: VIRGINIA | R40: Qld | S40: 4014 | T40: PO Box 1193 | V40: VIRGINIA | W40: QLD | X40: 4014 | Y40: Jennifer Harris | Z40: 07 3860 2667 | AA40: jharris@powerlink.com.au | AI40: CBD | AJ40: Urban | AK40: Short rural | AL40: Long rural | AN40: Powerlink
B41: Roma to Brisbane Pipeline | C41: APT Petroleum Pipelines Limited t/a Roma to Brisbane Pipeline | D41: 009 737 393 | E41: Qld | F41: Gas | G41: Transmission | H41: Weighted average price cap | I41: Financial | J41: June | K41: 5 | L41: 5 | M41: x | N41: n/a | O41: 580 George Street | Q41: SYDNEY | R41: NSW | S41: 2000 | T41: PO Box R41 | V41: ROYAL EXCHANGE | W41: NSW | X41: 1225 | Y41: Mark Allen | Z41: 02 9275 0010 | AA41: mark.allen@apa.com.au | AI41: CBD | AJ41: Urban | AK41: Short rural | AL41: Long rural | AN41: Roma to Brisbane Pipeline
B42: SA Power Networks | C42: SA Power Networks | D42: 13332330749 | E42: SA | F42: Electricity | G42: Distribution | H42: Revenue cap | I42: Financial | J42: June | K42: 5 | L42: 5 | M42: 5 | N42: 2015-20 Distribution Determination | O42: 1 Anzac Highway | Q42: KESWICK | R42: SA | S42: 5035 | T42: GPO Box 77 | V42: ADELAIDE | W42: SA | X42: 5000 | Y42: Richard Sibly | Z42: 08 8404 5613 | AA42: richard.sibly@sapowernetworks.com.au | AE42: YES | AF42: YES | AG42: NO | AI42: CBD | AJ42: Urban | AK42: Short rural | AL42: Long rural | AN42: SA Power Networks
B43: TasNetworks (D) | C43: TasNetworks (D) | D43: 24167357299 | E43: Tas | F43: Electricity | G43: Distribution | H43: Revenue cap | I43: Financial | J43: June | K43: 5 | L43: 5 | M43: 5 | N43: distribution determination | O43: 1-7 Maria Street | Q43: LENAH VALLEY | R43: Tas | S43: 7008 | T43: PO Box 606 | V43: MOONAH | W43: Tas | X43: 7009 | Y43: John Sayers | Z43: 03 6271 6469 | AA43: john.sayers@tasnetworks.com.au | AE43: YES | AF43: YES | AG43: YES | AI43: Critical Infrastructure | AJ43: High density commercial | AK43: Urban | AL43: High density rural | AM43: Low density rural | AN43: TasNetworks (D)
B44: TasNetworks (T) | C44: TasNetworks (T) | D44: 24167357299 | E44: Tas | F44: Electricity | G44: Transmission | H44: Revenue cap | I44: Financial | J44: June | K44: 5 | L44: 5 | M44: 5 | N44: transmission determination | O44: 1-7 Maria Street | Q44: LENAH VALLEY | R44: Tas | S44: 7008 | T44: PO Box 606 | V44: MOONAH | W44: Tas | X44: 7009 | Y44: John Sayers | Z44: 03 6271 6469 | AA44: john.sayers@tasnetworks.com.au | AI44: CBD | AJ44: Urban | AK44: Short rural | AL44: Long rural | AN44: TasNetworks (T)
B45: TransGrid | C45: NSW Electricity Networks Operations Pty Ltd trading as TransGrid | D45: 609169959 | E45: NSW | F45: Electricity | G45: Transmission | H45: Revenue cap | I45: Financial | J45: June | K45: 5 | L45: 4 | M45: 5 | N45: transmission determination | O45: 180 Thomas Street | Q45: SYDNEY | R45: NSW | S45: 2000 | T45: PO Box A1000 | V45: SYDNEY SOUTH | W45: NSW | X45: 1235 | Y45: Garrie Chubb | Z45: 0408 210 221 | AA45: garrie.chubb@transgrid.com.au | AI45: CBD | AJ45: Urban | AK45: Short rural | AL45: Long rural | AN45: TransGrid
B46: United Energy | C46: United Energy | D46: 70064651029 | E46: Vic | F46: Electricity | G46: Distribution | H46: Revenue cap | I46: Calendar | J46: December | K46: 5 | L46: 5 | M46: 2 | N46: 2016-20 Distribution Determination | O46: Level 3 | P46: 6 Nexus Court | Q46: MULGRAVE | R46: Vic | S46: 3149 | T46: PO Box 449 | V46: MOUNT WAVERLEY | W46: VIC | X46: 3170 | Y46: Mathew Abraham | Z46: 03 8846 9758 | AA46: mathew.abraham@ue.com.au | AE46: YES | AF46: NO | AG46: NO | AI46: CBD | AJ46: Urban | AK46: Short rural | AL46: Long rural | AN46: United Energy
B47: Western Power (D) | C47: Western Power (D) | D47: 18540492861 | E47: WA | F47: Electricity | G47: Distribution | H47: Revenue cap | I47: Financial | J47: June | K47: 12 | L47: 4 | M47: x | N47: distribution determination | O47: 363 Wellington Street | Q47: PERTH | R47: WA | S47: 6000 | T47: GPO Box L921 | V47: PERTH | W47: WA | X47: 6842 | Y47: Judy Hunter | Z47: 08 9326 6239 | AA47: judy.hunter@westernpower.com.au | AE47: YES | AF47: YES | AG47: NO | AH47: NO | AI47: CBD | AJ47: Urban | AK47: Short rural | AL47: Long rural | AN47: Western Power (D)
B48: Western Power (T) | C48: Western Power (T) | D48: 18540492861 | E48: WA | F48: Electricity | G48: Transmission | H48: Revenue cap | I48: Financial | J48: June | K48: 12 | L48: 4 | M48: x | N48: transmission determination | O48: 363 Wellington Street | Q48: PERTH | R48: WA | S48: 6000 | T48: GPO Box L921 | V48: PERTH | W48: WA | X48: 6842 | Y48: Judy Hunter | Z48: 08 9326 6239 | AA48: judy.hunter@westernpower.com.au | AE48: YES | AF48: YES | AG48: NO | AI48: CBD | AJ48: Urban | AK48: Short rural | AL48: Long rural | AN48: Western Power (T)
W51: For EB & Reset RINs only | AC51: For AARs only
B52: The Reg Year Ending (dms_RYE) must be set to the last year of the regulatory period. For forecast data is is usually (FRCP_y5) for actual it is a single year (CRY). For historical actual data the RYE will need to be set manually in the business details sheet by setting the dms_Multiyear_flag to 1 and putting the correct value in 'dms_Specified_FinalYear. See cells C67:C68 | G52: =IF(dms_RPT="financial",VALUE(LEFT(CRCP_y1,4)-1)&"-"&TEXT(VALUE(RIGHT(CRCP_y1,2)-1),"00"),VALUE(LEFT(CRCP_y1,4)-1)) -> 2011-12 | N52: Drop down selector box for CA & Reset RINs. | O52: For CA & Reset RINs only | W52: for DNSP only | AC52: For DNSPs only | AI52: Reason for interruption | AJ52: dms_Reason_Interruption_Detailed | AK52: dms_Reason_Interruption
B53: dms_Model_List | C53: DELETE NR 'CRY' IF NOT AN ANNUAL RIN (EB, CA , ARR) | E53: dms_RYE_Formula_Result | N53: dms_0203_ProjectType | O53: dms_020303_01_UOM | P53: dms_020501_01_UOM | Q53: dms_020501_02_UOM | R53: dms_020501_03_UOM | S53: dms_020501_04_UOM | T53: dms_020603_01_UOM | U53: dms_040102_01_UOM | V53: dms_040102_04_UOM | W53: dms_030601_01_UOM | X53: dms_030601_02_UOM | Y53: dms_030701_01_UOM | Z53: dms_030702_01_UOM | AA53: dms_030703_01_UOM | AC53: dms_030605_UOM | AD53: dms_03060703_UOM | AI53: Animal | AJ53: Animal impact | AK53: Animal
B54: ARR | C54: ANNUAL REPORTING STATEMENT | E54: =LEFT(dms_SingleYear_FinalYear_Result,2)&RIGHT(dms_SingleYear_FinalYear_Result,2) -> 2017 | F54: =LEFT(dms_SingleYear_FinalYear_Result,2)&RIGHT(dms_SingleYear_FinalYear_Result,2) | H54: Formula errors are OK | N54: New line on new route - single circuit | O54: Circuit line length in km | P54: 0's | Q54: 0's | R54: 0's | S54: 0's | T54: 0's | U54: 0's | V54: days | W54: minutes/customer | X54: minutes/customer | Y54: Customer / km | Z54: % | AA54: km | AC54: number | AD54: number | AJ54: Animal nesting/burrowing, etc and other | AK54: Asset failure
B55: CA | C55: CATEGORY ANALYSIS | E55: =LEFT(dms_SingleYear_FinalYear_Result,2)&RIGHT(dms_SingleYear_FinalYear_Result,2) -> 2017 | F55: =LEFT(dms_SingleYear_FinalYear_Result,2)&RIGHT(dms_SingleYear_FinalYear_Result,2) | H55: Formula errors are OK | N55: New line on new route - dual circuit | O55: Circuit line length in km | P55: 0's | Q55: 0's | R55: 0's | S55: 0's | T55: 0's | U55: 0's | V55: 0's | W55: minutes/customer | X55: minutes/customer | Y55: MWh/customer | Z55: Number of spans | AC55: number | AD55: number | AJ55: Other | AK55: Other
B56: CPI | C56: CPI | N56: New line on new route - other | O56: Circuit line length in km | P56: MVA added | Q56: MVA added | R56: MVA added | S56: MVA added | T56: 0's | U56: 0's | V56: $0s | W56: interruptions/customer | X56: interruptions/customer | Y56: kVA / customer | Z56: Number of spans | AC56: number | AD56: number | AI56: Asset failure | AJ56: LV | AK56: Overloads
B57: EB | C57: ECONOMIC BENCHMARKING | E57: =LEFT(dms_SingleYear_FinalYear_Result,2)&RIGHT(dms_SingleYear_FinalYear_Result,2) -> 2017 | F57: =LEFT(dms_SingleYear_FinalYear_Result,2)&RIGHT(dms_SingleYear_FinalYear_Result,2) | H57: Formula errors are OK | N57: Line rebuild over existing route - single circuit | O57: Circuit line length in km | P57: 0's | Q57: 0's | R57: 0's | S57: 0's | T57: 0's | U57: $0s | V57: 0's | W57: interruptions/customer | X57: interruptions/customer | Z57: Number of spans | AC57: number | AD57: number | AJ57: Distribution substation | AK57: Planned
B58: PTRM | C58: POST TAX REVENUE MODEL | E58: =LEFT(dms_MultiYear_FinalYear_Result,2)&RIGHT(dms_MultiYear_FinalYear_Result,2) -> 2022 | F58: =LEFT(dms_MultiYear_FinalYear_Result,2)&RIGHT(dms_MultiYear_FinalYear_Result,2) | N58: Line rebuild over existing route - dual circuit | O58: Number | P58: total spend $0s | Q58: total spend $0s | R58: total spend $0s | S58: total spend $0s | T58: (per cent) | Z58: Number of spans | AC58: number | AD58: (per cent) | AJ58: HV | AK58: Network business
B59: Reset | C59: REGULATORY REPORTING STATEMENT | E59: =LEFT(dms_MultiYear_FinalYear_Result,2)&RIGHT(dms_MultiYear_FinalYear_Result,2) -> 2022 | F59: =LEFT(dms_MultiYear_FinalYear_Result,2)&RIGHT(dms_MultiYear_FinalYear_Result,2) | H59: Formula errors are OK | N59: Reconductor - Single circuit | O59: Number | P59: net circuit km added | Q59: net circuit km added | R59: net circuit km added | S59: net circuit km added | Z59: Years | AC59: number | AJ59: Zone substation | AK59: Third party
B60: RFM | C60: ROLL FORWARD MODEL | E60: =LEFT(dms_CRCP_FinalYear_Result,2)&RIGHT(dms_CRCP_FinalYear_Result,2) -> 2017 | F60: =LEFT(dms_CRCP_FinalYear_Result,2)&RIGHT(dms_CRCP_FinalYear_Result,2) | N60: Reconductor - Dual circuit | O60: Number | P60: total spend $0s | Q60: total spend $0s | R60: total spend $0s | S60: total spend $0s | Z60: Years | AC60: number | AJ60: Subtransmission | AK60: Unknown
B61: WACC | C61: WEIGHTED AVERAGE COST OF CAPITAL | E61: =LEFT(dms_MultiYear_FinalYear_Result,2)&RIGHT(dms_MultiYear_FinalYear_Result,2) -> 2022 | F61: =LEFT(dms_MultiYear_FinalYear_Result,2)&RIGHT(dms_MultiYear_FinalYear_Result,2) | N61: Other | P61: net circuit km added | Q61: net circuit km added | R61: net circuit km added | S61: net circuit km added | Z61: Trees | AC61: number | AI61: Other | AJ61: insert description of 'other' | AK61: Vegetation
P62: total spend $0s | Q62: total spend $0s | R62: total spend $0s | S62: total spend $0s | Z62: Trees | AC62: number | AI62: Overloads | AJ62: - | AK62: Weather
B63: dms_DataQuality_List | P63: 0's | R63: $0s | Z63: Defects | AC63: number | AI63: Planned | AJ63: - | AK63: 2 - STPIS Exclusion (3.3)(a)
B64: Actual | P64: 0's | Z64: Defects | AC64: number | AI64: Network business | AJ64: Network error | AK64: 3 - STPIS Exclusion (3.3)(a)
B65: Estimate | P65: 0's | Z65: Spans | AC65: number | AJ65: Switching and protection error | AK65: 4 - STPIS Exclusion (3.3)(a)
B66: Consolidated | P66: $0s | Z66: km | AC66: (per cent) | AI66: Third party | AJ66: Fire | AK66: 5 - STPIS Exclusion (3.3)(a)
B67: Recast | Z67: Spans | AC67: (per cent) | AJ67: Other | AK67: 6 - STPIS Exclusion (3.3)(a)
B68: Public | AJ68: Dig-in | AK68: 7 - STPIS Exclusion (3.3)(a)
AJ69: Unauthorised access
B70: For all files either AER or business needs to be able to specify the type of submission | C70: For PTRM & RFM templates we must provide a choice in case they change their form of control - otherwise it is drawn from the business specific lookup table above. | O70: For PTRM files - this field set the text for the named range "DMS_Xfactor" which in all cases is simply the text "x factors" - this saves putting in each old gas PTRM file | W70: for TNSP only | AJ70: Vehicle impact
B71: dms_SourceList | C71: dms_FormControl_Choices | O71: DMS_Xfactor | W71: dms_030601_01_UOM | Y71: dms_030701_01_UOM | Z71: dms_030702_01_UOM | AI71: Unknown | AJ71: Unknown
B72: After appeal | C72: Revenue cap | O72: x factors | W72: % | Y72: Number of spans | Z72: km | AI72: Vegetation | AJ72: Blow-in/Fall-in - NSP responsibility
B73: Draft decision | C73: Revenue yield | W73: number | Y73: Years | Z73: % | AJ73: Grow-in - NSP responsibility
B74: Final decision | C74: Weighted average price cap | W74: number | Y74: Trees | Z74: km | AJ74: Blow-in/Fall-in - Other responsible party
B75: PTRM update 1 | W75: % | Y75: Defects | Z75: number | AJ75: Grow-in - Other responsible party
B76: PTRM update 2 | W76: number | Y76: Number of spans | AI76: Weather
B77: PTRM update 3 | W77: number | Y77: km | AI77: 2 - STPIS Exclusion (3.3)(a)
B78: PTRM update 4 | W78: % | Y78: km | AI78: 3 - STPIS Exclusion (3.3)(a)
B79: PTRM update 5 | W79: number | Y79: Number of spans | AI79: 4 - STPIS Exclusion (3.3)(a)
B80: PTRM update 6 | W80: number | AI80: 5 - STPIS Exclusion (3.3)(a)
B81: PTRM update 7 | W81: % | AI81: 6 - STPIS Exclusion (3.3)(a)
B82: Regulatory proposal | W82: number | AI82: 7 - STPIS Exclusion (3.3)(a)
B83: Reporting | W83: %
B84: Revised regulatory proposal | W84: number
W85: %
W86: number
B90: These are indeces and lookup values for various dates. All step from the value placed in FRCP_y1 on the business and other details worksheet | L90: These date tables are currently used in the Recast templates to provide column headings and conditional formatting
B91: dms_FRCPlength_Num_List | C91: dms_FinalYear_List | D91: dms_CRCPlength_Num_List | E91: dms_CFinalYear_List | F91: dms_FRCP_years | H91: dms_CRCP_years | J91: dms_CRCP_index | L91: CRY from input cell on business sheet | M91: CRY - financial | N91: dms_FinYears | O91: CRY calendar | P91: dms_CalYears
B92: 1 | C92: dms_FRCP_y1 | D92: 1 | E92: CRCP_y1 | F92: =FRCP_y1 -> 2017-18 | G92: dms_FRCP_y1 | H92: =IF(dms_RPT="financial",VALUE(LEFT(dms_FRCP_y1,4)-1)&"-"&TEXT(VALUE(MID(dms_FRCP_y1,3,2)),"00"),VALUE(LEFT(dms_FRCP_y1,4)-1)) -> 2016-17 | I92: dms_CRCP_yZ | J92: 1 | L92: =CRY -> 2016-17 | M92: =VALUE(LEFT(CRY,4))&"-"&TEXT(MID(CRY,3,2)+1,"00") -> 2016-17 | N92: dms_CRYf_y1 | O92: =VALUE(LEFT(CRY,4)+1) -> 2017 | P92: dms_CRYc_y1
B93: 2 | C93: dms_FRCP_y2 | D93: 2 | E93: CRCP_y2 | F93: =IF(dms_RPT="financial",VALUE(LEFT(dms_FRCP_y1,4)+1)&"-"&TEXT(VALUE(RIGHT(dms_FRCP_y1,2)+1),"00"),VALUE(LEFT(dms_FRCP_y1,4)+1)) -> 2018-19 | G93: dms_FRCP_y2 | H93: =IF(dms_RPT="financial",VALUE(LEFT(dms_CRCP_yZ,4)-1)&"-"&TEXT(VALUE(MID(dms_CRCP_yZ,3,2)),"00"),VALUE(LEFT(dms_CRCP_yZ,4)-1)) -> 2015-16 | I93: dms_CRCP_yY | J93: 2 | M93: =VALUE(LEFT(dms_CRYf_y1,4)+1)&"-"&TEXT(MID(dms_CRYf_y1,3,2)+2,"00") -> 2017-18 | N93: dms_CRYf_y2 | O93: =VALUE(LEFT(dms_CRYc_y1,4)+1) -> 2018 | P93: dms_CRYc_y2
B94: 3 | C94: dms_FRCP_y3 | D94: 3 | E94: CRCP_y3 | F94: =IF(dms_RPT="financial",VALUE(LEFT(dms_FRCP_y2,4)+1)&"-"&TEXT(VALUE(RIGHT(dms_FRCP_y2,2)+1),"00"),VALUE(LEFT(dms_FRCP_y2,4)+1)) -> 2019-20 | G94: dms_FRCP_y3 | H94: =IF(dms_RPT="financial",VALUE(LEFT(dms_CRCP_yY,4)-1)&"-"&TEXT(VALUE(MID(dms_CRCP_yY,3,2)),"00"),VALUE(LEFT(dms_CRCP_yY,4)-1)) -> 2014-15 | I94: dms_CRCP_yX | J94: 3 | M94: =VALUE(LEFT(dms_CRYf_y2,4)+1)&"-"&TEXT(MID(dms_CRYf_y2,3,2)+2,"00") -> 2018-19 | N94: dms_CRYf_y3 | O94: =VALUE(LEFT(dms_CRYc_y2,4)+1) -> 2019 | P94: dms_CRYc_y3
B95: 4 | C95: dms_FRCP_y4 | D95: 4 | E95: CRCP_y4 | F95: =IF(dms_RPT="financial",VALUE(LEFT(dms_FRCP_y3,4)+1)&"-"&TEXT(VALUE(RIGHT(dms_FRCP_y3,2)+1),"00"),VALUE(LEFT(dms_FRCP_y3,4)+1)) -> 2020-21 | G95: dms_FRCP_y4 | H95: =IF(dms_RPT="financial",VALUE(LEFT(dms_CRCP_yX,4)-1)&"-"&TEXT(VALUE(MID(dms_CRCP_yX,3,2)),"00"),VALUE(LEFT(dms_CRCP_yX,4)-1)) -> 2013-14 | I95: dms_CRCP_yW | J95: 4 | M95: =VALUE(LEFT(dms_CRYf_y3,4)+1)&"-"&TEXT(MID(dms_CRYf_y3,3,2)+2,"00") -> 2019-20 | N95: dms_CRYf_y4 | O95: =VALUE(LEFT(dms_CRYc_y3,4)+1) -> 2020 | P95: dms_CRYc_y4
B96: 5 | C96: dms_FRCP_y5 | D96: 5 | E96: CRCP_y5 | F96: =IF(dms_RPT="financial",VALUE(LEFT(dms_FRCP_y4,4)+1)&"-"&TEXT(VALUE(RIGHT(dms_FRCP_y4,2)+1),"00"),VALUE(LEFT(dms_FRCP_y4,4)+1)) -> 2021-22 | G96: dms_FRCP_y5 | H96: =IF(dms_RPT="financial",VALUE(LEFT(dms_CRCP_yW,4)-1)&"-"&TEXT(VALUE(MID(dms_CRCP_yW,3,2)),"00"),VALUE(LEFT(dms_CRCP_yW,4)-1)) -> 2012-13 | I96: dms_CRCP_yV | J96: 5 | M96: =VALUE(LEFT(dms_CRYf_y4,4)+1)&"-"&TEXT(MID(dms_CRYf_y4,3,2)+2,"00") -> 2020-21 | N96: dms_CRYf_y5 | O96: =VALUE(LEFT(dms_CRYc_y4,4)+1) -> 2021 | P96: dms_CRYc_y5
B97: 6 | C97: dms_FRCP_y6 | D97: 6 | E97: CRCP_y6 | F97: =IF(dms_RPT="financial",VALUE(LEFT(dms_FRCP_y5,4)+1)&"-"&TEXT(VALUE(RIGHT(dms_FRCP_y5,2)+1),"00"),VALUE(LEFT(dms_FRCP_y5,4)+1)) -> 2022-23 | G97: dms_FRCP_y6 | H97: =IF(dms_RPT="financial",VALUE(LEFT(dms_CRCP_yV,4)-1)&"-"&TEXT(VALUE(MID(dms_CRCP_yV,3,2)),"00"),VALUE(LEFT(dms_CRCP_yV,4)-1)) -> 2011-12 | I97: dms_CRCP_yU | J97: 6 | M97: =VALUE(LEFT(dms_CRYf_y5,4)+1)&"-"&TEXT(MID(dms_CRYf_y5,3,2)+2,"00") -> 2021-22 | N97: dms_CRYf_y6 | O97: =VALUE(LEFT(dms_CRYc_y5,4)+1) -> 2022 | P97: dms_CRYc_y6
B98: 7 | C98: dms_FRCP_y7 | D98: 7 | E98: CRCP_y7 | F98: =IF(dms_RPT="financial",VALUE(LEFT(dms_FRCP_y6,4)+1)&"-"&TEXT(VALUE(RIGHT(dms_FRCP_y6,2)+1),"00"),VALUE(LEFT(dms_FRCP_y6,4)+1)) -> 2023-24 | G98: dms_FRCP_y7 | H98: =IF(dms_RPT="financial",VALUE(LEFT(dms_CRCP_yU,4)-1)&"-"&TEXT(VALUE(MID(dms_CRCP_yU,3,2)),"00"),VALUE(LEFT(dms_CRCP_yU,4)-1)) -> 2010-11 | I98: dms_CRCP_yT | J98: 7 | M98: =VALUE(LEFT(dms_CRYf_y6,4)+1)&"-"&TEXT(MID(dms_CRYf_y6,3,2)+2,"00") -> 2022-23 | N98: dms_CRYf_y7 | O98: =VALUE(LEFT(dms_CRYc_y6,4)+1) -> 2023 | P98: dms_CRYc_y7
B99: 8 | C99: dms_FRCP_y8 | D99: 8 | E99: CRCP_y8 | F99: =IF(dms_RPT="financial",VALUE(LEFT(dms_FRCP_y7,4)+1)&"-"&TEXT(VALUE(RIGHT(dms_FRCP_y7,2)+1),"00"),VALUE(LEFT(dms_FRCP_y7,4)+1)) -> 2024-25 | G99: dms_FRCP_y8 | H99: =IF(dms_RPT="financial",VALUE(LEFT(dms_CRCP_yT,4)-1)&"-"&TEXT(VALUE(MID(dms_CRCP_yT,3,2)),"00"),VALUE(LEFT(dms_CRCP_yT,4)-1)) -> 2009-10 | I99: dms_CRCP_yS | J99: 8 | M99: =VALUE(LEFT(dms_CRYf_y7,4)+1)&"-"&TEXT(MID(dms_CRYf_y7,3,2)+2,"00") -> 2023-24 | N99: dms_CRYf_y8 | O99: =VALUE(LEFT(dms_CRYc_y7,4)+1) -> 2024 | P99: dms_CRYc_y8
B100: 9 | C100: dms_FRCP_y9 | D100: 9 | E100: CRCP_y9 | F100: =IF(dms_RPT="financial",VALUE(LEFT(dms_FRCP_y8,4)+1)&"-"&TEXT(VALUE(RIGHT(dms_FRCP_y8,2)+1),"00"),VALUE(LEFT(dms_FRCP_y8,4)+1)) -> 2025-26 | G100: dms_FRCP_y9 | H100: =IF(dms_RPT="financial",VALUE(LEFT(dms_CRCP_yS,4)-1)&"-"&TEXT(VALUE(MID(dms_CRCP_yS,3,2)),"00"),VALUE(LEFT(dms_CRCP_yS,4)-1)) -> 2008-09 | I100: dms_CRCP_yR | J100: 9 | M100: =VALUE(LEFT(dms_CRYf_y8,4)+1)&"-"&TEXT(MID(dms_CRYf_y8,3,2)+2,"00") -> 2024-25 | N100: dms_CRYf_y9 | O100: =VALUE(LEFT(dms_CRYc_y8,4)+1) -> 2025 | P100: dms_CRYc_y9
B101: 10 | C101: dms_FRCP_y10 | D101: 10 | E101: CRCP_y10 | F101: =IF(dms_RPT="financial",VALUE(LEFT(dms_FRCP_y9,4)+1)&"-"&TEXT(VALUE(RIGHT(dms_FRCP_y9,2)+1),"00"),VALUE(LEFT(dms_FRCP_y9,4)+1)) -> 2026-27 | G101: dms_FRCP_y10 | H101: =IF(dms_RPT="financial",VALUE(LEFT(dms_CRCP_yR,4)-1)&"-"&TEXT(VALUE(MID(dms_CRCP_yR,3,2)),"00"),VALUE(LEFT(dms_CRCP_yR,4)-1)) -> 2007-08 | I101: dms_CRCP_yQ | J101: 10 | M101: =VALUE(LEFT(dms_CRYf_y9,4)+1)&"-"&TEXT(MID(dms_CRYf_y9,3,2)+2,"00") -> 2025-26 | N101: dms_CRYf_y10 | O101: =VALUE(LEFT(dms_CRYc_y9,4)+1) -> 2026 | P101: dms_CRYc_y10
B102: 11 | C102: dms_FRCP_y11 | D102: 11 | E102: CRCP_y11 | F102: =IF(dms_RPT="financial",VALUE(LEFT(dms_FRCP_y10,4)+1)&"-"&TEXT(VALUE(RIGHT(dms_FRCP_y10,2)+1),"00"),VALUE(LEFT(dms_FRCP_y10,4)+1)) -> 2027-28 | G102: dms_FRCP_y11 | H102: =IF(dms_RPT="financial",VALUE(LEFT(dms_CRCP_yQ,4)-1)&"-"&TEXT(VALUE(MID(dms_CRCP_yQ,3,2)),"00"),VALUE(LEFT(dms_CRCP_yQ,4)-1)) -> 2006-07 | I102: dms_CRCP_yP | J102: 11 | M102: =VALUE(LEFT(dms_CRYf_y10,4)+1)&"-"&TEXT(MID(dms_CRYf_y10,3,2)+2,"00") -> 2026-27 | N102: dms_CRYf_y11 | O102: =VALUE(LEFT(dms_CRYc_y10,4)+1) -> 2027 | P102: dms_CRYc_y11
B103: 12 | C103: dms_FRCP_y12 | D103: 12 | E103: CRCP_y12 | F103: =IF(dms_RPT="financial",VALUE(LEFT(dms_FRCP_y11,4)+1)&"-"&TEXT(VALUE(RIGHT(dms_FRCP_y11,2)+1),"00"),VALUE(LEFT(dms_FRCP_y11,4)+1)) -> 2028-29 | G103: dms_FRCP_y12 | H103: =IF(dms_RPT="financial",VALUE(LEFT(dms_CRCP_yP,4)-1)&"-"&TEXT(VALUE(MID(dms_CRCP_yP,3,2)),"00"),VALUE(LEFT(dms_CRCP_yP,4)-1)) -> 2005-06 | I103: dms_CRCP_yO | J103: 12 | M103: =VALUE(LEFT(dms_CRYf_y11,4)+1)&"-"&TEXT(MID(dms_CRYf_y11,3,2)+2,"00") -> 2027-28 | N103: dms_CRYf_y12 | O103: =VALUE(LEFT(dms_CRYc_y11,4)+1) -> 2028 | P103: dms_CRYc_y12
B104: 13 | C104: dms_FRCP_y13 | D104: 13 | E104: CRCP_y13 | F104: =IF(dms_RPT="financial",VALUE(LEFT(dms_FRCP_y12,4)+1)&"-"&TEXT(VALUE(RIGHT(dms_FRCP_y12,2)+1),"00"),VALUE(LEFT(dms_FRCP_y12,4)+1)) -> 2029-30 | G104: dms_FRCP_y13 | H104: =IF(dms_RPT="financial",VALUE(LEFT(dms_CRCP_yO,4)-1)&"-"&TEXT(VALUE(MID(dms_CRCP_yO,3,2)),"00"),VALUE(LEFT(dms_CRCP_yO,4)-1)) -> 2004-05 | I104: dms_CRCP_yN | J104: 13 | M104: =VALUE(LEFT(dms_CRYf_y12,4)+1)&"-"&TEXT(MID(dms_CRYf_y12,3,2)+2,"00") -> 2028-29 | N104: dms_CRYf_y13 | O104: =VALUE(LEFT(dms_CRYc_y12,4)+1) -> 2029 | P104: dms_CRYc_y13
B105: 14 | C105: dms_FRCP_y14 | D105: 14 | E105: CRCP_y14 | F105: =IF(dms_RPT="financial",VALUE(LEFT(dms_FRCP_y13,4)+1)&"-"&TEXT(VALUE(RIGHT(dms_FRCP_y13,2)+1),"00"),VALUE(LEFT(dms_FRCP_y13,4)+1)) -> 2030-31 | G105: dms_FRCP_y14 | H105: =IF(dms_RPT="financial",VALUE(LEFT(dms_CRCP_yN,4)-1)&"-"&TEXT(VALUE(MID(dms_CRCP_yN,3,2)),"00"),VALUE(LEFT(dms_CRCP_yN,4)-1)) -> 2003-04 | I105: dms_CRCP_yM | J105: 14 | M105: =VALUE(LEFT(dms_CRYf_y13,4)+1)&"-"&TEXT(MID(dms_CRYf_y13,3,2)+2,"00") -> 2029-30 | N105: dms_CRYf_y14 | O105: =VALUE(LEFT(dms_CRYc_y13,4)+1) -> 2030 | P105: dms_CRYc_y14
B106: 15 | C106: dms_FRCP_y15 | D106: 15 | E106: CRCP_y15 | F106: =IF(dms_RPT="financial",VALUE(LEFT(dms_FRCP_y14,4)+1)&"-"&TEXT(VALUE(RIGHT(dms_FRCP_y14,2)+1),"00"),VALUE(LEFT(dms_FRCP_y14,4)+1)) -> 2031-32 | G106: dms_FRCP_y15 | H106: =IF(dms_RPT="financial",VALUE(LEFT(dms_CRCP_yM,4)-1)&"-"&TEXT(VALUE(MID(dms_CRCP_yM,3,2)),"00"),VALUE(LEFT(dms_CRCP_yM,4)-1)) -> 2002-03 | I106: dms_CRCP_yL | J106: 15 | M106: =VALUE(LEFT(dms_CRYf_y14,4)+1)&"-"&TEXT(MID(dms_CRYf_y14,3,2)+2,"00") -> 2030-31 | N106: dms_CRYf_y15 | O106: =VALUE(LEFT(dms_CRYc_y14,4)+1) -> 2031 | P106: dms_CRYc_y15
M107: =VALUE(LEFT(dms_CRYf_y15,4)+1)&"-"&TEXT(MID(dms_CRYf_y15,3,2)+2,"00") -> 2031-32 | N107: dms_CRYf_y16 | O107: =VALUE(LEFT(dms_CRYc_y15,4)+1) -> 2032 | P107: dms_CRYc_y16
B108: These are drop down lists for businesses to select the correct FRCP_y1 on the business and other details worksheet. This also populates the column headings in the worksheets | M108: =VALUE(LEFT(dms_CRYf_y16,4)+1)&"-"&TEXT(MID(dms_CRYf_y16,3,2)+2,"00") -> 2032-33 | N108: dms_CRYf_y17 | O108: =VALUE(LEFT(dms_CRYc_y16,4)+1) -> 2033 | P108: dms_CRYc_y17
B109: dms_RCP_fyear_list | C109: dms_CRY_ListF | D109: dms_CRY_ListC | E109: dms_RCP_cyear_list | F109: dms_FRCP_fyear_list | G109: dms_FRCP_ListF | H109: dms_FRCP_ListC | I109: dms_FRCP_cyear_list | M109: =VALUE(LEFT(dms_CRYf_y17,4)+1)&"-"&TEXT(MID(dms_CRYf_y17,3,2)+2,"00") -> 2033-34 | N109: dms_CRYf_y18 | O109: =VALUE(LEFT(dms_CRYc_y17,4)+1) -> 2034 | P109: dms_CRYc_y18
B110: dms_fy1 | C110: 2006-07 | D110: 2007 | E110: dms_cy1 | F110: dms_frcp_fy1 | G110: 2015-16 | H110: 2016 | I110: dms_crcp_cy1 | M110: =VALUE(LEFT(dms_CRYf_y18,4)+1)&"-"&TEXT(MID(dms_CRYf_y18,3,2)+2,"00") -> 2034-35 | N110: dms_CRYf_y19 | O110: =VALUE(LEFT(dms_CRYc_y18,4)+1) -> 2035 | P110: dms_CRYc_y19
B111: dms_fy2 | C111: 2007-08 | D111: 2008 | E111: dms_cy2 | F111: dms_frcp_fy2 | G111: 2016-17 | H111: 2017 | I111: dms_crcp_cy2 | M111: =VALUE(LEFT(dms_CRYf_y19,4)+1)&"-"&TEXT(MID(dms_CRYf_y19,3,2)+2,"00") -> 2035-36 | N111: dms_CRYf_y20 | O111: =VALUE(LEFT(dms_CRYc_y19,4)+1) -> 2036 | P111: dms_CRYc_y20
B112: dms_fy3 | C112: 2008-09 | D112: 2009 | E112: dms_cy3 | F112: dms_frcp_fy3 | G112: 2017-18 | H112: 2018 | I112: dms_crcp_cy3
B113: dms_fy4 | C113: 2009-10 | D113: 2010 | E113: dms_cy4 | F113: dms_frcp_fy4 | G113: 2018-19 | H113: 2019 | I113: dms_crcp_cy4
B114: dms_fy5 | C114: 2010-11 | D114: 2011 | E114: dms_cy5 | F114: dms_frcp_fy5 | G114: 2019-20 | H114: 2020 | I114: dms_crcp_cy5
B115: dms_fy6 | C115: 2011-12 | D115: 2012 | E115: dms_cy6 | F115: dms_frcp_fy6 | G115: 2020-21 | H115: 2021 | I115: dms_crcp_cy6
B116: dms_fy7 | C116: 2012-13 | D116: 2013 | E116: dms_cy7 | F116: dms_frcp_fy7 | G116: 2021-22 | H116: 2022 | I116: dms_crcp_cy7
B117: dms_fy8 | C117: 2013-14 | D117: 2014 | E117: dms_cy8 | F117: dms_frcp_fy8 | G117: 2022-23 | H117: 2023 | I117: dms_crcp_cy8 | L117: 2005-06 | M117: 2006
B118: dms_fy9 | C118: 2014-15 | D118: 2015 | E118: dms_cy9 | F118: dms_frcp_fy9 | G118: 2023-24 | H118: 2024 | I118: dms_crcp_cy9 | L118: 2006-07 | M118: 2007
B119: dms_fy10 | C119: 2015-16 | D119: 2016 | E119: dms_cy10 | F119: dms_frcp_fy10 | G119: 2024-25 | H119: 2025 | I119: dms_crcp_cy10 | L119: 2007-08 | M119: 2008
B120: dms_fy11 | C120: 2016-17 | D120: 2017 | E120: dms_cy11 | F120: dms_frcp_fy11 | G120: 2025-26 | H120: 2026 | I120: dms_crcp_cy11 | L120: 2008-09 | M120: 2009
B121: dms_fy12 | C121: 2017-18 | D121: 2018 | E121: dms_cy12 | F121: dms_frcp_fy12 | G121: 2026-27 | H121: 2027 | I121: dms_crcp_cy12 | L121: 2009-10 | M121: 2010
B122: dms_fy13 | C122: 2018-19 | D122: 2019 | E122: dms_cy13 | F122: dms_frcp_fy13 | G122: 2027-28 | H122: 2028 | I122: dms_crcp_cy13 | L122: 2010-11 | M122: 2011
B123: dms_fy14 | C123: 2019-20 | D123: 2020 | E123: dms_cy14 | F123: dms_frcp_fy14 | G123: 2028-29 | H123: 2029 | I123: dms_crcp_cy14 | L123: 2011-12 | M123: 2012
B124: dms_fy15 | C124: 2019-20 | D124: 2020 | E124: dms_cy15 | F124: dms_frcp_fy15 | G124: 2029-30 | H124: 2030 | I124: dms_crcp_cy15 | L124: 2012-13 | M124: 2013
B125: dms_fy16 | C125: 2020-21 | D125: 2021 | E125: dms_cy16 | L125: 2013-14 | M125: 2014
B126: dms_fy17 | C126: 2021-22 | D126: 2022 | E126: dms_cy17 | L126: 2014-15 | M126: 2015
B127: dms_fy18 | C127: 2022-23 | D127: 2023 | E127: dms_cy18 | L127: 2015-16 | M127: 2016
B128: dms_fy19 | C128: 2023-24 | D128: 2024 | E128: dms_cy19 | L128: 2016-17 | M128: 2017
B129: dms_fy20 | C129: 2024-25 | D129: 2025 | E129: dms_cy20 | L129: 2017-18 | M129: 2018
L130: 2018-19 | M130: 2019
L131: 2019-20 | M131: 2020
L132: 2020-21 | M132: 2021
L133: 2021-22 | M133: 2022
L134: 2022-23 | M134: 2023
L135: 2023-24 | M135: 2024
L136: 2024-25 | M136: 2025
L137: 2025-26 | M137: 2026
L138: 2026-27 | M138: 2027
L139: 2027-28 | M139: 2028
L140: 2028-29 | M140: 2029
L141: 2029-30 | M141: 2030
L142: 2030-31 | M142: 2031
L143: 2031-32 | M143: 2032
L144: 2032-33 | M144: 2033
L145: 2033-34 | M145: 2034
L146: 2034-35 | M146: 2035
L147: 2035-36 | M147: 2036

Sheet Instructions
B2: =CONCATENATE(dms_Segment," Network Service Provider") -> Distribution Network Service Provider
B3: Annual Reporting RIN Template
C4: =CONCATENATE("This template is to be used by ",dms_TradingName," to fulfil its reporting obligations to the AER.") -> This template is to be used by SA Power Networks to fulfil its reporting obligations to the AER.
C5: INSTRUCTIONS
C6: Complete the Business & other details worksheet before entering data or values in any other worksheets. The Business & other details worksheet is linked to other worksheets within the workbook and automatically generates certain column headings and conditional formatting.
C8: Identifying CONFIDENTIAL INFORMATION: Please use the macro at the top of each worksheet to identify confidential information.
C9: -Do this by selecting the cell or cells that contain confidential information and then run the Mark selection as CONFIDENTIAL macro. This will format the cells a specific colour that is identified by the AER's database which in turn marks that information as confidential. -To reverse this, select the cell or cells and run the Return selection to NON-CONFIDENTIAL macro
C11: UNITS OF MEASURE All amounts are to be unrounded and reported in nominal terms on a one for one basis: that is 1000 is to be entered as '1000'.
C13: COLOUR CODING OF INPUT / NON-INPUT CELLS:
D14: Yellow = Input cell (mandatory)
D15: Darker yellow = input cell (mandatory)
D16: Orange = input cell (if data available)
D17: Grey = Not applicable/No inputs required
D18: Leave coloured cells blank if no information exists. PLEASE DO NOT ENTER TEXT into cells that are to contain numeric data.
C21: WORKSHEET NAVIGATION Many tables in the worksheets have been "grouped" to allow for easy navigation. To ungroup or group data use the outline symbols in the left margin of excel (for Row groupings) or above the columns (for column groupings).
C23: RETURNING COMPLETED RESPONSES Please return four (4) files to the AER: 1. A confidential version which must contain a complete set of all responses with confidential information marked using the Mark selected cells CONFIDENTIAL macro and which has been completed using the locked template file provided by the AER. 2. An actual and an estimate version with confidential information marked using the Mark selected cells CONFIDENTIAL macro and which has been completed using the locked template file provided by the AER. 3. A public version with confidential information either removed completely or aggregated in some form together with writtten consent to disclose the public version of the response. Use the drop down box on the Business and other details worksheet to identify the file as either confidential ('consolidated') or public.
C25: SUBMITTING AMENDED DATA TO THE AER If an NSP wishes to correct data previously submitted to the AER it should resubmit that data using the original completed submission as the starting point. Please make any necessary changes to the data. Data that is not being amended should be left unchanged. NSPs must identify the reason for the amendments in the Amendment Reason box on the Business and other details worksheet. NSPs may provide further details regarding any amendments in the Amendments worksheet. .
C26: NSP may use Amended Data macro to highlight cells that contain amended data. NB: if data is also CONFIDENTIAL, re-apply the Confidentiality macro after applying the Amended macro
C27: Please resubmit two (2) files - a confidential version and a public version of the amended submission to the AER

Sheet Contents
B1: REGULATORY REPORTING STATEMENT
B2: =INDEX(dms_TradingNameFull_List,MATCH(dms_TradingName,dms_TradingName_List)) -> SA Power Networks
B3: =CONCATENATE((LOOKUP(dms_Model,dms_Model_List,dms_Worksheet_List))&" "&CRY) -> CATEGORY ANALYSIS 2016-17
B4: CONTENTS
E7: 1. Business details | L7: 2. Expenditure
E27: 4. Alternative control services | L27: 5. Network information | S27: 6. Service & quality

Sheet Business & other details
B1: =IF(dms_DataQuality="backcast",INDEX(dms_Worksheet_List,MATCH(dms_Model,dms_Model_List))&" BACKCAST",INDEX(dms_Worksheet_List,MATCH(dms_Model,dms_Model_List))) -> CATEGORY ANALYSIS
B2: =INDEX(dms_TradingNameFull_List,MATCH(dms_TradingName,dms_TradingName_List)) -> SA Power Networks
B3: =CONCATENATE((LOOKUP(dms_Model,dms_Model_List,dms_Worksheet_List))&" "&CRY) -> CATEGORY ANALYSIS 2016-17
B4: BUSINESS & OTHER DETAILS
B7: Instructions
B8: Complete the following business details regulatory template before entering data or values in any other regulatory template. This regulatory template is linked to other cells within the spreadsheet and automatically generates column headings and conditional formatting to distinguish business specific input and non-input cells.
B10: SUBMISSION PARTICULARS INPUT SHEETS
B12: ENTITY DETAILS
B14: Short name | C14: SA Power Networks | F14: Select business name from drop down list first
B15: ACN / ABN | C15: =INDEX(dms_ABN_List,MATCH(dms_TradingName,dms_TradingName_List)) -> 13332330749
B18: Business address | C18: Address 1 | E18: =INDEX(dms_Addr1_List,MATCH(dms_TradingName,dms_TradingName_List)) -> 1 Anzac Highway
D19: Address 2 | E19: =IF(ISBLANK(INDEX(dms_Addr2_List,MATCH(dms_TradingName,dms_TradingName_List))),"",INDEX(dms_Addr2_List,MATCH(dms_TradingName,dms_TradingName_List))) -> 
C20: Suburb | E20: =INDEX(dms_Suburb_List,MATCH(dms_TradingName,dms_TradingName_List)) -> KESWICK
D21: State | E21: =INDEX(dms_State_List,MATCH(dms_TradingName,dms_TradingName_List)) -> SA | F21: p/code | G21: =INDEX(dms_PostCode_List,MATCH(dms_TradingName,dms_TradingName_List)) -> 5035
B23: Postal address | C23: Address 1 | E23: =INDEX(dms_PAddr1_List,MATCH(dms_TradingName,dms_TradingName_List)) -> GPO Box 77
D24: Address 2 | E24: =IF(ISBLANK(INDEX(dms_PAddr2_List,MATCH(dms_TradingName,dms_TradingName_List))),"",INDEX(dms_PAddr2_List,MATCH(dms_TradingName,dms_TradingName_List))) -> 
C25: Suburb | E25: =INDEX(dms_PSuburb_List,MATCH(dms_TradingName,dms_TradingName_List)) -> ADELAIDE
D26: State | E26: =INDEX(dms_PState_List,MATCH(dms_TradingName,dms_TradingName_List)) -> SA | F26: p/code | G26: =INDEX(dms_PPostCode_List,MATCH(dms_TradingName,dms_TradingName_List)) -> 5000
B29: Contact name/s | C29: =INDEX(dms_ContactName1_List,MATCH(dms_TradingName,dms_TradingName_List)) -> Richard Sibly
B30: Contact phone/s | C30: =INDEX(dms_ContactPh1_List,MATCH(dms_TradingName,dms_TradingName_List)) -> 08 8404 5613
B31: Contact email address/s | C31: =INDEX(dms_ContactEmail_List,MATCH(dms_TradingName,dms_TradingName_List)) -> richard.sibly@sapowernetworks.com.au
B33: REGULATORY CONTROL PERIODS
B35: Forthcoming regulatory control period | C35: 2017-18 | D35: =dms_FRCP_y2 -> 2018-19 | E35: =dms_FRCP_y3 -> 2019-20 | F35: =dms_FRCP_y4 -> 2020-21 | G35: =dms_FRCP_y5 -> 2021-22 | H35: =dms_FRCP_y6 -> 2022-23 | I35: =dms_FRCP_y7 -> 2023-24 | J35: =dms_FRCP_y8 -> 2024-25 | K35: =dms_FRCP_y9 -> 2025-26 | L35: =dms_FRCP_y10 -> 2026-27
B38: Current regulatory control period | C38: =dms_CRCP_FirstYear_Result -> 2012-13 | D38: =IF(dms_RPT="financial",VALUE(LEFT(CRCP_y1,4)+1)&"-"&TEXT(MID(CRCP_y1,3,2)+2,"00"),VALUE(LEFT(CRCP_y1,4)+1)) -> 2013-14 | E38: =IF(dms_RPT="financial",VALUE(LEFT(CRCP_y2,4)+1)&"-"&TEXT(VALUE(MID(CRCP_y2,3,2)+2),"00"),VALUE(LEFT(CRCP_y2,4)+1)) -> 2014-15 | F38: =IF(dms_RPT="financial",VALUE(LEFT(CRCP_y3,4)+1)&"-"&TEXT(VALUE(MID(CRCP_y3,3,2)+2),"00"),VALUE(LEFT(CRCP_y3,4)+1)) -> 2015-16 | G38: =IF(dms_RPT="financial",VALUE(LEFT(CRCP_y4,4)+1)&"-"&TEXT(VALUE(MID(CRCP_y4,3,2)+2),"00"),VALUE(LEFT(CRCP_y4,4)+1)) -> 2016-17 | H38: =IF(dms_RPT="financial",VALUE(LEFT(CRCP_y5,4)+1)&"-"&TEXT(VALUE(MID(CRCP_y5,3,2)+2),"00"),VALUE(LEFT(CRCP_y5,4)+1)) -> 2017-18 | I38: =IF(dms_RPT="financial",VALUE(LEFT(CRCP_y6,4)+1)&"-"&TEXT(VALUE(MID(CRCP_y6,3,2)+2),"00"),VALUE(LEFT(CRCP_y6,4)+1)) -> 2018-19 | J38: =IF(dms_RPT="financial",VALUE(LEFT(CRCP_y7,4)+1)&"-"&TEXT(VALUE(MID(CRCP_y7,3,2)+2),"00"),VALUE(LEFT(CRCP_y7,4)+1)) -> 2019-20 | K38: =IF(dms_RPT="financial",VALUE(LEFT(CRCP_y8,4)+1)&"-"&TEXT(VALUE(MID(CRCP_y8,3,2)+2),"00"),VALUE(LEFT(CRCP_y8,4)+1)) -> 2020-21 | L38: =IF(dms_RPT="financial",VALUE(LEFT(CRCP_y9,4)+1)&"-"&TEXT(VALUE(MID(CRCP_y9,3,2)+2),"00"),VALUE(LEFT(CRCP_y9,4)+1)) -> 2021-22
B41: Previous regulatory control period | C41: =IF(dms_RPT="financial",VALUE(LEFT(PRCP_y2,4)-1)&"-"&TEXT(VALUE(MID(PRCP_y2,3,2)),"00"),VALUE(LEFT(PRCP_y2,4)-1)) -> 2007-08 | D41: =IF(dms_RPT="financial",VALUE(LEFT(PRCP_y3,4)-1)&"-"&TEXT(VALUE(MID(PRCP_y3,3,2)),"00"),VALUE(LEFT(PRCP_y3,4)-1)) -> 2008-09 | E41: =IF(dms_RPT="financial",VALUE(LEFT(PRCP_y4,4)-1)&"-"&TEXT(VALUE(MID(PRCP_y4,3,2)),"00"),VALUE(LEFT(PRCP_y4,4)-1)) -> 2009-10 | F41: =IF(dms_RPT="financial",VALUE(LEFT(PRCP_y5,4)-1)&"-"&TEXT(VALUE(RIGHT(PRCP_y5,2)-1),"00"),VALUE(LEFT(PRCP_y5,4)-1)) -> 2010-11 | G41: =IF(dms_RPT="financial",VALUE(LEFT(CRCP_y1,4)-1)&"-"&TEXT(VALUE(RIGHT(CRCP_y1,2)-1),"00"),VALUE(LEFT(CRCP_y1,4)-1)) -> 2011-12
B44: Commencing regulatory year | C44: 2016-17 | D44: CRY
B46: Last completed regulatory year | C46: 2021-22 | D46: dms_FinalYear
C49: DELETE NR 'CRY' IF NOT AN ANNUAL RIN (EB, CA , ARR)
C50: APPLY NR 'CRY' IF AN ANNUAL RIN (EB, CA , ARR) - including multi year annual RINs eg. Recast CA. EB
B52: Source | C52: Reporting | E52: Please select the correct submission type from the dropdown list.
B53: Data quality (actual, estimate, public, consolidated) | C53: Public
B54: Amended RIN submission - amendment reason | C54: Updated on 11 September 2018 - Total Labour Expenditure updated as $0's, not$’000 as previously recorded. See D18/132291.
B55: Submission Date | C55: 2017-10-31 | D55: dms_SubmissionDate | E55: Please enter date this file submitted to AER (dd/mm/yyyy)
B56: EBSS - First application of scheme in forthcoming period? | C56: No
B57: Sector | C57: =INDEX(dms_Sector_List,MATCH(dms_TradingName,dms_TradingName_List)) -> Electricity | D57: dms_Sector | E57: =INDEX(dms_Sector_List,MATCH(dms_TradingName,dms_TradingName_List))
B58: Segment | C58: =INDEX(dms_Segment_List,MATCH(dms_TradingName,dms_TradingName_List)) -> Distribution | D58: dms_Segment | E58: =INDEX(dms_Segment_List,MATCH(dms_TradingName,dms_TradingName_List))
B59: Regulatory Year Ending | C59: =IF(dms_MultiYear_Flag=1,LEFT(dms_Specified_FinalYear,2)&RIGHT(dms_Specified_FinalYear,2),INDEX(dms_RYE_Formula_Result,MATCH(dms_Model,dms_Model_List))) -> 2017 | D59: dms_RYE | E59: =IF(dms_MultiYear_Flag=1,LEFT(dms_Specified_FinalYear,2)&RIGHT(dms_Specified_FinalYear,2),INDEX(dms_RYE_Formula_Result,MATCH(dms_Model,dms_Model_List)))
B60: Reporting Period Type | C60: =INDEX(dms_RPT_List,MATCH(dms_TradingName,dms_TradingName_List)) -> Financial | D60: dms_RPT | E60: =INDEX(dms_RPT_List,MATCH(dms_TradingName,dms_TradingName_List))
B61: Model or RIN Type | C61: CA | D61: dms_Model | E61: Drop down selection
B62: Security Classification | C62: Public | D62: dms_Classification | E62: Always Public
B63: Template - version no. | C63: 5 | D63: dms_TemplateNumber
B64: Dollar $ real month | C64: =INDEX(dms_RPTMonth_List,MATCH(dms_TradingName,dms_TradingName_List)) -> June | D64: dms_RPTMonth | E64: =INDEX(dms_RPTMonth_List,MATCH(dms_TradingName,dms_TradingName_List))
B65: Dollar $ real (the last month before the FRCP_y1) | C65: =CONCATENATE(dms_RPTMonth)&" "&VALUE((LEFT(dms_CRCP_FinalYear_Result,2)&RIGHT(dms_CRCP_FinalYear_Result,2))) -> June 2017 | D65: dms_DollarReal | E65: =IF(SUM(dms_SingleYear_Model)>0,CONCATENATE(dms_RPTMonth)&" "&VALUE((LEFT(CRY,2))&RIGHT(CRY,2)),CONCATENATE(dms_RPTMonth)&" "&VALUE((LEFT(dms_CRCP_FinalYear_Result,2)&RIGHT(dms_CRCP_FinalYear_Result,2))))
B66: Form of control | C66: =INDEX(dms_FormControl_List,MATCH(dms_TradingName,dms_TradingName_List)) -> Revenue cap | D66: dms_FormControl | E66: =INDEX(dms_FormControl_List,MATCH(dms_TradingName,dms_TradingName_List))
B67: RIN response - version no. | C67: 1 | D67: dms_RINversion
B68: Jurisdiction | C68: =INDEX(dms_JurisdictionList,MATCH(dms_TradingName,dms_TradingName_List)) -> SA | D68: dms_Jurisdiction | E68: =INDEX(dms_JurisdictionList,MATCH(dms_TradingName,dms_TradingName_List))
B69: Backcast Multiyear EB, CA or ARR? | C69: 0 | D69: dms_MultiYear_Flag | E69: 1=y, 0-n
C70: 2013 | D70: dms_Specified_FinalYear | E70: The result here is returned to dms_CRCP_FinalYear_Result if dms_MultiYear_Flag is set to 1
B71: Single Year Model T/F | C71: =IF(dms_Model="EB",1,0) -> 0 | D71: dms_EB
C72: =IF(dms_Model="CA",1,0) -> 1 | D72: dms_CA | E72: =dms_SingleYear_Model
C73: =IF(dms_Model="ARR",1,0) -> 0 | D73: dms_ARR
B74: Single Year Final Year Reference | C74: CRY | D74: dms_SingleYear_FinalYear_Ref | E74: This is the reference for EB, CA & ARR RINs
B75: Single Year Final Year Result | C75: =INDIRECT(dms_SingleYear_FinalYear_Ref) -> 2016-17 | D75: dms_SingleYear_FinalYear_Result | E75: =INDIRECT(dms_SingleYear_FinalYear_Ref) | I75: Formula errors OK
B76: FRCP length in years | C76: =INDEX(dms_FRCPlength_List,MATCH(dms_TradingName,dms_TradingName_List)) -> 5 | D76: dms_FRCPlength_Num | E76: =INDEX(dms_FRCPlength_List,MATCH(dms_TradingName,dms_TradingName_List))
B77: Multi Year Final Year Reference | C77: =INDEX(dms_FinalYear_List,MATCH(dms_FRCPlength_Num,dms_FRCPlength_Num_List)) -> dms_FRCP_y5 | D77: dms_MultiYear_FinalYear_Ref | E77: =INDEX(dms_FinalYear_List,MATCH(dms_FRCPlength_Num,dms_FRCPlength_Num_List))
B78: Multi Year Final Year Result | C78: =IF(dms_MultiYear_Flag=0,INDIRECT(dms_MultiYear_FinalYear_Ref),dms_Specified_FinalYear) -> 2021-22 | D78: dms_MultiYear_FinalYear_Result | E78: =IF(dms_MultiYear_Flag=0,INDIRECT(dms_MultiYear_FinalYear_Ref),dms_Specified_FinalYear) | I78: Formula errors OK
B79: CRCP length in years | C79: =INDEX(dms_CRCPlength_List,MATCH(dms_TradingName,dms_TradingName_List)) -> 5 | D79: dms_CRCPlength_Num | E79: =INDEX(dms_CRCPlength_List,MATCH(dms_TradingName,dms_TradingName_List))
B80: CRCP Final Year Reference | C80: =INDEX(dms_CFinalYear_List,MATCH(dms_CRCPlength_Num,dms_CRCPlength_Num_List)) -> CRCP_y5 | D80: dms_CRCP_FinalYear_Ref | E80: =INDEX(dms_CFinalYear_List,MATCH(dms_CRCPlength_Num,dms_CRCPlength_Num_List))
B81: CRCP First Year Result | C81: =INDEX(dms_CRCP_years,MATCH(dms_CRCPlength_Num,dms_CRCP_index)) -> 2012-13 | D81: dms_CRCP_FirstYear_Result | E81: =INDEX(dms_CRCP_years,MATCH(dms_CRCPlength_Num,dms_CRCP_index))
B82: CRCP Final Year Result | C82: =IF(dms_MultiYear_Flag=0,(IF(SUM(dms_SingleYear_Model)>0,CRY,dms_CRCP_yZ)),dms_Specified_FinalYear) -> 2016-17 | D82: dms_CRCP_FinalYear_Result | E82: =IF(dms_MultiYear_Flag=0,(IF(SUM(dms_SingleYear_Model)>0,CRY,dms_CRCP_yZ)),dms_Specified_FinalYear)
B83: Table 6.6.3 - Public lighting repair - no. business days | C83: =INDEX(dms_663_List,MATCH(dms_TradingName,dms_TradingName_List)) -> 5 | D83: dms_663
B84: Distribution Determination Reference | C84: =INDEX(dms_DeterminationRef_List,MATCH(dms_TradingName,dms_TradingName_List)) -> 2015-20 Distribution Determination
B85: Backcast templates only - unit of measure | C85: $0s | D85: dms_Backcast_UOM | E85: If the cover sheet is for Backcast data ensure to apply dms_Backcast_UOM named range to this field. Otherwise, do not apply this named range.
B86: EB/CA Unit of Measure for Monetary Values | C86: $0s | D86: dms_dollar_nom_UOM | E86: If the cover sheet is attached to an EB files make sure this field is set
B88: discard this record? | C88: NO | D88: dms_DISCARD | E88: If record is to be discarded from DB set this flag to YES
B90: USES NAMED RANGES FLAG | C90: yes | D90: dms_Defined_Names_Used

Sheet 2.1 Expenditure summary
B1: REGULATORY REPORTING STATEMENT
B2: =INDEX(dms_TradingNameFull_List,MATCH(dms_TradingName,dms_TradingName_List)) -> SA Power Networks
B3: =CONCATENATE((LOOKUP(dms_Model,dms_Model_List,dms_Worksheet_List))&" "&CRY) -> CATEGORY ANALYSIS 2016-17
B4: 2.1 EXPENDITURE SUMMARY & RECONCILIATION
B6: There are SIX tables on this worksheet. Each has been grouped for ease of navigation. See the Instructions sheet on how to group or ungroup tables.
B8: 2.1.1 - STANDARD CONTROL SERVICES CAPEX
C9: EXPENDITURE ($0's)
C10: =CRY -> 2016-17
B11: Replacement expenditure | C11: 97755302.76
B12: Connections | C12: 58216593.9
B13: Augmentation Expenditure | C13: 60077472.89
B14: Non-network | C14: 86239351.39
B15: capitalised network overheads | C15: 11307921.5
B16: capitalised corporate overheads | C16: -9361715.3
B17: Metering | C17: 0
B18: Public Lighting | C18: 0
B26: balancing item | C26: -2248990.42
B27: capcons (included in the above) | C27: 27770975.24
B28: TOTAL GROSS CAPEX (including capcons) | C28: =+SUM(C11:C26) -> 301985936.7
B30: 2.1.2 - STANDARD CONTROL SERVICES OPEX
C31: EXPENDITURE ($0's)
C32: =CRY -> 2016-17
B33: Vegetation management | C33: 29750410.35
B34: Maintenance | C34: 27404540.43
B35: Emergency response | C35: 43002001.48
B36: Non-network | C36: 35928982.09
B37: network overheads | C37: 93624261.64
B38: corporate overheads | C38: 58995611.88
B39: Metering | C39: 0
B40: Public Lighting | C40: 0
B48: balancing item | C48: -37995497.24
B49: TOTAL OPEX | C49: =+SUM(C33:C48) -> 250710310.6
B51: 2.1.3 - ALTERNATIVE CONTROL SERVICES CAPEX
C52: EXPENDITURE ($0's)
C53: =CRY -> 2016-17
B54: Connections | C54: 0
B55: capitalised network overheads | C55: 324540.77
B56: capitalised corporate overheads | C56: -145107.64
B57: Metering | C57: 6308184.92
B58: Public lighting | C58: 0
B59: Fee and quoted | C59: 0
B67: balancing item | C67: 0
B68: TOTAL CAPEX | C68: =+SUM(C54:C67) -> 6487618.05
B70: 2.1.4 - ALTERNATIVE CONTROL SERVICES OPEX
C71: EXPENDITURE ($0's)
C72: =CRY -> 2016-17
B73: Connections | C73: 0
B74: network overheads | C74: 2501637.342
B75: corporate overheads | C75: 1014888.136
B76: Metering | C76: 5478694.35
B77: Public lighting | C77: 0
B78: Fee and quoted | C78: 0
C79: 356954.8901
B86: balancing item | C86: -356954.8901
B87: TOTAL OPEX | C87: =+SUM(C73:C86) -> 8995219.828
B89: 2.1.5 - DUAL FUNCTION ASSETS CAPEX
C90: EXPENDITURE ($0's)
C91: =CRY -> 2016-17
B92: Replacement expenditure
B93: Connections
B94: Augmentation Expenditure
B95: Non-network
B96: Capitalised network overheads
B97: Capitalised corporate overheads
B105: balancing item
B106: capcons (included in the above)
B107: TOTAL GROSS CAPEX (including capcons) | C107: =SUM(C92:C105) -> 0
B109: 2.1.6 - DUAL FUNCTION ASSETS OPEX
C110: EXPENDITURE ($0's)
C111: =CRY -> 2016-17
B112: Vegetation management
B113: Maintenance
B114: Emergency response
B115: Non-network
B116: Network overheads
B117: Corporate overheads
B125: balancing item
B126: TOTAL OPEX | C126: =SUM(C112:C125) -> 0

Sheet 2.2 Repex
B1: REGULATORY REPORTING STATEMENT
B2: =INDEX(dms_TradingNameFull_List,MATCH(dms_TradingName,dms_TradingName_List)) -> SA Power Networks
B3: =CONCATENATE((LOOKUP(dms_Model,dms_Model_List,dms_Worksheet_List))&" "&CRY) -> CATEGORY ANALYSIS 2016-17
B4: 2.2 REPEX
B6: There are TWO tables on this worksheet. Each has been grouped for ease of navigation. See the Instructions sheet on how to group or ungroup tables.
B8: 2.2.1 - REPLACEMENT EXPENDITURE, VOLUMES AND ASSET FAILURES BY ASSET CATEGORY
E9: EXPENDITURE ($0's) | F9: ASSET REPLACEMENTS (0's) | G9: ASSET FAILURES (0's)
B10: ASSET GROUP | C10: ASSET CATEGORY | E10: =CRY -> 2016-17 | F10: =CRY -> 2016-17 | G10: =CRY -> 2016-17
B11: POLES BY: HIGHEST OPERATING VOLTAGE ; MATERIAL TYPE; STAKING (IF WOOD) | C11: Staking of a wooden pole
C12: ˂ = 1 kV; Wood
C13: > 1 kV & < = 11 kV; Wood
C14: ˃ 11 kV & < = 22 kV; Wood
C15: > 22 kV & < = 66 kV; Wood
C16: > 66 kV & < = 132 kV; Wood
C17: > 132 kV; Wood
C18: ˂ = 1 kV; Concrete
C19: > 1 kV & < = 11 kV; Concrete
C20: ˃ 11 kV & < = 22 kV; Concrete
C21: > 22 kV & < = 66 kV; Concrete
C22: > 66 kV & < = 132 kV; Concrete
C23: > 132 kV; Concrete
C24: ˂ = 1 kV; Steel
C25: > 1 kV & < = 11 kV; Steel
C26: ˃ 11 kV & < = 22 kV; Steel
C27: > 22 kV & < = 66 kV; Steel
C28: > 66 kV & < = 132 kV; Steel
C29: > 132 kV; Steel
C30: Other
B31: POLE TOP STRUCTURES BY: HIGHEST OPERATING VOLTAGE | C31: ˂ = 1 kV | E31: 6750082.623 | F31: 7860 | G31: 3516
C32: > 1 kV & < = 11 kV | E32: 7154441.857 | F32: 3087 | G32: 1293
C33: ˃ 11 kV & < = 22 kV | E33: 3075153.322 | F33: 1275 | G33: 423
C34: > 22 kV & < = 66 kV | E34: 2790832.322 | F34: 485 | G34: 57
C35: > 66 kV & < = 132 kV | E35: 15429.61436 | F35: 4 | G35: 0
C36: > 132 kV | E36: 0 | F36: 0 | G36: 0
C37: Other | E37: 0 | F37: 0 | G37: 0
B38: OVERHEAD CONDUCTORS BY: HIGHEST OPERATING VOLTAGE; NUMBER OF PHASES (AT HV) | C38: ˂ = 1 kV | E38: 2109991.092 | F38: 31 | G38: 1324
C39: > 1 kV & < = 11 kV | E39: 1994043.318 | F39: 21.05 | G39: 340
C40: ˃ 11 kV & < = 22 kV ; SWER | E40: 437634.5349 | F40: 2.04 | G40: 90
C41: ˃ 11 kV & < = 22 kV ; Single-Phase | E41: 0 | F41: 0 | G41: 0
C42: ˃ 11 kV & < = 22 kV ; Multiple-Phase | E42: 0 | F42: 0 | G42: 0
C43: > 22 kV & < = 66 kV | E43: 264064.3808 | F43: 9.04 | G43: 2
C44: > 66 kV & < = 132 kV | E44: 0 | F44: 0 | G44: 0
C45: > 132 kV | E45: 0 | F45: 0 | G45: 0
C46: Other | E46: 0 | F46: 0 | G46: 0
B47: UNDERGROUND CABLES BY: HIGHEST OPERATING VOLTAGE | C47: ˂ = 1 kV | E47: 5648854.449 | F47: 7.37 | G47: 716
C48: > 1 kV & < = 11 kV | E48: 4092229.073 | F48: 1.78 | G48: 172
C49: > 11 kV & < = 22 kV | E49: 77006.59956 | F49: 0.05 | G49: 5
C50: > 22 kV & < = 33 kV | E50: 0 | F50: 0 | G50: 0
C51: > 33 kV & < = 66 kV | E51: 0 | F51: 0 | G51: 0
C52: > 66 kV & < = 132 kV | E52: 0 | F52: 0 | G52: 0
C53: > 132 kV | E53: 0 | F53: 0 | G53: 0
C54: Other | E54: 0 | F54: 0 | G54: 0
B55: SERVICE LINES BY: CONNECTION VOLTAGE; CUSTOMER TYPE; CONNECTION COMPLEXITY | C55: ˂ = 11 kV ; Residential ; Simple Type | E55: 5484412.191 | F55: 10940.87 | G55: 7087.96
C56: ˂ = 11 kV ; Commercial & Industrial ; Simple Type | E56: 0 | F56: 0 | G56: 0
C57: ˂ = 11 kV ; Residential ; Complex Type | E57: 0 | F57: 0 | G57: 0
C58: ˂ = 11 kV ; Commercial & Industrial ; Complex Type | E58: 677848.6978 | F58: 1352.13 | G58: 876.04
C59: ˂ = 11 kV ; Subdivision ; Complex Type | E59: 0 | F59: 0 | G59: 0
C60: > 11 kV & < = 22 kV ; Commercial & Industrial | E60: 0 | F60: 0 | G60: 0
C61: > 11 kV & < = 22 kV ; Subdivision | E61: 0 | F61: 0 | G61: 0
C62: > 22 kV & < = 33 kV ; Commercial & Industrial | E62: 0 | F62: 0 | G62: 0
C63: > 22 kV & < = 33 kV ; Subdivision | E63: 0 | F63: 0 | G63: 0
C64: > 33 kV & < = 66 kV ; Commercial & Industrial | E64: 0 | F64: 0 | G64: 0
C65: > 33 kV & < = 66 kV ; Subdivision | E65: 0 | F65: 0 | G65: 0
C66: > 66 kV & < = 132 kV ; Commercial & Industrial | E66: 0 | F66: 0 | G66: 0
C67: > 66 kV & < = 132 kV ; Subdivision | E67: 0 | F67: 0 | G67: 0
C68: > 132 kV ; Commercial & Industrial | E68: 0 | F68: 0 | G68: 0
C69: > 132 kV ; Subdivision | E69: 0 | F69: 0 | G69: 0
C70: Other | E70: 0 | F70: 0 | G70: 0
B71: TRANSFORMERS BY: MOUNTING TYPE; HIGHEST OPERATING VOLTAGE ; AMPERE RATING; NUMBER OF PHASES (AT LV) | C71: Pole Mounted ; < = 22kV ; < = 60 kVA ; Single Phase | E71: 2688973.833 | F71: 174 | G71: 78
C72: Pole Mounted ; < = 22kV ; > 60 kVA and < = 600 kVA ; Single Phase | E72: 237043.4515 | F72: 8 | G72: 3
C73: Pole Mounted ; < = 22kV ; > 600 kVA ; Single Phase | E73: 0 | F73: 0 | G73: 0
C74: Pole Mounted ; < = 22kV ; < = 60 kVA ; Multiple Phase | E74: 906828.4798 | F74: 60 | G74: 23
C75: Pole Mounted ; < = 22kV ; > 60 kVA and < = 600 kVA ; Multiple Phase | E75: 628777.7202 | F75: 46 | G75: 9
C76: Pole Mounted ; < = 22kV ; > 600 kVA ; Multiple Phase | E76: 0 | F76: 0 | G76: 0
C77: Kiosk Mounted ; < = 22kV ; < = 60 kVA ; Single Phase | E77: 0 | F77: 0 | G77: 0
C78: Kiosk Mounted ; < = 22kV ; > 60 kVA and < = 600 kVA ; Single Phase | E78: 0 | F78: 0 | G78: 0
C79: Kiosk Mounted ; < = 22kV ; > 600 kVA ; Single Phase | E79: 0 | F79: 0 | G79: 0
C80: Kiosk Mounted ; < = 22kV ; < = 60 kVA ; Multiple Phase | E80: 19959.367 | F80: 2 | G80: 0
C81: Kiosk Mounted ; < = 22kV ; > 60 kVA and < = 600 kVA ; Multiple Phase | E81: 653853.1732 | F81: 23 | G81: 6
C82: Kiosk Mounted ; < = 22kV ; > 600 kVA ; Multiple Phase | E82: 200751.97 | F82: 6 | G82: 0
C83: Ground Outdoor / Indoor Chamber Mounted; ˂ 22 kV ; < = 60 kVA ; Single Phase | E83: 0 | F83: 0 | G83: 0
C84: Ground Outdoor / Indoor Chamber Mounted; ˂ 22 kV ; > 60 kVA and < = 600 kVA ; Single Phase | E84: 0 | F84: 0 | G84: 0
C85: Ground Outdoor / Indoor Chamber Mounted; ˂ 22 kV ; > 600 kVA ; Single Phase | E85: 0 | F85: 0 | G85: 0
C86: Ground Outdoor / Indoor Chamber Mounted; ˂ 22 kV ; < = 60 kVA ; Multiple Phase | E86: 0 | F86: 0 | G86: 0
C87: Ground Outdoor / Indoor Chamber Mounted; ˂ 22 kV ; > 60 kVA and < = 600 kVA ; Multiple Phase | E87: 0 | F87: 0 | G87: 0
C88: Ground Outdoor / Indoor Chamber Mounted; ˂ 22 kV ; > 600 kVA ; Multiple Phase | E88: 0 | F88: 0 | G88: 0
C89: Ground Outdoor / Indoor Chamber Mounted; > = 22 kV & < = 33 kV ; < = 15 MVA | E89: 790818.9451 | F89: 5 | G89: 2
C90: Ground Outdoor / Indoor Chamber Mounted; > = 22 kV & < = 33 kV ; > 15 MVA and < = 40 MVA | E90: 0 | F90: 0 | G90: 0
C91: Ground Outdoor / Indoor Chamber Mounted; > = 22 kV & < = 33 kV ; > 40 MVA | E91: 0 | F91: 0 | G91: 0
C92: Ground Outdoor / Indoor Chamber Mounted; > 33 kV & < = 66 kV ; < = 15 MVA | E92: 0 | F92: 0 | G92: 0
C93: Ground Outdoor / Indoor Chamber Mounted; > 33 kV & < = 66 kV ; > 15 MVA and < = 40 MVA | E93: 0 | F93: 0 | G93: 0
C94: Ground Outdoor / Indoor Chamber Mounted; > 33 kV & < = 66 kV ; > 40 MVA | E94: 0 | F94: 0 | G94: 0
C95: Ground Outdoor / Indoor Chamber Mounted; > 66 kV & < = 132 kV ; < = 100 MVA | E95: 0 | F95: 0 | G95: 0
C96: Ground Outdoor / Indoor Chamber Mounted; > 66 kV & < = 132 kV ; > 100 MVA | E96: 0 | F96: 0 | G96: 0
C97: Ground Outdoor / Indoor Chamber Mounted; > 132 kV ; < = 100 MVA | E97: 0 | F97: 0 | G97: 0
C98: Ground Outdoor / Indoor Chamber Mounted; > 132 kV ; > 100 MVA | E98: 0 | F98: 0 | G98: 0
C99: Other | E99: 0 | F99: 0 | G99: 0
B100: SWITCHGEAR BY: HIGHEST OPERATING VOLTAGE ; SWITCH FUNCTION | C100: ˂ = 11 kV ; FUSE | E100: 0 | F100: 0 | G100: 0
C101: ˂ = 11 kV ; Switch | E101: 193263.6618
C102: ˂ = 11 kV ; Circuit Breaker | E102: 5975486.381 | F102: 15 | G102: 1
C103: > 11 kV & < = 22 kV ; Switch | E103: 0 | F103: 0 | G103: 0
C104: > 11 kV & < = 22 kV ; Circuit Breaker | E104: 0 | F104: 0 | G104: 0
C105: > 22 kV & < = 33 kV ; Switch | E105: 0 | F105: 0 | G105: 0
C106: > 22 kV & < = 33 kV ; Circuit Breaker | E106: 289728.3508 | F106: 2
C107: > 33 kV & < = 66 kV ; Switch | E107: 337169.1859 | F107: 6
C108: > 33 kV & < = 66 kV ; Circuit Breaker | E108: 115984.6686 | F108: 2
C109: > 66 kV & < = 132 kV ; Switch | E109: 0 | F109: 0 | G109: 0
C110: > 66 kV & < = 132 kV ; Circuit Breaker | E110: 0 | F110: 0 | G110: 0
C111: > 132 kV ; Switch | E111: 0 | F111: 0 | G111: 0
C112: > 132 kV ; Circuit Breaker | E112: 0 | F112: 0 | G112: 0
C113: Other | E113: 0 | F113: 0 | G113: 0
B114: PUBLIC LIGHTING BY: ASSET TYPE ; LIGHTING OBLIGATION | C114: Luminaires ; Major Road
C115: Luminaires ; Minor Road
C116: Brackets ; Major Road
C117: Brackets ; Minor Road
C118: Lamps ; Major Road
C119: Lamps ; Minor Road
C120: Poles / Columns ; Major Road
C121: Poles / Columns ; Minor Road
C122: Other
B123: SCADA, NETWORK CONTROL AND PROTECTION SYSTEMS BY: FUNCTION | C123: Field Devices | E123: 3472721.51 | F123: 90 | G123: 47
C124: Local Network Wiring Assets
C125: Communications Network Assets | E125: 3425504.876 | F125: 27 | G125: 6
C126: Master Station Assets
C127: Communications Site Infrastructure | E127: 7187.537912
C128: Communications Linear Assets | E128: 263269.0599 | F128: 0.71 | G128: 0.71
C129: AFLC | E129: 0
C130: Other | E130: 0
B131: OTHER BY: DNSP DEFINED | C131: ˂ = 1 kV; stobie pole | E131: 7574689.641 | F131: 1074 | G131: 143
C132: > 1 kV & < = 11 kV; stobie pole | E132: 7972636.458 | F132: 677 | G132: 197
C133: ˃ 11 kV & < = 22 kV; stobie pole | E133: 2376845.088 | F133: 282 | G133: 49
C134: > 22 kV & < = 66 kV; stobie pole | E134: 1449265.585 | F134: 36 | G134: 1
C135: > 66 kV & < = 132 kV; stobie pole | E135: 0 | F135: 0 | G135: 0
C136: > 132 kV; stobie pole | E136: 0 | F136: 0 | G136: 0
C137: Pole REFURBISHED; STOBIE Pole | E137: 4965358.146 | F137: 4102 | G137: 0
C138: Pole Mounted ;> = 22 kV & < = 33 kV ; < = 60kVA | E138: 94108.19749 | F138: 10 | G138: 1
C139: Pole Mounted ;> = 22 kV & < = 33 kV ; > 60 KVA AND < = 600 KVA | E139: 205045.9944 | F139: 8 | G139: 6
C140: Kiosk Mounted; > = 22 kV & < = 33 kV ; | E140: 12700.16668 | F140: 1 | G140: 0
C141: Recloser ;SWITCHGEAR | E141: 1304554.086 | F141: 161 | G141: 61
C142: Sectionalizer ;SWITCHGEAR | E142: 78491.92687 | F142: 18 | G142: 19
C143: >= 11 kV & < ≈ 22 kV ; LOAD BREAK SWITCH; GROUND LEVEL (Switching Cubicle);SWITCHGEAR | E143: 3073540.83 | F143: 73 | G143: 8
C144: > 22 kV & < ≈ 33 kV ; LOAD BREAK SWITCH; GROUND LEVEL (Switching Cubicle);SWITCHGEAR | E144: 0 | F144: 0 | G144: 0
C145: ˂ = 11 kV ; Circuit Breaker REFURBISHED | E145: 1010842.456 | F145: 85 | G145: 0
C146: > 22 kV & < = 33 kV ; Circuit Breaker REFURBISHED | E146: 125839.9904 | F146: 2 | G146: 0
C147: > 33 kV & < = 66 kV ; Circuit Breaker REFURBISHED | E147: 10052.86483 | F147: 1 | G147: 0
C148: Ground Outdoor / Indoor Chamber Mounted; > 33 kV & < = 66 kV ; > 15 MVA and < = 40 MVA REFURBISHED | E148: 265158.5532 | F148: 4 | G148: 0
C149: Ground Outdoor / Indoor Chamber Mounted; > = 22 kV & < = 33 kV ; < = 15 MVA REFURBISHED | E149: 96030.17875 | F149: 1 | G149: 0
C150: Ground Outdoor / Indoor Chamber Mounted; > 33 kV & < = 66 kV ; < = 15 MVA REFURBISHED | E150: 25883.79522 | F150: 1 | G150: 0
C151: Ground Outdoor / Indoor Chamber Mounted; ˂ 22 kV ; > 600 kVA ; Multiple Phase ; REFURBISHED | E151: 12440.14679 | F151: 1 | G151: 0
C152: Pipework Bus Substation Replacements | E152: 972804.5341 | F152: 1 | G152: 0
C153: OTHER - Non Category Substation asset replacement/refurbishment | E153: 5349667.874 | F153: 96 | G153: 4
B157: 2.2.2 - SELECTED ASSET CHARACTERISTICS
E158: ASSET VOLUMES CURRENTLY IN COMMISSION | F158: ASSET REPLACEMENTS (0's)
B159: ASSET GROUP | C159: METRIC | D159: UNITS | E159: =CRY -> 2016-17 | F159: =CRY -> 2016-17
B160: TOTAL POLES BY: FEEDER TYPE | C160: Total CBD poles | D160: Number | E160: 326 | F160: 27
C161: Total urban poles | D161: Number | E161: 257609 | F161: 881
C162: Total rural long poles | D162: Number | E162: 372537 | F162: 699
C163: Total rural short poles | D163: Number | E163: 114668 | F163: 462
B164: OVERHEAD CONDUCTORS BY: CONDUCTOR LENGTH BY FEEDER TYPE | C164: Conductors CBD | D164: KM | E164: 55.9063836 | F164: 0.18
C165: Conductors urban | D165: KM | E165: 51841.88356 | F165: 20.45
C166: Conductors rural long | D166: KM | E166: 82569.31939 | F166: 27.44
C167: Conductors rural short | D167: KM | E167: 29457.57198 | F167: 15.06
B168: OVERHEAD CONDUCTORS BY: CONDUCTOR LENGTH MATERIAL TYPE | C168: OH conductor LV ABC | D168: KM | E168: 7662.030748 | F168: 0
C169: OH conductor steel | D169: KM | E169: 39148.98674 | F169: 6.25
C170: OH conductor ACSR | D170: KM | E170: 36619.52704 | F170: 28.59
C171: OH conductor AAAC | D171: KM | E171: 5860.178236 | F171: 0
C172: OH conductor AAC | D172: KM | E172: 31945.08895 | F172: 14.19
C173: OH conductor HDBC | D173: KM | E173: 42688.8696 | F173: 14.1
C174: Other | D174: KM | E174: 0 | F174: 0
B175: UNDERGROUND CABLES BY: CABLE LENGTH BY FEEDER TYPE | C175: Cable CBD | D175: KM | E175: 267.279978 | F175: 0.14
C176: Cable urban | D176: KM | E176: 10951.87755 | F176: 7.34
C177: Cable rural long | D177: KM | E177: 3150.742701 | F177: 0.81
C178: Cable rural short | D178: KM | E178: 3384.099774 | F178: 0.91
B179: TRANSFORMERS BY: TOTAL MVA | C179: Total MVA replaced | D179: MVA | E179: 40.257 | F179: 0
C180: Total MVA disposed of | D180: MVA | E180: 9.827 | F180: 0

Sheet 2.3(a) Augex
B1: REGULATORY REPORTING STATEMENT
B2: =INDEX(dms_TradingNameFull_List,MATCH(dms_TradingName,dms_TradingName_List)) -> SA Power Networks
B3: =CONCATENATE((LOOKUP(dms_Model,dms_Model_List,dms_Worksheet_List))&" "&CRY) -> CATEGORY ANALYSIS 2016-17
B4: 2.3 AUGEX PROJECT DATA
B7: There are TWO tables on this worksheet - each has been 'grouped' for easy navigation. Both ROWS and COLUMNS have been grouped. See the Instructions sheet on how to group or ungroup tables.
B9: 2.3.1 - AUGEX ASSET DATA - SUBTRANSMISSION SUBSTATIONS, SWITCHING STATIONS AND ZONE SUBSTATIONS
B10: NOTE: DNSP MUST PROVIDE EXPENDITURE INFORMATION ON A PROJECT CLOSE BASIS.
B11: PROJECT DESCRIPTION AND CHANGES | L11: PLANT AND EQUIPMENT EXPENDITURE AND VOLUME | X11: OTHER EXPENDITURE | Z11: TOTAL DIRECT EXPENDITURE ($0's) | AA11: YEARS INCURRED | AB11: ALL RELATED PARTY CONTRACTS | AD11: ALL NON RELATED PARTY CONTRACTS | AE11: LAND AND EASEMENTS
B12: SUBSTATION ID | C12: SUBSTATION TYPE (drop down) | D12: PROJECT ID | E12: PROJECT TYPE (drop down) | F12: PROJECT TRIGGER (drop down) | G12: VOLTAGE (KV) | H12: SUBSTATION RATING NORMAL CYCLIC (MVA) | J12: SUBSTATION RATING N-1 EMERGENCY (MVA) | L12: TRANSFORMERS | O12: SWITCHGEAR | Q12: CAPACITORS | U12: OTHER PLANT ITEM | V12: INSTALLATION (LABOUR) | X12: CIVIL WORKS | Y12: OTHER DIRECT | AB12: RELATED PARTY MARGINS | AC12: TOTAL | AE12: LAND PURCHASE | AF12: EASEMENTS
H13: PRE | I13: POST | J13: PRE | K13: POST | L13: UNITS ADDED | M13: MVA ADDED | N13: EXPENDITURE ($0's) | O13: UNITS ADDED | P13: EXPENDITURE ($0's) | Q13: MVAR ADDED | R13: EXPENDITURE ($0's) | U13: EXPENDITURE ($0's) | V13: VOLUME | W13: EXPENDITURE ($0's) | X13: EXPENDITURE ($0's) | AB13: EXPENDITURE ($0's) | AE13: EXPENDITURE ($0's)
Z14: =SUM(N14,P14,R14,U14,W14,X14,Y14) -> 0
Z15: 0
Z16: 0
Z17: 0
Z18: 0
Z19: 0
Z20: 0
Z21: 0
Z22: 0
Z23: 0
Z24: 0
Z25: 0
Z26: 0
Z27: 0
Z28: 0
Z29: 0
Z30: 0
Z31: 0
Z32: 0
Z33: 0
Z34: 0
Z35: 0
Z36: 0
Z37: 0
Z38: 0
Z39: 0
Z40: 0
Z41: 0
Z42: 0
Z43: 0
Z44: 0
Z45: 0
Z46: =SUM(N46,P46,R46,U46,W46,X46,Y46) -> 0
Z47: 0
Z48: 0
Z49: 0
Z50: 0
Z51: 0
Z52: 0
Z53: 0
Z54: 0
Z55: 0
Z56: 0
Z57: 0
Z58: 0
Z59: 0
Z60: 0
Z61: 0
Z62: 0
Z63: 0
Z64: 0
Z65: 0
D66: Non material projects - [actual] | Z66: 30813844.91
B69: AUG232_1 | C69: AUG232_2 | D69: AUG232_3 | E69: AUG232_4 | F69: AUG232_5 | G69: AUG232_6 | H69: ED_AUG232_00001 | I69: ED_AUG232_00002 | J69: ED_AUG232_00003 | K69: ED_AUG232_00004 | L69: ED_AUG232_00005 | M69: ED_AUG232_00006 | N69: ED_AUG232_00007 | O69: ED_AUG232_00008 | P69: ED_AUG232_00009 | Q69: ED_AUG232_00010 | R69: ED_AUG232_00011 | S69: ED_AUG232_00012 | T69: ED_AUG232_00013 | U69: ED_AUG232_00014 | V69: ED_AUG232_00015 | W69: ED_AUG232_00016 | X69: ED_AUG232_00017 | Y69: ED_AUG232_00018 | Z69: ED_AUG232_00019 | AA69: ED_AUG232_00020 | AB69: ED_AUG232_00021
B70: 2.3.2 - AUGEX ASSET DATA - SUBTRANSMISSION LINES
B71: NOTE: DNSP MUST PROVIDE EXPENDITURE INFORMATION ON A PROJECT CLOSE BASIS.
B72: PROJECT DESCRIPTION AND CHANGES | L72: PLANT AND EQUIPMENT EXPENDITURE AND VOLUME | X72: OTHER EXPENDITURE | Z72: TOTAL DIRECT EXPENDITURE ($0's) | AA72: YEARS INCURRED | AB72: ALL RELATED PARTY CONTRACTS | AD72: ALL NON RELATED PARTY CONTRACTS | AE72: LAND AND EASEMENTS
B73: LINE ID | C73: PROJECT ID | D73: PROJECT TYPE | E73: PROJECT TRIGGER | G73: VOLTAGE (KV) | H73: ROUTE LINE LENGTH ADDED | L73: POLES/TOWERS (INCLUDING STRUCTURES, AND CIVIL WORKS) | O73: OVERHEAD LINES | R73: UNDERGROUND CABLES | U73: OTHER PLANT ITEM | V73: INSTALLATION (LABOUR) | X73: CIVIL WORKS | Y73: OTHER DIRECT | AB73: RELATED PARTY MARGINS | AC73: TOTAL | AE73: LAND PURCHASE | AF73: EASEMENTS
H74: KM ADDED | L74: POLES/TOWERS ADDED | M74: POLES/TOWERS UPGRADED | N74: EXPENDITURE ($0's) | O74: CIRCUIT KM ADDED | P74: CIRCUIT KM UPGRADED | Q74: EXPENDITURE ($0's) | R74: CIRCUIT KM ADDED | S74: CIRCUIT KM UPGRADED | T74: EXPENDITURE ($0's) | U74: EXPENDITURE ($0's) | V74: VOLUME | W74: EXPENDITURE ($0's) | X74: EXPENDITURE ($0's) | AB74: EXPENDITURE ($0's) | AE74: EXPENDITURE ($0's)
Z75: =SUM(N75,Q75,T75,U75,W75,X75,Y75) -> 0 | AH75: New line on new route - single circuit
Z76: 0 | AH76: New line on new route - dual circuit
Z77: 0 | AH77: New line on new route - other
Z78: 0 | AH78: Line rebuild over existing route - single circuit
Z79: 0 | AH79: Line rebuild over existing route - dual circuit
Z80: 0 | AH80: Reconductor - Single circuit
Z81: 0 | AH81: Reconductor - Dual circuit
Z82: 0 | AH82: Reconductor - Other
Z83: 0 | AH83: Line upgrade - raising/retensoring
Z84: 0 | AH84: Line upgrade - voltage upgrade
Z85: 0 | AH85: Line upgrade - capacity
Z86: 0 | AH86: String spare circuit
Z87: 0 | AH87: Other
Z88: 0
Z89: 0
Z90: 0
Z91: 0
Z92: 0
Z93: 0
Z94: 0
Z95: 0
Z96: 0
Z97: 0
Z98: 0
Z99: 0
Z100: 0
Z101: 0
Z102: 0
Z103: 0
Z104: 0
Z105: 0
Z106: 0
Z107: =SUM(N107,Q107,T107,U107,W107,X107,Y107) -> 0
Z108: 0
Z109: 0
Z110: 0
Z111: 0
Z112: 0
Z113: 0
Z114: 0
Z115: 0
Z116: 0
Z117: 0
Z118: 0
Z119: 0
Z120: 0
Z121: 0
Z122: 0
Z123: 0
Z124: 0
Z125: 0
Z126: 0
Z127: 0
Z128: 0
C129: Non material projects - [actual] | Z129: 1793508.231

Sheet 2.3(b) Augex
B1: REGULATORY REPORTING STATEMENT
B2: =INDEX(dms_TradingNameFull_List,MATCH(dms_TradingName,dms_TradingName_List)) -> SA Power Networks
B3: =CONCATENATE((LOOKUP(dms_Model,dms_Model_List,dms_Worksheet_List))&" "&CRY) -> CATEGORY ANALYSIS 2016-17
B4: 2.3 AUGEX DATA
B6: There are TWO tables on this worksheet. Each has been grouped for ease of navigation. See the Instructions sheet on how to group or ungroup tables.
B8: 2.3.3 - AUGEX DATA - HV/LV FEEDERS AND DISTRIBUTION SUBSTATIONS
B9: NOTE: DNSP MUST PROVIDE EXPENDITURE INFORMATION ON AN AS INCURRED BASIS.
B10: DESCRIPTOR METRICS
B11: PROJECT TYPE | D11: UNITS ADDED (0's) | E11: UNITS UPGRADED (0's)
C12: UNITS | D12: =CRY -> 2016-17 | E12: =CRY -> 2016-17
B13: HV Feeder Augmentations - Overhead Lines | C13: Circuit line length in km | E13: 0.31
B14: HV Feeder Augmentations - Underground Cables | C14: Circuit line length in km | E14: 1.1
B15: LV Feeder Augmentations - Overhead Lines | C15: Circuit line length in km | D15: 0.282 | E15: 1.055
B16: LV Feeder Augmentations - Underground Cables | C16: Circuit line length in km | D16: 0.04 | E16: 0
B17: Distribution Substation Augmentations - Pole Mounted | C17: Number | D17: 31 | E17: 100
B18: Distribution Substation Augmentations - Ground Mounted | C18: Number | D18: 1 | E18: 10
B19: Distribution Substation Augmentations - Indoor | C19: Number | D19: 0 | E19: 0
B21: COST METRICS
B22: TOTAL DIRECT EXPENDITURE - Project Type | D22: EXPENDITURE ($0's)
D23: =CRY -> 2016-17
B24: HV Feeder Augmentations - Overhead Lines | D24: 145370.8783
B25: HV Feeder Augmentations - Underground Cables | D25: 519858.9017
B26: HV Feeder Non-Material Projects | D26: 17959797.73
B27: LV Feeder Augmentations - Overhead Lines | D27: 271253.6572
B28: LV Feeder Augmentations - Underground Cables | D28: 7164.352795
B29: LV Feeder Non-Material Projects | D29: 539719.6718
B30: Distribution Substation Augmentations - Pole Mounted | D30: 1817294.98
B31: Distribution Substation Augmentations - Ground Mounted | D31: 580259.2
B32: Distribution Substation Augmentations - Indoor | D32: 0
B35: 2.3.4 - AUGEX DATA - TOTAL EXPENDITURE
B36: AUGMENTATION CAPEX (As incurred) | D36: EXPENDITURE ($0's)
D37: =CRY -> 2016-17
B38: Subtransmission Substations, Switching Stations, Zone Substations | D38: 32606408.42
B39: Subtransmission Lines | D39: 2374521.543
B40: HV Feeders | D40: 20027357.78
B41: HV Feeders - Land Purchases and Easements | D41: 0
B42: Distribution Substations | D42: 2582136.946
B43: Distribution Substations - Land Purchases And Easements | D43: 0
B44: LV Feeders | D44: 881124.4196
B45: LV Feeders - Land Purchases And Easements | D45: 0
B46: Other Assets | D46: 1605923.78

Sheet 2.5 Connections
B1: REGULATORY REPORTING STATEMENT
B2: =INDEX(dms_TradingNameFull_List,MATCH(dms_TradingName,dms_TradingName_List)) -> SA Power Networks
B3: =CONCATENATE((LOOKUP(dms_Model,dms_Model_List,dms_Worksheet_List))&" "&CRY) -> CATEGORY ANALYSIS 2016-17
B4: 2.5 CONNECTIONS
B6: There are TWO tables on this worksheet. Each has been grouped for ease of navigation. See the Instructions sheet on how to group or ungroup tables.
B8: 2.5.1 - DESCRIPTOR METRICS
B9: <<<GROUP-ROW>>>
E11: VOLUMES AND EXPENDITURE
B12: CONNECTION SUBCATEGORY | C12: DESCRIPTOR METRIC | D12: UNITS | E12: =CRY -> 2016-17
B13: RESIDENTIAL | C13: Underground connections | D13: 0's | E13: 9818
C14: Overhead connections | D14: 0's | E14: 331
C15: Distribution substation installed | D15: MVA added | E15: 7.901
C16: Distribution substations installed | D16: 0's | E16: 154
C17: Distribution substation installed | D17: total spend $0s | E17: 3122082.267
C18: Augmentation HV | D18: net circuit km added | E18: 6.123
C19: Augmentation HV | D19: total spend $0s | E19: 874563.7961
C20: Augmentation LV | D20: net circuit km added | E20: 5.742
C21: Augmentation LV | D21: total spend $0s | E21: 942763.7019
C22: Mean days to connect residential customer with LV single phase connection | D22: 0's | E22: 22
C23: Volume of GSL breaches for residential customers | D23: 0's | E23: 238
C24: Volume of customer complaints relating to connection services | D24: 0's | E24: 103
C25: GSL payments | D25: $0s | E25: 71930
B26: COMMERCIAL/INDUSTRIAL | C26: Underground connections | D26: 0's | E26: 834
C27: Overhead connections | D27: 0's | E27: 168
C28: Distribution substation installed | D28: MVA added | E28: 129.632
C29: Distribution substations installed | D29: 0's | E29: 341
C30: Distribution substation installed | D30: total spend $0s | E30: 15188939.53
C31: Augmentation HV | D31: net circuit km added | E31: 43.67
C32: Augmentation HV | D32: total spend $0s | E32: 7821692.566
C33: Augmentation LV | D33: net circuit km added | E33: 5.331
C34: Augmentation LV | D34: total spend $0s | E34: 1717679.953
B35: SUBDIVISION | C35: Underground connections | D35: 0's | E35: 283
C36: Overhead connections | D36: 0's | E36: 14
C37: Distribution substation installed | D37: MVA added | E37: 29.258
C38: Distribution substations installed | D38: 0's | E38: 112
C39: Distribution substation installed | D39: total spend $0s | E39: 4680417.507
C40: Augmentation HV | D40: net circuit km added | E40: 11.44
C41: Augmentation HV | D41: total spend $0s | E41: 1915186.462
C42: Augmentation LV | D42: net circuit km added | E42: 16.999
C43: Augmentation LV | D43: total spend $0s | E43: 4439337.757
C44: Cost per lot ($) | D44: $0s | E44: 2928.217192
B45: EMBEDDED GENERATION | C45: Underground connections | D45: 0's | E45: 8743
C46: Overhead connections | D46: 0's | E46: 1085
C47: Distribution substation installed | D47: MVA added | E47: 3.43
C48: Distribution substations installed | D48: 0's | E48: 13
C49: Distribution substation installed | D49: total spend $0s | E49: 511481.6515
C50: Augmentation HV | D50: net circuit km added | E50: 0.07
C51: Augmentation HV | D51: total spend $0s | E51: 12536.77283
C52: Augmentation LV | D52: net circuit km added | E52: 0.06
C53: Augmentation LV | D53: total spend $0s | E53: 19332.35737
B57: 2.5.2 - COST METRICS BY CONNECTION CLASSIFICATION
D58: EXPENDITURE ($0's) | E58: VOLUMES (0's)
B59: CONNECTION SUBCATEGORY | C59: CONNECTION CLASSIFICATION | D59: =CRY -> 2016-17 | E59: =CRY -> 2016-17
B60: RESIDENTIAL | C60: Simple connection LV | D60: 9884116.508 | E60: 9915
C61: Complex connection LV | D61: 3299994.327 | E61: 234
C62: Complex connection HV | D62: 0 | E62: 0
B63: COMMERCIAL/INDUSTRIAL | C63: Simple connection LV | D63: 1307694.849 | E63: 674
C64: Complex connection HV (customer connected at LV, minor HV works) | D64: 17391929.74 | E64: 328
C65: Complex connection HV (customer connected at LV, upstream asset works) | D65: 7927225.425 | E65: 57
C66: Complex connection HV (customer connected at HV) | D66: 902939.7506 | E66: 12
C67: Complex connection sub-transmission
B68: SUBDIVISION | C68: Complex connection LV | D68: 1935652.936 | E68: 150
C69: Complex connection HV (no upstream asset works) | D69: 6306975.862 | E69: 100
C70: Complex connection HV (with upstream asset works) | D70: 4498449.803 | E70: 47
B71: EMBEDDED GENERATION | C71: Simple connection LV | D71: 1637932.78 | E71: 9828
C72: Complex connection HV (small capacity) | D72: 465513.3218 | E72: 84
C73: Complex connection HV (large capacity)

Sheet 2.6 Non-network
B1: REGULATORY REPORTING STATEMENT
B2: =INDEX(dms_TradingNameFull_List,MATCH(dms_TradingName,dms_TradingName_List)) -> SA Power Networks
B3: =CONCATENATE((LOOKUP(dms_Model,dms_Model_List,dms_Worksheet_List))&" "&CRY) -> CATEGORY ANALYSIS 2016-17
B4: 2.6 NON NETWORK EXPENDITURE
B6: There are THREE tables on this worksheet. Each has been grouped (and sub-grouped) for ease of navigation. See the Instructions sheet on how to group or ungroup tables.
B8: 2.6.1 - NON-NETWORK EXPENDITURE
F9: EXPENDITURE ($0's)
B10: SERVICE SUBCATEGORY | C10: ASSET CATEGORY | F10: =CRY -> 2016-17
B11: OPEX
B12: IT & COMMUNICATIONS | C12: Client device expenditure | F12: 1447800.604
C13: Recurrent expenditure | F13: 16351152.35
C14: Non-recurrent expenditure | F14: 330618.6863
B15: MOTOR VEHICLES | C15: Car | F15: 562751.9759
C16: Light commercial vehicle | F16: 1960251.164
C17: Elevated work platform (LCV) | F17: 0
C18: Elevated work platform (HCV) | F18: 4460624.494
C19: Heavy commercial vehicle | F19: 1803498.421
B20: BUILDINGS AND PROPERTY | C20: Total buildings and property expenditure | F20: 3778759.427
B21: OTHER | C21: Other expenditure | F21: =SUM(dms_020601_05_opex_Values) -> 5590479.566
B22: OTHER - DNSP nominated | C22: TEC Vehicles | F22: 283423.3904
C23: Cranes | F23: 1168588.139
C24: Other Commercial Vehicles | F24: 1362208.127
C25: Network Telephony (A80) | F25: 2776259.91
C26: ADMS | F26: 0
C27: V&V Rollout | F27: 0
C28: Other Network Strategic | F28: 0
C29: Non-Network Telecommunications | F29: 0
C30: Non-Network Other Plant and Tools | F30: 0
B33: CAPEX
B34: IT & COMMUNICATIONS | C34: Client device expenditure | F34: 4279467.58
C35: Recurrent expenditure | F35: 27787605.71
C36: Non-recurrent expenditure | F36: 22699334.11
B37: MOTOR VEHICLES | C37: Car | F37: 180213.85
C38: Light commercial vehicle | F38: 3867685.55
C39: Elevated work platform (LCV) | F39: 0
C40: Elevated work platform (HCV) | F40: 7025729.12
C41: Heavy commercial vehicle | F41: 529069.26
B42: BUILDINGS AND PROPERTY | C42: Total buildings and property expenditure | F42: 6839633.92
B43: OTHER | C43: Other expenditure | F43: =SUM(F44:F52) -> 13030612.43
B44: OTHER - DNSP nominated | C44: =IF(ISBLANK(C22),"",C22) -> TEC Vehicles | F44: 1635073.49
C45: =IF(ISBLANK(C23),"",C23) -> Cranes | F45: 533887.52
C46: Other Commercial Vehicles | F46: 337865.65
C47: Network Telephony (A80) | F47: 0
C48: ADMS | F48: 968968.49
C49: V&V Rollout | F49: 1635844.66
C50: Other Network Strategic | F50: 4118118.79
C51: Non-Network Telecommunications | F51: 1032682
C52: Non-Network Other Plant and Tools | F52: 2768171.83
B58: 2.6.2 - ANNUAL DESCRIPTOR METRICS - IT & COMMUNICATIONS EXPENDITURE
F59: VOLUMES (0's)
B61: NON-NETWORK CATEGORY | C61: DESCRIPTOR METRIC | F61: =CRY -> 2016-17
B62: IT & COMMUNICATIONS | C62: Employee numbers | F62: 1636
C63: User numbers | F63: 1583.9785
C64: Number of devices | F64: 5345.792
B67: 2.6.3 - ANNUAL DESCRIPTOR METRICS - MOTOR VEHICLES
F68: VOLUMES / %
B69: NON-NETWORK CATEGORY | C69: ASSET CATEGORY | D69: DESCRIPTOR METRIC | E69: UNITS | F69: =CRY -> 2016-17
B70: MOTOR VEHICLES | C70: CAR | D70: Average kilometres travelled | E70: 0's | F70: 10461.472
D71: Number purchased | E71: 0's | F71: 18
D72: Number leased | E72: 0's | F72: 1
D73: Number in fleet | E73: 0's | F73: 59
D74: Proportion of total fleet expenditure allocated as regulatory expenditure | E74: (per cent) | F74: 0.8183
C75: LIGHT COMMERCIAL VEHICLE | D75: Average kilometres travelled | E75: 0's | F75: 19921.021
D76: Number purchased | E76: 0's | F76: 84
D77: Number leased | E77: 0's | F77: 22
D78: Number in fleet | E78: 0's | F78: 431
D79: Proportion of total fleet expenditure allocated as regulatory expenditure | E79: (per cent) | F79: 0.9103
C80: ELEVATED WORK PLATFORM (LCV) | D80: Average kilometres travelled | E80: 0's | F80: 0
D81: Number purchased | E81: 0's | F81: 0
D82: Number leased | E82: 0's | F82: 0
D83: Number in fleet | E83: 0's | F83: 0
D84: Proportion of total fleet expenditure allocated as regulatory expenditure | E84: (per cent) | F84: 0
C85: ELEVATED WORK PLATFORM (HCV) | D85: Average kilometres travelled | E85: 0's | F85: 14139.467
D86: Number purchased | E86: 0's | F86: 13
D87: Number leased | E87: 0's | F87: 0
D88: Number in fleet | E88: 0's | F88: 109
D89: Proportion of total fleet expenditure allocated as regulatory expenditure | E89: (per cent) | F89: 0.8978
C90: HEAVY COMMERCIAL VEHICLE | D90: Average kilometres travelled | E90: 0's | F90: 8779.697
D91: Number purchased | E91: 0's | F91: 4
D92: Number leased | E92: 0's | F92: 2
D93: Number in fleet | E93: 0's | F93: 63
D94: Proportion of total fleet expenditure allocated as regulatory expenditure | E94: (per cent) | F94: 0.8152

Sheet 2.7 Vegetation management
B1: REGULATORY REPORTING STATEMENT
B2: =INDEX(dms_TradingNameFull_List,MATCH(dms_TradingName,dms_TradingName_List)) -> SA Power Networks
B3: =CONCATENATE((LOOKUP(dms_Model,dms_Model_List,dms_Worksheet_List))&" "&CRY) -> CATEGORY ANALYSIS 2016-17
B4: 2.7 VEGETATION MANAGEMENT
B6: There are THREE tables on this worksheet. Each has been grouped (and sub-grouped) for ease of navigation. See the Instructions sheet on how to group or ungroup tables.
B8: Please enter a description for each Zone in table 2.7.1 - Urban and CBD. The zone description will then autopopulate in tables 2.7.1 - Rural and 2.7.2.
A11: ` | B11: 2.7.1 - DESCRIPTOR METRICS BY ZONE
B12: URBAN AND CBD
E13: =CRY -> 2016-17
B14: ZONES | C14: ASSET | D14: UNITS
B15: ZONE 1 | C15: Route line length within zone | D15: km
C16: Number of maintenance spans | D16: 0's
C17: Total length of maintenance spans | D17: km
C18: Length of vegetation corridors | D18: km
C19: Average number of trees per maintenance span | D19: 0's
C20: Average frequency of cutting cycle | D20: years
B21: ZONE 2 | C21: Route line length within zone | D21: km
C22: Number of maintenance spans | D22: 0's
C23: Total length of maintenance spans | D23: km
C24: Length of vegetation corridors | D24: km
C25: Average number of trees per maintenance span | D25: 0's
C26: Average frequency of cutting cycle | D26: years
B27: ZONE 3 | C27: Route line length within zone | D27: km
C28: Number of maintenance spans | D28: 0's
C29: Total length of maintenance spans | D29: km
C30: Length of vegetation corridors | D30: km
C31: Average number of trees per maintenance span | D31: 0's
C32: Average frequency of cutting cycle | D32: years
B33: ZONE 4 | C33: Route line length within zone | D33: km
C34: Number of maintenance spans | D34: 0's
C35: Total length of maintenance spans | D35: km
C36: Length of vegetation corridors | D36: km
C37: Average number of trees per maintenance span | D37: 0's
C38: Average frequency of cutting cycle | D38: years
B39: ZONE 5 | C39: Route line length within zone | D39: km
C40: Number of maintenance spans | D40: 0's
C41: Total length of maintenance spans | D41: km
C42: Length of vegetation corridors | D42: km
C43: Average number of trees per maintenance span | D43: 0's
C44: Average frequency of cutting cycle | D44: years
B45: ZONE 6 | C45: Route line length within zone | D45: km
C46: Number of maintenance spans | D46: 0's
C47: Total length of maintenance spans | D47: km
C48: Length of vegetation corridors | D48: km
C49: Average number of trees per maintenance span | D49: 0's
C50: Average frequency of cutting cycle | D50: years
B51: ZONE 7 | C51: Route line length within zone | D51: km
C52: Number of maintenance spans | D52: 0's
C53: Total length of maintenance spans | D53: km
C54: Length of vegetation corridors | D54: km
C55: Average number of trees per maintenance span | D55: 0's
C56: Average frequency of cutting cycle | D56: years
B57: ZONE 8 | C57: Route line length within zone | D57: km
C58: Number of maintenance spans | D58: 0's
C59: Total length of maintenance spans | D59: km
C60: Length of vegetation corridors | D60: km
C61: Average number of trees per maintenance span | D61: 0's
C62: Average frequency of cutting cycle | D62: years
B63: ZONE 9 | C63: Route line length within zone | D63: km
C64: Number of maintenance spans | D64: 0's
C65: Total length of maintenance spans | D65: km
C66: Length of vegetation corridors | D66: km
C67: Average number of trees per maintenance span | D67: 0's
C68: Average frequency of cutting cycle | D68: years
B69: ZONE 10 | C69: Route line length within zone | D69: km
C70: Number of maintenance spans | D70: 0's
C71: Total length of maintenance spans | D71: km
C72: Length of vegetation corridors | D72: km
C73: Average number of trees per maintenance span | D73: 0's
C74: Average frequency of cutting cycle | D74: years
B75: ZONE 11 | C75: Route line length within zone | D75: km
C76: Number of maintenance spans | D76: 0's
C77: Total length of maintenance spans | D77: km
C78: Length of vegetation corridors | D78: km
C79: Average number of trees per maintenance span | D79: 0's
C80: Average frequency of cutting cycle | D80: years
B81: ZONE 12 | C81: Route line length within zone | D81: km
C82: Number of maintenance spans | D82: 0's
C83: Total length of maintenance spans | D83: km
C84: Length of vegetation corridors | D84: km
C85: Average number of trees per maintenance span | D85: 0's
C86: Average frequency of cutting cycle | D86: years
B87: ZONE 13 | C87: Route line length within zone | D87: km
C88: Number of maintenance spans | D88: 0's
C89: Total length of maintenance spans | D89: km
C90: Length of vegetation corridors | D90: km
C91: Average number of trees per maintenance span | D91: 0's
C92: Average frequency of cutting cycle | D92: years
B93: ZONE 14 | C93: Route line length within zone | D93: km
C94: Number of maintenance spans | D94: 0's
C95: Total length of maintenance spans | D95: km
C96: Length of vegetation corridors | D96: km
C97: Average number of trees per maintenance span | D97: 0's
C98: Average frequency of cutting cycle | D98: years
B99: ZONE 15 | C99: Route line length within zone | D99: km
C100: Number of maintenance spans | D100: 0's
C101: Total length of maintenance spans | D101: km
C102: Length of vegetation corridors | D102: km
C103: Average number of trees per maintenance span | D103: 0's
C104: Average frequency of cutting cycle | D104: years
B105: ZONE 16 | C105: Route line length within zone | D105: km
C106: Number of maintenance spans | D106: 0's
C107: Total length of maintenance spans | D107: km
C108: Length of vegetation corridors | D108: km
C109: Average number of trees per maintenance span | D109: 0's
C110: Average frequency of cutting cycle | D110: years
B111: ZONE 17 | C111: Route line length within zone | D111: km
C112: Number of maintenance spans | D112: 0's
C113: Total length of maintenance spans | D113: km
C114: Length of vegetation corridors | D114: km
C115: Average number of trees per maintenance span | D115: 0's
C116: Average frequency of cutting cycle | D116: years
B117: ZONE 18 | C117: Route line length within zone | D117: km
C118: Number of maintenance spans | D118: 0's
C119: Total length of maintenance spans | D119: km
C120: Length of vegetation corridors | D120: km
C121: Average number of trees per maintenance span | D121: 0's
C122: Average frequency of cutting cycle | D122: years
B124: RURAL
E125: =CRY -> 2016-17
B126: ZONES | C126: ASSET | D126: UNITS
B127: =B15 -> ZONE 1 | C127: Route line length within zone | D127: km
C128: Number of maintenance spans | D128: 0's
C129: Total length of maintenance spans | D129: km
C130: Length of vegetation corridors | D130: km
C131: Average number of trees per maintenance span | D131: 0's
C132: Average frequency of cutting cycle | D132: years
B133: =B21 -> ZONE 2 | C133: Route line length within zone | D133: km
C134: Number of maintenance spans | D134: 0's
C135: Total length of maintenance spans | D135: km
C136: Length of vegetation corridors | D136: km
C137: Average number of trees per maintenance span | D137: 0's
C138: Average frequency of cutting cycle | D138: years
B139: =B27 -> ZONE 3 | C139: Route line length within zone | D139: km
C140: Number of maintenance spans | D140: 0's
C141: Total length of maintenance spans | D141: km
C142: Length of vegetation corridors | D142: km
C143: Average number of trees per maintenance span | D143: 0's
C144: Average frequency of cutting cycle | D144: years
B145: =B33 -> ZONE 4 | C145: Route line length within zone | D145: km
C146: Number of maintenance spans | D146: 0's
C147: Total length of maintenance spans | D147: km
C148: Length of vegetation corridors | D148: km
C149: Average number of trees per maintenance span | D149: 0's
C150: Average frequency of cutting cycle | D150: years
B151: =B39 -> ZONE 5 | C151: Route line length within zone | D151: km
C152: Number of maintenance spans | D152: 0's
C153: Total length of maintenance spans | D153: km
C154: Length of vegetation corridors | D154: km
C155: Average number of trees per maintenance span | D155: 0's
C156: Average frequency of cutting cycle | D156: years
B157: =B45 -> ZONE 6 | C157: Route line length within zone | D157: km
C158: Number of maintenance spans | D158: 0's
C159: Total length of maintenance spans | D159: km
C160: Length of vegetation corridors | D160: km
C161: Average number of trees per maintenance span | D161: 0's
C162: Average frequency of cutting cycle | D162: years
B163: =B51 -> ZONE 7 | C163: Route line length within zone | D163: km
C164: Number of maintenance spans | D164: 0's
C165: Total length of maintenance spans | D165: km
C166: Length of vegetation corridors | D166: km
C167: Average number of trees per maintenance span | D167: 0's
C168: Average frequency of cutting cycle | D168: years
B169: =B57 -> ZONE 8 | C169: Route line length within zone | D169: km
C170: Number of maintenance spans | D170: 0's
C171: Total length of maintenance spans | D171: km
C172: Length of vegetation corridors | D172: km
C173: Average number of trees per maintenance span | D173: 0's
C174: Average frequency of cutting cycle | D174: years
B175: =B63 -> ZONE 9 | C175: Route line length within zone | D175: km
C176: Number of maintenance spans | D176: 0's
C177: Total length of maintenance spans | D177: km
C178: Length of vegetation corridors | D178: km
C179: Average number of trees per maintenance span | D179: 0's
C180: Average frequency of cutting cycle | D180: years
B181: =B69 -> ZONE 10 | C181: Route line length within zone | D181: km
C182: Number of maintenance spans | D182: 0's
C183: Total length of maintenance spans | D183: km
C184: Length of vegetation corridors | D184: km
C185: Average number of trees per maintenance span | D185: 0's
C186: Average frequency of cutting cycle | D186: years
B187: =B75 -> ZONE 11 | C187: Route line length within zone | D187: km
C188: Number of maintenance spans | D188: 0's
C189: Total length of maintenance spans | D189: km
C190: Length of vegetation corridors | D190: km
C191: Average number of trees per maintenance span | D191: 0's
C192: Average frequency of cutting cycle | D192: years
B193: =B81 -> ZONE 12 | C193: Route line length within zone | D193: km
C194: Number of maintenance spans | D194: 0's
C195: Total length of maintenance spans | D195: km
C196: Length of vegetation corridors | D196: km
C197: Average number of trees per maintenance span | D197: 0's
C198: Average frequency of cutting cycle | D198: years
B199: =B87 -> ZONE 13 | C199: Route line length within zone | D199: km
C200: Number of maintenance spans | D200: 0's
C201: Total length of maintenance spans | D201: km
C202: Length of vegetation corridors | D202: km
C203: Average number of trees per maintenance span | D203: 0's
C204: Average frequency of cutting cycle | D204: years
B205: =B93 -> ZONE 14 | C205: Route line length within zone | D205: km
... 201 more rows

Sheet 2.8 Maintenance
B1: REGULATORY REPORTING STATEMENT
B2: =INDEX(dms_TradingNameFull_List,MATCH(dms_TradingName,dms_TradingName_List)) -> SA Power Networks
B3: =CONCATENATE((LOOKUP(dms_Model,dms_Model_List,dms_Worksheet_List))&" "&CRY) -> CATEGORY ANALYSIS 2016-17
B4: 2.8 MAINTENANCE
B6: There are TWO tables on this worksheet. Each has been grouped for ease of navigation. See the Instructions sheet on how to group or ungroup tables.
B8: 2.8.1 - DESCRIPTOR METRICS FOR ROUTINE AND NON-ROUTINE MAINTENANCE
F9: ASSET QUANTITY (0's) | H9: AVERAGE AGE OF ASSET GROUP | I9: INSPECTION CYCLE (YEARS) | J9: MAINTENANCE CYCLE (YEARS)
F10: AT YEAR END | G10: INSPECTED / MAINTAINED
B11: MAINTENANCE ACTIVITY | C11: MAINTENANCE ASSET CATEGORY | D11: ASSET QUANTITY | E11: Units | F11: =CRY -> 2016-17 | G11: =CRY -> 2016-17 | H11: =CRY -> 2016-17
B12: Pole top, overhead line & service line maintenance | C12: Pole tops and overhead lines | D12: Number of poles | E12: Number | F12: 745140 | G12: 88616 | H12: 46.85 | I12: 5 | J12: 0
C13: Service lines | D13: Number of customers | E13: Number | F13: 776103 | G13: 0 | H13: 28.7 | I13: 10 | J13: 0
B14: Pole inspection and treatment | C14: All poles | D14: Number of poles | E14: Number | F14: 745140 | G14: 88616 | H14: 46.85 | I14: 5 | J14: 0
B15: Overhead asset inspection | C15: All overhead assets | D15: Line patrolled (route KM) | E15: KM | F15: 71222 | G15: 49876 | H15: 0 | I15: 5 | J15: 0
B16: Network underground cable maintenance: by voltage | C16: LV - 11 to 22 KV | D16: Length (KM) | E16: KM | F16: 17581 | G16: 555.71 | H16: 38.5 | I16: 0 | J16: 0
C17: 33 KV and above | D17: Length (KM) | E17: KM | F17: 172 | G17: 16.57 | H17: 29.8 | I17: 0.5 | J17: 0
B18: Network underground cable maintenance: by location | C18: Cbd | D18: Length (KM) | E18: KM | F18: 266 | G18: 572.28 | H18: 29.8 | I18: 0 | J18: 0
C19: Non-CBD | D19: Length (KM) | E19: KM | F19: 17487 | H19: 38.4 | I19: 0 | J19: 0
B20: Distribution substation equipment & property maintenance | C20: Distribution substation transformers | D20: Number of installed transformers | E20: Number | F20: 77847 | G20: 405 | H20: 30 | I20: 5 | J20: 0
C21: Distribution substation switchgear (within-substations and stand-alone switchgear) | D21: Number of switches | E21: Number | F21: 10107 | G21: 4405 | H21: 13.9 | I21: 1 | J21: 0
C22: Distribution substation - other equipment | D22: Earth mat | E22: Number | F22: 0 | G22: 0 | H22: 0 | I22: 0 | J22: 0
C23: Distribution substation - property | D23: Number of distribution substation properties maintained | E23: Number | F23: 721 | G23: 80 | H23: 40.15 | I23: 0 | J23: 0
B24: Zone substation equipment maintenance | C24: Transformers - zone substation | D24: Number | E24: Number | F24: 693 | G24: 594 | H24: 35.1 | I24: 0.5 | J24: 6
C25: Transformers - distribution | D25: Number of distribution transformers within zone substation | E25: Number | F25: 324 | G25: 0 | H25: 18.8 | I25: 0.5 | J25: 0
C26: Transformers - HV | D26: Number of HV transformers | E26: Number | F26: 0 | G26: 0 | H26: 0 | I26: 0 | J26: 0
C27: Zone substation - other equipment | D27: Number | E27: =D27 -> Number | F27: 355 | G27: 451 | H27: 4.6 | I27: 0.5 | J27: 10
B28: Zone substation property maintenance | C28: All zone substation properties | D28: Number of zone substation properties maintained | E28: Number | F28: 416 | G28: 1197 | H28: 41.5 | I28: 0.5 | J28: 4.5
B29: Public lighting maintenance | C29: Minor roads | D29: Number of public lights maintained | E29: Number | F29: 0 | G29: 0 | H29: 0 | I29: 0 | J29: 0
C30: Major roads | D30: Number of public lights maintained | E30: Number | F30: 0 | G30: 0 | H30: 0 | I30: 0 | J30: 0
B31: SCADA & network control maintenance | C31: SCADA & network control | D31: Number of systems | E31: Number | F31: 340 | G31: 0 | H31: 9.5 | I31: 0 | J31: 0
B32: Protection systems maintenance | C32: Protection systems | D32: Number of systems | E32: Number | F32: 3002 | G32: 342 | H32: 35 | I32: 0.5 | J32: 4.5
B33: Subtransmission asset maintenance | C33: Subtransmission asset maintenance - for DNSPs with dual function assets | D33: <DNSP to nominate> | E33: =D33 -> <DNSP to nominate> | F33: 0 | G33: 0 | H33: 0 | I33: 0 | J33: 0
B34: Various assets | C34: includes rates, electricity, communications equip, metering | D34: Various | E34: Number | F34: 5615 | G34: 350 | H34: 11 | I34: 1.5 | J34: 1.5
B35: Ground clearance - access tracks | C35: Access tracks | D35: Number | E35: Number | F35: 0 | G35: 0 | H35: 0 | I35: 0 | J35: 0
B36: Other | C36: Substation asset inspection | D36: No. of Sites | F36: 408 | G36: 874 | H36: 41.5 | I36: 0.5 | J36: 0
C37: Zone substation equipment maintenance (switchgear) | D37: No. of CBs and disconnectors | F37: 5996 | G37: 1323 | H37: 34.4 | I37: 0.5 | J37: 4.5
C38: Number of signages and IDs replaced | D38: No. of sites | F38: 78864 | G38: 671 | H38: 30 | I38: 0 | J38: 0
C39: Power Station Maintenance, Asset Records, Feeder Diagram Maintenance, Compliance Auditing, Asset Location Services, Customer Service Penalties | D39: Units not quoted as various UOM | F39: 0 | G39: 0 | H39: 0 | I39: 0 | J39: 0
B48: 2.8.2 - COST METRICS FOR ROUTINE AND NON-ROUTINE MAINTENANCE
F49: EXPENDITURE ($0'S)
F50: ROUTINE MAINTENANCE | G50: NON-ROUTINE MAINTENANCE
B51: MAINTENANCE ACTIVITY | C51: MAINTENANCE ASSET CATEGORY | D51: ASSET QUANTITY | E51: Units | F51: =CRY -> 2016-17 | G51: =CRY -> 2016-17
B52: Pole top, overhead line & service line maintenance | C52: Pole tops and overhead lines | D52: Number of poles | E52: Number | F52: 7284 | G52: 971132
C53: Service lines | D53: Number of customers | E53: Number | F53: 0 | G53: 0
B54: Pole inspection and treatment | C54: All poles | D54: Number of poles | E54: Number | F54: 5745181 | G54: 0
B55: Overhead asset inspection | C55: All overhead assets | D55: Line patrolled (route KM) | E55: KM | F55: 5727497 | G55: 0
B56: Network underground cable maintenance: by voltage | C56: LV - 11 to 22 KV | D56: Length (KM) | E56: KM | F56: 429981 | G56: 517499
C57: 33 KV and above | D57: Length (KM) | E57: KM | F57: 80287 | G57: 0
B58: Network underground cable maintenance: by location | C58: Cbd | D58: Length (KM) | E58: KM | F58: 510268 | G58: 517499
C59: Non-CBD | D59: Length (KM) | E59: KM
B60: Distribution substation equipment & property maintenance | C60: Distribution substation transformers | D60: Number of installed transformers | E60: Number | F60: 8371 | G60: 550049
C61: Distribution substation switchgear (within-substations and stand-alone switchgear) | D61: Number of switches | E61: Number | F61: 288857 | G61: 84464
C62: Distribution substation - other equipment | D62: Earth mat | E62: Number | F62: 0 | G62: 0
C63: Distribution substation - property | D63: Number of distribution substation properties maintained | E63: Number | F63: 0 | G63: 139767
B64: Zone substation equipment maintenance | C64: Transformers - zone substation | D64: Number | E64: Number | F64: 1481535 | G64: 1303438
C65: Transformers - distribution | D65: Number of distribution transformers within zone substation | E65: Number | F65: 0 | G65: 0
C66: Transformers - HV | D66: Number of HV transformers | E66: Number | F66: 0 | G66: 0
C67: Zone substation - other equipment | D67: =IF(ISBLANK(D27),"",D27) -> Number | E67: =IF(ISBLANK(E27),"",E27) -> Number | F67: 675733 | G67: 642354
B68: Zone substation property maintenance | C68: All zone substation properties | D68: Number of zone substation properties maintained | E68: Number | F68: 964907 | G68: 597462
B69: Public lighting maintenance | C69: Minor roads | D69: Number of public lights maintained | E69: Number | F69: 0 | G69: 0
C70: Major roads | D70: Number of public lights maintained | E70: Number | F70: 0 | G70: 0
B71: SCADA & network control maintenance | C71: SCADA & network control | D71: Number of systems | E71: Number | F71: 0 | G71: 500344
B72: Protection systems maintenance | C72: Protection systems | D72: Number of systems | E72: Number | F72: 813357 | G72: 81874
B73: Subtransmission asset maintenance | C73: Subtransmission asset maintenance - for DNSPs with dual function assets | D73: =IF(ISBLANK(D33),"",D33) -> <DNSP to nominate> | E73: =IF(ISBLANK(E33),"",E33) -> <DNSP to nominate> | F73: 0 | G73: 0
B74: Various assets | C74: includes rates, electricity, communications equip, metering | D74: Various | E74: Number | F74: 634506 | G74: 1432010
B75: Ground clearance - access tracks | C75: Access tracks | D75: Number | E75: Number | F75: 0 | G75: 0
B76: Other | C76: =IF(ISBLANK(C36),"",C36) -> Substation asset inspection | D76: No. of Sites | F76: 940563 | G76: 0
C77: Zone substation equipment maintenance (switchgear) | D77: No. of CBs and disconnectors | F77: 774001 | G77: 553706
C78: Number of signages and IDs replaced | D78: No. of sites | F78: 0 | G78: 362267
C79: Power Station Maintenance, Asset Records, Feeder Diagram Maintenance, Compliance Auditing, Asset Location Services, Customer Service Penalties | D79: Units not quoted as various UOM | F79: 1096115 | G79: 0

Sheet 2.9 Emergency Response
B1: REGULATORY REPORTING STATEMENT
B2: =INDEX(dms_TradingNameFull_List,MATCH(dms_TradingName,dms_TradingName_List)) -> SA Power Networks
B3: =CONCATENATE((LOOKUP(dms_Model,dms_Model_List,dms_Worksheet_List))&" "&CRY) -> CATEGORY ANALYSIS 2016-17
B4: 2.9 EMERGENCY RESPONSE
B7: There is ONE table on this worksheet. It has been sub-grouped for ease of navigation. See the Instructions sheet on how to group or ungroup tables.
B9: 2.9.1 - EMERGENCY RESPONSE EXPENDITURE (OPEX)
D10: EXPENDITURE ($0's)
D11: =CRY -> 2016-17
B12: (A) TOTAL EMERGENCY RESPONSE EXPENDITURE | C12: Total Expenditure | D12: 43002001.48
B13: (B) MAJOR EVENTS O&M EXPENDITURE
B56: (C) MAJOR EVENT DAYS O&M EXPENDITURE | C56: 2016-07-11 | D56: 183246
C57: 2016-07-12 | D57: 473562
C58: 2016-09-28 | D58: 72178
C59: 2016-09-29 | D59: 162338
C60: 2016-11-11 | D60: 158511
C61: 2016-12-23 | D61: 68173
C62: 2016-12-27 | D62: 73768
C63: 2016-12-28 | D63: 334489
C64: 2017-01-19 | D64: 127454

Sheet 2.10 Overheads
B1: REGULATORY REPORTING STATEMENT
B2: =INDEX(dms_TradingNameFull_List,MATCH(dms_TradingName,dms_TradingName_List)) -> SA Power Networks
B3: =CONCATENATE((LOOKUP(dms_Model,dms_Model_List,dms_Worksheet_List))&" "&CRY) -> CATEGORY ANALYSIS 2016-17
B4: 2.10 OVERHEADS
B6: =CONCATENATE("Please note. This worksheet 2.10 Overheads is the original worksheet. We have also included a different version of the Overheads template (worksheet 2.10A Overheads) which collects the information in a different way. ",dms_TradingName, " is not obliged to complete worksheet 2.10A. However, the AER would prefer to collect Overheads information as presented in the revised worksheet 2.10A Overheads. If ",dms_TradingName," is prepared to complete worksheet 2.10A in lieu of the original worksheet 2.10 Overheads, please indicate that choice by selecting from the drop down list at the right. ",dms_TradingName, " is only required to complete one version of the Overheads worksheet in order to comply with the Category Analysis RIN.") -> Please note. This worksheet 2.10 Overheads is the original worksheet. We have also included a different version of the Overheads template (worksheet 2.10A Overheads) which collects the information in a different way. SA Power Networks is not obliged to complete worksheet 2.10A. However, the AER would prefer to collect Overheads information as presented in the revised worksheet 2.10A Overheads. If SA Power Networks is prepared to complete worksheet 2.10A in lieu of the original worksheet 2.10 Overheads, please indicate that choice by selecting from the drop down list at the right. SA Power Networks is only required to complete one version of the Overheads worksheet in order to comply with the Category Analysis RIN. | D6: Choose Response drop down selection
D7: Worksheet 2.10
B11: There are TWO tables on this worksheet. Each has been grouped (and sub-grouped) for ease of navigation. See the Instructions sheet on how to group or ungroup tables.
B13: =CONCATENATE("Instructions Please enter a description for each expenditure category as currently reported under ",dms_TradingName,"'s annual RIN.") -> Instructions Please enter a description for each expenditure category as currently reported under SA Power Networks's annual RIN.
B15: 2.10.1 - NETWORK OVERHEADS EXPENDITURE
D16: EXPENDITURE ($0's)
D17: =CRY -> 2016-17
B18: NETWORK OVERHEADS
B19: Standard Control Services | C19: Network management | D19: 4882331.6
C20: Network planning | D20: 835522.83
C21: Network control and operational switching | D21: 10395016.93
C22: Quality and standard functions | D22: 7629800.75
C23: Other Network Overheads | D23: 2011381.41
C24: Network Telephony | D24: 4996194.04
C25: Guaranteed Service Level Payments | D25: 25515380.57
C26: Call Centre | D26: 3297340.35
C27: Full Retail Contestability | D27: 15528517.49
C28: Network Insurance | D28: 1827737.535
C29: Distribution Licence Fee | D29: 2263400
C30: Substation Property Maintenance | D30: 6762167.888
C31: Other Customer Services | D31: 7679470.246
B47: Alternative Control Services | C47: Network management | D47: 142562.29
C48: Other Customer Services | D48: 165968.1762
C49: Full Retail Contestability | D49: 2193106.876
B75: Negotiated Services | C75: Total | D75: 2199538.31
B76: Unregulated Services | C76: Total | D76: 11344.72
B79: CAPITALISED NETWORK OVERHEADS
B80: Standard Control Services | C80: Network management - Standard Control Services | D80: 11307921.5
C81: Network management - Alternative Control Services | D81: 324540.77
B104: 2.10.2 - CORPORATE OVERHEADS EXPENDITURE
D105: EXPENDITURE ($0's)
D106: =CRY -> 2016-17
B107: CORPORATE OVERHEADS
B108: Standard Control Services | C108: CEO, Planning and Audit | D108: 4317772.63
C109: Communications | D109: 1709150.507
C110: Regulation and Company Secretary | D110: 4350810.449
C111: Finance | D111: 9999837.297
C112: HR and Training | D112: 8257553.345
C113: Property | D113: 6276254.477
C114: Information Systems | D114: 17834184.5
C115: Risk Management | D115: 8304296.628
C116: Other Allocated Costs | D116: -2054247.955
B129: Alternative Control Services | C129: CEO, Planning and Audit | D129: 79005.05
C130: Communications | D130: 38357.539
C131: Regulation and Company Secretary | D131: 107644.694
C132: Finance | D132: 303562.342
C133: HR and Training | D133: 128383.374
C134: Property | D134: 61567.75
C135: Information Systems | D135: 295387.14
C136: Risk Management | D136: 111266.317
C137: Other Allocated Costs | D137: -110286.071
B150: Negotiated Services | C150: Total | D150: 5146926.754
B151: Unregulated Services | C151: Total | D151: 4807205.312
B153: CAPITALISED CORPORATE OVERHEADS
B154: Standard Control Services | C154: Other Allocated Costs - Standard Control | D154: -9361715.301
C155: Other Allocated Costs - Alternative Control | D155: -145107.6372

Sheet 2.10(A) Overheads
B1: REGULATORY REPORTING STATEMENT
B2: =INDEX(dms_TradingNameFull_List,MATCH(dms_TradingName,dms_TradingName_List)) -> SA Power Networks
B3: =CONCATENATE((LOOKUP(dms_Model,dms_Model_List,dms_Worksheet_List))&" "&CRY) -> CATEGORY ANALYSIS 2016-17
B4: 2.10(A) OVERHEADS
B6: This worksheet may be completed on a voluntary basis. Please see worksheet 2.10 for an explanation of Overheads reporting options.
B9: There are TWO tables on this worksheet. Each has been grouped (and sub-grouped) for ease of navigation. See the Instructions sheet on how to group or ungroup tables.
B11: 2.10.1 - NETWORK OVERHEADS EXPENDITURE
D12: EXPENDITURE ($0's)
D13: =CRY -> 2016-17
B14: OPEX
B15: Standard Control Services | C15: Total
B16: Alternative Control Services | C16: Total
B17: CAPEX
B18: Standard Control Services | C18: Total
B19: Alternative Control Services | C19: Total
B20: OTHER DISTRIBUTION SERVICES
B21: Negotiated Services | C21: Total
B22: Unregulated Services | C22: Total
B26: 2.10.2 - CORPORATE OVERHEADS EXPENDITURE
D27: EXPENDITURE ($0's)
D28: =CRY -> 2016-17
B29: OPEX
B30: Standard Control Services | C30: Total
B31: Alternative Control Services | C31: Total
B32: CAPEX
B33: Standard Control Services | C33: Total
B34: Alternative Control Services | C34: Total
B35: OTHER DISTRIBUTION SERVICES
B36: Negotiated Services | C36: Total
B37: Unregulated Services | C37: Total

Sheet 2.11 Labour
B1: REGULATORY REPORTING STATEMENT
B2: =INDEX(dms_TradingNameFull_List,MATCH(dms_TradingName,dms_TradingName_List)) -> SA Power Networks
B3: =CONCATENATE((LOOKUP(dms_Model,dms_Model_List,dms_Worksheet_List))&" "&CRY) -> CATEGORY ANALYSIS 2016-17
B4: 2.11 LABOUR
B6: There are TWO tables on this worksheet. Each has been grouped for ease of navigation. See the Instructions sheet on how to group or ungroup tables.
B8: 2.11.1 - COST METRICS PER ANNUM
D9: ASL (0's) | E9: TOTAL LABOUR EXPENDITURE ($0's) | F9: AVERAGE PRODUCTIVE WORK HOURS PER ASL (0's) | G9: STAND-DOWN OCCURENCES PER ASL (0's)
D11: =CRY -> 2016-17 | E11: =CRY -> 2016-17 | F11: =CRY -> 2016-17 | G11: =CRY -> 2016-17
B12: INTERNAL LABOUR EXPENDITURE
B13: CORPORATE OVERHEADS | C13: Executive manager | D13: 23.72730558 | E13: 8319997.466 | F13: 1939.8 | G13: 0
C14: Senior manager | D14: 16.81358309 | E14: 3440483.603 | F14: 1830.7 | G14: 0
C15: Manager | D15: 18.44871964 | E15: 2966451.879 | F15: 1677 | G15: 0
C16: Professional | D16: 28.83147266 | E16: 4686101.204 | F16: 1737.9 | G16: 1.7
C17: Semi professional | D17: 110.7670527 | E17: 15823701.69 | F17: 1690.4 | G17: 0.5
C18: Support staff | D18: 126.8044608 | E18: 15463661.33 | F18: 1668.1 | G18: 0.3
C19: Intern, junior staff, apprentice | D19: 0.8923339338 | E19: 35573.45633 | F19: 1635.6 | G19: 0
B20: NETWORK OVERHEADS | C20: Executive manager | D20: 15.02809252 | E20: 5051320.433 | F20: 1944.7 | G20: 0
C21: Senior manager | D21: 28.78662123 | E21: 5442927.118 | F21: 1865.1 | G21: 0.3
C22: Manager | D22: 71.18968709 | E22: 11653213.68 | F22: 1778.4 | G22: 4.8
C23: Professional | D23: 89.07234613 | E23: 12445063.72 | F23: 1697 | G23: 0.1
C24: Semi professional | D24: 302.786141 | E24: 44725649.46 | F24: 1749.4 | G24: 5.2
C25: Support staff | D25: 147.3829457 | E25: 19294758.97 | F25: 1750.9 | G25: 2.2
C26: Intern, junior staff, apprentice | D26: 4.857478611 | E26: 275763.2177 | F26: 1755.3 | G26: 1.1
B27: TOTAL DIRECT NETWORK LABOUR | C27: Skilled electrical worker | D27: 507.206196 | E27: 76653805.95 | F27: 1998.4 | G27: 81.8
C28: Skilled non electical worker | D28: 19.12722094 | E28: 2174161.514 | F28: 1800.7 | G28: 5.1
C29: Apprentice | D29: 75.19488299 | E29: 5239873.126 | F29: 1853.9 | G29: 21.1
C30: Unskilled worker | D30: 49.28165318 | E30: 5101276.128 | F30: 1799.6 | G30: 12.3
B33: 2.11.2 - DESCRIPTOR METRICS
D34: ORDINARY TIME (0's) | F34: OVERTIME (0's)
D35: PER ASL | E35: HOURLY RATE PER ASL | F35: PER ASL | G35: HOURLY RATE PER ASL
D36: =CRY -> 2016-17 | E36: =CRY -> 2016-17 | F36: =CRY -> 2016-17 | G36: =CRY -> 2016-17
B37: AVERAGE PRODUCTIVE WORK HOURS PER ASL
B38: CORPORATE OVERHEADS | C38: Executive manager | D38: 1939.8 | E38: 180.7 | F38: 0 | G38: 0
C39: Senior manager | D39: 1829.9 | E39: 111.8 | F39: 0.8 | G39: 145.6
C40: Manager | D40: 1657 | E40: 95.7 | F40: 20 | G40: 113.7
C41: Professional | D41: 1704.3 | E41: 93.1 | F41: 33.6 | G41: 105.1
C42: Semi professional | D42: 1666.3 | E42: 84.3 | F42: 24 | G42: 94.1
C43: Support staff | D43: 1649.4 | E43: 73 | F43: 18.8 | G43: 84.4
C44: Intern, junior staff, apprentice | D44: 1635.6 | E44: 24.4 | F44: 0 | G44: 0
B45: NETWORK OVERHEADS | C45: Executive manager | D45: 1944.7 | E45: 172.8 | F45: 0 | G45: 0
C46: Senior manager | D46: 1841.1 | E46: 100.9 | F46: 24 | G46: 135
C47: Manager | D47: 1643.7 | E47: 90 | F47: 134.7 | G47: 116.4
C48: Professional | D48: 1669.3 | E48: 82 | F48: 27.8 | G48: 101.3
C49: Semi professional | D49: 1666.4 | E49: 83.5 | F49: 83 | G49: 105.4
C50: Support staff | D50: 1704.9 | E50: 74.5 | F50: 46 | G50: 88.2
C51: Intern, junior staff, apprentice | D51: 1719.9 | E51: 32.3 | F51: 35.4 | G51: 27.5
B52: TOTAL DIRECT NETWORK LABOUR | C52: Skilled electrical worker | D52: 1646.9 | E52: 68.9 | F52: 351.5 | G52: 106.8
C53: Skilled non electical worker | D53: 1664.7 | E53: 61.8 | F53: 136 | G53: 79.8
C54: Apprentice | D54: 1669.4 | E54: 36.4 | F54: 184.5 | G54: 48.1
C55: Unskilled worker | D55: 1696.9 | E55: 56.7 | F55: 102.8 | G55: 71.9

Sheet 2.12 Input tables
B1: REGULATORY REPORTING STATEMENT
B2: =INDEX(dms_TradingNameFull_List,MATCH(dms_TradingName,dms_TradingName_List)) -> SA Power Networks
B3: =CONCATENATE((LOOKUP(dms_Model,dms_Model_List,dms_Worksheet_List))&" "&CRY) -> CATEGORY ANALYSIS 2016-17
B4: 2.12 INPUT TABLES
B6: There is ONE table on this worksheet. It has been sub-grouped for ease of navigation. See the Instructions sheet on how to group or ungroup tables.
B8: 2.12.1 - INPUT TABLES
D9: DIRECT MATERIAL EXPENDITURE | E9: DIRECT LABOUR EXPENDITURE | F9: CONTRACT EXPENDITURE | G9: OTHER EXPENDITURE | H9: RELATED PARTY CONTRACT EXPENDITURE | I9: RELATED PARTY CONTRACT MARGIN EXPENDITURE
D10: EXPENDITURE ($0's)
D11: =CRY -> 2016-17 | E11: 2016-17 | F11: 2016-17 | G11: 2016-17 | H11: 2016-17 | I11: 2016-17
B12: VEGETATION MANAGEMENT | C12: ='2.7 Vegetation management'!B15 -> ZONE 1
C13: ='2.7 Vegetation management'!B21 -> ZONE 2
C14: ='2.7 Vegetation management'!B27 -> ZONE 3
C15: ='2.7 Vegetation management'!B33 -> ZONE 4
C16: ='2.7 Vegetation management'!B39 -> ZONE 5
C17: ='2.7 Vegetation management'!B45 -> ZONE 6
C18: ='2.7 Vegetation management'!B51 -> ZONE 7
C19: ='2.7 Vegetation management'!B57 -> ZONE 8
C20: ='2.7 Vegetation management'!B63 -> ZONE 9
C21: ='2.7 Vegetation management'!B69 -> ZONE 10
C22: ='2.7 Vegetation management'!B75 -> ZONE 11
C23: ='2.7 Vegetation management'!B81 -> ZONE 12
C24: ='2.7 Vegetation management'!B87 -> ZONE 13
C25: ='2.7 Vegetation management'!B93 -> ZONE 14
C26: ='2.7 Vegetation management'!B99 -> ZONE 15
C27: ='2.7 Vegetation management'!B105 -> ZONE 16
C28: ='2.7 Vegetation management'!B111 -> ZONE 17
C29: ='2.7 Vegetation management'!B117 -> ZONE 18
B30: ROUTINE MAINTENANCE | C30: Pole top, overhead line & service line maintenance | D30: 0 | E30: 5220.866338 | F30: 1005.855081 | G30: 1057.428581
C31: Pole inspection and treatment | D31: 154.39 | E31: 123589.14 | F31: 5620718.5 | G31: 719.36
C32: Overhead asset inspection | D32: 16200.34539 | E32: 1524301.938 | F32: 4174997.342 | G32: 11997.82384
C33: Network underground cable maintenance | D33: 21581.47547 | E33: 263967.8048 | F33: 214734.5944 | G33: 9984.26532
C34: Distribution substation equipment & property maintenance | D34: 770.679099 | E34: 288443.4533 | F34: 7101.041306 | G34: 912.3462831
C35: Zone substation equipment maintenance | D35: 80097.07922 | E35: 1660062.433 | F35: 303093.1013 | G35: 114014.8265
C36: Zone substation property maintenance | D36: 12277.13101 | E36: 166721.1294 | F36: 782428.6575 | G36: 3479.752169
C37: Public lighting maintenance | D37: 0 | E37: 0 | F37: 0 | G37: 0
C38: Scada & network control maintenance | D38: 0 | E38: 0 | F38: 0 | G38: 0
C39: Protection systems maintenance | D39: 3867.527819 | E39: 699512.51 | F39: 47581.37409 | G39: 62395.37808
C40: Subtransmission asset maintenance - for dnsps with dual function assets | D40: 0 | E40: 0 | F40: 0 | G40: 0
C41: Other | D41: 83561.2165 | E41: 2118235.389 | F41: 1172633.895 | G41: 70754.66899
B42: NON-ROUTINE MAINTENANCE | C42: Pole top, overhead line & service line maintenance | D42: 52146.12529 | E42: 629598.8635 | F42: 197407.7341 | G42: 91979.02714
C43: Pole inspection and treatment | D43: 0 | E43: 0 | F43: 0 | G43: 0
C44: Overhead asset inspection | D44: 0 | E44: 0 | F44: 0 | G44: 0
C45: Network underground cable maintenance | D45: 38331.98253 | E45: 304966.7397 | F45: 136679.8266 | G45: 37520.36122
C46: Distribution substation equipment & property maintenance | D46: 44181.58183 | E46: 217913.6428 | F46: 461728.7843 | G46: 50455.97103
C47: Zone substation equipment maintenance | D47: 139141.4213 | E47: 1493780.411 | F47: 192407.4708 | G47: 120463.2472
C48: Zone substation property maintenance | D48: 9705.803946 | E48: 66600.80167 | F48: 516771.462 | G48: 4384.12238
C49: Public lighting maintenance | D49: 0 | E49: 0 | F49: 0 | G49: 0
C50: SCADA & network control maintenance | D50: 24137.62977 | E50: 292051.799 | F50: 170988.5543 | G50: 13165.89689
C51: Protection systems maintenance | D51: 2525.871439 | E51: 68346.09333 | F51: 5595.650694 | G51: 5406.814541
C52: Subtransmission asset maintenance - for DNSP with dual function assets | D52: 0 | E52: 0 | F52: 0 | G52: 0
C53: Other | D53: 82940.16028 | E53: 1479245.463 | F53: 651026.1493 | G53: 134770.2477
B54: OVERHEADS | C54: Network overheads | D54: 3301851.994 | E54: 36535253.49 | F54: 11619073.3 | G54: 39910260.12 | H54: 16391922.35
C55: Corporate overheads | D55: 6425433.121 | E55: 14583212.19 | F55: 2716458.548 | G55: 26426201.36 | H55: 352371.85
B56: AUGMENTATION | C56: Subtransmission substations, switching stations, zone substations | D56: 7611414.37 | E56: 14685191.91 | F56: 8632111.299 | G56: 1677690.842
C57: Subtransmission lines | D57: 441840.2356 | E57: 1297381.493 | F57: 521527.7611 | G57: 113772.053
C58: HV feeders | D58: 3885667.244 | E58: 6391500.58 | F58: 8895235.181 | G58: 854954.7723
C59: Distribution substations | D59: 920218.364 | E59: 1064667.683 | F59: 556815.9054 | G59: 40434.99396
C60: LV feeders | D60: 294750.9157 | E60: 363305.5541 | F60: 190006.9987 | G60: 33060.95099
C61: Other assets | D61: 123908.8951 | E61: 1217740.412 | F61: 154512.5129 | G61: 109761.9602
B62: CONNECTIONS | C62: Simple and complex customer connections | D62: 14934675.17 | E62: 32410152.06 | F62: 8949642.381 | G62: 1922124.287
B63: EMERGENCY RESPONSE | C63: Major storms | D63: 1878930.393 | E63: 26763309.11 | F63: 11118534.34 | G63: 3241227.638
C64: Major event days | D64: 0 | E64: 0 | F64: 0 | G64: 0
B65: PUBLIC LIGHTING | C65: All public lighting services | D65: 0 | E65: 0 | F65: 0 | G65: 0
B66: METERING | C66: All metering services | D66: 4237501.772 | E66: 2996066.632 | F66: 4033021.314 | G66: 520289.553
B67: FEE-BASED SERVICES | C67: All fee-based services | D67: 0 | E67: 0 | F67: 0 | G67: 0
B68: QUOTED SERVICES | C68: All quoted services | D68: 0 | E68: 0 | F68: 0 | G68: 0
B69: REPLACEMENT | C69: Poles | D69: 3357706.091 | E69: 8030182.875 | F69: 11464599.65 | G69: 1486306.305
C70: Pole top structures | D70: 3087814.949 | E70: 12239558.8 | F70: 2654709.862 | G70: 1803854.957
C71: Overhead conductors | D71: 565805.5682 | E71: 3176141.061 | F71: 657166.4438 | G71: 406620.253
C72: Underground cables | D72: 429128.3357 | E72: 3711083.591 | F72: 4988858.988 | G72: 689019.2067
C73: Service lines | D73: 283352.3968 | E73: 4708003.455 | F73: 581285.2931 | G73: 589619.7436
C74: Transformers | D74: 2843724.349 | E74: 2379094.249 | F74: 871478.2954 | G74: 344564.405
C75: Switchgear | D75: 4019763.467 | E75: 5466241.58 | F75: 1482041.727 | G75: 400172.3183
C76: Public lighting
C77: SCADA network control and protection systems | D77: 1639294.073 | E77: 3839949.286 | F77: 1568360.021 | G77: 121080.6902
C78: Other | D78: 2302649.887 | E78: 4341717.35 | F78: 1019610.382 | G78: 204742.7739
B79: NON-NETWORK EXPENDITURE | C79: IT and communications | D79: 10623226.73 | E79: 17934058.24 | F79: 6363795.504 | G79: 37033155.12 | H79: 941743.45
C80: Motor vehicles | D80: 13760088.29 | E80: 2521196 | F80: 236420 | G80: 3872120.49
C81: Buildings and property | D81: 337489.8244 | E81: 1060331.256 | F81: 197952.8986 | G81: 9022619.368
C82: Other | D82: 5572360.948 | E82: 3419253.541 | F82: 6531201.489 | G82: 3098276.362

Sheet 4.1 Public lighting
B1: REGULATORY REPORTING STATEMENT
B2: =INDEX(dms_TradingNameFull_List,MATCH(dms_TradingName,dms_TradingName_List)) -> SA Power Networks
B3: =CONCATENATE((LOOKUP(dms_Model,dms_Model_List,dms_Worksheet_List))&" "&CRY) -> CATEGORY ANALYSIS 2016-17
B4: 4.1 PUBLIC LIGHTING
B7: There are THREE tables on this worksheet. Each has been grouped for ease of navigation. See the Instructions sheet on how to group or ungroup tables.
B9: 4.1.1 - DESCRIPTOR METRICS OVER YEAR
C10: LIGHT TYPE | E10: VOLUME (0's)
E11: =CRY -> 2016-17
B12: POPULATION OF LIGHTS | C12: DNSP to enter description for type of light
B214: 4.1.2 - DESCRIPTOR METRICS ANNUALLY
E217: VOLUMES & EXPENDITURE
B218: SERVICE/SERVICE QUALITY | C218: DESCRIPTOR METRIC | D218: UNITS | E218: =CRY -> 2016-17
B219: LIGHT INSTALLATION | C219: Major road light installation | D219: 0's
C220: Minor road light installation | D220: 0's
C221: Number of poles installed | D221: 0's
C222: Total cost | D222: $0s
B223: LIGHT REPLACEMENT | C223: Major road light replacement | D223: 0's
C224: Minor road light replacement | D224: 0's
C225: Number of poles replaced | D225: 0's
C226: Total cost | D226: $0s
B227: LIGHT MAINTENANCE | C227: Major road light maintenance | D227: 0's
C228: Minor road light maintenance | D228: 0's
C229: Number of poles installed | D229: 0's
C230: Total cost | D230: $0s
B231: QUALITY OF SUPPLY | C231: Mean days to rectify/replace public lighting assets | D231: days
C232: GSO breaches | D232: 0's
C233: GSL payments | D233: $0s
C234: Customer complaints | D234: 0's
B237: 4.1.3 - COST METRICS
E238: AVERAGE UNIT COST ($)
B239: ACTIVITY TYPE | C239: LIGHT TYPE | E239: =CRY -> 2016-17
B240: LIGHT INSTALLATION | C240: DNSP to enter description for type of light
B340: LIGHT REPLACEMENT | C340: DNSP to enter description for type of light
B440: LIGHT MAINTENANCE | C440: DNSP to enter description for type of light

Sheet 4.2 Metering
B1: REGULATORY REPORTING STATEMENT
B2: =INDEX(dms_TradingNameFull_List,MATCH(dms_TradingName,dms_TradingName_List)) -> SA Power Networks
B3: =CONCATENATE((LOOKUP(dms_Model,dms_Model_List,dms_Worksheet_List))&" "&CRY) -> CATEGORY ANALYSIS 2016-17
B4: 4.2 METERING
B6: There are TWO tables on this worksheet. Each has been grouped for ease of navigation. See the Instructions sheet on how to group or ungroup tables.
B8: 4.2.1 - METERING DESCRIPTOR METRIC
D9: VOLUMES (0's)
B10: ASSET CATEGORY | C10: ASSET SUBCATEGORY | D10: =CRY -> 2016-17
B11: Meter Type 4 | C11: Single phase meter population | D11: 0
C12: Multi phase meter population | D12: 2091
C13: Current transformer connected meter population | D13: 2023
C14: Direct connect meter population | D14: 68
B15: Meter Type 5 | C15: Single phase meter population | D15: 359
C16: Multi phase meter population | D16: 8501
C17: Current transformer connected meter population | D17: 4945
C18: Direct connect meter population | D18: 3915
B19: Meter Type 6 | C19: Single phase meter population | D19: 858458
C20: Multi phase meter population | D20: 191796
C21: Current transformer connected meter population | D21: 650
C22: Direct connect meter population | D22: 1049604
B25: 4.2.2 - COST METRICS
D26: VOLUMES (0's) | E26: EXPENDITURE ($0's)
B27: SERVICE SUBCATEGORY | C27: METER TYPE | D27: =CRY -> 2016-17 | E27: =CRY -> 2016-17
B28: Meter purchase | C28: Meter Type 4 | D28: 0 | E28: 0
C29: Meter Type 5 | D29: 375 | E29: 67732
C30: Meter Type 6 | D30: 23980 | E30: 1340409
B31: Meter testing | C31: Meter Type 4 | D31: 90 | E31: 79805.46958
C32: Meter Type 5 | D32: 14 | E32: 5402.510914
C33: Meter Type 6 | D33: 1889 | E33: 433383.3917
B34: Meter investigation | C34: Meter Type 4 | D34: 141 | E34: 21777.24404
C35: Meter Type 5 | D35: 3220 | E35: 243955.051
C36: Meter Type 6 | D36: 4742 | E36: 725007.5141
B37: Scheduled meter reading | C37: Meter Type 4
C38: Meter Type 5
C39: Meter Type 6
B40: Special meter reading | C40: Meter Type 4 | D40: 0 | E40: 0
C41: Meter Type 5 | D41: 0 | E41: 0
C42: Meter Type 6 | D42: 0 | E42: 0
B43: New meter installation | C43: Meter Type 4 | D43: 112 | E43: 43453.15442
C44: Meter Type 5 | D44: 712 | E44: 246073.9286
C45: Meter Type 6 | D45: 9537 | E45: 2531180.601
B46: Meter replacement | C46: Meter Type 4 | D46: 88 | E46: 247982.3906
C47: Meter Type 5 | D47: 1946 | E47: 983515.8387
C48: Meter Type 6 | D48: 11689 | E48: 2255979.007
B49: Meter maintenance | C49: Meter Type 4 | D49: 237 | E49: 100134.8552
C50: Meter Type 5 | D50: 782 | E50: 236438.3034
C51: Meter Type 6 | D51: 0 | E51: 0
B52: Remote meter reading | C52: Meter Type 4
B53: Remote meter re-configuration | C53: Meter Type 4
B54: Other metering | C54: Meter Type 4
C55: Meter Type 5
C56: Meter Type 6
C57: Meter Type 7
B58: IT infrastructure capex | C58: Meter Type 4
B59: IT infrastructure opex | C59: Meter Type 4
B60: Communications infrastructure capex | C60: Meter Type 4
B61: Communications infrastructure opex | C61: Meter Type 4

Sheet 4.3 Fee-based services
B1: REGULATORY REPORTING STATEMENT
B2: =INDEX(dms_TradingNameFull_List,MATCH(dms_TradingName,dms_TradingName_List)) -> SA Power Networks
B3: =CONCATENATE((LOOKUP(dms_Model,dms_Model_List,dms_Worksheet_List))&" "&CRY) -> CATEGORY ANALYSIS 2016-17
B4: 4.3 ANCILLARY SERVICES - FEE BASED SERVICES
B6: 4.3.1 - COST METRICS FOR FEE-BASED SERVICES
D7: EXPENDITURE ($0's) | F7: VOLUMES (0's)
B8: SERVICE | C8: SERVICE SUBCATEGORY | D8: =CRY -> 2016-17 | F8: =CRY -> 2016-17
B9: Common Fee-Based Services | C9: Energisation | E9: ED_FEE431_00001
C10: De-energisation | E10: ED_FEE431_00002
C11: Re-energisation | E11: ED_FEE431_00003
B12: Miscellaneous Fee-Based Services | C12: < Enter description for service > | E12: ED_FEE431_00004
E13: ED_FEE431_00005
E14: ED_FEE431_00006
E15: ED_FEE431_00007
E16: ED_FEE431_00008
E17: ED_FEE431_00009
E18: ED_FEE431_00010
E19: ED_FEE431_00011
E20: ED_FEE431_00012
E21: ED_FEE431_00013
E22: ED_FEE431_00014
E23: ED_FEE431_00015
E24: ED_FEE431_00016
E25: ED_FEE431_00017
E26: ED_FEE431_00018
E27: ED_FEE431_00019
E28: ED_FEE431_00020
E29: ED_FEE431_00021
E30: ED_FEE431_00022
E31: ED_FEE431_00023
E32: ED_FEE431_00024
E33: ED_FEE431_00025
E34: ED_FEE431_00026
E35: ED_FEE431_00027
E36: ED_FEE431_00028
E37: ED_FEE431_00029
E38: ED_FEE431_00030
E39: ED_FEE431_00031
E40: ED_FEE431_00032
E41: ED_FEE431_00033
E42: ED_FEE431_00034
E43: ED_FEE431_00035
E44: ED_FEE431_00036
E45: ED_FEE431_00037
E46: ED_FEE431_00038
E47: ED_FEE431_00039
E48: ED_FEE431_00040
E49: ED_FEE431_00041
E50: ED_FEE431_00042
E51: ED_FEE431_00043
E52: ED_FEE431_00044
E53: ED_FEE431_00045
E54: ED_FEE431_00046
E55: ED_FEE431_00047
E56: ED_FEE431_00048
E57: ED_FEE431_00049
E58: ED_FEE431_00050
E59: ED_FEE431_00051
E60: ED_FEE431_00052
E61: ED_FEE431_00053
E62: ED_FEE431_00054
E63: ED_FEE431_00055
E64: ED_FEE431_00056
E65: ED_FEE431_00057
E66: ED_FEE431_00058
E67: ED_FEE431_00059
E68: ED_FEE431_00060
E69: ED_FEE431_00061
E70: ED_FEE431_00062
E71: ED_FEE431_00063
E72: ED_FEE431_00064
E73: ED_FEE431_00065
E74: ED_FEE431_00066
E75: ED_FEE431_00067
E76: ED_FEE431_00068
E77: ED_FEE431_00069
E78: ED_FEE431_00070
E79: ED_FEE431_00071
E80: ED_FEE431_00072
E81: ED_FEE431_00073
E82: ED_FEE431_00074
E83: ED_FEE431_00075
E84: ED_FEE431_00076
E85: ED_FEE431_00077
E86: ED_FEE431_00078
E87: ED_FEE431_00079
E88: ED_FEE431_00080
E89: ED_FEE431_00081
E90: ED_FEE431_00082
E91: ED_FEE431_00083
E92: ED_FEE431_00084
E93: ED_FEE431_00085
E94: ED_FEE431_00086
E95: ED_FEE431_00087
E96: ED_FEE431_00088
E97: ED_FEE431_00089
E98: ED_FEE431_00090
E99: ED_FEE431_00091
E100: ED_FEE431_00092
E101: ED_FEE431_00093
E102: ED_FEE431_00094
E103: ED_FEE431_00095
E104: ED_FEE431_00096
E105: ED_FEE431_00097
E106: ED_FEE431_00098
E107: ED_FEE431_00099
E108: ED_FEE431_00100
E109: ED_FEE431_00101
E110: ED_FEE431_00102
E111: ED_FEE431_00103
E112: ED_FEE431_00104
E113: ED_FEE431_00105
E114: ED_FEE431_00106
E115: ED_FEE431_00107
E116: ED_FEE431_00108
E117: ED_FEE431_00109
E118: ED_FEE431_00110
E119: ED_FEE431_00111
E120: ED_FEE431_00112
E121: ED_FEE431_00113
E122: ED_FEE431_00114
E123: ED_FEE431_00115
E124: ED_FEE431_00116
E125: ED_FEE431_00117
E126: ED_FEE431_00118
E127: ED_FEE431_00119
E128: ED_FEE431_00120
E129: ED_FEE431_00121
E130: ED_FEE431_00122
E131: ED_FEE431_00123
E132: ED_FEE431_00124
E133: ED_FEE431_00125
E134: ED_FEE431_00126
E135: ED_FEE431_00127
E136: ED_FEE431_00128
E137: ED_FEE431_00129
E138: ED_FEE431_00130
E139: ED_FEE431_00131
E140: ED_FEE431_00132
E141: ED_FEE431_00133
E142: ED_FEE431_00134
E143: ED_FEE431_00135
E144: ED_FEE431_00136
E145: ED_FEE431_00137
E146: ED_FEE431_00138
E147: ED_FEE431_00139
E148: ED_FEE431_00140
E149: ED_FEE431_00141
E150: ED_FEE431_00142
E151: ED_FEE431_00143
E152: ED_FEE431_00144
E153: ED_FEE431_00145
E154: ED_FEE431_00146
E155: ED_FEE431_00147
E156: ED_FEE431_00148
E157: ED_FEE431_00149
E158: ED_FEE431_00150
E159: ED_FEE431_00151
E160: ED_FEE431_00152
E161: ED_FEE431_00153
E162: ED_FEE431_00154
E163: ED_FEE431_00155
E164: ED_FEE431_00156
E165: ED_FEE431_00157
E166: ED_FEE431_00158
E167: ED_FEE431_00159
E168: ED_FEE431_00160
E169: ED_FEE431_00161
E170: ED_FEE431_00162
E171: ED_FEE431_00163
E172: ED_FEE431_00164
E173: ED_FEE431_00165
E174: ED_FEE431_00166
E175: ED_FEE431_00167
E176: ED_FEE431_00168
E177: ED_FEE431_00169
E178: ED_FEE431_00170
E179: ED_FEE431_00171
E180: ED_FEE431_00172
E181: ED_FEE431_00173
E182: ED_FEE431_00174
E183: ED_FEE431_00175
E184: ED_FEE431_00176
E185: ED_FEE431_00177
E186: ED_FEE431_00178
E187: ED_FEE431_00179
E188: ED_FEE431_00180
E189: ED_FEE431_00181
E190: ED_FEE431_00182
E191: ED_FEE431_00183
E192: ED_FEE431_00184
E193: ED_FEE431_00185
E194: ED_FEE431_00186
E195: ED_FEE431_00187
E196: ED_FEE431_00188
E197: ED_FEE431_00189
E198: ED_FEE431_00190
E199: ED_FEE431_00191
E200: ED_FEE431_00192
E201: ED_FEE431_00193
... 278 more rows

Sheet 4.4 Quoted services
B1: REGULATORY REPORTING STATEMENT
B2: =INDEX(dms_TradingNameFull_List,MATCH(dms_TradingName,dms_TradingName_List)) -> SA Power Networks
B3: =CONCATENATE((LOOKUP(dms_Model,dms_Model_List,dms_Worksheet_List))&" "&CRY) -> CATEGORY ANALYSIS 2016-17
B4: 4.4 ANCILLARY SERVICES - QUOTED SERVICES
B6: 4.4.1 - COST METRICS FOR QUOTED SERVICES
D7: EXPENDITURE ($0's) | F7: VOLUMES (0's)
B8: SERVICE | C8: SERVICE SUBCATEGORY | D8: =CRY -> 2016-17 | F8: =CRY -> 2016-17
B9: Quoted Services | C9: < Enter description for service subcategory > | E9: ED_QUO441_00001
E10: ED_QUO441_00002
E11: ED_QUO441_00003
E12: ED_QUO441_00004
E13: ED_QUO441_00005
E14: ED_QUO441_00006
E15: ED_QUO441_00007
E16: ED_QUO441_00008
E17: ED_QUO441_00009
E18: ED_QUO441_00010
E19: ED_QUO441_00011
E20: ED_QUO441_00012
E21: ED_QUO441_00013
E22: ED_QUO441_00014
E23: ED_QUO441_00015
E24: ED_QUO441_00016
E25: ED_QUO441_00017
E26: ED_QUO441_00018
E27: ED_QUO441_00019
E28: ED_QUO441_00020
E29: ED_QUO441_00021
E30: ED_QUO441_00022
E31: ED_QUO441_00023
E32: ED_QUO441_00024
E33: ED_QUO441_00025
E34: ED_QUO441_00026
E35: ED_QUO441_00027
E36: ED_QUO441_00028
E37: ED_QUO441_00029
E38: ED_QUO441_00030
E39: ED_QUO441_00031
E40: ED_QUO441_00032
E41: ED_QUO441_00033
E42: ED_QUO441_00034
E43: ED_QUO441_00035
E44: ED_QUO441_00036
E45: ED_QUO441_00037
E46: ED_QUO441_00038
E47: ED_QUO441_00039
E48: ED_QUO441_00040
E49: ED_QUO441_00041
E50: ED_QUO441_00042
E51: ED_QUO441_00043
E52: ED_QUO441_00044
E53: ED_QUO441_00045
E54: ED_QUO441_00046
E55: ED_QUO441_00047
E56: ED_QUO441_00048
E57: ED_QUO441_00049
E58: ED_QUO441_00050
E59: ED_QUO441_00051
E60: ED_QUO441_00052
E61: ED_QUO441_00053
E62: ED_QUO441_00054
E63: ED_QUO441_00055
E64: ED_QUO441_00056
E65: ED_QUO441_00057
E66: ED_QUO441_00058
E67: ED_QUO441_00059
E68: ED_QUO441_00060
E69: ED_QUO441_00061
E70: ED_QUO441_00062
E71: ED_QUO441_00063
E72: ED_QUO441_00064
E73: ED_QUO441_00065
E74: ED_QUO441_00066
E75: ED_QUO441_00067
E76: ED_QUO441_00068
E77: ED_QUO441_00069
E78: ED_QUO441_00070
E79: ED_QUO441_00071
E80: ED_QUO441_00072
E81: ED_QUO441_00073
E82: ED_QUO441_00074
E83: ED_QUO441_00075
E84: ED_QUO441_00076
E85: ED_QUO441_00077
E86: ED_QUO441_00078
E87: ED_QUO441_00079
E88: ED_QUO441_00080
E89: ED_QUO441_00081
E90: ED_QUO441_00082
E91: ED_QUO441_00083
E92: ED_QUO441_00084
E93: ED_QUO441_00085
E94: ED_QUO441_00086
E95: ED_QUO441_00087
E96: ED_QUO441_00088
E97: ED_QUO441_00089
E98: ED_QUO441_00090
E99: ED_QUO441_00091
E100: ED_QUO441_00092
E101: ED_QUO441_00093
E102: ED_QUO441_00094
E103: ED_QUO441_00095
E104: ED_QUO441_00096
E105: ED_QUO441_00097
E106: ED_QUO441_00098
E107: ED_QUO441_00099
E108: ED_QUO441_00100
E109: ED_QUO441_00101
E110: ED_QUO441_00102
E111: ED_QUO441_00103
E112: ED_QUO441_00104
E113: ED_QUO441_00105
E114: ED_QUO441_00106
E115: ED_QUO441_00107
E116: ED_QUO441_00108
E117: ED_QUO441_00109
E118: ED_QUO441_00110
E119: ED_QUO441_00111
E120: ED_QUO441_00112
E121: ED_QUO441_00113
E122: ED_QUO441_00114
E123: ED_QUO441_00115
E124: ED_QUO441_00116
E125: ED_QUO441_00117
E126: ED_QUO441_00118
E127: ED_QUO441_00119
E128: ED_QUO441_00120
E129: ED_QUO441_00121
E130: ED_QUO441_00122
E131: ED_QUO441_00123
E132: ED_QUO441_00124
E133: ED_QUO441_00125
E134: ED_QUO441_00126
E135: ED_QUO441_00127
E136: ED_QUO441_00128
E137: ED_QUO441_00129
E138: ED_QUO441_00130
E139: ED_QUO441_00131
E140: ED_QUO441_00132
E141: ED_QUO441_00133
E142: ED_QUO441_00134
E143: ED_QUO441_00135
E144: ED_QUO441_00136
E145: ED_QUO441_00137
E146: ED_QUO441_00138
E147: ED_QUO441_00139
E148: ED_QUO441_00140
E149: ED_QUO441_00141
E150: ED_QUO441_00142
E151: ED_QUO441_00143
E152: ED_QUO441_00144
E153: ED_QUO441_00145
E154: ED_QUO441_00146
E155: ED_QUO441_00147
E156: ED_QUO441_00148
E157: ED_QUO441_00149
E158: ED_QUO441_00150
E159: ED_QUO441_00151
E160: ED_QUO441_00152
E161: ED_QUO441_00153
E162: ED_QUO441_00154
E163: ED_QUO441_00155
E164: ED_QUO441_00156
E165: ED_QUO441_00157
E166: ED_QUO441_00158
E167: ED_QUO441_00159
E168: ED_QUO441_00160
E169: ED_QUO441_00161
E170: ED_QUO441_00162
E171: ED_QUO441_00163
E172: ED_QUO441_00164
E173: ED_QUO441_00165
E174: ED_QUO441_00166
E175: ED_QUO441_00167
E176: ED_QUO441_00168
E177: ED_QUO441_00169
E178: ED_QUO441_00170
E179: ED_QUO441_00171
E180: ED_QUO441_00172
E181: ED_QUO441_00173
E182: ED_QUO441_00174
E183: ED_QUO441_00175
E184: ED_QUO441_00176
E185: ED_QUO441_00177
E186: ED_QUO441_00178
E187: ED_QUO441_00179
E188: ED_QUO441_00180
E189: ED_QUO441_00181
E190: ED_QUO441_00182
E191: ED_QUO441_00183
E192: ED_QUO441_00184
E193: ED_QUO441_00185
E194: ED_QUO441_00186
E195: ED_QUO441_00187
E196: ED_QUO441_00188
E197: ED_QUO441_00189
E198: ED_QUO441_00190
E199: ED_QUO441_00191
E200: ED_QUO441_00192
E201: ED_QUO441_00193
... 280 more rows

Sheet 5.2 Asset Age Profile
B1: REGULATORY REPORTING STATEMENT
B2: =INDEX(dms_TradingNameFull_List,MATCH(dms_TradingName,dms_TradingName_List)) -> SA Power Networks
B3: =CONCATENATE((LOOKUP(dms_Model,dms_Model_List,dms_Worksheet_List))&" "&CRY) -> CATEGORY ANALYSIS 2016-17
B4: 5.2 ASSET AGE PROFILE
B6: There is ONE table on this worksheet. Both the ROWS and COLUMNS have been 'grouped' for easy navigation. See the Instructions sheet on how to group or ungroup data.
B8: 5.2.1 - ASSET AGE PROFILE
D9: ECONOMIC LIFE (YEARS) | F9: INSTALLED ASSETS -˃ QUANTITY CURRENTLY IN COMMISSION BY YEAR
B10: ASSET GROUP | C10: ASSET CATEGORY | D10: MEAN | E10: STANDARD DEVIATION | F10: =CRY -> 2016-17 | G10: =IF(dms_RPT="financial",(VALUE(LEFT(F10,4)-1)&"-"&MID(F10,3,2)),VALUE(LEFT(F10,4)-1)) -> 2015-16 | H10: =IF(dms_RPT="financial",(VALUE(LEFT(G10,4)-1)&"-"&MID(G10,3,2)),VALUE(LEFT(G10,4)-1)) -> 2014-15 | I10: 2013-14 | J10: 2012-13 | K10: 2011-12 | L10: 2010-11 | M10: 2009-10 | N10: 2008-09 | O10: 2007-08 | P10: 2006-07 | Q10: 2005-06 | R10: 2004-05 | S10: 2003-04 | T10: 2002-03 | U10: 2001-02 | V10: 2000-01 | W10: 1999-00 | X10: 1998-99 | Y10: 1997-98 | Z10: 1996-97 | AA10: 1995-96 | AB10: 1994-95 | AC10: 1993-94 | AD10: 1992-93 | AE10: 1991-92 | AF10: 1990-91 | AG10: 1989-90 | AH10: 1988-89 | AI10: 1987-88 | AJ10: 1986-87 | AK10: 1985-86 | AL10: 1984-85 | AM10: =IF(dms_RPT="financial",(VALUE(LEFT(AL10,4)-1)&"-"&MID(AL10,3,2)),VALUE(LEFT(AL10,4)-1)) -> 1983-84 | AN10: 1982-83 | AO10: 1981-82 | AP10: 1980-81 | AQ10: 1979-80 | AR10: 1978-79 | AS10: 1977-78 | AT10: 1976-77 | AU10: 1975-76 | AV10: 1974-75 | AW10: 1973-74 | AX10: 1972-73 | AY10: 1971-72 | AZ10: 1970-71 | BA10: 1969-70 | BB10: 1968-69 | BC10: 1967-68 | BD10: 1966-67 | BE10: 1965-66 | BF10: 1964-65 | BG10: 1963-64 | BH10: 1962-63 | BI10: 1961-62 | BJ10: 1960-61 | BK10: 1959-60 | BL10: 1958-59 | BM10: 1957-58 | BN10: 1956-57 | BO10: 1955-56 | BP10: 1954-55 | BQ10: 1953-54 | BR10: 1952-53 | BS10: =IF(dms_RPT="financial",(VALUE(LEFT(BR10,4)-1)&"-"&MID(BR10,3,2)),VALUE(LEFT(BR10,4)-1)) -> 1951-52 | BT10: 1950-51 | BU10: 1949-50 | BV10: 1948-49 | BW10: 1947-48 | BX10: 1946-47 | BY10: 1945-46 | BZ10: 1944-45 | CA10: 1943-44 | CB10: 1942-43 | CC10: 1941-42 | CD10: 1940-41 | CE10: 1939-40 | CF10: 1938-39 | CG10: 1937-38 | CH10: 1936-37 | CI10: 1935-36 | CJ10: 1934-35 | CK10: 1933-34 | CL10: 1932-33 | CM10: 1931-32 | CN10: 1930-31 | CO10: 1929-30 | CP10: 1928-29 | CQ10: 1927-28 | CR10: 1926-27 | CS10: 1925-26 | CT10: 1924-25 | CU10: 1923-24 | CV10: 1922-23 | CW10: 1921-22 | CX10: 1920-21 | CY10: =IF(dms_RPT="financial",(VALUE(LEFT(CX10,4)-1)&"-"&MID(CX10,3,2)),VALUE(LEFT(CX10,4)-1)) -> 1919-20 | CZ10: 1918-19 | DA10: 1917-18 | DB10: 1916-17 | DC10: 1915-16 | DD10: 1914-15 | DE10: 1913-14 | DF10: 1912-13 | DG10: 1911-12 | DH10: 1910-11
B11: POLES BY: HIGHEST OPERATING VOLTAGE ; MATERIAL TYPE; STAKING (IF WOOD) | C11: Staking of a wooden pole
C12: ˂ = 1 kV; Wood
C13: > 1 kV & < = 11 kV; Wood
C14: ˃ 11 kV & < = 22 kV; Wood
C15: > 22 kV & < = 66 kV; Wood
C16: > 66 kV & < = 132 kV; Wood
C17: > 132 kV; Wood
C18: ˂ = 1 kV; Concrete
C19: > 1 kV & < = 11 kV; Concrete
C20: ˃ 11 kV & < = 22 kV; Concrete
C21: > 22 kV & < = 66 kV; Concrete
C22: > 66 kV & < = 132 kV; Concrete
C23: > 132 kV; Concrete
C24: ˂ = 1 kV; Steel
C25: > 1 kV & < = 11 kV; Steel
C26: ˃ 11 kV & < = 22 kV; Steel
C27: > 22 kV & < = 66 kV; Steel
C28: > 66 kV & < = 132 kV; Steel
C29: > 132 kV; Steel
C30: Other
B31: OVERHEAD CONDUCTORS BY: HIGHEST OPERATING VOLTAGE; NUMBER OF PHASES (AT HV) | C31: ˂ = 1 kV | D31: 82.66594627 | E31: 9.092081515 | F31: 34.09695209 | G31: 17.55563895 | H31: 18.41391463 | I31: 0 | J31: 0 | K31: 0 | L31: 0 | M31: 0 | N31: 0 | O31: 1.110272249 | P31: 1.110272249 | Q31: 0 | R31: 0 | S31: 0 | T31: 0 | U31: 2.911407657 | V31: 2.911407657 | W31: 0 | X31: 0 | Y31: 0 | Z31: 48.69894744 | AA31: 52.69174344 | AB31: 3.992796004 | AC31: 0 | AD31: 87.32671247 | AE31: 87.32671247 | AF31: 9.157221215 | AG31: 112.4078882 | AH31: 265.5111665 | AI31: 261.5351946 | AJ31: 477.8281959 | AK31: 506.1268764 | AL31: 208.364704 | AM31: 271.7019334 | AN31: 223.6567823 | AO31: 35.58597262 | AP31: 65.67428474 | AQ31: 66.33349411 | AR31: 13.9719381 | AS31: 197.6009614 | AT31: 871.6279206 | AU31: 951.7407187 | AV31: 543.2349571 | AW31: 331.4977904 | AX31: 312.478333 | AY31: 697.5248942 | AZ31: 1079.436335 | BA31: 1205.643351 | BB31: 1673.786203 | BC31: 1742.94575 | BD31: 4224.330064 | BE31: 4554.758448 | BF31: 1900.137673 | BG31: 1488.200482 | BH31: 1301.487606 | BI31: 1364.794893 | BJ31: 1009.768464 | BK31: 758.4874649 | BL31: 1595.195586 | BM31: 1451.853316 | BN31: 6910.684905 | BO31: 19009.3223 | BP31: 12441.14469 | BQ31: 178.9909405 | BR31: 85.40107345 | BS31: 39.85825927 | BT31: 71.91704069 | BU31: 57.88420891 | BV31: 0 | BW31: 0 | BX31: 1.675890553 | BY31: 1.675890553 | BZ31: 0 | CA31: 4.684771019 | CB31: 4.684771019 | CC31: 0.3412426086 | CD31: 52.82887249 | CE31: 52.48762988 | CF31: 0 | CG31: 0 | CH31: 0 | CI31: 0 | CJ31: 0 | CK31: 0 | CL31: 0 | CM31: 0 | CN31: 0 | CO31: 0 | CP31: 0 | CQ31: 0 | CR31: 0
C32: > 1 kV & < = 11 kV | D32: 81.84757524 | E32: 9.046964974 | F32: 34.329603 | G32: 275.1465211 | H32: 280.1685373 | I32: 0 | J32: 0 | K32: 0 | L32: 0 | M32: 3.182684002 | N32: 3.182684002 | O32: 0 | P32: 0 | Q32: 0 | R32: 0.01512601285 | S32: 0.01512601285 | T32: 0 | U32: 0.004677221019 | V32: 3.283589049 | W32: 3.278911828 | X32: 0 | Y32: 1.555815609 | Z32: 75.93574262 | AA32: 74.37992701 | AB32: 0 | AC32: 10.99094471 | AD32: 25.88014826 | AE32: 14.88920355 | AF32: 0 | AG32: 118.0104688 | AH32: 220.1311336 | AI32: 224.0626077 | AJ32: 419.8418651 | AK32: 351.8996131 | AL32: 281.3796827 | AM32: 302.7367483 | AN32: 80.72532188 | AO32: 5.625662501 | AP32: 65.3622199 | AQ32: 72.07911904 | AR32: 56.09010895 | AS32: 161.0334217 | AT32: 661.315483 | AU32: 674.8536293 | AV32: 238.3528022 | AW32: 323.235409 | AX32: 491.6023584 | AY32: 644.0284392 | AZ32: 1131.622734 | BA32: 1001.90736 | BB32: 1104.680842 | BC32: 1115.827194 | BD32: 2125.033352 | BE32: 2573.718825 | BF32: 1296.291481 | BG32: 825.7277372 | BH32: 864.6887634 | BI32: 1535.199693 | BJ32: 1302.924795 | BK32: 950.8653464 | BL32: 1668.926564 | BM32: 1462.442237 | BN32: 5363.411168 | BO32: 11266.88543 | BP32: 6279.488399 | BQ32: 44.67024408 | BR32: 2.940113126 | BS32: 0 | BT32: 11.07817288 | BU32: 11.07817288 | BV32: 0 | BW32: 0 | BX32: 0 | BY32: 0 | BZ32: 0 | CA32: 1.001524942 | CB32: 1.001524942 | CC32: 0 | CD32: 0.04173520294 | CE32: 0.04173520294 | CF32: 0 | CG32: 0 | CH32: 0 | CI32: 0 | CJ32: 0 | CK32: 0 | CL32: 0 | CM32: 0 | CN32: 0 | CO32: 0 | CP32: 0 | CQ32: 0 | CR32: 0
C33: ˃ 11 kV & < = 22 kV ; SWER | D33: 80.45145523 | E33: 8.96947352 | F33: 2.369303805 | G33: 19.23793688 | H33: 52.97520303 | I33: 0 | J33: 0 | K33: 0 | L33: 0 | M33: 0 | N33: 0 | O33: 0.04182732487 | P33: 0.04182732487 | Q33: 0 | R33: 0 | S33: 0 | T33: 0 | U33: 0 | V33: 0 | W33: 0 | X33: 0 | Y33: 0 | Z33: 0 | AA33: 5.766298199 | AB33: 5.766298199 | AC33: 0 | AD33: 0 | AE33: 0 | AF33: 25.16770692 | AG33: 69.08999755 | AH33: 429.8925879 | AI33: 392.4304573 | AJ33: 20.58594924 | AK33: 54.11665564 | AL33: 58.42088582 | AM33: 158.8815036 | AN33: 140.4514841 | AO33: 12.55484467 | AP33: 63.31576623 | AQ33: 50.76092156 | AR33: 21.90420862 | AS33: 24.03467344 | AT33: 331.7648991 | AU33: 442.4858427 | AV33: 468.1438639 | AW33: 561.5549574 | AX33: 609.5445427 | AY33: 511.1374684 | AZ33: 1672.322784 | BA33: 1970.421106 | BB33: 976.5197264 | BC33: 929.4203867 | BD33: 2834.149416 | BE33: 3196.205287 | BF33: 1400.596048 | BG33: 1027.222701 | BH33: 993.4642683 | BI33: 1010.431815 | BJ33: 823.0331985 | BK33: 880.8291602 | BL33: 3109.53056 | BM33: 2687.353382 | BN33: 337.4030828 | BO33: 537.4640585 | BP33: 200.3175288 | BQ33: 0.1332885269 | BR33: 0.6394487715 | BS33: 0.6394487715 | BT33: 0 | BU33: 0 | BV33: 0 | BW33: 0 | BX33: 0 | BY33: 0 | BZ33: 0 | CA33: 0 | CB33: 0 | CC33: 0 | CD33: 0 | CE33: 0 | CF33: 0 | CG33: 0 | CH33: 0 | CI33: 0 | CJ33: 0 | CK33: 0 | CL33: 0 | CM33: 0 | CN33: 0 | CO33: 0 | CP33: 0 | CQ33: 0 | CR33: 0
C34: ˃ 11 kV & < = 22 kV ; Single-Phase | D34: 0 | F34: 0 | G34: 0 | H34: 0 | I34: 0 | J34: 0 | K34: 0 | L34: 0 | M34: 0 | N34: 0 | O34: 0 | P34: 0 | Q34: 0 | R34: 0 | S34: 0 | T34: 0 | U34: 0 | V34: 0 | W34: 0 | X34: 0 | Y34: 0 | Z34: 0 | AA34: 0 | AB34: 0 | AC34: 0 | AD34: 0 | AE34: 0 | AF34: 0 | AG34: 0 | AH34: 0 | AI34: 0 | AJ34: 0 | AK34: 0 | AL34: 0 | AM34: 0 | AN34: 0 | AO34: 0 | AP34: 0 | AQ34: 0 | AR34: 0 | AS34: 0 | AT34: 0 | AU34: 0 | AV34: 0 | AW34: 0 | AX34: 0 | AY34: 0 | AZ34: 0 | BA34: 0 | BB34: 0 | BC34: 0 | BD34: 0 | BE34: 0 | BF34: 0 | BG34: 0 | BH34: 0 | BI34: 0 | BJ34: 0 | BK34: 0 | BL34: 0 | BM34: 0 | BN34: 0 | BO34: 0 | BP34: 0 | BQ34: 0 | BR34: 0 | BS34: 0 | BT34: 0 | BU34: 0 | BV34: 0 | BW34: 0 | BX34: 0 | BY34: 0 | BZ34: 0 | CA34: 0 | CB34: 0 | CC34: 0 | CD34: 0 | CE34: 0 | CF34: 0 | CG34: 0 | CH34: 0 | CI34: 0 | CJ34: 0 | CK34: 0 | CL34: 0 | CM34: 0 | CN34: 0 | CO34: 0 | CP34: 0 | CQ34: 0 | CR34: 0
C35: ˃ 11 kV & < = 22 kV ; Multiple-Phase | D35: 0 | F35: 0 | G35: 0 | H35: 0 | I35: 0 | J35: 0 | K35: 0 | L35: 0 | M35: 0 | N35: 0 | O35: 0 | P35: 0 | Q35: 0 | R35: 0 | S35: 0 | T35: 0 | U35: 0 | V35: 0 | W35: 0 | X35: 0 | Y35: 0 | Z35: 0 | AA35: 0 | AB35: 0 | AC35: 0 | AD35: 0 | AE35: 0 | AF35: 0 | AG35: 0 | AH35: 0 | AI35: 0 | AJ35: 0 | AK35: 0 | AL35: 0 | AM35: 0 | AN35: 0 | AO35: 0 | AP35: 0 | AQ35: 0 | AR35: 0 | AS35: 0 | AT35: 0 | AU35: 0 | AV35: 0 | AW35: 0 | AX35: 0 | AY35: 0 | AZ35: 0 | BA35: 0 | BB35: 0 | BC35: 0 | BD35: 0 | BE35: 0 | BF35: 0 | BG35: 0 | BH35: 0 | BI35: 0 | BJ35: 0 | BK35: 0 | BL35: 0 | BM35: 0 | BN35: 0 | BO35: 0 | BP35: 0 | BQ35: 0 | BR35: 0 | BS35: 0 | BT35: 0 | BU35: 0 | BV35: 0 | BW35: 0 | BX35: 0 | BY35: 0 | BZ35: 0 | CA35: 0 | CB35: 0 | CC35: 0 | CD35: 0 | CE35: 0 | CF35: 0 | CG35: 0 | CH35: 0 | CI35: 0 | CJ35: 0 | CK35: 0 | CL35: 0 | CM35: 0 | CN35: 0 | CO35: 0 | CP35: 0 | CQ35: 0 | CR35: 0
C36: > 22 kV & < = 66 kV | D36: 86.35426432 | E36: 9.292699518 | F36: 80.52405023 | G36: 41.98291369 | H36: 30.09621424 | I36: 11.04801764 | J36: 11.04801764 | K36: 4.512513055 | L36: 38.68967436 | M36: 42.49006826 | N36: 8.312906948 | O36: 104.4854417 | P36: 114.9875993 | Q36: 16.15980114 | R36: 40.20227258 | S36: 51.11785914 | T36: 16.57323012 | U36: 0 | V36: 2.61535425 | W36: 2.61535425 | X36: 53.40154112 | Y36: 53.40154112 | Z36: 0 | AA36: 0 | AB36: 0 | AC36: 17.02206299 | AD36: 31.7156719 | AE36: 27.11789752 | AF36: 127.1123131 | AG36: 141.1619471 | AH36: 46.3838832 | AI36: 29.76421326 | AJ36: 11.42161482 | AK36: 59.77716259 | AL36: 83.35940752 | AM36: 39.05869861 | AN36: 13.90909158 | AO36: 125.0875717 | AP36: 266.7920725 | AQ36: 141.7045008 | AR36: 164.3335958 | AS36: 295.3849358 | AT36: 137.8197398 | AU36: 27.42966355 | AV36: 281.043703 | AW36: 390.9686125 | AX36: 413.0516735 | AY36: 423.7928605 | AZ36: 209.3725562 | BA36: 210.5359494 | BB36: 230.2863652 | BC36: 423.134872 | BD36: 913.0455381 | BE36: 1203.741241 | BF36: 787.9431648 | BG36: 459.8967548 | BH36: 588.4476099 | BI36: 670.197508 | BJ36: 593.2927669 | BK36: 267.603863 | BL36: 327.5441039 | BM36: 450.932651 | BN36: 378.0934076 | BO36: 568.24039 | BP36: 608.6029179 | BQ36: 698.1554989 | BR36: 709.6651207 | BS36: 467.1916015 | BT36: 298.2795864 | BU36: 83.6154477 | BV36: 0 | BW36: 8.415174136 | BX36: 83.30257952 | BY36: 74.88740539 | BZ36: 0 | CA36: 0 | CB36: 24.63298275 | CC36: 45.71973139 | CD36: 99.92655168 | CE36: 78.83980305 | CF36: 0 | CG36: 0.9548466273 | CH36: 0.9548466273 | CI36: 0 | CJ36: 0 | CK36: 0 | CL36: 0 | CM36: 0 | CN36: 0 | CO36: 0 | CP36: 0 | CQ36: 0 | CR36: 0
C37: > 66 kV & < = 132 kV | D37: 80.71020121 | E37: 8.983885641 | F37: 0 | G37: 0 | H37: 0 | I37: 0 | J37: 0 | K37: 0 | L37: 0 | M37: 0 | N37: 0 | O37: 0 | P37: 16.5 | Q37: 16.5 | R37: 0 | S37: 0 | T37: 0 | U37: 0 | V37: 0 | W37: 0 | X37: 0 | Y37: 0 | Z37: 0 | AA37: 0 | AB37: 0 | AC37: 0 | AD37: 0 | AE37: 0 | AF37: 0 | AG37: 0 | AH37: 0 | AI37: 0 | AJ37: 0 | AK37: 0 | AL37: 0 | AM37: 0 | AN37: 0 | AO37: 0 | AP37: 0 | AQ37: 0 | AR37: 0 | AS37: 0 | AT37: 0 | AU37: 0 | AV37: 0 | AW37: 0 | AX37: 0 | AY37: 0 | AZ37: 0 | BA37: 0 | BB37: 0 | BC37: 0 | BD37: 0 | BE37: 0 | BF37: 0 | BG37: 0 | BH37: 0 | BI37: 0 | BJ37: 0 | BK37: 0 | BL37: 0 | BM37: 0 | BN37: 0 | BO37: 0 | BP37: 0 | BQ37: 0 | BR37: 0 | BS37: 0 | BT37: 0 | BU37: 0 | BV37: 0 | BW37: 0 | BX37: 0 | BY37: 0 | BZ37: 0 | CA37: 0 | CB37: 0 | CC37: 0 | CD37: 0 | CE37: 0 | CF37: 0 | CG37: 0 | CH37: 0 | CI37: 0 | CJ37: 0 | CK37: 0 | CL37: 0 | CM37: 0 | CN37: 0 | CO37: 0 | CP37: 0 | CQ37: 0 | CR37: 0
C38: > 132 kV | D38: 0 | E38: 0
C39: Other | E39: 0
B40: UNDERGROUND CABLES BY: HIGHEST OPERATING VOLTAGE | C40: ˂ = 1 kV | D40: 75.50447463 | E40: 8.689331081 | F40: 242.55 | G40: 426 | H40: 98 | I40: 138 | J40: 0 | K40: 112.0572738 | L40: 126.0187494 | M40: 89.96553521 | N40: 100.2041533 | O40: 30.8810027 | P40: 6.68090892 | Q40: 5.48021825 | R40: 12.82874042 | S40: 7.40460892 | T40: 97.46726467 | U40: 97.41117792 | V40: 1.09973452 | W40: 45.62653494 | X40: 50.08705989 | Y40: 51.5657961 | Z40: 47.97139531 | AA40: 2.11588169 | AB40: 0.15002301 | AC40: 14.65456315 | AD40: 14.69451139 | AE40: 0.16529308 | AF40: 445.3765592 | AG40: 450.0430492 | AH40: 34.90506418 | AI40: 84.064992 | AJ40: 70.21438718 | AK40: 55.33931264 | AL40: 196.2485514 | AM40: 210.6891889 | AN40: 112.8052177 | AO40: 65.61773426 | AP40: 334.6213665 | AQ40: 393.4311101 | AR40: 154.7627384 | AS40: 151.0194725 | AT40: 360.480253 | AU40: 532.5002692 | AV40: 302.6919396 | AW40: 218.9398755 | AX40: 576.9526733 | AY40: 648.8386628 | AZ40: 827.1787908 | BA40: 942.4614197 | BB40: 637.45 | BC40: 576.8085675 | BD40: 448.4835312 | BE40: 476.4859152 | BF40: 494.4386167 | BG40: 352.0641179 | BH40: 230.4644859 | BI40: 172.3477319 | BJ40: 309.8205452 | BK40: 324.0521726 | BL40: 123.1143196 | BM40: 58.03098733 | BN40: 106.2743727 | BO40: 122.6416041 | BP40: 66.93066895 | BQ40: 0.9323020672 | BR40: 0.321803331 | BS40: 0.5018990311 | BT40: 0.7133901781 | BU40: 0.5225201315 | BV40: 0 | BW40: 0 | BX40: 0.2385340434 | BY40: 0.2385340434 | BZ40: 0 | CA40: 0 | CB40: 0 | CC40: 0 | CD40: 1.930320513 | CE40: 4.622051967 | CF40: 2.691731454 | CG40: 0 | CH40: 0 | CI40: 0 | CJ40: 0 | CK40: 0 | CL40: 0 | CM40: 0 | CN40: 4.018117734 | CO40: 4.018117734 | CP40: 0 | CQ40: 0 | CR40: 0
C41: > 1 kV & < = 11 kV | D41: 73.10430681 | E41: 8.550105661 | F41: 32.83 | G41: 95 | H41: 20.3 | I41: 63 | J41: 49.98804557 | K41: 144.817517 | L41: 173.3703481 | M41: 159.016376 | N41: 140.9460362 | O41: 104.0810333 | P41: 86.6864025 | Q41: 75.03976184 | R41: 65.98020854 | S41: 68.66392908 | T41: 67.51500122 | U41: 61.45323349 | V41: 40.41950898 | W41: 13.23131168 | X41: 3.088141764 | Y41: 11.6967145 | Z41: 10.9153856 | AA41: 2.312796647 | AB41: 1.605465 | AC41: 3.761427806 | AD41: 5.175462806 | AE41: 1.618844771 | AF41: 106.2319337 | AG41: 107.0990689 | AH41: 10.73044726 | AI41: 13.09897726 | AJ41: 9.039908776 | AK41: 15.93067747 | AL41: 42.98608114 | AM41: 54.75115232 | AN41: 31.78042177 | AO41: 12.36858721 | AP41: 75.12644682 | AQ41: 85.11601626 | AR41: 37.12920899 | AS41: 38.43463478 | AT41: 72.20017685 | AU41: 104.7824119 | AV41: 65.51981159 | AW41: 46.65063644 | AX41: 87.55830193 | AY41: 121.0542953 | AZ41: 198.4109465 | BA41: 199.3592361 | BB41: 112.17 | BC41: 129.3995739 | BD41: 114.7327293 | BE41: 115.8987 | BF41: 110.7910771 | BG41: 66.11351703 | BH41: 48.75041465 | BI41: 46.71749023 | BJ41: 69.70428905 | BK41: 65.73660285 | BL41: 30.79650105 | BM41: 14.21057539 | BN41: 16.34207182 | BO41: 21.96265049 | BP41: 11.97290615 | BQ41: 0.07166197381 | BR41: 0 | BS41: 0 | BT41: 0 | BU41: 0 | BV41: 0.09571321643 | BW41: 0.09571321643 | BX41: 0 | BY41: 0 | BZ41: 0 | CA41: 0 | CB41: 0 | CC41: 0 | CD41: 0 | CE41: 0 | CF41: 0 | CG41: 0 | CH41: 0 | CI41: 0 | CJ41: 0 | CK41: 0 | CL41: 0 | CM41: 0 | CN41: 0 | CO41: 0 | CP41: 0 | CQ41: 0 | CR41: 0
C42: > 11 kV & < = 22 kV | D42: 74.6188764 | E42: 8.638221831 | F42: 1.05 | G42: 0.02 | H42: 0.07 | I42: 3 | J42: 0.04715212033 | K42: 0.1566078097 | L42: 0.6177871454 | M42: 0.8356117616 | N42: 0.6403129907 | O42: 0.5974899263 | P42: 0.4446158173 | Q42: 0.2228551593 | R42: 0.6316039782 | S42: 0.6826137108 | T42: 0.2019027965 | U42: 0.2719565492 | V42: 0.3272282811 | W42: 0.1434682127 | X42: 0 | Y42: 0 | Z42: 0 | AA42: 0 | AB42: 0 | AC42: 0.15292424 | AD42: 0.15292424 | AE42: 0 | AF42: 0.5744888305 | AG42: 0.5744888305 | AH42: 0.07754367814 | AI42: 0.8765199781 | AJ42: 1.812936245 | AK42: 1.042056287 | AL42: 0.02809634204 | AM42: 0 | AN42: 0 | AO42: 0 | AP42: 0.3619999296 | AQ42: 0.3619999296 | AR42: 0.048757815 | AS42: 0.1152099398 | AT42: 0.3505880001 | AU42: 0.8409020969 | AV42: 1.346624738 | AW42: 1.304254407 | AX42: 1.429076605 | AY42: 3.458958872 | AZ42: 4.147001914 | BA42: 2.150142707 | BB42: 0 | BC42: 0.8347696943 | BD42: 0.5856773363 | BE42: 1.016327066 | BF42: 1.435443059 | BG42: 2.812476306 | BH42: 6.190267237 | BI42: 5.08815613 | BJ42: 5.082172231 | BK42: 3.839276357 | BL42: 0 | BM42: 0.4934307994 | BN42: 0.4934307994 | BO42: 0.04265244356 | BP42: 0.1770349201 | BQ42: 0.1343824766 | BR42: 0 | BS42: 0 | BT42: 0 | BU42: 0 | BV42: 0 | BW42: 0 | BX42: 0 | BY42: 0 | BZ42: 0 | CA42: 0 | CB42: 0 | CC42: 0 | CD42: 0 | CE42: 0 | CF42: 0 | CG42: 0 | CH42: 0 | CI42: 0 | CJ42: 0 | CK42: 0 | CL42: 0 | CM42: 0 | CN42: 0 | CO42: 0 | CP42: 0 | CQ42: 0 | CR42: 0
C43: > 22 kV & < = 33 kV | D43: 96.07073337 | E43: 9.801567904 | F43: 1 | G43: 3.01 | H43: 0.08 | I43: 3 | J43: 1.391868232 | K43: 4.77534661 | L43: 3.877458322 | M43: 1.787814683 | N43: 7.8050184 | O43: 8.698764205 | P43: 5.885994794 | Q43: 8.955090567 | R43: 6.163668268 | S43: 1.817996727 | T43: 1.405324431 | U43: 0.7478864371 | V43: 0.5816968517 | W43: 0.3281300709 | X43: 0.02145597629 | Y43: 0.2052412713 | Z43: 0.1924668395 | AA43: 0.7462605545 | AB43: 0.73757901 | AC43: 0 | AD43: 0.2218598015 | AE43: 0.7400783158 | AF43: 0.5617393984 | AG43: 0.9219594751 | AH43: 0.949180806 | AI43: 0.6538083523 | AJ43: 0.5830661373 | AK43: 0.05408371 | AL43: 0.08825060778 | AM43: 0.09899614609 | AN43: 0.1116823165 | AO43: 0.04685306816 | AP43: 0.267032675 | AQ43: 0.2839593917 | AR43: 0.190362713 | AS43: 0.1734359963 | AT43: 0 | AU43: 0.01311324691 | AV43: 0.01311324691 | AW43: 2.016943165 | AX43: 2.156308072 | AY43: 1.266364687 | AZ43: 1.12699978 | BA43: 0 | BB43: 0 | BC43: 2.486627069 | BD43: 2.486627069 | BE43: 4 | BF43: 4.710713744 | BG43: 0.01944146822 | BH43: 2.624408001 | BI43: 2.798476572 | BJ43: 3.933594804 | BK43: 4.48673433 | BL43: 0.75300094 | BM43: 1.552030516 | BN43: 2.091784376 | BO43: 0.5655467031 | BP43: 0.04099282656 | BQ43: 0.2968798997 | BR43: 0.2558870731 | BS43: 0.264767449 | BT43: 1.124574669 | BU43: 0.8598072201 | BV43: 0 | BW43: 0 | BX43: 0.61424287 | BY43: 0.61424287 | BZ43: 0 | CA43: 0 | CB43: 0 | CC43: 0 | CD43: 1.296265369 | CE43: 3.034849114 | CF43: 1.738583745 | CG43: 0 | CH43: 0 | CI43: 0 | CJ43: 0 | CK43: 0 | CL43: 0 | CM43: 0 | CN43: 0.4927794577 | CO43: 0.4927794577 | CP43: 0 | CQ43: 0 | CR43: 0
C44: > 33 kV & < = 66 kV | D44: 91.6570436 | E44: 9.573768516 | F44: 0 | G44: 0 | H44: 6 | I44: 0 | J44: 0.1442326722 | K44: 0.8950029504 | L44: 3.313314705 | M44: 2.622387137 | N44: 0.5497152527 | O44: 0.4947732266 | P44: 0.03602121582 | Q44: 0.03612088082 | R44: 0.2550105554 | S44: 0.2527250923 | T44: 0.01617448524 | U44: 0.09287633361 | V44: 0.07942223299 | W44: 5.499002865 | X44: 0 | Y44: 0 | Z44: 1.037351447 | AA44: 1.089242186 | AB44: 0.05189073856 | AC44: 0 | AD44: 0 | AE44: 2.205162737 | AF44: 3.545998556 | AG44: 1.398403728 | AH44: 0.09433268781 | AI44: 0.750228935 | AJ44: 1.163191392 | AK44: 0.449727235 | AL44: 0.06365495245 | AM44: 0.06550032055 | AN44: 0.001845368109 | AO44: 0.07288972 | AP44: 0.07288972 | AQ44: 5.547944493 | AR44: 6.078119157 | AS44: 0.6468806291 | AT44: 0.225960669 | AU44: 0.1167623312 | AV44: 0.4865939281 | AW44: 1.919731541 | AX44: 1.739222528 | AY44: 0.3080683465 | AZ44: 0.140103723 | BA44: 0.6413617355 | BB44: 0.227 | BC44: 0.7420820283 | BD44: 0.05295640597 | BE44: 0.0475693745 | BF44: 0.01434848241 | BG44: 0.08644862266 | BH44: 0.1412902541 | BI44: 0.05484163142 | BJ44: 0.005999275262 | BK44: 0.005999275262 | BL44: 0.00303956892 | BM44: 0.01565121721 | BN44: 0.01261164829 | BO44: 0.01327229525 | BP44: 0.01327229525 | BQ44: 0 | BR44: 0.3919038771 | BS44: 0.3919038771 | BT44: 0 | BU44: 0.001498686861 | BV44: 0.001498686861 | BW44: 0 | BX44: 0 | BY44: 0 | BZ44: 0 | CA44: 0 | CB44: 0 | CC44: 0 | CD44: 0 | CE44: 0 | CF44: 0.2880273352 | CG44: 0.2880273352 | CH44: 0 | CI44: 0 | CJ44: 0 | CK44: 0 | CL44: 0 | CM44: 0 | CN44: 0 | CO44: 0 | CP44: 0 | CQ44: 0 | CR44: 0
C45: > 66 kV & < = 132 kV | D45: 0 | E45: 0 | F45: 0 | G45: 0 | H45: 0 | I45: 0 | J45: 0 | K45: 0 | L45: 0 | M45: 0 | N45: 0 | O45: 0 | P45: 0 | Q45: 0 | R45: 0 | S45: 0 | T45: 0 | U45: 0 | V45: 0 | W45: 0 | X45: 0 | Y45: 0 | Z45: 0 | AA45: 0 | AB45: 0 | AC45: 0 | AD45: 0 | AE45: 0 | AF45: 0 | AG45: 0 | AH45: 0 | AI45: 0 | AJ45: 0 | AK45: 0 | AL45: 0 | AM45: 0 | AN45: 0 | AO45: 0 | AP45: 0 | AQ45: 0 | AR45: 0 | AS45: 0 | AT45: 0 | AU45: 0 | AV45: 0 | AW45: 0 | AX45: 0 | AY45: 0 | AZ45: 0 | BA45: 0 | BB45: 0 | BC45: 0 | BD45: 0 | BE45: 0 | BF45: 0 | BG45: 0 | BH45: 0 | BI45: 0 | BJ45: 0 | BK45: 0 | BL45: 0 | BM45: 0 | BN45: 0 | BO45: 0 | BP45: 0 | BQ45: 0 | BR45: 0 | BS45: 0 | BT45: 0 | BU45: 0 | BV45: 0 | BW45: 0 | BX45: 0 | BY45: 0 | BZ45: 0 | CA45: 0 | CB45: 0 | CC45: 0 | CD45: 0 | CE45: 0 | CF45: 0 | CG45: 0 | CH45: 0 | CI45: 0 | CJ45: 0 | CK45: 0 | CL45: 0 | CM45: 0 | CN45: 0 | CO45: 0 | CP45: 0 | CQ45: 0 | CR45: 0
C46: > 132 kV | D46: 0 | E46: 0 | F46: 0 | G46: 0 | H46: 0 | I46: 0 | J46: 0 | K46: 0 | L46: 0 | M46: 0 | N46: 0 | O46: 0 | P46: 0 | Q46: 0 | R46: 0 | S46: 0 | T46: 0 | U46: 0 | V46: 0 | W46: 0 | X46: 0 | Y46: 0 | Z46: 0 | AA46: 0 | AB46: 0 | AC46: 0 | AD46: 0 | AE46: 0 | AF46: 0 | AG46: 0 | AH46: 0 | AI46: 0 | AJ46: 0 | AK46: 0 | AL46: 0 | AM46: 0 | AN46: 0 | AO46: 0 | AP46: 0 | AQ46: 0 | AR46: 0 | AS46: 0 | AT46: 0 | AU46: 0 | AV46: 0 | AW46: 0 | AX46: 0 | AY46: 0 | AZ46: 0 | BA46: 0 | BB46: 0 | BC46: 0 | BD46: 0 | BE46: 0 | BF46: 0 | BG46: 0 | BH46: 0 | BI46: 0 | BJ46: 0 | BK46: 0 | BL46: 0 | BM46: 0 | BN46: 0 | BO46: 0 | BP46: 0 | BQ46: 0 | BR46: 0 | BS46: 0 | BT46: 0 | BU46: 0 | BV46: 0 | BW46: 0 | BX46: 0 | BY46: 0 | BZ46: 0 | CA46: 0 | CB46: 0 | CC46: 0 | CD46: 0 | CE46: 0 | CF46: 0 | CG46: 0 | CH46: 0 | CI46: 0 | CJ46: 0 | CK46: 0 | CL46: 0 | CM46: 0 | CN46: 0 | CO46: 0 | CP46: 0 | CQ46: 0 | CR46: 0
C47: Other | E47: 0
B48: SERVICE LINES BY: CONNECTION VOLTAGE; CUSTOMER TYPE; CONNECTION COMPLEXITY | C48: ˂ = 11 kV ; Residential ; Simple Type | D48: 54.03435078 | E48: 7.350806131 | F48: 18846 | G48: 18759 | H48: 13148 | I48: 13315 | J48: 5803 | K48: 6454 | L48: 7928 | M48: 8539 | N48: 8756 | O48: 8607 | P48: 8302 | Q48: 8357 | R48: 8631 | S48: 9607 | T48: 11477 | U48: 13145 | V48: 14986 | W48: 14238 | X48: 11711 | Y48: 10625 | Z48: 10196 | AA48: 11618 | AB48: 14504 | AC48: 15997 | AD48: 16273 | AE48: 16491 | AF48: 15826 | AG48: 15392 | AH48: 15612 | AI48: 16043 | AJ48: 16566 | AK48: 16276 | AL48: 16247 | AM48: 15054 | AN48: 12707 | AO48: 11648 | AP48: 10039 | AQ48: 7843 | AR48: 6923 | AS48: 7564 | AT48: 11936 | AU48: 15690 | AV48: 15583 | AW48: 17652 | AX48: 14908 | AY48: 15049 | AZ48: 10068 | BA48: 8741 | BB48: 8708 | BC48: 9871 | BD48: 9873 | BE48: 9841 | BF48: 9840 | BG48: 6875 | BH48: 5229.481887 | BI48: 13175.5914 | BJ48: 10649.07305 | BK48: 2045.398268 | BL48: 2042.002208 | BM48: 1017.84762 | BN48: 1017.84762 | BO48: 234.3281222 | BP48: 234.3281222 | BQ48: 82.96088799 | BR48: 82.96088799 | BS48: 69.37664902 | BT48: 69.86180041 | BU48: 41.2378683 | BV48: 40.75271691 | BW48: 17.9506015 | BX48: 17.9506015 | BY48: 5.336665309 | BZ48: 5.336665309 | CA48: 1.940605567 | CB48: 1.940605567 | CC48: 8.24757366 | CD48: 8.24757366 | CE48: 0 | CF48: 0 | CG48: 0 | CH48: 0 | CI48: 0 | CJ48: 0 | CK48: 0 | CL48: 0 | CM48: 0 | CN48: 0 | CO48: 0 | CP48: 0 | CQ48: 0 | CR48: 0
C49: ˂ = 11 kV ; Commercial & Industrial ; Simple Type | E49: 0
C50: ˂ = 11 kV ; Residential ; Complex Type | E50: 0
C51: ˂ = 11 kV ; Commercial & Industrial ; Complex Type | D51: 51.89243009 | E51: 7.203640059 | F51: 2087 | G51: 2160 | H51: 1958 | I51: 1709 | J51: 901 | K51: 864 | L51: 844 | M51: 831 | N51: 868 | O51: 891 | P51: 909 | Q51: 956 | R51: 922 | S51: 1349 | T51: 1740 | U51: 2211 | V51: 2454 | W51: 2137 | X51: 2025 | Y51: 1860 | Z51: 2012 | AA51: 2191 | AB51: 2126 | AC51: 1954 | AD51: 1909 | AE51: 1980 | AF51: 2048 | AG51: 2354 | AH51: 2413 | AI51: 2354 | AJ51: 2505 | AK51: 2251 | AL51: 1849 | AM51: 1836 | AN51: 1854 | AO51: 1736 | AP51: 1608 | AQ51: 1305 | AR51: 1070 | AS51: 1020 | AT51: 1111 | AU51: 1213 | AV51: 1197 | AW51: 1320 | AX51: 1181 | AY51: 1402 | AZ51: 933 | BA51: 943 | BB51: 937 | BC51: 1043 | BD51: 1045 | BE51: 1175 | BF51: 1173 | BG51: 781 | BH51: 460.4489265 | BI51: 572.033526 | BJ51: 377.4332317 | BK51: 104.8567036 | BL51: 103.8386774 | BM51: 52.42835181 | BN51: 52.42835181 | BO51: 19.34249873 | BP51: 19.34249873 | BQ51: 7.635196866 | BR51: 7.635196866 | BS51: 6.871677179 | BT51: 6.871677179 | BU51: 4.072104995 | BV51: 4.072104995 | BW51: 2.29055906 | BX51: 2.29055906 | BY51: 0.7635196866 | BZ51: 0.7635196866 | CA51: 0 | CB51: 0 | CC51: 2.29055906 | CD51: 2.29055906 | CE51: 0 | CF51: 0 | CG51: 0 | CH51: 0 | CI51: 0 | CJ51: 0 | CK51: 0 | CL51: 0 | CM51: 0 | CN51: 0 | CO51: 0 | CP51: 0 | CQ51: 0 | CR51: 0
C52: ˂ = 11 kV ; Subdivision ; Complex Type | E52: 0
C53: > 11 kV & < = 22 kV ; Commercial & Industrial | E53: 0
C54: > 11 kV & < = 22 kV ; Subdivision | E54: 0
C55: > 22 kV & < = 33 kV ; Commercial & Industrial | E55: 0
C56: > 22 kV & < = 33 kV ; Subdivision | E56: 0
C57: > 33 kV & < = 66 kV ; Commercial & Industrial | E57: 0
C58: > 33 kV & < = 66 kV ; Subdivision | E58: 0
C59: > 66 kV & < = 132 kV ; Commercial & Industrial | E59: 0
C60: > 66 kV & < = 132 kV ; Subdivision | E60: 0
C61: > 132 kV ; Commercial & Industrial | E61: 0
C62: > 132 kV ; Subdivision | E62: 0
C63: Other | E63: 0
B64: TRANSFORMERS BY: MOUNTING TYPE; HIGHEST OPERATING VOLTAGE ; AMPERE RATING; NUMBER OF PHASES (AT LV) | C64: Pole Mounted ; < = 22kV ; < = 60 kVA ; Single Phase | D64: 62.73684287 | E64: 7.920659245 | F64: 555 | G64: 464 | H64: 537 | I64: 299 | J64: 209 | K64: 311 | L64: 347 | M64: 364 | N64: 381 | O64: 405 | P64: 439 | Q64: 455 | R64: 438 | S64: 419 | T64: 463 | U64: 506 | V64: 592 | W64: 659 | X64: 582 | Y64: 552 | Z64: 589 | AA64: 728 | AB64: 1014 | AC64: 1020 | AD64: 825 | AE64: 958 | AF64: 1231 | AG64: 1150 | AH64: 914 | AI64: 930 | AJ64: 963 | AK64: 1040 | AL64: 1046 | AM64: 1034 | AN64: 1089 | AO64: 1098 | AP64: 988 | AQ64: 874 | AR64: 762 | AS64: 687 | AT64: 693 | AU64: 931 | AV64: 863 | AW64: 605 | AX64: 576 | AY64: 649 | AZ64: 959 | BA64: 928 | BB64: 589 | BC64: 509 | BD64: 652 | BE64: 837 | BF64: 701 | BG64: 491 | BH64: 511 | BI64: 478 | BJ64: 575 | BK64: 520 | BL64: 510 | BM64: 407 | BN64: 145 | BO64: 318 | BP64: 202 | BQ64: 17 | BR64: 9 | BS64: 3 | BT64: 4 | BU64: 2 | BV64: 1 | BW64: 1 | BX64: 0 | BY64: 0 | BZ64: 0 | CA64: 0 | CB64: 0 | CC64: 0 | CD64: 0 | CE64: 1 | CF64: 1 | CG64: 0 | CH64: 0 | CI64: 0 | CJ64: 0 | CK64: 0 | CL64: 0 | CM64: 0 | CN64: 0 | CO64: 0 | CP64: 0 | CQ64: 0 | CR64: 0
C65: Pole Mounted ; < = 22kV ; > 60 kVA and < = 600 kVA ; Single Phase | D65: 70.98335766 | E65: 8.425162174 | F65: 13 | G65: 13 | H65: 9 | I65: 18 | J65: 68 | K65: 129 | L65: 129 | M65: 181 | N65: 349 | O65: 448 | P65: 469 | Q65: 480 | R65: 478 | S65: 444 | T65: 336 | U65: 460 | V65: 479 | W65: 247 | X65: 206 | Y65: 176 | Z65: 137 | AA65: 141 | AB65: 184 | AC65: 198 | AD65: 173 | AE65: 175 | AF65: 230 | AG65: 258 | AH65: 228 | AI65: 225 | AJ65: 215 | AK65: 230 | AL65: 249 | AM65: 245 | AN65: 294 | AO65: 276 | AP65: 216 | AQ65: 191 | AR65: 282 | AS65: 286 | AT65: 147 | AU65: 149 | AV65: 166 | AW65: 144 | AX65: 130 | AY65: 160 | AZ65: 153 | BA65: 122 | BB65: 116 | BC65: 141 | BD65: 153 | BE65: 181 | BF65: 156 | BG65: 78 | BH65: 64 | BI65: 50 | BJ65: 142 | BK65: 131 | BL65: 36 | BM65: 56 | BN65: 101 | BO65: 293 | BP65: 219 | BQ65: 9 | BR65: 14 | BS65: 7 | BT65: 14 | BU65: 14 | BV65: 0 | BW65: 0 | BX65: 0 | BY65: 0 | BZ65: 0 | CA65: 0 | CB65: 0 | CC65: 0 | CD65: 0 | CE65: 0 | CF65: 0 | CG65: 0 | CH65: 0 | CI65: 0 | CJ65: 0 | CK65: 0 | CL65: 0 | CM65: 0 | CN65: 0 | CO65: 0 | CP65: 0 | CQ65: 0 | CR65: 0
C66: Pole Mounted ; < = 22kV ; > 600 kVA ; Single Phase | D66: 63.48884422 | E66: 7.967988719 | F66: 0 | G66: 0 | H66: 0 | I66: 0 | J66: 0 | K66: 0 | L66: 0 | M66: 0 | N66: 1 | O66: 1 | P66: 1 | Q66: 1 | R66: 1 | S66: 1 | T66: 1 | U66: 1 | V66: 1 | W66: 1 | X66: 1 | Y66: 1 | Z66: 0 | AA66: 0 | AB66: 0 | AC66: 1 | AD66: 1 | AE66: 0 | AF66: 0 | AG66: 1 | AH66: 2 | AI66: 2 | AJ66: 1 | AK66: 0 | AL66: 0 | AM66: 0 | AN66: 2 | AO66: 3 | AP66: 2 | AQ66: 1 | AR66: 4 | AS66: 8 | AT66: 5 | AU66: 2 | AV66: 4 | AW66: 2 | AX66: 0 | AY66: 4 | AZ66: 29 | BA66: 26 | BB66: 1 | BC66: 2 | BD66: 6 | BE66: 8 | BF66: 6 | BG66: 4 | BH66: 13 | BI66: 11 | BJ66: 6 | BK66: 6 | BL66: 6 | BM66: 8 | BN66: 7 | BO66: 13 | BP66: 8 | BQ66: 1 | BR66: 1 | BS66: 0 | BT66: 1 | BU66: 1 | BV66: 0 | BW66: 0 | BX66: 0 | BY66: 0 | BZ66: 0 | CA66: 0 | CB66: 0 | CC66: 0 | CD66: 0 | CE66: 0 | CF66: 0 | CG66: 0 | CH66: 0 | CI66: 0 | CJ66: 0 | CK66: 0 | CL66: 0 | CM66: 0 | CN66: 0 | CO66: 0 | CP66: 0 | CQ66: 0 | CR66: 0
C67: Pole Mounted ; < = 22kV ; < = 60 kVA ; Multiple Phase | D67: 56.28845099 | E67: 7.502562961 | F67: 185 | G67: 138 | H67: 175 | I67: 60 | J67: 23 | K67: 29 | L67: 26 | M67: 23 | N67: 12 | O67: 2 | P67: 2 | Q67: 2 | R67: 0 | S67: 1 | T67: 0 | U67: 1 | V67: 3 | W67: 3 | X67: 7 | Y67: 36 | Z67: 37 | AA67: 45 | AB67: 69 | AC67: 63 | AD67: 62 | AE67: 69 | AF67: 81 | AG67: 99 | AH67: 85 | AI67: 61 | AJ67: 65 | AK67: 70 | AL67: 70 | AM67: 60 | AN67: 76 | AO67: 84 | AP67: 75 | AQ67: 70 | AR67: 52 | AS67: 54 | AT67: 56 | AU67: 54 | AV67: 49 | AW67: 54 | AX67: 51 | AY67: 40 | AZ67: 44 | BA67: 30 | BB67: 36 | BC67: 35 | BD67: 35 | BE67: 38 | BF67: 31 | BG67: 21 | BH67: 27 | BI67: 20 | BJ67: 20 | BK67: 14 | BL67: 10 | BM67: 10 | BN67: 27 | BO67: 56 | BP67: 32 | BQ67: 1 | BR67: 0 | BS67: 0 | BT67: 0 | BU67: 0 | BV67: 0 | BW67: 0 | BX67: 0 | BY67: 0 | BZ67: 0 | CA67: 0 | CB67: 0 | CC67: 0 | CD67: 0 | CE67: 0 | CF67: 0 | CG67: 0 | CH67: 0 | CI67: 0 | CJ67: 0 | CK67: 0 | CL67: 0 | CM67: 0 | CN67: 0 | CO67: 0 | CP67: 0 | CQ67: 0 | CR67: 0
C68: Pole Mounted ; < = 22kV ; > 60 kVA and < = 600 kVA ; Multiple Phase | D68: 56.1194753 | E68: 7.4912933 | F68: 456 | G68: 345 | H68: 366 | I68: 220 | J68: 189 | K68: 270 | L68: 333 | M68: 276 | N68: 101 | O68: 13 | P68: 20 | Q68: 18 | R68: 5 | S68: 7 | T68: 8 | U68: 6 | V68: 1 | W68: 0 | X68: 10 | Y68: 34 | Z68: 37 | AA68: 47 | AB68: 60 | AC68: 42 | AD68: 53 | AE68: 53 | AF68: 64 | AG68: 62 | AH68: 68 | AI68: 80 | AJ68: 76 | AK68: 63 | AL68: 70 | AM68: 64 | AN68: 61 | AO68: 62 | AP68: 56 | AQ68: 51 | AR68: 66 | AS68: 76 | AT68: 55 | AU68: 50 | AV68: 45 | AW68: 31 | AX68: 32 | AY68: 32 | AZ68: 26 | BA68: 27 | BB68: 19 | BC68: 19 | BD68: 20 | BE68: 38 | BF68: 39 | BG68: 21 | BH68: 7 | BI68: 7 | BJ68: 36 | BK68: 28 | BL68: 5 | BM68: 8 | BN68: 32 | BO68: 76 | BP68: 45 | BQ68: 1 | BR68: 2 | BS68: 1 | BT68: 3 | BU68: 0 | BV68: 0 | BW68: 0 | BX68: 0 | BY68: 0 | BZ68: 0 | CA68: 0 | CB68: 0 | CC68: 0 | CD68: 0 | CE68: 0 | CF68: 0 | CG68: 0 | CH68: 0 | CI68: 0 | CJ68: 0 | CK68: 0 | CL68: 0 | CM68: 0 | CN68: 0 | CO68: 0 | CP68: 0 | CQ68: 0 | CR68: 0
C69: Pole Mounted ; < = 22kV ; > 600 kVA ; Multiple Phase | D69: 60.90116844 | E69: 7.803920069 | F69: 1 | G69: 0 | H69: 0 | I69: 0 | J69: 0 | K69: 0 | L69: 1 | M69: 1 | N69: 0 | O69: 0 | P69: 0 | Q69: 0 | R69: 0 | S69: 0 | T69: 1 | U69: 1 | V69: 1 | W69: 0 | X69: 0 | Y69: 0 | Z69: 0 | AA69: 0 | AB69: 0 | AC69: 0 | AD69: 0 | AE69: 0 | AF69: 0 | AG69: 0 | AH69: 0 | AI69: 0 | AJ69: 0 | AK69: 0 | AL69: 0 | AM69: 0 | AN69: 0 | AO69: 1 | AP69: 1 | AQ69: 0 | AR69: 0 | AS69: 0 | AT69: 1 | AU69: 1 | AV69: 1 | AW69: 0 | AX69: 0 | AY69: 0 | AZ69: 1 | BA69: 4 | BB69: 0 | BC69: 0 | BD69: 0 | BE69: 0 | BF69: 0 | BG69: 1 | BH69: 2 | BI69: 1 | BJ69: 1 | BK69: 1 | BL69: 0 | BM69: 0 | BN69: 1 | BO69: 2 | BP69: 1 | BQ69: 0 | BR69: 0 | BS69: 0 | BT69: 0 | BU69: 0 | BV69: 0 | BW69: 0 | BX69: 0 | BY69: 0 | BZ69: 0 | CA69: 0 | CB69: 0 | CC69: 0 | CD69: 0 | CE69: 0 | CF69: 0 | CG69: 0 | CH69: 0 | CI69: 0 | CJ69: 0 | CK69: 0 | CL69: 0 | CM69: 0 | CN69: 0 | CO69: 0 | CP69: 0 | CQ69: 0 | CR69: 0
C70: Kiosk Mounted ; < = 22kV ; < = 60 kVA ; Single Phase | D70: 70.34616886 | E70: 8.387262298 | F70: 3 | G70: 1 | H70: 4 | I70: 0 | J70: 1 | K70: 2 | L70: 2 | M70: 1 | N70: 4 | O70: 8 | P70: 9 | Q70: 10 | R70: 7 | S70: 6 | T70: 8 | U70: 5 | V70: 3 | W70: 7 | X70: 8 | Y70: 8 | Z70: 9 | AA70: 9 | AB70: 10 | AC70: 12 | AD70: 14 | AE70: 16 | AF70: 17 | AG70: 14 | AH70: 19 | AI70: 31 | AJ70: 25 | AK70: 8 | AL70: 4 | AM70: 2 | AN70: 1 | AO70: 1 | AP70: 1 | AQ70: 1 | AR70: 1 | AS70: 1 | AT70: 0 | AU70: 0 | AV70: 0 | AW70: 1 | AX70: 1 | AY70: 0 | AZ70: 2 | BA70: 2 | BB70: 0 | BC70: 0 | BD70: 0 | BE70: 1 | BF70: 1 | BG70: 2 | BH70: 2 | BI70: 1 | BJ70: 2 | BK70: 2 | BL70: 0 | BM70: 0 | BN70: 2 | BO70: 3 | BP70: 2 | BQ70: 1 | BR70: 0 | BS70: 0 | BT70: 0 | BU70: 0 | BV70: 0 | BW70: 0 | BX70: 0 | BY70: 0 | BZ70: 0 | CA70: 0 | CB70: 0 | CC70: 0 | CD70: 0 | CE70: 0 | CF70: 0 | CG70: 0 | CH70: 0 | CI70: 0 | CJ70: 0 | CK70: 0 | CL70: 0 | CM70: 0 | CN70: 0 | CO70: 0 | CP70: 0 | CQ70: 0 | CR70: 0
C71: Kiosk Mounted ; < = 22kV ; > 60 kVA and < = 600 kVA ; Single Phase | D71: 73.17278783 | E71: 8.554109412 | F71: 0 | G71: 0 | H71: 0 | I71: 0 | J71: 13 | K71: 27 | L71: 41 | M71: 134 | N71: 263 | O71: 241 | P71: 210 | Q71: 253 | R71: 263 | S71: 238 | T71: 218 | U71: 172 | V71: 153 | W71: 167 | X71: 171 | Y71: 143 | Z71: 115 | AA71: 163 | AB71: 229 | AC71: 233 | AD71: 199 | AE71: 243 | AF71: 321 | AG71: 347 | AH71: 305 | AI71: 277 | AJ71: 341 | AK71: 374 | AL71: 304 | AM71: 190 | AN71: 162 | AO71: 158 | AP71: 132 | AQ71: 134 | AR71: 201 | AS71: 268 | AT71: 230 | AU71: 188 | AV71: 149 | AW71: 86 | AX71: 48 | AY71: 43 | AZ71: 38 | BA71: 21 | BB71: 6 | BC71: 17 | BD71: 30 | BE71: 79 | BF71: 80 | BG71: 32 | BH71: 31 | BI71: 22 | BJ71: 69 | BK71: 63 | BL71: 9 | BM71: 16 | BN71: 50 | BO71: 104 | BP71: 63 | BQ71: 4 | BR71: 6 | BS71: 2 | BT71: 5 | BU71: 3 | BV71: 0 | BW71: 0 | BX71: 0 | BY71: 0 | BZ71: 0 | CA71: 0 | CB71: 0 | CC71: 0 | CD71: 0 | CE71: 0 | CF71: 0 | CG71: 0 | CH71: 0 | CI71: 0 | CJ71: 0 | CK71: 0 | CL71: 0 | CM71: 0 | CN71: 0 | CO71: 0 | CP71: 0 | CQ71: 0 | CR71: 0
C72: Kiosk Mounted ; < = 22kV ; > 600 kVA ; Single Phase | D72: 73.89913289 | E72: 8.596460486 | F72: 0 | G72: 0 | H72: 0 | I72: 0 | J72: 2 | K72: 1 | L72: 0 | M72: 11 | N72: 33 | O72: 39 | P72: 40 | Q72: 53 | R72: 60 | S72: 61 | T72: 50 | U72: 38 | V72: 40 | W72: 48 | X72: 53 | Y72: 36 | Z72: 20 | AA72: 23 | AB72: 27 | AC72: 31 | AD72: 25 | AE72: 18 | AF72: 28 | AG72: 35 | AH72: 34 | AI72: 27 | AJ72: 27 | AK72: 28 | AL72: 15 | AM72: 10 | AN72: 17 | AO72: 14 | AP72: 9 | AQ72: 10 | AR72: 17 | AS72: 22 | AT72: 11 | AU72: 3 | AV72: 8 | AW72: 9 | AX72: 17 | AY72: 17 | AZ72: 7 | BA72: 5 | BB72: 5 | BC72: 4 | BD72: 7 | BE72: 12 | BF72: 8 | BG72: 5 | BH72: 23 | BI72: 23 | BJ72: 15 | BK72: 17 | BL72: 4 | BM72: 5 | BN72: 21 | BO72: 33 | BP72: 12 | BQ72: 1 | BR72: 2 | BS72: 1 | BT72: 6 | BU72: 6 | BV72: 0 | BW72: 0 | BX72: 0 | BY72: 0 | BZ72: 0 | CA72: 0 | CB72: 0 | CC72: 0 | CD72: 1 | CE72: 1 | CF72: 0 | CG72: 0 | CH72: 0 | CI72: 0 | CJ72: 0 | CK72: 0 | CL72: 0 | CM72: 0 | CN72: 0 | CO72: 0 | CP72: 0 | CQ72: 0 | CR72: 0
C73: Kiosk Mounted ; < = 22kV ; < = 60 kVA ; Multiple Phase | D73: 62.59287151 | E73: 7.91156568 | F73: 1 | G73: 5 | H73: 3 | I73: 6 | J73: 0 | K73: 0 | L73: 0 | M73: 0 | N73: 0 | O73: 0 | P73: 0 | Q73: 0 | R73: 0 | S73: 0 | T73: 0 | U73: 0 | V73: 0 | W73: 0 | X73: 0 | Y73: 0 | Z73: 0 | AA73: 0 | AB73: 0 | AC73: 0 | AD73: 0 | AE73: 0 | AF73: 0 | AG73: 0 | AH73: 0 | AI73: 1 | AJ73: 0 | AK73: 0 | AL73: 0 | AM73: 0 | AN73: 0 | AO73: 0 | AP73: 0 | AQ73: 0 | AR73: 0 | AS73: 0 | AT73: 0 | AU73: 0 | AV73: 0 | AW73: 0 | AX73: 0 | AY73: 0 | AZ73: 0 | BA73: 0 | BB73: 0 | BC73: 0 | BD73: 0 | BE73: 0 | BF73: 0 | BG73: 0 | BH73: 1 | BI73: 1 | BJ73: 1 | BK73: 1 | BL73: 0 | BM73: 0 | BN73: 1 | BO73: 2 | BP73: 1 | BQ73: 0 | BR73: 0 | BS73: 0 | BT73: 0 | BU73: 0 | BV73: 0 | BW73: 0 | BX73: 0 | BY73: 0 | BZ73: 0 | CA73: 0 | CB73: 0 | CC73: 0 | CD73: 0 | CE73: 0 | CF73: 0 | CG73: 0 | CH73: 0 | CI73: 0 | CJ73: 0 | CK73: 0 | CL73: 0 | CM73: 0 | CN73: 0 | CO73: 0 | CP73: 0 | CQ73: 0 | CR73: 0
C74: Kiosk Mounted ; < = 22kV ; > 60 kVA and < = 600 kVA ; Multiple Phase | D74: 56.29344659 | E74: 7.50289588 | F74: 159 | G74: 239 | H74: 211 | I74: 193 | J74: 82 | K74: 161 | L74: 237 | M74: 174 | N74: 46 | O74: 21 | P74: 31 | Q74: 22 | R74: 16 | S74: 5 | T74: 7 | U74: 7 | V74: 2 | W74: 2 | X74: 2 | Y74: 23 | Z74: 23 | AA74: 28 | AB74: 52 | AC74: 47 | AD74: 56 | AE74: 61 | AF74: 41 | AG74: 32 | AH74: 34 | AI74: 33 | AJ74: 43 | AK74: 49 | AL74: 41 | AM74: 21 | AN74: 27 | AO74: 28 | AP74: 22 | AQ74: 24 | AR74: 18 | AS74: 20 | AT74: 24 | AU74: 25 | AV74: 20 | AW74: 16 | AX74: 9 | AY74: 3 | AZ74: 11 | BA74: 7 | BB74: 2 | BC74: 4 | BD74: 7 | BE74: 14 | BF74: 15 | BG74: 3 | BH74: 6 | BI74: 6 | BJ74: 15 | BK74: 16 | BL74: 2 | BM74: 5 | BN74: 11 | BO74: 22 | BP74: 14 | BQ74: 1 | BR74: 1 | BS74: 1 | BT74: 1 | BU74: 1 | BV74: 0 | BW74: 0 | BX74: 0 | BY74: 0 | BZ74: 0 | CA74: 0 | CB74: 0 | CC74: 0 | CD74: 0 | CE74: 0 | CF74: 0 | CG74: 0 | CH74: 0 | CI74: 0 | CJ74: 0 | CK74: 0 | CL74: 0 | CM74: 0 | CN74: 0 | CO74: 0 | CP74: 0 | CQ74: 0 | CR74: 0
C75: Kiosk Mounted ; < = 22kV ; > 600 kVA ; Multiple Phase | D75: 61.28228786 | E75: 7.828300445 | F75: 61 | G75: 60 | H75: 59 | I75: 38 | J75: 23 | K75: 33 | L75: 41 | M75: 28 | N75: 6 | O75: 6 | P75: 7 | Q75: 3 | R75: 1 | S75: 1 | T75: 2 | U75: 2 | V75: 3 | W75: 1 | X75: 0 | Y75: 5 | Z75: 5 | AA75: 3 | AB75: 6 | AC75: 5 | AD75: 4 | AE75: 4 | AF75: 4 | AG75: 4 | AH75: 0 | AI75: 2 | AJ75: 2 | AK75: 3 | AL75: 2 | AM75: 1 | AN75: 1 | AO75: 4 | AP75: 4 | AQ75: 3 | AR75: 0 | AS75: 3 | AT75: 2 | AU75: 0 | AV75: 0 | AW75: 0 | AX75: 2 | AY75: 2 | AZ75: 1 | BA75: 1 | BB75: 0 | BC75: 2 | BD75: 2 | BE75: 2 | BF75: 3 | BG75: 1 | BH75: 4 | BI75: 4 | BJ75: 2 | BK75: 2 | BL75: 0 | BM75: 0 | BN75: 3 | BO75: 5 | BP75: 0 | BQ75: 0 | BR75: 0 | BS75: 0 | BT75: 0 | BU75: 0 | BV75: 0 | BW75: 0 | BX75: 0 | BY75: 0 | BZ75: 0 | CA75: 0 | CB75: 0 | CC75: 0 | CD75: 0 | CE75: 0 | CF75: 0 | CG75: 0 | CH75: 0 | CI75: 0 | CJ75: 0 | CK75: 0 | CL75: 0 | CM75: 0 | CN75: 0 | CO75: 0 | CP75: 0 | CQ75: 0 | CR75: 0
C76: Ground Outdoor / Indoor Chamber Mounted; ˂ 22 kV ; < = 60 kVA ; Single Phase | D76: 63.48884422 | E76: 7.967988719 | F76: 0 | G76: 0 | H76: 0 | I76: 0 | J76: 0 | K76: 0 | L76: 0 | M76: 0 | N76: 0 | O76: 0 | P76: 0 | Q76: 0 | R76: 0 | S76: 0 | T76: 0 | U76: 0 | V76: 0 | W76: 0 | X76: 0 | Y76: 0 | Z76: 0 | AA76: 0 | AB76: 0 | AC76: 0 | AD76: 0 | AE76: 0 | AF76: 0 | AG76: 0 | AH76: 0 | AI76: 1 | AJ76: 2 | AK76: 1 | AL76: 0 | AM76: 0 | AN76: 0 | AO76: 0 | AP76: 0 | AQ76: 0 | AR76: 0 | AS76: 0 | AT76: 0 | AU76: 0 | AV76: 0 | AW76: 0 | AX76: 1 | AY76: 1 | AZ76: 0 | BA76: 0 | BB76: 0 | BC76: 0 | BD76: 0 | BE76: 0 | BF76: 0 | BG76: 0 | BH76: 0 | BI76: 1 | BJ76: 1 | BK76: 1 | BL76: 0 | BM76: 0 | BN76: 0 | BO76: 1 | BP76: 1 | BQ76: 0 | BR76: 0 | BS76: 0 | BT76: 0 | BU76: 0 | BV76: 0 | BW76: 0 | BX76: 0 | BY76: 0 | BZ76: 0 | CA76: 0 | CB76: 0 | CC76: 0 | CD76: 0 | CE76: 0 | CF76: 0 | CG76: 0 | CH76: 0 | CI76: 0 | CJ76: 0 | CK76: 0 | CL76: 0 | CM76: 0 | CN76: 0 | CO76: 0 | CP76: 0 | CQ76: 0 | CR76: 0
C77: Ground Outdoor / Indoor Chamber Mounted; ˂ 22 kV ; > 60 kVA and < = 600 kVA ; Single Phase | D77: 100.4202805 | E77: 10.02099199 | F77: 0 | G77: 0 | H77: 0 | I77: 0 | J77: 0 | K77: 0 | L77: 0 | M77: 1 | N77: 2 | O77: 1 | P77: 2 | Q77: 2 | R77: 1 | S77: 1 | T77: 1 | U77: 2 | V77: 3 | W77: 5 | X77: 4 | Y77: 4 | Z77: 2 | AA77: 1 | AB77: 1 | AC77: 1 | AD77: 2 | AE77: 3 | AF77: 2 | AG77: 2 | AH77: 3 | AI77: 5 | AJ77: 7 | AK77: 9 | AL77: 9 | AM77: 7 | AN77: 15 | AO77: 17 | AP77: 8 | AQ77: 4 | AR77: 2 | AS77: 3 | AT77: 6 | AU77: 25 | AV77: 27 | AW77: 12 | AX77: 20 | AY77: 21 | AZ77: 17 | BA77: 17 | BB77: 17 | BC77: 17 | BD77: 14 | BE77: 14 | BF77: 10 | BG77: 5 | BH77: 4 | BI77: 3 | BJ77: 5 | BK77: 4 | BL77: 1 | BM77: 3 | BN77: 5 | BO77: 6 | BP77: 3 | BQ77: 0 | BR77: 0 | BS77: 0 | BT77: 1 | BU77: 1 | BV77: 0 | BW77: 0 | BX77: 0 | BY77: 0 | BZ77: 0 | CA77: 0 | CB77: 0 | CC77: 0 | CD77: 0 | CE77: 0 | CF77: 0 | CG77: 0 | CH77: 0 | CI77: 0 | CJ77: 0 | CK77: 0 | CL77: 0 | CM77: 0 | CN77: 0 | CO77: 0 | CP77: 0 | CQ77: 0 | CR77: 0
C78: Ground Outdoor / Indoor Chamber Mounted; ˂ 22 kV ; > 600 kVA ; Single Phase | D78: 63.48884422 | E78: 7.967988719 | F78: 0 | G78: 0 | H78: 0 | I78: 0 | J78: 0 | K78: 0 | L78: 0 | M78: 0 | N78: 0 | O78: 0 | P78: 0 | Q78: 0 | R78: 0 | S78: 1 | T78: 2 | U78: 2 | V78: 2 | W78: 1 | X78: 1 | Y78: 2 | Z78: 2 | AA78: 4 | AB78: 5 | AC78: 4 | AD78: 3 | AE78: 3 | AF78: 2 | AG78: 5 | AH78: 5 | AI78: 4 | AJ78: 8 | AK78: 7 | AL78: 6 | AM78: 7 | AN78: 9 | AO78: 9 | AP78: 8 | AQ78: 7 | AR78: 3 | AS78: 3 | AT78: 4 | AU78: 7 | AV78: 7 | AW78: 5 | AX78: 3 | AY78: 1 | AZ78: 5 | BA78: 6 | BB78: 4 | BC78: 5 | BD78: 4 | BE78: 2 | BF78: 0 | BG78: 0 | BH78: 7 | BI78: 8 | BJ78: 2 | BK78: 2 | BL78: 0 | BM78: 0 | BN78: 2 | BO78: 2 | BP78: 0 | BQ78: 0 | BR78: 1 | BS78: 1 | BT78: 2 | BU78: 2 | BV78: 0 | BW78: 0 | BX78: 0 | BY78: 0 | BZ78: 0 | CA78: 0 | CB78: 0 | CC78: 0 | CD78: 0 | CE78: 0 | CF78: 0 | CG78: 0 | CH78: 0 | CI78: 0 | CJ78: 0 | CK78: 0 | CL78: 0 | CM78: 0 | CN78: 0 | CO78: 0 | CP78: 0 | CQ78: 0 | CR78: 0
C79: Ground Outdoor / Indoor Chamber Mounted; ˂ 22 kV ; < = 60 kVA ; Multiple Phase | F79: 0 | G79: 0 | H79: 0 | I79: 0 | J79: 0 | K79: 0 | L79: 0 | M79: 0 | N79: 0 | O79: 0 | P79: 0 | Q79: 0 | R79: 0 | S79: 0 | T79: 0 | U79: 0 | V79: 0 | W79: 0 | X79: 0 | Y79: 0 | Z79: 0 | AA79: 0 | AB79: 0 | AC79: 0 | AD79: 0 | AE79: 0 | AF79: 0 | AG79: 0 | AH79: 0 | AI79: 0 | AJ79: 0 | AK79: 0 | AL79: 0 | AM79: 0 | AN79: 0 | AO79: 0 | AP79: 0 | AQ79: 0 | AR79: 0 | AS79: 0 | AT79: 0 | AU79: 0 | AV79: 0 | AW79: 0 | AX79: 0 | AY79: 0 | AZ79: 0 | BA79: 0 | BB79: 0 | BC79: 0 | BD79: 0 | BE79: 0 | BF79: 0 | BG79: 0 | BH79: 0 | BI79: 0 | BJ79: 0 | BK79: 0 | BL79: 0 | BM79: 0 | BN79: 0 | BO79: 0 | BP79: 0 | BQ79: 0 | BR79: 0 | BS79: 0 | BT79: 0 | BU79: 0 | BV79: 0 | BW79: 0 | BX79: 0 | BY79: 0 | BZ79: 0 | CA79: 0 | CB79: 0 | CC79: 0 | CD79: 0 | CE79: 0 | CF79: 0 | CG79: 0 | CH79: 0 | CI79: 0 | CJ79: 0 | CK79: 0 | CL79: 0 | CM79: 0 | CN79: 0 | CO79: 0 | CP79: 0 | CQ79: 0 | CR79: 0
C80: Ground Outdoor / Indoor Chamber Mounted; ˂ 22 kV ; > 60 kVA and < = 600 kVA ; Multiple Phase | D80: 67.38740508 | E80: 8.208983194 | F80: 0 | G80: 0 | H80: 0 | I80: 0 | J80: 0 | K80: 0 | L80: 0 | M80: 0 | N80: 0 | O80: 1 | P80: 1 | Q80: 0 | R80: 0 | S80: 0 | T80: 0 | U80: 0 | V80: 0 | W80: 0 | X80: 0 | Y80: 0 | Z80: 0 | AA80: 0 | AB80: 0 | AC80: 0 | AD80: 0 | AE80: 0 | AF80: 0 | AG80: 0 | AH80: 0 | AI80: 0 | AJ80: 0 | AK80: 0 | AL80: 0 | AM80: 0 | AN80: 0 | AO80: 0 | AP80: 0 | AQ80: 0 | AR80: 0 | AS80: 0 | AT80: 0 | AU80: 0 | AV80: 0 | AW80: 0 | AX80: 0 | AY80: 1 | AZ80: 0 | BA80: 0 | BB80: 1 | BC80: 0 | BD80: 0 | BE80: 0 | BF80: 0 | BG80: 0 | BH80: 0 | BI80: 0 | BJ80: 0 | BK80: 2 | BL80: 0 | BM80: 0 | BN80: 0 | BO80: 0 | BP80: 0 | BQ80: 0 | BR80: 1 | BS80: 1 | BT80: 0 | BU80: 0 | BV80: 0 | BW80: 0 | BX80: 0 | BY80: 0 | BZ80: 0 | CA80: 0 | CB80: 0 | CC80: 0 | CD80: 0 | CE80: 0 | CF80: 0 | CG80: 0 | CH80: 0 | CI80: 0 | CJ80: 0 | CK80: 0 | CL80: 0 | CM80: 0 | CN80: 0 | CO80: 0 | CP80: 0 | CQ80: 0 | CR80: 0
C81: Ground Outdoor / Indoor Chamber Mounted; ˂ 22 kV ; > 600 kVA ; Multiple Phase | D81: 63.48626917 | E81: 7.96782713 | F81: 0 | G81: 0 | H81: 0 | I81: 0 | J81: 0 | K81: 0 | L81: 0 | M81: 0 | N81: 0 | O81: 0 | P81: 3 | Q81: 0 | R81: 0 | S81: 0 | T81: 0 | U81: 1 | V81: 0 | W81: 2 | X81: 0 | Y81: 0 | Z81: 0 | AA81: 0 | AB81: 0 | AC81: 0 | AD81: 0 | AE81: 3 | AF81: 0 | AG81: 0 | AH81: 4 | AI81: 2 | AJ81: 0 | AK81: 8 | AL81: 0 | AM81: 5 | AN81: 1 | AO81: 2 | AP81: 1 | AQ81: 3 | AR81: 2 | AS81: 4 | AT81: 0 | AU81: 2 | AV81: 2 | AW81: 1 | AX81: 1 | AY81: 10 | AZ81: 5 | BA81: 2 | BB81: 1 | BC81: 5 | BD81: 3 | BE81: 2 | BF81: 6 | BG81: 1 | BH81: 1 | BI81: 1 | BJ81: 0 | BK81: 0 | BL81: 0 | BM81: 0 | BN81: 0 | BO81: 0 | BP81: 0 | BQ81: 0 | BR81: 0 | BS81: 0 | BT81: 0 | BU81: 0 | BV81: 0 | BW81: 0 | BX81: 0 | BY81: 0 | BZ81: 0 | CA81: 0 | CB81: 0 | CC81: 0 | CD81: 0 | CE81: 0 | CF81: 0 | CG81: 0 | CH81: 0 | CI81: 0 | CJ81: 0 | CK81: 0 | CL81: 0 | CM81: 0 | CN81: 0 | CO81: 0 | CP81: 0 | CQ81: 0 | CR81: 0
C82: Ground Outdoor / Indoor Chamber Mounted; > = 22 kV & < = 33 kV ; < = 15 MVA | D82: 63.20388977 | E82: 7.950087407 | F82: 7 | G82: 5 | H82: 6 | I82: 2 | J82: 7 | K82: 11 | L82: 6 | M82: 7 | N82: 4 | O82: 3 | P82: 5 | Q82: 3 | R82: 2 | S82: 6 | T82: 5 | U82: 9 | V82: 14 | W82: 6 | X82: 3 | Y82: 4 | Z82: 3 | AA82: 5 | AB82: 2 | AC82: 2 | AD82: 1 | AE82: 16 | AF82: 4 | AG82: 5 | AH82: 11 | AI82: 39 | AJ82: 4 | AK82: 9 | AL82: 1 | AM82: 11 | AN82: 19 | AO82: 2 | AP82: 4 | AQ82: 5 | AR82: 3 | AS82: 2 | AT82: 8 | AU82: 7 | AV82: 15 | AW82: 2 | AX82: 4 | AY82: 1 | AZ82: 5 | BA82: 21 | BB82: 4 | BC82: 1 | BD82: 15 | BE82: 11 | BF82: 1 | BG82: 7 | BH82: 10 | BI82: 7 | BJ82: 3 | BK82: 1 | BL82: 5 | BM82: 5 | BN82: 9 | BO82: 9 | BP82: 5 | BQ82: 2 | BR82: 1 | BS82: 5 | BT82: 1 | BU82: 1 | BV82: 0 | BW82: 0 | BX82: 0 | BY82: 0 | BZ82: 0 | CA82: 0 | CB82: 0 | CC82: 0 | CD82: 0 | CE82: 0 | CF82: 0 | CG82: 0 | CH82: 0 | CI82: 0 | CJ82: 0 | CK82: 0 | CL82: 0 | CM82: 0 | CN82: 0 | CO82: 0 | CP82: 0 | CQ82: 0 | CR82: 0
C83: Ground Outdoor / Indoor Chamber Mounted; > = 22 kV & < = 33 kV ; > 15 MVA and < = 40 MVA | D83: 63.48884422 | E83: 7.967988719 | F83: 0 | G83: 0 | H83: 0 | I83: 1 | J83: 0 | K83: 0 | L83: 0 | M83: 0 | N83: 0 | O83: 0 | P83: 0 | Q83: 1 | R83: 0 | S83: 0 | T83: 0 | U83: 1 | V83: 0 | W83: 0 | X83: 0 | Y83: 0 | Z83: 0 | AA83: 0 | AB83: 0 | AC83: 0 | AD83: 0 | AE83: 0 | AF83: 0 | AG83: 0 | AH83: 0 | AI83: 1 | AJ83: 0 | AK83: 0 | AL83: 0 | AM83: 0 | AN83: 1 | AO83: 0 | AP83: 0 | AQ83: 0 | AR83: 0 | AS83: 0 | AT83: 0 | AU83: 0 | AV83: 0 | AW83: 0 | AX83: 0 | AY83: 0 | AZ83: 0 | BA83: 0 | BB83: 0 | BC83: 0 | BD83: 0 | BE83: 0 | BF83: 0 | BG83: 0 | BH83: 0 | BI83: 0 | BJ83: 0 | BK83: 0 | BL83: 0 | BM83: 0 | BN83: 0 | BO83: 0 | BP83: 0 | BQ83: 0 | BR83: 0 | BS83: 0 | BT83: 0 | BU83: 0 | BV83: 0 | BW83: 0 | BX83: 0 | BY83: 0 | BZ83: 0 | CA83: 0 | CB83: 0 | CC83: 0 | CD83: 0 | CE83: 0 | CF83: 0 | CG83: 0 | CH83: 0 | CI83: 0 | CJ83: 0 | CK83: 0 | CL83: 0 | CM83: 0 | CN83: 0 | CO83: 0 | CP83: 0 | CQ83: 0 | CR83: 0
C84: Ground Outdoor / Indoor Chamber Mounted; > = 22 kV & < = 33 kV ; > 40 MVA | F84: 0 | G84: 0 | H84: 0 | I84: 0 | J84: 0 | K84: 0 | L84: 0 | M84: 0 | N84: 0 | O84: 0 | P84: 0 | Q84: 0 | R84: 0 | S84: 0 | T84: 0 | U84: 0 | V84: 0 | W84: 0 | X84: 0 | Y84: 0 | Z84: 0 | AA84: 0 | AB84: 0 | AC84: 0 | AD84: 0 | AE84: 0 | AF84: 0 | AG84: 0 | AH84: 0 | AI84: 0 | AJ84: 0 | AK84: 0 | AL84: 0 | AM84: 0 | AN84: 0 | AO84: 0 | AP84: 0 | AQ84: 0 | AR84: 0 | AS84: 0 | AT84: 0 | AU84: 0 | AV84: 0 | AW84: 0 | AX84: 0 | AY84: 0 | AZ84: 0 | BA84: 0 | BB84: 0 | BC84: 0 | BD84: 0 | BE84: 0 | BF84: 0 | BG84: 0 | BH84: 0 | BI84: 0 | BJ84: 0 | BK84: 0 | BL84: 0 | BM84: 0 | BN84: 0 | BO84: 0 | BP84: 0 | BQ84: 0 | BR84: 0 | BS84: 0 | BT84: 0 | BU84: 0 | BV84: 0 | BW84: 0 | BX84: 0 | BY84: 0 | BZ84: 0 | CA84: 0 | CB84: 0 | CC84: 0 | CD84: 0 | CE84: 0 | CF84: 0 | CG84: 0 | CH84: 0 | CI84: 0 | CJ84: 0 | CK84: 0 | CL84: 0 | CM84: 0 | CN84: 0 | CO84: 0 | CP84: 0 | CQ84: 0 | CR84: 0
C85: Ground Outdoor / Indoor Chamber Mounted; > 33 kV & < = 66 kV ; < = 15 MVA | D85: 76.73262249 | E85: 8.759715891 | F85: 0 | G85: 2 | H85: 0 | I85: 1 | J85: 0 | K85: 0 | L85: 4 | M85: 3 | N85: 0 | O85: 4 | P85: 0 | Q85: 0 | R85: 0 | S85: 1 | T85: 0 | U85: 0 | V85: 6 | W85: 1 | X85: 1 | Y85: 0 | Z85: 0 | AA85: 0 | AB85: 0 | AC85: 0 | AD85: 0 | AE85: 4 | AF85: 1 | AG85: 2 | AH85: 1 | AI85: 2 | AJ85: 5 | AK85: 0 | AL85: 0 | AM85: 9 | AN85: 0 | AO85: 0 | AP85: 1 | AQ85: 0 | AR85: 5 | AS85: 5 | AT85: 0 | AU85: 0 | AV85: 3 | AW85: 0 | AX85: 0 | AY85: 3 | AZ85: 0 | BA85: 11 | BB85: 7 | BC85: 5 | BD85: 7 | BE85: 5 | BF85: 5 | BG85: 18 | BH85: 5 | BI85: 14 | BJ85: 5 | BK85: 0 | BL85: 2 | BM85: 5 | BN85: 0 | BO85: 2 | BP85: 5 | BQ85: 2 | BR85: 0 | BS85: 2 | BT85: 1 | BU85: 0 | BV85: 0 | BW85: 0 | BX85: 0 | BY85: 0 | BZ85: 0 | CA85: 0 | CB85: 1 | CC85: 0 | CD85: 0 | CE85: 0 | CF85: 0 | CG85: 0 | CH85: 0 | CI85: 0 | CJ85: 0 | CK85: 0 | CL85: 0 | CM85: 0 | CN85: 0 | CO85: 0 | CP85: 0 | CQ85: 0 | CR85: 0
C86: Ground Outdoor / Indoor Chamber Mounted; > 33 kV & < = 66 kV ; > 15 MVA and < = 40 MVA | D86: 63.62635711 | E86: 7.976613135 | F86: 1 | G86: 0 | H86: 2 | I86: 5 | J86: 1 | K86: 8 | L86: 4 | M86: 4 | N86: 4 | O86: 2 | P86: 4 | Q86: 2 | R86: 5 | S86: 2 | T86: 5 | U86: 4 | V86: 4 | W86: 0 | X86: 1 | Y86: 0 | Z86: 0 | AA86: 2 | AB86: 0 | AC86: 3 | AD86: 0 | AE86: 1 | AF86: 5 | AG86: 1 | AH86: 3 | AI86: 0 | AJ86: 1 | AK86: 4 | AL86: 0 | AM86: 2 | AN86: 4 | AO86: 2 | AP86: 0 | AQ86: 4 | AR86: 1 | AS86: 4 | AT86: 0 | AU86: 0 | AV86: 0 | AW86: 0 | AX86: 1 | AY86: 4 | AZ86: 0 | BA86: 5 | BB86: 6 | BC86: 4 | BD86: 3 | BE86: 0 | BF86: 0 | BG86: 0 | BH86: 0 | BI86: 0 | BJ86: 0 | BK86: 0 | BL86: 0 | BM86: 0 | BN86: 3 | BO86: 3 | BP86: 0 | BQ86: 0 | BR86: 0 | BS86: 0 | BT86: 0 | BU86: 0 | BV86: 0 | BW86: 0 | BX86: 0 | BY86: 0 | BZ86: 0 | CA86: 0 | CB86: 0 | CC86: 0 | CD86: 0 | CE86: 0 | CF86: 0 | CG86: 0 | CH86: 0 | CI86: 0 | CJ86: 0 | CK86: 0 | CL86: 0 | CM86: 0 | CN86: 0 | CO86: 0 | CP86: 0 | CQ86: 0 | CR86: 0
C87: Ground Outdoor / Indoor Chamber Mounted; > 33 kV & < = 66 kV ; > 40 MVA | E87: 0 | F87: 0 | G87: 0 | H87: 0 | I87: 0 | J87: 0 | K87: 0 | L87: 0 | M87: 0 | N87: 0 | O87: 0 | P87: 0 | Q87: 0 | R87: 0 | S87: 0 | T87: 0 | U87: 0 | V87: 0 | W87: 0 | X87: 0 | Y87: 0 | Z87: 0 | AA87: 0 | AB87: 0 | AC87: 0 | AD87: 0 | AE87: 0 | AF87: 0 | AG87: 0 | AH87: 0 | AI87: 0 | AJ87: 0 | AK87: 0 | AL87: 0 | AM87: 0 | AN87: 0 | AO87: 0 | AP87: 0 | AQ87: 0 | AR87: 0 | AS87: 0 | AT87: 0 | AU87: 0 | AV87: 0 | AW87: 0 | AX87: 0 | AY87: 0 | AZ87: 0 | BA87: 0 | BB87: 0 | BC87: 0 | BD87: 0 | BE87: 0 | BF87: 0 | BG87: 0 | BH87: 0 | BI87: 0 | BJ87: 0 | BK87: 0 | BL87: 0 | BM87: 0 | BN87: 0 | BO87: 0 | BP87: 0 | BQ87: 0 | BR87: 0 | BS87: 0 | BT87: 0 | BU87: 0 | BV87: 0 | BW87: 0 | BX87: 0 | BY87: 0 | BZ87: 0 | CA87: 0 | CB87: 0 | CC87: 0 | CD87: 0 | CE87: 0 | CF87: 0 | CG87: 0 | CH87: 0 | CI87: 0 | CJ87: 0 | CK87: 0 | CL87: 0 | CM87: 0 | CN87: 0 | CO87: 0 | CP87: 0 | CQ87: 0 | CR87: 0
C88: Ground Outdoor / Indoor Chamber Mounted; > 66 kV & < = 132 kV ; < = 100 MVA | E88: 0 | F88: 0 | G88: 0 | H88: 0 | I88: 0 | J88: 0 | K88: 0 | L88: 0 | M88: 0 | N88: 0 | O88: 0 | P88: 0 | Q88: 0 | R88: 0 | S88: 0 | T88: 0 | U88: 0 | V88: 0 | W88: 0 | X88: 0 | Y88: 0 | Z88: 0 | AA88: 0 | AB88: 0 | AC88: 0 | AD88: 0 | AE88: 0 | AF88: 0 | AG88: 0 | AH88: 0 | AI88: 0 | AJ88: 0 | AK88: 0 | AL88: 0 | AM88: 0 | AN88: 0 | AO88: 0 | AP88: 0 | AQ88: 0 | AR88: 0 | AS88: 0 | AT88: 0 | AU88: 0 | AV88: 0 | AW88: 0 | AX88: 0 | AY88: 0 | AZ88: 0 | BA88: 0 | BB88: 0 | BC88: 0 | BD88: 0 | BE88: 0 | BF88: 0 | BG88: 0 | BH88: 0 | BI88: 0 | BJ88: 0 | BK88: 0 | BL88: 0 | BM88: 0 | BN88: 0 | BO88: 0 | BP88: 0 | BQ88: 0 | BR88: 0 | BS88: 0 | BT88: 0 | BU88: 0 | BV88: 0 | BW88: 0 | BX88: 0 | BY88: 0 | BZ88: 0 | CA88: 0 | CB88: 0 | CC88: 0 | CD88: 0 | CE88: 0 | CF88: 0 | CG88: 0 | CH88: 0 | CI88: 0 | CJ88: 0 | CK88: 0 | CL88: 0 | CM88: 0 | CN88: 0 | CO88: 0 | CP88: 0 | CQ88: 0 | CR88: 0
C89: Ground Outdoor / Indoor Chamber Mounted; > 66 kV & < = 132 kV ; > 100 MVA | E89: 0 | F89: 0 | G89: 0 | H89: 0 | I89: 0 | J89: 0 | K89: 0 | L89: 0 | M89: 0 | N89: 0 | O89: 0 | P89: 0 | Q89: 0 | R89: 0 | S89: 0 | T89: 0 | U89: 0 | V89: 0 | W89: 0 | X89: 0 | Y89: 0 | Z89: 0 | AA89: 0 | AB89: 0 | AC89: 0 | AD89: 0 | AE89: 0 | AF89: 0 | AG89: 0 | AH89: 0 | AI89: 0 | AJ89: 0 | AK89: 0 | AL89: 0 | AM89: 0 | AN89: 0 | AO89: 0 | AP89: 0 | AQ89: 0 | AR89: 0 | AS89: 0 | AT89: 0 | AU89: 0 | AV89: 0 | AW89: 0 | AX89: 0 | AY89: 0 | AZ89: 0 | BA89: 0 | BB89: 0 | BC89: 0 | BD89: 0 | BE89: 0 | BF89: 0 | BG89: 0 | BH89: 0 | BI89: 0 | BJ89: 0 | BK89: 0 | BL89: 0 | BM89: 0 | BN89: 0 | BO89: 0 | BP89: 0 | BQ89: 0 | BR89: 0 | BS89: 0 | BT89: 0 | BU89: 0 | BV89: 0 | BW89: 0 | BX89: 0 | BY89: 0 | BZ89: 0 | CA89: 0 | CB89: 0 | CC89: 0 | CD89: 0 | CE89: 0 | CF89: 0 | CG89: 0 | CH89: 0 | CI89: 0 | CJ89: 0 | CK89: 0 | CL89: 0 | CM89: 0 | CN89: 0 | CO89: 0 | CP89: 0 | CQ89: 0 | CR89: 0
C90: Ground Outdoor / Indoor Chamber Mounted; > 132 kV ; < = 100 MVA | E90: 0 | F90: 0 | G90: 0 | H90: 0 | I90: 0 | J90: 0 | K90: 0 | L90: 0 | M90: 0 | N90: 0 | O90: 0 | P90: 0 | Q90: 0 | R90: 0 | S90: 0 | T90: 0 | U90: 0 | V90: 0 | W90: 0 | X90: 0 | Y90: 0 | Z90: 0 | AA90: 0 | AB90: 0 | AC90: 0 | AD90: 0 | AE90: 0 | AF90: 0 | AG90: 0 | AH90: 0 | AI90: 0 | AJ90: 0 | AK90: 0 | AL90: 0 | AM90: 0 | AN90: 0 | AO90: 0 | AP90: 0 | AQ90: 0 | AR90: 0 | AS90: 0 | AT90: 0 | AU90: 0 | AV90: 0 | AW90: 0 | AX90: 0 | AY90: 0 | AZ90: 0 | BA90: 0 | BB90: 0 | BC90: 0 | BD90: 0 | BE90: 0 | BF90: 0 | BG90: 0 | BH90: 0 | BI90: 0 | BJ90: 0 | BK90: 0 | BL90: 0 | BM90: 0 | BN90: 0 | BO90: 0 | BP90: 0 | BQ90: 0 | BR90: 0 | BS90: 0 | BT90: 0 | BU90: 0 | BV90: 0 | BW90: 0 | BX90: 0 | BY90: 0 | BZ90: 0 | CA90: 0 | CB90: 0 | CC90: 0 | CD90: 0 | CE90: 0 | CF90: 0 | CG90: 0 | CH90: 0 | CI90: 0 | CJ90: 0 | CK90: 0 | CL90: 0 | CM90: 0 | CN90: 0 | CO90: 0 | CP90: 0 | CQ90: 0 | CR90: 0
C91: Ground Outdoor / Indoor Chamber Mounted; > 132 kV ; > 100 MVA | E91: 0 | F91: 0 | G91: 0 | H91: 0 | I91: 0 | J91: 0 | K91: 0 | L91: 0 | M91: 0 | N91: 0 | O91: 0 | P91: 0 | Q91: 0 | R91: 0 | S91: 0 | T91: 0 | U91: 0 | V91: 0 | W91: 0 | X91: 0 | Y91: 0 | Z91: 0 | AA91: 0 | AB91: 0 | AC91: 0 | AD91: 0 | AE91: 0 | AF91: 0 | AG91: 0 | AH91: 0 | AI91: 0 | AJ91: 0 | AK91: 0 | AL91: 0 | AM91: 0 | AN91: 0 | AO91: 0 | AP91: 0 | AQ91: 0 | AR91: 0 | AS91: 0 | AT91: 0 | AU91: 0 | AV91: 0 | AW91: 0 | AX91: 0 | AY91: 0 | AZ91: 0 | BA91: 0 | BB91: 0 | BC91: 0 | BD91: 0 | BE91: 0 | BF91: 0 | BG91: 0 | BH91: 0 | BI91: 0 | BJ91: 0 | BK91: 0 | BL91: 0 | BM91: 0 | BN91: 0 | BO91: 0 | BP91: 0 | BQ91: 0 | BR91: 0 | BS91: 0 | BT91: 0 | BU91: 0 | BV91: 0 | BW91: 0 | BX91: 0 | BY91: 0 | BZ91: 0 | CA91: 0 | CB91: 0 | CC91: 0 | CD91: 0 | CE91: 0 | CF91: 0 | CG91: 0 | CH91: 0 | CI91: 0 | CJ91: 0 | CK91: 0 | CL91: 0 | CM91: 0 | CN91: 0 | CO91: 0 | CP91: 0 | CQ91: 0 | CR91: 0
C92: Other | E92: 0
B93: SWITCHGEAR BY: HIGHEST OPERATING VOLTAGE ; SWITCH FUNCTION | C93: ˂ = 11 kV ; Fuse | E93: 0
C94: ˂ = 11 kV ; Switch | D94: 63.9852361 | E94: 7.999077203 | F94: 7 | G94: 7 | H94: 0 | I94: 20 | J94: 37 | K94: 17 | L94: 5 | M94: 5 | N94: 13 | O94: 16 | P94: 4 | Q94: 1 | R94: 2 | S94: 2 | T94: 0 | U94: 3 | V94: 0 | W94: 0 | X94: 1 | Y94: 0 | Z94: 4 | AA94: 12 | AB94: 0 | AC94: 0 | AD94: 0 | AE94: 6 | AF94: 11 | AG94: 4 | AH94: 10 | AI94: 5 | AJ94: 19 | AK94: 0 | AL94: 10 | AM94: 42 | AN94: 22 | AO94: 14 | AP94: 28 | AQ94: 23 | AR94: 4 | AS94: 44 | AT94: 30 | AU94: 29 | AV94: 6 | AW94: 8 | AX94: 78 | AY94: 45 | AZ94: 109 | BA94: 147 | BB94: 85 | BC94: 84 | BD94: 119 | BE94: 148 | BF94: 39 | BG94: 45 | BH94: 11 | BI94: 9 | BJ94: 0 | BK94: 3 | BL94: 5 | BM94: 65 | BN94: 3 | BO94: 37 | BP94: 0 | BQ94: 0 | BR94: 3 | BS94: 0 | BT94: 3 | BU94: 0 | BV94: 0 | BW94: 0 | BX94: 0 | BY94: 0 | BZ94: 0 | CA94: 0 | CB94: 0 | CC94: 8 | CD94: 0 | CE94: 0 | CF94: 0 | CG94: 0 | CH94: 0 | CI94: 0 | CJ94: 0 | CK94: 0 | CL94: 0 | CM94: 0 | CN94: 0 | CO94: 0 | CP94: 0 | CQ94: 0 | CR94: 0
C95: ˂ = 11 kV ; Circuit Breaker | D95: 62.40011672 | E95: 7.899374451 | F95: 7 | G95: 20 | H95: 27 | I95: 28 | J95: 65 | K95: 135 | L95: 34 | M95: 21 | N95: 32 | O95: 13 | P95: 32 | Q95: 13 | R95: 14 | S95: 17 | T95: 30 | U95: 31 | V95: 10 | W95: 4 | X95: 32 | Y95: 11 | Z95: 10 | AA95: 0 | AB95: 0 | AC95: 6 | AD95: 4 | AE95: 9 | AF95: 20 | AG95: 28 | AH95: 0 | AI95: 26 | AJ95: 0 | AK95: 31 | AL95: 0 | AM95: 0 | AN95: 4 | AO95: 0 | AP95: 0 | AQ95: 0 | AR95: 0 | AS95: 0 | AT95: 2 | AU95: 11 | AV95: 0 | AW95: 0 | AX95: 0 | AY95: 38 | AZ95: 42 | BA95: 45 | BB95: 37 | BC95: 13 | BD95: 75 | BE95: 64 | BF95: 1 | BG95: 81 | BH95: 20 | BI95: 21 | BJ95: 14 | BK95: 0 | BL95: 1 | BM95: 39 | BN95: 2 | BO95: 10 | BP95: 0 | BQ95: 0 | BR95: 8 | BS95: 0 | BT95: 7 | BU95: 0 | BV95: 0 | BW95: 0 | BX95: 0 | BY95: 0 | BZ95: 0 | CA95: 0 | CB95: 0 | CC95: 0 | CD95: 0 | CE95: 0 | CF95: 0 | CG95: 0 | CH95: 0 | CI95: 0 | CJ95: 0 | CK95: 0 | CL95: 0 | CM95: 0 | CN95: 0 | CO95: 0 | CP95: 0 | CQ95: 0 | CR95: 0
C96: > 11 kV & < = 22 kV ; Switch | D96: 61.02806033 | E96: 7.812045848 | F96: 0 | G96: 0 | H96: 0 | I96: 0 | J96: 0 | K96: 0 | L96: 0 | M96: 0 | N96: 0 | O96: 0 | P96: 0 | Q96: 0 | R96: 0 | S96: 0 | T96: 0 | U96: 0 | V96: 0 | W96: 0 | X96: 0 | Y96: 0 | Z96: 0 | AA96: 0 | AB96: 0 | AC96: 0 | AD96: 0 | AE96: 0 | AF96: 0 | AG96: 0 | AH96: 0 | AI96: 0 | AJ96: 0 | AK96: 0 | AL96: 0 | AM96: 0 | AN96: 0 | AO96: 0 | AP96: 0 | AQ96: 0 | AR96: 0 | AS96: 0 | AT96: 0 | AU96: 0 | AV96: 0 | AW96: 0 | AX96: 0 | AY96: 0 | AZ96: 0 | BA96: 0 | BB96: 0 | BC96: 0 | BD96: 10 | BE96: 0 | BF96: 0 | BG96: 0 | BH96: 0 | BI96: 0 | BJ96: 0 | BK96: 0 | BL96: 0 | BM96: 0 | BN96: 0 | BO96: 0 | BP96: 0 | BQ96: 0 | BR96: 0 | BS96: 0 | BT96: 0 | BU96: 0 | BV96: 0 | BW96: 0 | BX96: 0 | BY96: 0 | BZ96: 0 | CA96: 0 | CB96: 0 | CC96: 0 | CD96: 0 | CE96: 0 | CF96: 0 | CG96: 0 | CH96: 0 | CI96: 0 | CJ96: 0 | CK96: 0 | CL96: 0 | CM96: 0 | CN96: 0 | CO96: 0 | CP96: 0 | CQ96: 0 | CR96: 0
C97: > 11 kV & < = 22 kV ; Circuit Breaker
C98: > 22 kV & < = 33 kV ; Switch | D98: 65.89410308 | E98: 8.117518283 | F98: 4 | G98: 9 | H98: 9 | I98: 60 | J98: 42 | K98: 35 | L98: 33 | M98: 40 | N98: 4 | O98: 6 | P98: 14 | Q98: 20 | R98: 21 | S98: 19 | T98: 6 | U98: 7 | V98: 9 | W98: 4 | X98: 0 | Y98: 0 | Z98: 0 | AA98: 9 | AB98: 0 | AC98: 0 | AD98: 3 | AE98: 21 | AF98: 21 | AG98: 4 | AH98: 6 | AI98: 0 | AJ98: 10 | AK98: 3 | AL98: 3 | AM98: 15 | AN98: 4 | AO98: 3 | AP98: 11 | AQ98: 22 | AR98: 13 | AS98: 6 | AT98: 5 | AU98: 9 | AV98: 3 | AW98: 16 | AX98: 49 | AY98: 18 | AZ98: 6 | BA98: 23 | BB98: 78 | BC98: 40 | BD98: 71 | BE98: 71 | BF98: 32 | BG98: 16 | BH98: 4 | BI98: 3 | BJ98: 0 | BK98: 0 | BL98: 7 | BM98: 26 | BN98: 24 | BO98: 34 | BP98: 8 | BQ98: 1 | BR98: 1 | BS98: 0 | BT98: 1 | BU98: 0 | BV98: 0 | BW98: 0 | BX98: 0 | BY98: 0 | BZ98: 0 | CA98: 0 | CB98: 0 | CC98: 4 | CD98: 4 | CE98: 0 | CF98: 0 | CG98: 0 | CH98: 0 | CI98: 0 | CJ98: 0 | CK98: 0 | CL98: 0 | CM98: 0 | CN98: 0 | CO98: 0 | CP98: 0 | CQ98: 0 | CR98: 0
C99: > 22 kV & < = 33 kV ; Circuit Breaker | D99: 65.71464359 | E99: 8.106456908 | F99: 0 | G99: 11 | H99: 1 | I99: 14 | J99: 18 | K99: 19 | L99: 13 | M99: 10 | N99: 3 | O99: 4 | P99: 7 | Q99: 7 | R99: 11 | S99: 7 | T99: 7 | U99: 2 | V99: 0 | W99: 3 | X99: 0 | Y99: 0 | Z99: 0 | AA99: 0 | AB99: 0 | AC99: 0 | AD99: 0 | AE99: 0 | AF99: 0 | AG99: 10 | AH99: 2 | AI99: 0 | AJ99: 0 | AK99: 0 | AL99: 0 | AM99: 0 | AN99: 0 | AO99: 0 | AP99: 0 | AQ99: 0 | AR99: 0 | AS99: 0 | AT99: 0 | AU99: 0 | AV99: 0 | AW99: 0 | AX99: 0 | AY99: 0 | AZ99: 0 | BA99: 0 | BB99: 0 | BC99: 20 | BD99: 17 | BE99: 0 | BF99: 5 | BG99: 0 | BH99: 2 | BI99: 0 | BJ99: 9 | BK99: 0 | BL99: 3 | BM99: 27 | BN99: 0 | BO99: 0 | BP99: 0 | BQ99: 19 | BR99: 0 | BS99: 0 | BT99: 3 | BU99: 0 | BV99: 0 | BW99: 0 | BX99: 3 | BY99: 0 | BZ99: 0 | CA99: 0 | CB99: 0 | CC99: 0 | CD99: 0 | CE99: 0 | CF99: 0 | CG99: 0 | CH99: 0 | CI99: 0 | CJ99: 0 | CK99: 0 | CL99: 0 | CM99: 0 | CN99: 0 | CO99: 0 | CP99: 0 | CQ99: 0 | CR99: 0
C100: > 33 kV & < = 66 kV ; Switch | D100: 71.91892273 | E100: 8.480502504 | F100: 5 | G100: 6 | H100: 35 | I100: 58 | J100: 73 | K100: 74 | L100: 80 | M100: 70 | N100: 19 | O100: 24 | P100: 18 | Q100: 22 | R100: 12 | S100: 7 | T100: 20 | U100: 20 | V100: 12 | W100: 3 | X100: 2 | Y100: 9 | Z100: 1 | AA100: 12 | AB100: 0 | AC100: 0 | AD100: 0 | AE100: 17 | AF100: 12 | AG100: 0 | AH100: 2 | AI100: 25 | AJ100: 9 | AK100: 4 | AL100: 21 | AM100: 1 | AN100: 5 | AO100: 0 | AP100: 0 | AQ100: 7 | AR100: 4 | AS100: 10 | AT100: 18 | AU100: 6 | AV100: 3 | AW100: 0 | AX100: 12 | AY100: 20 | AZ100: 86 | BA100: 76 | BB100: 38 | BC100: 49 | BD100: 31 | BE100: 73 | BF100: 35 | BG100: 65 | BH100: 22 | BI100: 25 | BJ100: 4 | BK100: 0 | BL100: 30 | BM100: 33 | BN100: 0 | BO100: 40 | BP100: 15 | BQ100: 10 | BR100: 13 | BS100: 0 | BT100: 0 | BU100: 0 | BV100: 0 | BW100: 0 | BX100: 0 | BY100: 0 | BZ100: 0 | CA100: 0 | CB100: 0 | CC100: 0 | CD100: 8 | CE100: 0 | CF100: 0 | CG100: 6 | CH100: 15 | CI100: 0 | CJ100: 0 | CK100: 0 | CL100: 6 | CM100: 0 | CN100: 0 | CO100: 0 | CP100: 0 | CQ100: 0 | CR100: 0
C101: > 33 kV & < = 66 kV ; Circuit Breaker | D101: 59.11575664 | E101: 7.688677171 | F101: 5 | G101: 7 | H101: 10 | I101: 11 | J101: 14 | K101: 40 | L101: 40 | M101: 30 | N101: 15 | O101: 24 | P101: 16 | Q101: 19 | R101: 11 | S101: 2 | T101: 15 | U101: 10 | V101: 8 | W101: 6 | X101: 2 | Y101: 7 | Z101: 1 | AA101: 1 | AB101: 1 | AC101: 0 | AD101: 0 | AE101: 2 | AF101: 8 | AG101: 0 | AH101: 13 | AI101: 6 | AJ101: 4 | AK101: 2 | AL101: 12 | AM101: 11 | AN101: 0 | AO101: 10 | AP101: 0 | AQ101: 0 | AR101: 0 | AS101: 0 | AT101: 0 | AU101: 0 | AV101: 0 | AW101: 0 | AX101: 2 | AY101: 9 | AZ101: 11 | BA101: 24 | BB101: 6 | BC101: 6 | BD101: 3 | BE101: 0 | BF101: 15 | BG101: 12 | BH101: 0 | BI101: 0 | BJ101: 0 | BK101: 0 | BL101: 2 | BM101: 6 | BN101: 0 | BO101: 0 | BP101: 3 | BQ101: 8 | BR101: 0 | BS101: 8 | BT101: 0 | BU101: 0 | BV101: 0 | BW101: 1 | BX101: 0 | BY101: 0 | BZ101: 0 | CA101: 0 | CB101: 0 | CC101: 0 | CD101: 0 | CE101: 0 | CF101: 0 | CG101: 0 | CH101: 0 | CI101: 0 | CJ101: 0 | CK101: 0 | CL101: 0 | CM101: 0 | CN101: 0 | CO101: 0 | CP101: 0 | CQ101: 0 | CR101: 0
C102: > 66 kV & < = 132 kV ; Switch | E102: 0
C103: > 66 kV & < = 132 kV ; Circuit Breaker | E103: 0
C104: > 132 kV ; Switch | E104: 0
C105: > 132 kV ; Circuit Breaker | E105: 0
C106: Other | E106: 0
B107: PUBLIC LIGHTING BY: ASSET TYPE ; LIGHTING OBLIGATION | C107: Luminaires ; Major Road
C108: Luminaires ; Minor Road
C109: Brackets ; Major Road
C110: Brackets ; Minor Road
C111: Lamps ; Major Road
C112: Lamps ; Minor Road
C113: Poles / Columns ; Major Road
C114: Poles / Columns ; Minor Road
C115: Other
B116: SCADA, NETWORK CONTROL AND PROTECTION SYSTEMS BY: FUNCTION | C116: Field Devices | D116: 35.63558339 | E116: 5.969554706 | F116: 109 | G116: 172 | H116: 191 | I116: 209 | J116: 221 | K116: 241 | L116: 211 | M116: 155 | N116: 114 | O116: 80 | P116: 75 | Q116: 63 | R116: 68 | S116: 72 | T116: 69 | U116: 58 | V116: 46 | W116: 40 | X116: 19 | Y116: 19 | Z116: 14 | AA116: 6 | AB116: 15 | AC116: 35 | AD116: 141 | AE116: 214 | AF116: 202 | AG116: 188 | AH116: 188 | AI116: 168 | AJ116: 122 | AK116: 103 | AL116: 121 | AM116: 121 | AN116: 94 | AO116: 85 | AP116: 96 | AQ116: 103 | AR116: 98 | AS116: 93 | AT116: 80 | AU116: 82 | AV116: 76 | AW116: 69 | AX116: 83 | AY116: 111 | AZ116: 136 | BA116: 150 | BB116: 161 | BC116: 147 | BD116: 109 | BE116: 99 | BF116: 105 | BG116: 104 | BH116: 92 | BI116: 80 | BJ116: 81 | BK116: 81 | BL116: 78 | BM116: 80 | BN116: 58 | BO116: 35 | BP116: 23 | BQ116: 6 | BR116: 1 | BS116: 0 | BT116: 0 | BU116: 0 | BV116: 0 | BW116: 0 | BX116: 0 | BY116: 0 | BZ116: 0 | CA116: 0 | CB116: 0 | CC116: 0 | CD116: 0 | CE116: 0 | CF116: 0 | CG116: 0 | CH116: 1 | CI116: 1 | CJ116: 1 | CK116: 1 | CL116: 1 | CM116: 0 | CN116: 1 | CO116: 1 | CP116: 1 | CQ116: 1 | CR116: 1
C117: Local Network Wiring Assets
C118: Communications Network Assets | D118: 10 | E118: 3.16227766 | F118: 10 | G118: 3.2 | H118: 209 | I118: 257 | J118: 206 | K118: 141 | L118: 414 | M118: 274 | N118: 283 | O118: 202 | P118: 88 | Q118: 63 | R118: 254 | S118: 190 | T118: 42 | U118: 49 | V118: 0 | W118: 18 | X118: 0 | Y118: 0 | Z118: 1 | AA118: 12 | AB118: 0 | AC118: 3 | AD118: 14 | AE118: 3 | AF118: 24 | AG118: 1 | AH118: 2 | AI118: 4 | AJ118: 0 | AK118: 0 | AL118: 0 | AM118: 7 | AN118: 1 | AO118: 4 | AP118: 3 | AQ118: 3 | AR118: 0 | AS118: 0 | AT118: 0 | AU118: 0 | AV118: 0 | AW118: 0 | AX118: 0 | AY118: 0 | AZ118: 0 | BA118: 0 | BB118: 0 | BC118: 0 | BD118: 0 | BE118: 0 | BF118: 0 | BG118: 0 | BH118: 0 | BI118: 0 | BJ118: 0 | BK118: 0 | BL118: 0 | BM118: 0 | BN118: 0 | BO118: 0 | BP118: 0 | BQ118: 0 | BR118: 0 | BS118: 0 | BT118: 0 | BU118: 0 | BV118: 0 | BW118: 0 | BX118: 0 | BY118: 0 | BZ118: 0 | CA118: 0 | CB118: 0 | CC118: 0 | CD118: 0 | CE118: 0 | CF118: 0 | CG118: 0 | CH118: 0 | CI118: 0 | CJ118: 0 | CK118: 0 | CL118: 0
C119: Master Station Assets | D119: 12 | E119: 3.464101615 | F119: 9 | G119: 12 | H119: 33 | I119: 23 | J119: 22 | K119: 14 | L119: 8 | M119: 18 | N119: 18 | O119: 16 | P119: 24 | Q119: 34 | R119: 29 | S119: 28 | T119: 14 | U119: 22 | V119: 0 | W119: 16 | AG119: 0 | AQ119: 0 | BA119: 0 | BK119: 0 | BU119: 0 | CE119: 0 | CO119: 0
C120: Communications Site Infrastructure | D120: 25 | E120: 5 | F120: 25 | G120: 5 | H120: 0 | I120: 0 | J120: 2 | K120: 0 | L120: 0 | M120: 1 | N120: 0 | O120: 0 | P120: 1 | Q120: 3 | R120: 7 | S120: 1 | T120: 5 | U120: 8 | V120: 5 | W120: 2 | X120: 0 | Y120: 0 | Z120: 1 | AA120: 0 | AB120: 0 | AC120: 0 | AD120: 0 | AE120: 0 | AF120: 0 | AG120: 2 | AH120: 1 | AI120: 4 | AJ120: 1 | AK120: 7 | AL120: 0 | AM120: 3 | AN120: 1 | AO120: 1 | AP120: 0 | AQ120: 0 | AR120: 6 | AS120: 0 | AT120: 1 | AU120: 0 | AV120: 1 | AW120: 1 | AX120: 1 | AY120: 0 | AZ120: 0 | BA120: 0 | BB120: 2 | BC120: 0 | BD120: 1 | BE120: 0 | BF120: 0 | BG120: 0 | BH120: 0 | BI120: 0 | BJ120: 0 | BK120: 0 | BL120: 0 | BM120: 0 | BN120: 0 | BO120: 0 | BP120: 0 | BQ120: 0 | BR120: 0 | BS120: 0 | BT120: 0 | BU120: 0 | BV120: 0 | BW120: 0 | BX120: 0 | BY120: 0 | BZ120: 0 | CA120: 0 | CB120: 0 | CC120: 0 | CD120: 0 | CE120: 0 | CF120: 0 | CG120: 0 | CH120: 0 | CI120: 0 | CJ120: 0 | CK120: 0 | CL120: 0
C121: Communications Linear Assets | D121: 32.5 | E121: 5.700877125 | F121: 32.5 | G121: 5.697 | H121: 17.89 | I121: 117.51 | J121: 92.931 | K121: 91.675 | L121: 210.8 | M121: 205.9 | N121: 186.56 | O121: 180.26 | P121: 172.8 | Q121: 157.9 | R121: 182 | S121: 161.55 | T121: 153.95 | U121: 169.6 | V121: 90.8 | W121: 82.91 | X121: 26.63 | Y121: 25.21 | Z121: 23.31 | AA121: 24.55 | AB121: 8.74 | AC121: 1.46 | AD121: 2.91 | AE121: 4.37 | AF121: 4.37 | AG121: 7.28 | AH121: 26.22 | AI121: 4.37 | AJ121: 7.28 | AK121: 5.83 | AL121: 5.83 | AM121: 2.91 | AN121: 2.91 | AO121: 11.65 | AP121: 8.74 | AQ121: 10.2 | AR121: 2.91 | AS121: 5.83 | AT121: 17.48 | AU121: 17.48 | AV121: 13.11 | AW121: 8.74 | AX121: 1.46 | AY121: 0 | AZ121: 1.46 | BA121: 15.95 | BB121: 29.13 | BC121: 28.63 | BD121: 17.05 | BE121: 19.91 | BF121: 13.11 | BG121: 28.25 | BH121: 7.28 | BI121: 1.46 | BJ121: 13.11 | BK121: 0 | BL121: 7.28 | BM121: 0 | BN121: 1.46 | BO121: 7.28 | BP121: 5.83 | BQ121: 11.65 | BR121: 0 | BS121: 0 | BT121: 0 | BU121: 0 | BV121: 0 | BW121: 0 | BX121: 0 | BY121: 0 | BZ121: 0 | CA121: 8.74 | CB121: 0 | CC121: 0 | CD121: 0 | CE121: 0 | CF121: 0 | CG121: 0 | CH121: 0 | CI121: 0 | CJ121: 0 | CK121: 0 | CL121: 0
C122: AFLC | E122: 0
C123: Other | E123: 0
B124: OTHER BY: DNSP DEFINED | C124: ˂ = 1 kV; stobie pole | D124: 80.31030418 | E124: 8.961601653 | F124: 1498.392783 | G124: 1281.552865 | H124: 1396.238106 | I124: 1564.516249 | J124: 1800.45442 | K124: 801.757049 | L124: 572.0920106 | M124: 516.8433844 | N124: 535.6263401 | O124: 545.4482183 | P124: 433.5094876 | Q124: 368.5520911 | R124: 413.5999679 | S124: 477.8283777 | T124: 474.8561076 | U124: 552.5407441 | V124: 761.1856682 | W124: 751.7736296 | X124: 436.869053 | Y124: 229.4584719 | Z124: 587.4152805 | AA124: 838.4518164 | AB124: 700.4503519 | AC124: 1001.775415 | AD124: 1706.349878 | AE124: 2114.776794 | AF124: 2128.286904 | AG124: 1922.501211 | AH124: 1970.442469 | AI124: 1478.727667 | AJ124: 1596.015436 | AK124: 1845.391666 | AL124: 2156.479848 | AM124: 2388.285647 | AN124: 2231.07405 | AO124: 2295.372477 | AP124: 2347.676164 | AQ124: 2503.556399 | AR124: 2792.905873 | AS124: 3376.627136 | AT124: 3527.347103 | AU124: 3405.277416 | AV124: 3932.950993 | AW124: 3725.225789 | AX124: 3883.429584 | AY124: 4860.742011 | AZ124: 5192.304961 | BA124: 4888.351049 | BB124: 4524.664744 | BC124: 4624.052253 | BD124: 6309.714213 | BE124: 7302.627482 | BF124: 7194.981425 | BG124: 8255.419856 | BH124: 8433.976232 | BI124: 8631.608568 | BJ124: 8822.729803 | BK124: 8074.452549 | BL124: 8472.821728 | BM124: 7949.06362 | BN124: 7052.293974 | BO124: 7361.123526 | BP124: 6791.065419 | BQ124: 5777.805885 | BR124: 6194.011201 | BS124: 3090.92205 | BT124: 1487.895074 | BU124: 2190.80962 | BV124: 1017.72114 | BW124: 628.0581312 | BX124: 602.4226924 | BY124: 603.0454105 | BZ124: 549.2905689 | CA124: 462.0503508 | CB124: 640.6931997 | CC124: 925.1831754 | CD124: 1482.283501 | CE124: 1975.895023 | CF124: 1755.057332 | CG124: 1187.190634 | CH124: 1685.172046 | CI124: 1861.513377 | CJ124: 1073.63376 | CK124: 754.9687106 | CL124: 419.9471501 | CM124: 50.31487566 | CN124: 0 | CO124: 0 | CP124: 0 | CQ124: 0 | CR124: 0
C125: > 1 kV & < = 11 kV; stobie pole | D125: 82.3124382 | E125: 9.07262025 | F125: 1528.340674 | G125: 1214.935913 | H125: 1728.863071 | I125: 1542.551272 | J125: 1305.604372 | K125: 1187.640117 | L125: 982.4407302 | M125: 923.7229594 | N125: 916.9520684 | O125: 862.1285879 | P125: 764.6143254 | Q125: 719.1245212 | R125: 649.1046478 | S125: 682.0651525 | T125: 593.8214928 | U125: 727.0800706 | V125: 774.1211237 | W125: 933.7184961 | X125: 694.7908967 | Y125: 255.39794 | Z125: 1245.041384 | AA125: 1561.577203 | AB125: 1658.839498 | AC125: 1503.465439 | AD125: 2256.358366 | AE125: 3059.662366 | AF125: 2913.245772 | AG125: 3657.731293 | AH125: 4150.937048 | AI125: 3326.385661 | AJ125: 3432.931887 | AK125: 3964.53851 | AL125: 4332.176503 | AM125: 4627.804978 | AN125: 4027.250384 | AO125: 3932.623043 | AP125: 4515.433306 | AQ125: 4754.742928 | AR125: 5091.572087 | AS125: 5928.685023 | AT125: 5909.524232 | AU125: 5494.13772 | AV125: 5715.43772 | AW125: 5280.472674 | AX125: 5366.690141 | AY125: 6782.382501 | AZ125: 7497.792082 | BA125: 7357.89009 | BB125: 7225.96947 | BC125: 7470.988577 | BD125: 8605.436717 | BE125: 10143.20331 | BF125: 9376.689648 | BG125: 9543.753518 | BH125: 9981.28841 | BI125: 9158.191745 | BJ125: 8543.894705 | BK125: 6956.721739 | BL125: 6205.76549 | BM125: 6065.314931 | BN125: 7119.820713 | BO125: 8165.185254 | BP125: 6576.241605 | BQ125: 5771.183952 | BR125: 6050.215884 | BS125: 5069.429184 | BT125: 2955.50333 | BU125: 1430.803223 | BV125: 526.4074864 | BW125: 530.845501 | BX125: 504.5818485 | BY125: 569.2371921 | BZ125: 631.496745 | CA125: 365.7694933 | CB125: 394.1855258 | CC125: 660.9362084 | CD125: 965.4643671 | CE125: 1066.448633 | CF125: 1251.826114 | CG125: 1208.603948 | CH125: 1651.386721 | CI125: 1938.400364 | CJ125: 1454.489737 | CK125: 492.1374381 | CL125: 38.44926719 | CM125: 0 | CN125: 0 | CO125: 0 | CP125: 0 | CQ125: 0 | CR125: 0
C126: ˃ 11 kV & < = 22 kV; stobie pole | D126: 71.50537745 | E126: 8.456085232 | F126: 248.5674904 | G126: 257.4317446 | H126: 195.5683021 | I126: 237.9279023 | J126: 133.9608412 | K126: 188.94418 | L126: 157.3593769 | M126: 131.960013 | N126: 168.9502386 | O126: 200.9391108 | P126: 170.9481987 | Q126: 73.25939495 | R126: 87.97334203 | S126: 92.97182737 | T126: 98.97000979 | U126: 94.15533861 | V126: 95.97235263 | W126: 137.9581955 | X126: 101.969101 | Y126: 22.99303258 | Z126: 361.3274866 | AA126: 699.1291161 | AB126: 720.6837022 | AC126: 362.0528713 | AD126: 648.6105857 | AE126: 990.0257178 | AF126: 982.9780492 | AG126: 1177.896687 | AH126: 1062.861557 | AI126: 845.782994 | AJ126: 874.2965242 | AK126: 944.3568067 | AL126: 984.3156593 | AM126: 1080.839992 | AN126: 1333.544584 | AO126: 1436.336954 | AP126: 1263.828296 | AQ126: 1066.297796 | AR126: 937.8757695 | AS126: 1254.488674 | AT126: 2103.026114 | AU126: 3829.280635 | AV126: 4407.31862 | AW126: 4139.357824 | AX126: 4216.056741 | AY126: 4648.253529 | AZ126: 5646.126809 | BA126: 4983.181322 | BB126: 4093.466207 | BC126: 4539.508672 | BD126: 4360.944502 | BE126: 4296.9488 | BF126: 4143.533163 | BG126: 5526.904331 | BH126: 6609.52786 | BI126: 4697.998893 | BJ126: 3834.664645 | BK126: 3741.361176 | BL126: 2184.120164 | BM126: 734.6298821 | BN126: 323.9002876 | BO126: 226.9476398 | BP126: 186.241417 | BQ126: 125.572072 | BR126: 105.1510336 | BS126: 162.3993993 | BT126: 821.5362552 | BU126: 212.4061828 | BV126: 0 | BW126: 0 | BX126: 0.2242076961 | BY126: 1.691774941 | BZ126: 0 | CA126: 0 | CB126: 4.377499477 | CC126: 34.43117249 | CD126: 0 | CE126: 0 | CF126: 13.71946275 | CG126: 38.06349086 | CH126: 31.73924922 | CI126: 18.02762542 | CJ126: 42.37139163 | CK126: 16.86377701 | CL126: 0 | CM126: 0 | CN126: 0 | CO126: 0 | CP126: 0 | CQ126: 0 | CR126: 0
C127: > 22 kV & < = 66 kV; stobie pole | D127: 97.74443709 | E127: 9.886578634 | F127: 93.83672327 | G127: 158.6497961 | H127: 101.7753409 | I127: 95.97091858 | J127: 175.9466841 | K127: 256.9221466 | L127: 203.5345985 | M127: 174.946987 | N127: 158.9518339 | O127: 187.9430489 | P127: 211.9357785 | Q127: 88.48777685 | R127: 91.97213031 | S127: 81.97515962 | T127: 122.9627394 | U127: 58.57991377 | V127: 106.9675863 | W127: 100.9694039 | X127: 47.98545929 | Y127: 17.99454723 | Z127: 217.5047519 | AA127: 350.5528058 | AB127: 385.9823867 | AC127: 488.6893341 | AD127: 871.9429213 | AE127: 872.4132545 | AF127: 717.5175965 | AG127: 766.2512605 | AH127: 871.6606075 | AI127: 882.7784939 | AJ127: 1027.930001 | AK127: 1315.976577 | AL127: 1249.764786 | AM127: 733.0592062 | AN127: 485.3831705 | AO127: 454.8850314 | AP127: 589.4363921 | AQ127: 519.239429 | AR127: 380.1412961 | AS127: 669.4008877 | AT127: 1415.600535 | AU127: 1383.526422 | AV127: 779.3730085 | AW127: 949.3979528 | AX127: 1147.114012 | AY127: 1149.563907 | AZ127: 1344.072391 | BA127: 2077.514977 | BB127: 2254.132772 | BC127: 2087.202526 | BD127: 3086.159359 | BE127: 3222.518327 | BF127: 2450.58028 | BG127: 2532.314752 | BH127: 2190.221505 | BI127: 2292.6007 | BJ127: 1892.014948 | BK127: 1829.883051 | BL127: 1934.964155 | BM127: 1820.168235 | BN127: 1931.146271 | BO127: 2352.596414 | BP127: 2132.591865 | BQ127: 1611.640269 | BR127: 3055.221424 | BS127: 4726.478735 | BT127: 2196.084326 | BU127: 242.3628857 | BV127: 155.7825958 | BW127: 304.7316279 | BX127: 461.5388826 | BY127: 513.2847028 | BZ127: 237.7004726 | CA127: 206.9012687 | CB127: 580.5971262 | CC127: 698.1225576 | CD127: 444.5948751 | CE127: 607.1725063 | CF127: 1164.614283 | CG127: 1346.979965 | CH127: 807.041866 | CI127: 376.4746065 | CJ127: 429.8143646 | CK127: 254.0624766 | CL127: 268.991066 | CM127: 200.2919089 | CN127: 0 | CO127: 0 | CP127: 0 | CQ127: 0 | CR127: 0
C128: > 66 kV & < = 132 kV; stobie pole | D128: 86.28428567 | E128: 9.288933505 | F128: 0 | G128: 0 | H128: 0 | I128: 0 | J128: 0 | K128: 0 | L128: 0 | M128: 0 | N128: 0 | O128: 0 | P128: 73.871463 | Q128: 0 | R128: 0 | S128: 0 | T128: 0 | U128: 0 | V128: 0 | W128: 0 | X128: 0 | Y128: 0 | Z128: 0 | AA128: 0 | AB128: 0 | AC128: 0 | AD128: 0 | AE128: 0 | AF128: 0 | AG128: 0 | AH128: 0 | AI128: 0 | AJ128: 0 | AK128: 0 | AL128: 0 | AM128: 0 | AN128: 0 | AO128: 0 | AP128: 0 | AQ128: 0 | AR128: 0 | AS128: 0 | AT128: 0 | AU128: 0 | AV128: 0 | AW128: 0 | AX128: 0 | AY128: 0 | AZ128: 0 | BA128: 0 | BB128: 0 | BC128: 0 | BD128: 0 | BE128: 0 | BF128: 0 | BG128: 0 | BH128: 0 | BI128: 0 | BJ128: 0 | BK128: 0 | BL128: 0 | BM128: 0 | BN128: 0 | BO128: 0 | BP128: 0 | BQ128: 0 | BR128: 0 | BS128: 0 | BT128: 0 | BU128: 0 | BV128: 0 | BW128: 0 | BX128: 0 | BY128: 0 | BZ128: 0 | CA128: 0 | CB128: 0 | CC128: 0 | CD128: 0 | CE128: 0 | CF128: 0 | CG128: 0 | CH128: 0 | CI128: 0 | CJ128: 0 | CK128: 0 | CL128: 0 | CM128: 0 | CN128: 0 | CO128: 0 | CP128: 0 | CQ128: 0 | CR128: 0
C129: > 132 kV; stobie pole | D129: 50 | E129: 7.071067812
C130: Pole REFURBISHED; STOBIE Pole | D130: 20 | E130: 4.472135955 | F130: 4102 | G130: 2676 | H130: 3715 | I130: 2563 | J130: 3210 | K130: 3005 | L130: 1811 | M130: 917 | N130: 1232 | O130: 2349 | P130: 2467 | Q130: 430 | R130: 0 | S130: 0 | T130: 0 | U130: 0 | V130: 0 | W130: 0 | X130: 0 | Y130: 0 | Z130: 0 | AA130: 0 | AB130: 0 | AC130: 0 | AD130: 0 | AE130: 0 | AF130: 0 | AG130: 0 | AH130: 0 | AI130: 0 | AJ130: 0 | AK130: 0 | AL130: 0 | AM130: 0 | AN130: 0 | AO130: 0 | AP130: 0 | AQ130: 0 | AR130: 0 | AS130: 0 | AT130: 0 | AU130: 0 | AV130: 0 | AW130: 0 | AX130: 0 | AY130: 0 | AZ130: 0 | BA130: 0 | BB130: 0 | BC130: 0 | BD130: 0 | BE130: 0 | BF130: 0 | BG130: 0 | BH130: 0 | BI130: 0 | BJ130: 0 | BK130: 0 | BL130: 0 | BM130: 0 | BN130: 0 | BO130: 0 | BP130: 0 | BQ130: 0 | BR130: 0 | BS130: 0 | BT130: 0 | BU130: 0 | BV130: 0 | BW130: 0 | BX130: 0 | BY130: 0 | BZ130: 0 | CA130: 0 | CB130: 0 | CC130: 0 | CD130: 0 | CE130: 0 | CF130: 0 | CG130: 0 | CH130: 0 | CI130: 0 | CJ130: 0 | CK130: 0 | CL130: 0 | CM130: 0 | CN130: 0 | CO130: 0 | CP130: 0 | CQ130: 0 | CR130: 0
C131: Pole Mounted ;> = 22 kV & < = 33 kV ; < = 60kVA | D131: 60.14347317 | E131: 7.755222316 | F131: 44 | G131: 15 | H131: 29 | I131: 24 | J131: 6 | K131: 13 | L131: 17 | M131: 11 | N131: 8 | O131: 9 | P131: 12 | Q131: 15 | R131: 12 | S131: 10 | T131: 12 | U131: 13 | V131: 12 | W131: 15 | X131: 17 | Y131: 19 | Z131: 19 | AA131: 32 | AB131: 29 | AC131: 23 | AD131: 26 | AE131: 24 | AF131: 30 | AG131: 32 | AH131: 27 | AI131: 34 | AJ131: 27 | AK131: 17 | AL131: 10 | AM131: 8 | AN131: 9 | AO131: 12 | AP131: 10 | AQ131: 12 | AR131: 18 | AS131: 14 | AT131: 11 | AU131: 15 | AV131: 13 | AW131: 17 | AX131: 18 | AY131: 25 | AZ131: 26 | BA131: 21 | BB131: 24 | BC131: 22 | BD131: 19 | BE131: 18 | BF131: 14 | BG131: 22 | BH131: 16 | BI131: 6 | BJ131: 9 | BK131: 7 | BL131: 5 | BM131: 10 | BN131: 8 | BO131: 4 | BP131: 3 | BQ131: 1 | BR131: 0 | BS131: 0 | BT131: 0 | BU131: 0 | BV131: 0 | BW131: 0 | BX131: 0 | BY131: 0 | BZ131: 0 | CA131: 0 | CB131: 0 | CC131: 0 | CD131: 0 | CE131: 0 | CF131: 0 | CG131: 0 | CH131: 0 | CI131: 0 | CJ131: 0 | CK131: 0 | CL131: 0 | CM131: 0 | CN131: 0 | CO131: 0 | CP131: 0 | CQ131: 0 | CR131: 0
C132: Pole Mounted ;> = 22 kV & < = 33 kV ; > 60 KVA AND < = 600 KVA | D132: 55.43155852 | E132: 7.445237304 | F132: 20 | G132: 23 | H132: 34 | I132: 14 | J132: 10 | K132: 21 | L132: 25 | M132: 18 | N132: 14 | O132: 15 | P132: 13 | Q132: 12 | R132: 13 | S132: 17 | T132: 14 | U132: 9 | V132: 10 | W132: 11 | X132: 7 | Y132: 12 | Z132: 14 | AA132: 16 | AB132: 20 | AC132: 16 | AD132: 15 | AE132: 12 | AF132: 10 | AG132: 15 | AH132: 21 | AI132: 18 | AJ132: 10 | AK132: 10 | AL132: 11 | AM132: 9 | AN132: 4 | AO132: 8 | AP132: 7 | AQ132: 6 | AR132: 8 | AS132: 8 | AT132: 5 | AU132: 4 | AV132: 3 | AW132: 5 | AX132: 7 | AY132: 9 | AZ132: 16 | BA132: 13 | BB132: 16 | BC132: 13 | BD132: 9 | BE132: 9 | BF132: 13 | BG132: 8 | BH132: 4 | BI132: 1 | BJ132: 2 | BK132: 2 | BL132: 5 | BM132: 2 | BN132: 1 | BO132: 3 | BP132: 1 | BQ132: 0 | BR132: 0 | BS132: 0 | BT132: 0 | BU132: 0 | BV132: 0 | BW132: 0 | BX132: 0 | BY132: 0 | BZ132: 0 | CA132: 0 | CB132: 0 | CC132: 0 | CD132: 0 | CE132: 0 | CF132: 0 | CG132: 0 | CH132: 0 | CI132: 0 | CJ132: 0 | CK132: 0 | CL132: 0 | CM132: 0 | CN132: 0 | CO132: 0 | CP132: 0 | CQ132: 0 | CR132: 0
C133: Kiosk Mounted; > = 22 kV & < = 33 kV ; | D133: 63.48884422 | E133: 7.967988719 | F133: 3 | G133: 4 | H133: 3 | I133: 3 | J133: 1 | K133: 1 | L133: 1 | M133: 2 | N133: 3 | O133: 4 | P133: 4 | Q133: 3 | R133: 2 | S133: 2 | T133: 1 | U133: 1 | V133: 1 | W133: 2 | X133: 2 | Y133: 3 | Z133: 2 | AA133: 0 | AB133: 0 | AC133: 0 | AD133: 0 | AE133: 0 | AF133: 0 | AG133: 0 | AH133: 1 | AI133: 2 | AJ133: 1 | AK133: 0 | AL133: 0 | AM133: 0 | AN133: 0 | AO133: 0 | AP133: 0 | AQ133: 0 | AR133: 0 | AS133: 0 | AT133: 0 | AU133: 0 | AV133: 0 | AW133: 0 | AX133: 1 | AY133: 2 | AZ133: 1 | BA133: 0 | BB133: 0 | BC133: 0 | BD133: 0 | BE133: 0 | BF133: 0 | BG133: 0 | BH133: 0 | BI133: 0 | BJ133: 0 | BK133: 0 | BL133: 0 | BM133: 0 | BN133: 0 | BO133: 0 | BP133: 0 | BQ133: 0 | BR133: 0 | BS133: 0 | BT133: 0 | BU133: 0 | BV133: 0 | BW133: 0 | BX133: 0 | BY133: 0 | BZ133: 0 | CA133: 0 | CB133: 0 | CC133: 0 | CD133: 0 | CE133: 0 | CF133: 0 | CG133: 0 | CH133: 0 | CI133: 0 | CJ133: 0 | CK133: 0 | CL133: 0 | CM133: 0 | CN133: 0 | CO133: 0 | CP133: 0 | CQ133: 0 | CR133: 0
C134: Recloser ;SWITCHGEAR | D134: 36.31858243 | E134: 6.026490059 | F134: 161 | G134: 203 | H134: 195 | I134: 158 | J134: 189 | K134: 162 | L134: 69 | M134: 83 | N134: 265 | O134: 48 | P134: 5 | Q134: 18 | R134: 82 | S134: 86 | T134: 34 | U134: 9 | V134: 13 | W134: 5 | X134: 8 | Y134: 11 | Z134: 10 | AA134: 13 | AB134: 16 | AC134: 16 | AD134: 9 | AE134: 9 | AF134: 11 | AG134: 11 | AH134: 20 | AI134: 21 | AJ134: 21 | AK134: 29 | AL134: 15 | AM134: 20 | AN134: 16 | AO134: 12 | AP134: 5 | AQ134: 9 | AR134: 6 | AS134: 0 | AT134: 0 | AU134: 6 | AV134: 2 | AW134: 2 | AX134: 0 | AY134: 11 | AZ134: 37 | BA134: 0 | BB134: 0 | BC134: 0 | BD134: 0
C135: Sectionalizer ;SWITCHGEAR | D135: 42.43084879 | E135: 6.51389659 | F135: 18 | G135: 45 | H135: 7 | I135: 16 | J135: 14 | K135: 50 | L135: 35 | M135: 38 | N135: 33 | O135: 44 | P135: 33 | Q135: 4 | R135: 0 | S135: 0 | T135: 21 | U135: 26 | V135: 12 | W135: 6 | X135: 7 | Y135: 4 | Z135: 1 | AA135: 1 | AB135: 1 | AC135: 1 | AD135: 2 | AE135: 6 | AF135: 6 | AG135: 15 | AH135: 18.27045075 | AI135: 15.5542571 | AJ135: 9.706176962 | AK135: 12.56093489 | AL135: 23.97996661 | AM135: 13.13188648 | AN135: 10.27712855 | AO135: 11.98998331 | AP135: 19.98330551 | AQ135: 19.41235392 | AR135: 13.70283806 | AS135: 18.84140234 | AT135: 21.12520868 | AU135: 18.27045075 | AV135: 14.84140234 | AW135: 17.97996661 | AX135: 12.27045075 | AY135: 7.131886477 | AZ135: 5.993322204 | BA135: 5.422370618 | BB135: 4.851419032 | BC135: 3.138564274 | BD135: 6 | BE135: 3 | BF135: 0 | BG135: 0 | BH135: 0 | BI135: 0 | BJ135: 0 | BK135: 0 | BL135: 0 | BM135: 0 | BN135: 0 | BO135: 0 | BP135: 0 | BQ135: 0 | BR135: 0 | BS135: 0 | BT135: 0 | BU135: 0 | BV135: 0 | BW135: 0 | BX135: 0 | BY135: 0 | BZ135: 0 | CA135: 0 | CB135: 0 | CC135: 0 | CD135: 0 | CE135: 0 | CF135: 0 | CG135: 0 | CH135: 0 | CI135: 0 | CJ135: 0 | CK135: 0 | CL135: 0 | CM135: 0 | CN135: 0 | CO135: 0 | CP135: 0 | CQ135: 0 | CR135: 0
C136: >= 11 kV & < ≈ 22 kV ; LOAD BREAK SWITCH; GROUND LEVEL (Switching Cubicle);SWITCHGEAR | D136: 47.40534283 | E136: 6.885153799 | F136: 123 | G136: 259 | H136: 257 | I136: 301 | J136: 256 | K136: 399 | L136: 378 | M136: 450 | N136: 454 | O136: 417 | P136: 335 | Q136: 553 | R136: 377 | S136: 289 | T136: 278 | U136: 153 | V136: 52 | W136: 25 | X136: 115 | Y136: 84 | Z136: 422 | AA136: 0 | AB136: 4 | AC136: 0 | AD136: 1 | AE136: 457 | AF136: 13 | AG136: 39 | AH136: 50 | AI136: 25 | AJ136: 23 | AK136: 265 | AL136: 2 | AM136: 1 | AN136: 0 | AO136: 1 | AP136: 115 | AQ136: 1 | AR136: 0 | AS136: 0 | AT136: 0 | AU136: 100 | AV136: 0 | AW136: 2 | AX136: 4 | AY136: 4 | AZ136: 5 | BA136: 4 | BB136: 7 | BC136: 10 | BD136: 8 | BE136: 10 | BF136: 10 | BG136: 10 | BH136: 10 | BI136: 7 | BJ136: 9 | BK136: 9 | BL136: 10 | BM136: 9 | BN136: 10 | BO136: 3 | BP136: 4 | BQ136: 0 | BR136: 0 | BS136: 0 | BT136: 0
C137: > 22 kV & < ≈ 33 kV ; LOAD BREAK SWITCH; GROUND LEVEL (Switching Cubicle);SWITCHGEAR | D137: 61 | E137: 7.810249676 | M137: 2 | N137: 2
C139: Pipework Switchyard Substations | F139: 0 | G139: 0 | H139: 0 | I139: 0 | J139: 0 | K139: 0 | L139: 0 | M139: 0 | N139: 0 | O139: 0 | P139: 0 | Q139: 0 | R139: 0 | S139: 0 | T139: 0 | U139: 0 | V139: 0 | W139: 0 | X139: 0 | Y139: 0 | Z139: 0 | AA139: 0 | AB139: 0 | AC139: 0 | AD139: 0 | AE139: 1 | AF139: 1 | AG139: 0 | AH139: 1 | AI139: 0 | AJ139: 0 | AK139: 0 | AL139: 0 | AM139: 3 | AN139: 0 | AO139: 0 | AP139: 0 | AQ139: 0 | AR139: 0 | AS139: 0 | AT139: 0 | AU139: 0 | AV139: 1 | AW139: 0 | AX139: 3 | AY139: 7 | AZ139: 2 | BA139: 4 | BB139: 1 | BC139: 2 | BD139: 5 | BE139: 3 | BF139: 2 | BG139: 3 | BH139: 1 | BI139: 2 | BJ139: 0 | BK139: 0 | BL139: 1 | BM139: 1 | BN139: 0 | BO139: 2 | BP139: 1 | BQ139: 0 | BR139: 0 | BS139: 0 | BT139: 1 | BU139: 0 | BV139: 0 | BW139: 0 | BX139: 0 | BY139: 0 | BZ139: 0 | CA139: 1 | CB139: 0 | CC139: 1 | CD139: 0 | CE139: 0 | CF139: 0 | CG139: 0 | CH139: 0 | CI139: 0 | CJ139: 0 | CK139: 0 | CL139: 0 | CM139: 0 | CN139: 0 | CO139: 0 | CP139: 0 | CQ139: 0 | CR139: 0
C140: Ground Outdoor / Indoor Chamber Mounted; > 33 kV & < = 66 kV ; > 15 MVA and < = 40 MVA REFURBISHED | F140: 1 | G140: 0 | H140: 2 | I140: 5 | J140: 1 | K140: 8 | L140: 4 | M140: 4 | N140: 4 | O140: 2 | P140: 4 | Q140: 2 | R140: 5 | S140: 2 | T140: 5 | U140: 4 | V140: 4 | W140: 0 | X140: 1 | Y140: 0 | Z140: 0 | AA140: 2 | AB140: 0 | AC140: 3 | AD140: 0 | AE140: 1 | AF140: 5 | AG140: 1 | AH140: 3 | AI140: 0 | AJ140: 1 | AK140: 4 | AL140: 0 | AM140: 2 | AN140: 4 | AO140: 2 | AP140: 0 | AQ140: 4 | AR140: 1 | AS140: 4 | AT140: 0 | AU140: 0 | AV140: 0 | AW140: 0 | AX140: 1 | AY140: 4 | AZ140: 0 | BA140: 5 | BB140: 6 | BC140: 4 | BD140: 3 | BE140: 0 | BF140: 0 | BG140: 0 | BH140: 0 | BI140: 0 | BJ140: 0 | BK140: 0 | BL140: 0 | BM140: 0 | BN140: 3 | BO140: 3 | BP140: 0 | BQ140: 0 | BR140: 0 | BS140: 0 | BT140: 0 | BU140: 0 | BV140: 0 | BW140: 0 | BX140: 0 | BY140: 0 | BZ140: 0 | CA140: 0 | CB140: 0 | CC140: 0 | CD140: 0 | CE140: 0 | CF140: 0 | CG140: 0 | CH140: 0 | CI140: 0 | CJ140: 0 | CK140: 0 | CL140: 0 | CM140: 0 | CN140: 0 | CO140: 0 | CP140: 0 | CQ140: 0 | CR140: 0
C141: Ground Outdoor / Indoor Chamber Mounted; > = 22 kV & < = 33 kV ; < = 15 MVA REFURBISHED | F141: 7 | G141: 5 | H141: 6 | I141: 2 | J141: 7 | K141: 11 | L141: 6 | M141: 7 | N141: 4 | O141: 3 | P141: 4 | Q141: 2 | R141: 2 | S141: 5 | T141: 4 | U141: 8 | V141: 9 | W141: 1 | X141: 1 | Y141: 2 | Z141: 0 | AA141: 2 | AB141: 0 | AC141: 1 | AD141: 0 | AE141: 14 | AF141: 2 | AG141: 3 | AH141: 0 | AI141: 27 | AJ141: 0 | AK141: 7 | AL141: 0 | AM141: 9 | AN141: 16 | AO141: 0 | AP141: 0 | AQ141: 1 | AR141: 3 | AS141: 0 | AT141: 6 | AU141: 5 | AV141: 13 | AW141: 0 | AX141: 3 | AY141: 0 | AZ141: 3 | BA141: 19 | BB141: 2 | BC141: 0 | BD141: 14 | BE141: 9 | BF141: 0 | BG141: 5 | BH141: 8 | BI141: 6 | BJ141: 2 | BK141: 0 | BL141: 3 | BM141: 4 | BN141: 7 | BO141: 7 | BP141: 5 | BQ141: 2 | BR141: 0 | BS141: 4 | BT141: 0 | BU141: 0 | BV141: 0 | BW141: 0 | BX141: 0 | BY141: 0 | BZ141: 0 | CA141: 0 | CB141: 0 | CC141: 0 | CD141: 0 | CE141: 0 | CF141: 0 | CG141: 0 | CH141: 0 | CI141: 0 | CJ141: 0 | CK141: 0 | CL141: 0 | CM141: 0 | CN141: 0 | CO141: 0 | CP141: 0 | CQ141: 0 | CR141: 0
C142: Ground Outdoor / Indoor Chamber Mounted; > 33 kV & < = 66 kV ; < = 15 MVA REFURBISHED | F142: 0 | G142: 2 | H142: 0 | I142: 1 | J142: 0 | K142: 0 | L142: 4 | M142: 3 | N142: 0 | O142: 4 | P142: 0 | Q142: 0 | R142: 0 | S142: 1 | T142: 0 | U142: 0 | V142: 6 | W142: 1 | X142: 1 | Y142: 0 | Z142: 0 | AA142: 0 | AB142: 0 | AC142: 0 | AD142: 0 | AE142: 4 | AF142: 1 | AG142: 2 | AH142: 1 | AI142: 2 | AJ142: 5 | AK142: 0 | AL142: 0 | AM142: 9 | AN142: 0 | AO142: 0 | AP142: 1 | AQ142: 0 | AR142: 5 | AS142: 5 | AT142: 0 | AU142: 0 | AV142: 3 | AW142: 0 | AX142: 0 | AY142: 3 | AZ142: 0 | BA142: 11 | BB142: 7 | BC142: 5 | BD142: 7 | BE142: 5 | BF142: 5 | BG142: 18 | BH142: 5 | BI142: 14 | BJ142: 5 | BK142: 0 | BL142: 2 | BM142: 5 | BN142: 0 | BO142: 2 | BP142: 5 | BQ142: 2 | BR142: 0 | BS142: 2 | BT142: 1 | BU142: 0 | BV142: 0 | BW142: 0 | BX142: 0 | BY142: 0 | BZ142: 0 | CA142: 0 | CB142: 1 | CC142: 0 | CD142: 0 | CE142: 0 | CF142: 0 | CG142: 0 | CH142: 0 | CI142: 0 | CJ142: 0 | CK142: 0 | CL142: 0 | CM142: 0 | CN142: 0 | CO142: 0 | CP142: 0 | CQ142: 0 | CR142: 0
C143: Ground Outdoor / Indoor Chamber Mounted; ˂ 22 kV ; > 600 kVA ; Multiple Phase ; REFURBISHED | F143: 0 | G143: 0 | H143: 0 | I143: 0 | J143: 0 | K143: 0 | L143: 0 | M143: 0 | N143: 0 | O143: 0 | P143: 3 | Q143: 0 | R143: 0 | S143: 0 | T143: 0 | U143: 1 | V143: 0 | W143: 2 | X143: 0 | Y143: 0 | Z143: 0 | AA143: 0 | AB143: 0 | AC143: 0 | AD143: 0 | AE143: 3 | AF143: 0 | AG143: 0 | AH143: 4 | AI143: 2 | AJ143: 0 | AK143: 8 | AL143: 0 | AM143: 5 | AN143: 1 | AO143: 2 | AP143: 1 | AQ143: 3 | AR143: 2 | AS143: 4 | AT143: 0 | AU143: 2 | AV143: 2 | AW143: 1 | AX143: 1 | AY143: 10 | AZ143: 5 | BA143: 2 | BB143: 1 | BC143: 5 | BD143: 3 | BE143: 2 | BF143: 6 | BG143: 1 | BH143: 1 | BI143: 1 | BJ143: 0 | BK143: 0 | BL143: 0 | BM143: 0 | BN143: 0 | BO143: 0 | BP143: 0 | BQ143: 0 | BR143: 0 | BS143: 0 | BT143: 0 | BU143: 0 | BV143: 0 | BW143: 0 | BX143: 0 | BY143: 0 | BZ143: 0 | CA143: 0 | CB143: 0 | CC143: 0 | CD143: 0 | CE143: 0 | CF143: 0 | CG143: 0 | CH143: 0 | CI143: 0 | CJ143: 0 | CK143: 0 | CL143: 0 | CM143: 0 | CN143: 0 | CO143: 0 | CP143: 0 | CQ143: 0 | CR143: 0
C144: ˂ = 11 kV ; Circuit Breaker REFURBISHED | F144: 7 | G144: 20 | H144: 27 | I144: 28 | J144: 65 | K144: 135 | L144: 34 | M144: 21 | N144: 32 | O144: 13 | P144: 32 | Q144: 13 | R144: 14 | S144: 17 | T144: 30 | U144: 31 | V144: 10 | W144: 4 | X144: 32 | Y144: 11 | Z144: 10 | AA144: 0 | AB144: 0 | AC144: 6 | AD144: 4 | AE144: 9 | AF144: 20 | AG144: 28 | AH144: 0 | AI144: 26 | AJ144: 0 | AK144: 31 | AL144: 0 | AM144: 0 | AN144: 4 | AO144: 0 | AP144: 0 | AQ144: 0 | AR144: 0 | AS144: 0 | AT144: 2 | AU144: 11 | AV144: 0 | AW144: 0 | AX144: 0 | AY144: 38 | AZ144: 42 | BA144: 45 | BB144: 37 | BC144: 13 | BD144: 75 | BE144: 64 | BF144: 1 | BG144: 81 | BH144: 20 | BI144: 21 | BJ144: 14 | BK144: 0 | BL144: 1 | BM144: 39 | BN144: 2 | BO144: 10 | BP144: 0 | BQ144: 0 | BR144: 8 | BS144: 0 | BT144: 7 | BU144: 0 | BV144: 0 | BW144: 0 | BX144: 0 | BY144: 0 | BZ144: 0 | CA144: 0 | CB144: 0 | CC144: 0 | CD144: 0 | CE144: 0 | CF144: 0 | CG144: 0 | CH144: 0 | CI144: 0 | CJ144: 0 | CK144: 0 | CL144: 0 | CM144: 0 | CN144: 0 | CO144: 0 | CP144: 0 | CQ144: 0 | CR144: 0
C145: > 22 kV & < = 33 kV ; Circuit Breaker REFURBISHED | F145: 0 | G145: 11 | H145: 1 | I145: 14 | J145: 18 | K145: 19 | L145: 13 | M145: 10 | N145: 3 | O145: 4 | P145: 7 | Q145: 7 | R145: 11 | S145: 7 | T145: 7 | U145: 2 | V145: 0 | W145: 3 | X145: 0 | Y145: 0 | Z145: 0 | AA145: 0 | AB145: 0 | AC145: 0 | AD145: 0 | AE145: 0 | AF145: 0 | AG145: 10 | AH145: 2 | AI145: 0 | AJ145: 0 | AK145: 0 | AL145: 0 | AM145: 0 | AN145: 0 | AO145: 0 | AP145: 0 | AQ145: 0 | AR145: 0 | AS145: 0 | AT145: 0 | AU145: 0 | AV145: 0 | AW145: 0 | AX145: 0 | AY145: 0 | AZ145: 0 | BA145: 0 | BB145: 0 | BC145: 20 | BD145: 17 | BE145: 0 | BF145: 5 | BG145: 0 | BH145: 2 | BI145: 0 | BJ145: 9 | BK145: 0 | BL145: 3 | BM145: 27 | BN145: 0 | BO145: 0 | BP145: 0 | BQ145: 19 | BR145: 0 | BS145: 0 | BT145: 3 | BU145: 0 | BV145: 0 | BW145: 0 | BX145: 3 | BY145: 0 | BZ145: 0 | CA145: 0 | CB145: 0 | CC145: 0 | CD145: 0 | CE145: 0 | CF145: 0 | CG145: 0 | CH145: 0 | CI145: 0 | CJ145: 0 | CK145: 0 | CL145: 0 | CM145: 0 | CN145: 0 | CO145: 0 | CP145: 0 | CQ145: 0 | CR145: 0
C146: > 33 kV & < = 66 kV ; Circuit Breaker REFURBISHED | F146: 5 | G146: 7 | H146: 10 | I146: 11 | J146: 14 | K146: 40 | L146: 40 | M146: 30 | N146: 15 | O146: 24 | P146: 16 | Q146: 19 | R146: 11 | S146: 2 | T146: 15 | U146: 10 | V146: 8 | W146: 6 | X146: 2 | Y146: 7 | Z146: 1 | AA146: 1 | AB146: 1 | AC146: 0 | AD146: 0 | AE146: 2 | AF146: 8 | AG146: 0 | AH146: 13 | AI146: 6 | AJ146: 4 | AK146: 2 | AL146: 12 | AM146: 11 | AN146: 0 | AO146: 10 | AP146: 0 | AQ146: 0 | AR146: 0 | AS146: 0 | AT146: 0 | AU146: 0 | AV146: 0 | AW146: 0 | AX146: 2 | AY146: 9 | AZ146: 11 | BA146: 24 | BB146: 6 | BC146: 6 | BD146: 3 | BE146: 0 | BF146: 15 | BG146: 12 | BH146: 0 | BI146: 0 | BJ146: 0 | BK146: 0 | BL146: 2 | BM146: 6 | BN146: 0 | BO146: 0 | BP146: 3 | BQ146: 8 | BR146: 0 | BS146: 8 | BT146: 0 | BU146: 0 | BV146: 0 | BW146: 1 | BX146: 0 | BY146: 0 | BZ146: 0 | CA146: 0 | CB146: 0 | CC146: 0 | CD146: 0 | CE146: 0 | CF146: 0 | CG146: 0 | CH146: 0 | CI146: 0 | CJ146: 0 | CK146: 0 | CL146: 0 | CM146: 0 | CN146: 0 | CO146: 0 | CP146: 0 | CQ146: 0 | CR146: 0

Sheet 5.3 MD - Network level
B1: REGULATORY REPORTING STATEMENT
B2: =INDEX(dms_TradingNameFull_List,MATCH(dms_TradingName,dms_TradingName_List)) -> SA Power Networks
B3: =CONCATENATE((LOOKUP(dms_Model,dms_Model_List,dms_Worksheet_List))&" "&CRY) -> CATEGORY ANALYSIS 2016-17
B4: 5.3 MAXIMUM DEMAND AT NETWORK LEVEL
B7: 5.3.1 - RAW AND WEATHER CORRECTED COINCIDENT MD AT NETWORK LEVEL (Summed at transmission connection point)
C8: UNIT | D8: =CRY -> 2016-17
B9: Raw network coincident MD | C9: MW | D9: 2736.116
B10: Date MD occurred | D10: 2017-02-08
B11: Half hour time period MD occurred | D11: 18:30:00
B12: Winter/summer peaking | D12: Summer
B13: Embedded generation | C13: MW | D13: 123.521
B14: Weather corrected (10% POE) network coincident MD | C14: MW | D14: 2912.078751
B15: Weather corrected (50% POE) network coincident MD | C15: MW | D15: 2627.943904

Sheet 5.4 MD & utilisation-Spatial
B1: REGULATORY REPORTING STATEMENT
B2: =INDEX(dms_TradingNameFull_List,MATCH(dms_TradingName,dms_TradingName_List)) -> SA Power Networks
B3: =CONCATENATE((LOOKUP(dms_Model,dms_Model_List,dms_Worksheet_List))&" "&CRY) -> CATEGORY ANALYSIS 2016-17
B4: 5.4 MAXIMUM DEMAND AND UTILISATION AT SPATIAL LEVEL
B6: There is ONE table on this worksheet. It has two sub-tables based on the Network Level. Each sub-table has been grouped for ease of navigation. See the Instructions sheet on how to group or ungroup data.
B8: 5.4.1 NON-COINCIDENT & COINCIDENT MAXIMUM DEMAND
B9: NETWORK LEVEL | C9: SUBSTATION | D9: FORECASTING ELEMENTS | E9: UNIT | F9: MAX DEMAND | G9: =CRY -> 2016-17
B10: SUBTRANSMISSION SUBSTATION | C10: Angas Creek 33kV | D10: Substation Rating | E10: MVA | F10: Non-Coincident | G10: 50
F11: Coincident | G11: 50
D12: Raw Adjusted MD | E12: MW | F12: Non-Coincident | G12: 16.556784
F13: Coincident | G13: 15.038294
D14: Raw Adjusted MD | E14: MVA | F14: Non-Coincident | G14: 17.086058
F15: Coincident | G15: 15.424064
D16: Date MD occurred | F16: Non-Coincident | G16: 2017-02-10
F17: Coincident | G17: 2017-02-08
D18: Half hour time period MD occurred | F18: Non-Coincident | G18: 19:00:00
F19: Coincident | G19: 18:30:00
D20: Winter/Summer Peaking | F20: Non-Coincident | G20: Summer
F21: Coincident | G21: Summer
D22: Adjustments - Embedded generation | E22: MW | F22: Non-Coincident | G22: 0.4636509733
F23: Coincident | G23: 0.8590710436
D24: Weather Corrected MD 10% POE | E24: MW | F24: Non-Coincident | G24: 17.43215625
F25: Coincident | G25: 15.8333823
D26: Weather Corrected MD 10% POE | E26: MVA | F26: Non-Coincident | G26: 17.98941344
F27: Coincident | G27: 16.23954831
D28: Weather Corrected MD 50% POE | E28: MW | F28: Non-Coincident | G28: 15.61046539
F29: Coincident | G29: 14.17876612
D30: Weather Corrected MD 50% POE | E30: MVA | F30: Non-Coincident | G30: 16.10948824
F31: Coincident | G31: 14.54248707
C32: Ardrossan West 33kV | D32: Substation Rating | E32: MVA | F32: Non-Coincident | G32: 50
F33: Coincident | G33: 50
D34: Raw Adjusted MD | E34: MW | F34: Non-Coincident | G34: 10.542
F35: Coincident | G35: 9.1699
D36: Raw Adjusted MD | E36: MVA | F36: Non-Coincident | G36: 10.74494887
F37: Coincident | G37: 9.318229553
D38: Date MD occurred | F38: Non-Coincident | G38: 2017-01-07
F39: Coincident | G39: 2017-02-08
D40: Half hour time period MD occurred | F40: Non-Coincident | G40: 16:30:00
F41: Coincident | G41: 18:30:00
D42: Winter/Summer Peaking | F42: Non-Coincident | G42: Summer
F43: Coincident | G43: Summer
D44: Adjustments - Embedded generation | E44: MW | F44: Non-Coincident | G44: 2.47007859
F45: Coincident | G45: 0.6088903666
D46: Weather Corrected MD 10% POE | E46: MW | F46: Non-Coincident | G46: 8.841977173
F47: Coincident | G47: 7.69114461
D48: Weather Corrected MD 10% POE | E48: MVA | F48: Non-Coincident | G48: 9.012198126
F49: Coincident | G49: 7.815554259
D50: Weather Corrected MD 50% POE | E50: MW | F50: Non-Coincident | G50: 8.069960576
F51: Coincident | G51: 7.019610272
D52: Weather Corrected MD 50% POE | E52: MVA | F52: Non-Coincident | G52: 8.225319084
F53: Coincident | G53: 7.133157383
C54: Baroota 33kV | D54: Substation Rating | E54: MVA | F54: Non-Coincident | G54: 10
F55: Coincident | G55: 10
D56: Raw Adjusted MD | E56: MW | F56: Non-Coincident | G56: 8.2372
F57: Coincident | G57: 7.463
D58: Raw Adjusted MD | E58: MVA | F58: Non-Coincident | G58: 8.258726333
F59: Coincident | G59: 7.478924912
D60: Date MD occurred | F60: Non-Coincident | G60: 2017-02-09
F61: Coincident | G61: 2017-02-08
D62: Half hour time period MD occurred | F62: Non-Coincident | G62: 19:30:00
F63: Coincident | G63: 18:30:00
D64: Winter/Summer Peaking | F64: Non-Coincident | G64: Summer
F65: Coincident | G65: Summer
D66: Adjustments - Embedded generation | E66: MW | F66: Non-Coincident | G66: 0.04085335525
F67: Coincident | G67: 0.3775597668
D68: Weather Corrected MD 10% POE | E68: MW | F68: Non-Coincident | G68: 8.244802582
F69: Coincident | G69: 7.469888029
D70: Weather Corrected MD 10% POE | E70: MVA | F70: Non-Coincident | G70: 8.266348783
F71: Coincident | G71: 7.485827639
D72: Weather Corrected MD 50% POE | E72: MW | F72: Non-Coincident | G72: 7.469794249
F73: Coincident | G73: 6.767721372
D74: Weather Corrected MD 50% POE | E74: MVA | F74: Non-Coincident | G74: 7.489315116
F75: Coincident | G75: 6.782162664
C76: Berri / Monash 66kV | D76: Substation Rating | E76: MVA | F76: Non-Coincident | G76: 160
F77: Coincident | G77: 160
D78: Raw Adjusted MD | E78: MW | F78: Non-Coincident | G78: 85.5478
F79: Coincident | G79: 76.2168
D80: Raw Adjusted MD | E80: MVA | F80: Non-Coincident | G80: 88.13417564
F81: Coincident | G81: 77.88062115
D82: Date MD occurred | F82: Non-Coincident | G82: 2017-02-09
F83: Coincident | G83: 2017-02-08
D84: Half hour time period MD occurred | F84: Non-Coincident | G84: 19:30:00
F85: Coincident | G85: 18:30:00
D86: Winter/Summer Peaking | F86: Non-Coincident | G86: Summer
F87: Coincident | G87: Summer
D88: Adjustments - Embedded generation | E88: MW | F88: Non-Coincident | G88: 0.2711923237
F89: Coincident | G89: 2.50631337
D90: Weather Corrected MD 10% POE | E90: MW | F90: Non-Coincident | G90: 90.69780988
F91: Coincident | G91: 80.80508016
D92: Weather Corrected MD 10% POE | E92: MVA | F92: Non-Coincident | G92: 93.43988631
F93: Coincident | G93: 82.56906397
D94: Weather Corrected MD 50% POE | E94: MW | F94: Non-Coincident | G94: 83.47002294
F95: Coincident | G95: 74.36565341
D96: Weather Corrected MD 50% POE | E96: MVA | F96: Non-Coincident | G96: 85.99358092
F97: Coincident | G97: 75.98906382
C98: Blanche 33kV | D98: Substation Rating | E98: MVA | F98: Non-Coincident | G98: 110
F99: Coincident | G99: 110
D100: Raw Adjusted MD | E100: MW | F100: Non-Coincident | G100: 35.9136
F101: Coincident | G101: 35.6383
D102: Raw Adjusted MD | E102: MVA | F102: Non-Coincident | G102: 38.11220895
F103: Coincident | G103: 37.59932814
D104: Date MD occurred | F104: Non-Coincident | G104: 2017-02-08
F105: Coincident | G105: 2017-02-08
D106: Half hour time period MD occurred | F106: Non-Coincident | G106: 18:00:00
F107: Coincident | G107: 18:30:00
D108: Winter/Summer Peaking | F108: Non-Coincident | G108: Summer
F109: Coincident | G109: Summer
D110: Adjustments - Embedded generation | E110: MW | F110: Non-Coincident | G110: 0.96318452
F111: Coincident | G111: 0.5810412682
D112: Weather Corrected MD 10% POE | E112: MW | F112: Non-Coincident | G112: 34.96582747
F113: Coincident | G113: 34.69779273
D114: Weather Corrected MD 10% POE | E114: MVA | F114: Non-Coincident | G114: 37.10641436
F115: Coincident | G115: 36.60706865
D116: Weather Corrected MD 50% POE | E116: MW | F116: Non-Coincident | G116: 33.1523489
F117: Coincident | G117: 32.8982156
D118: Weather Corrected MD 50% POE | E118: MVA | F118: Non-Coincident | G118: 35.18191573
F119: Coincident | G119: 34.70846824
C120: Brinkworth 33kV | D120: Substation Rating | E120: MVA | F120: Non-Coincident | G120: 20
F121: Coincident | G121: 20
D122: Raw Adjusted MD | E122: MW | F122: Non-Coincident | G122: 4.6211
F123: Coincident | G123: 4.2363
D124: Raw Adjusted MD | E124: MVA | F124: Non-Coincident | G124: 4.623786648
F125: Coincident | G125: 4.244965595
D126: Date MD occurred | F126: Non-Coincident | G126: 2017-02-10
F127: Coincident | G127: 2017-02-08
D128: Half hour time period MD occurred | F128: Non-Coincident | G128: 19:30:00
F129: Coincident | G129: 18:30:00
D130: Winter/Summer Peaking | F130: Non-Coincident | G130: Summer
F131: Coincident | G131: Summer
D132: Adjustments - Embedded generation | E132: MW | F132: Non-Coincident | G132: 0.0179097094
F133: Coincident | G133: 0.1655184908
D134: Weather Corrected MD 10% POE | E134: MW | F134: Non-Coincident | G134: 4.582677446
F135: Coincident | G135: 4.201076901
D136: Weather Corrected MD 10% POE | E136: MVA | F136: Non-Coincident | G136: 4.585341756
F137: Coincident | G137: 4.209670444
D138: Weather Corrected MD 50% POE | E138: MW | F138: Non-Coincident | G138: 4.134178468
F139: Coincident | G139: 3.78992453
D140: Weather Corrected MD 50% POE | E140: MVA | F140: Non-Coincident | G140: 4.136582027
F141: Coincident | G141: 3.797677038
C142: Clare North 33kV | D142: Substation Rating | E142: MVA | F142: Non-Coincident | G142: 80
F143: Coincident | G143: 80
D144: Raw Adjusted MD | E144: MW | F144: Non-Coincident | G144: 12.039778
F145: Coincident | G145: 10.582722
D146: Raw Adjusted MD | E146: MVA | F146: Non-Coincident | G146: 12.753091
F147: Coincident | G147: 11.201453
D148: Date MD occurred | F148: Non-Coincident | G148: 2017-02-09
F149: Coincident | G149: 2017-02-08
D150: Half hour time period MD occurred | F150: Non-Coincident | G150: 19:30:00
F151: Coincident | G151: 18:30:00
D152: Winter/Summer Peaking | F152: Non-Coincident | G152: Summer
F153: Coincident | G153: Summer
D154: Adjustments - Embedded generation | E154: MW | F154: Non-Coincident | G154: 0.04697132525
F155: Coincident | G155: 0.4341010059
D156: Weather Corrected MD 10% POE | E156: MW | F156: Non-Coincident | G156: 12.25897851
F157: Coincident | G157: 10.77539483
D158: Weather Corrected MD 10% POE | E158: MVA | F158: Non-Coincident | G158: 12.98527834
F159: Coincident | G159: 11.40539066
D160: Weather Corrected MD 50% POE | E160: MW | F160: Non-Coincident | G160: 11.11577439
F161: Coincident | G161: 9.770541465
D162: Weather Corrected MD 50% POE | E162: MVA | F162: Non-Coincident | G162: 11.77434354
F163: Coincident | G163: 10.3417874
C164: Dalrymple 33kV | D164: Substation Rating | E164: MVA | F164: Non-Coincident | G164: 50
F165: Coincident | G165: 50
D166: Raw Adjusted MD | E166: MW | F166: Non-Coincident | G166: 7.0262
F167: Coincident | G167: 5.7573
D168: Raw Adjusted MD | E168: MVA | F168: Non-Coincident | G168: 7.028251453
F169: Coincident | G169: 5.760631918
D170: Date MD occurred | F170: Non-Coincident | G170: 2017-01-01
F171: Coincident | G171: 2017-02-08
D172: Half hour time period MD occurred | F172: Non-Coincident | G172: 00:30:00
F173: Coincident | G173: 18:30:00
D174: Winter/Summer Peaking | F174: Non-Coincident | G174: Summer
F175: Coincident | G175: Summer
D176: Adjustments - Embedded generation | E176: MW | F176: Non-Coincident | G176: 0
F177: Coincident | G177: 0.4004522961
D178: Weather Corrected MD 10% POE | E178: MW | F178: Non-Coincident | G178: 5.948154962
F179: Coincident | G179: 4.873945029
D180: Weather Corrected MD 10% POE | E180: MVA | F180: Non-Coincident | G180: 5.949891655
F181: Coincident | G181: 4.876765724
D182: Weather Corrected MD 50% POE | E182: MW | F182: Non-Coincident | G182: 5.451639026
F183: Coincident | G183: 4.467097629
D184: Weather Corrected MD 50% POE | E184: MVA | F184: Non-Coincident | G184: 5.453230751
F185: Coincident | G185: 4.46968287
C186: Davenport West 33kV | D186: Substation Rating | E186: MVA | F186: Non-Coincident | G186: 120
F187: Coincident | G187: 120
D188: Raw Adjusted MD | E188: MW | F188: Non-Coincident | G188: 31.168184
F189: Coincident | G189: 29.8315
D190: Raw Adjusted MD | E190: MVA | F190: Non-Coincident | G190: 31.343342
F191: Coincident | G191: 30.03089
D192: Date MD occurred | F192: Non-Coincident | G192: 2017-02-08
F193: Coincident | G193: 2017-02-08
D194: Half hour time period MD occurred | F194: Non-Coincident | G194: 20:00:00
F195: Coincident | G195: 18:30:00
D196: Winter/Summer Peaking | F196: Non-Coincident | G196: Summer
F197: Coincident | G197: Summer
D198: Adjustments - Embedded generation | E198: MW | F198: Non-Coincident | G198: 0.08062502667
F199: Coincident | G199: 1.045696889
D200: Weather Corrected MD 10% POE | E200: MW | F200: Non-Coincident | G200: 32.5873914
F201: Coincident | G201: 31.18984303
D202: Weather Corrected MD 10% POE | E202: MVA | F202: Non-Coincident | G202: 32.77052501
... 11226 more rows

Sheet 6.3 Sustained interruptionss
B1: REGULATORY REPORTING STATEMENT
B2: =INDEX(dms_TradingNameFull_List,MATCH(dms_TradingName,dms_TradingName_List)) -> SA Power Networks
B3: =CONCATENATE((LOOKUP(dms_Model,dms_Model_List,dms_Worksheet_List))&" "&CRY) -> CATEGORY ANALYSIS 2016-17
B4: 6.3 SUSTAINED INTERRUPTIONS TO SUPPLY
B6: 6.3.1 - SUSTAINED INTERRUPTIONS TO SUPPLY (for 2015-16)
B8: There is ONE table on this worksheet. It has been grouped into five subgroups of 10000 rows each for navigation purposes. See the Instructions sheet on how to group and ungroup data.
B10: Definitions:
B11: Feeder classification definitions (column E) | G11: Average duration of sustained customer interruption (column I) | I11: Effect on unplanned SAIDI (column J) | K11: Effect on unplanned SAIFI (column K)
B12: CBD feeder: a feeder supplying predominantly commercial, high-rise buildings, supplied by a predominantly underground distribution network containing significant interconnection and redundancy when compared to urban areas. Urban feeder: a feeder, that is not a CBD feeder, with actual maximum demand over the reporting period per total feeder route length greater than 0.3 MVA/km. Short rural feeder: a feeder that is not a CBD or urban feeder with a total feeder route length less than 200 km. Long rural feeder: a feeder that is not a CBD or urban feeder with a total feeder route length greater than 200 km. | G12: The average duration of an interruption experienced by an affected customer. | I12: The sum of the duration of each unplanned sustained customer interruption (in minutes) divided by the total number of distribution customers. Unplanned SAIDI excludes momentary interruptions (one minute or less). | K12: The total number of unplanned sustained customer interruptions divided by the total number of distribution customers. Unplanned SAIFI excludes momentary interruptions (one minute or less). SAIFI is expressed per 0.01 interruptions.
B14: Date of event (DD/MM/YYYY) | C14: Time of interruption (HH:MM) | D14: Asset ID (eg. feeder ID) | E14: Feeder classification (CBD, Urban, Short rural, Long rural) | F14: Reason for interruption (select from options in drop-down box) | G14: Detailed reason for interruption (select from options in column 'O' that correspond with reason in column 'F') | H14: Number of customers affected by the interruption | I14: Average duration of sustained customer interruption (minutes) | J14: Effect on unplanned SAIDI (by feeder classification) | K14: Effect on unplanned SAIFI (by feeder classification) | L14: MED
B15: 1/07/2016 | C15: 04:26:00 | D15: EL01C | E15: Urban | F15: Unknown | G15: Unknown | H15: 177.333156 | I15: 1 | J15: 0.000292 | K15: 0.00029159
B16: 1/07/2016 | C16: 07:35:46 | D16: AP365A | E16: Urban | F16: Overloads | H16: 1 | I16: 301 | J16: 0.000495 | K16: 1.64e-06
B17: 1/07/2016 | C17: 08:00:00 | D17: R06 | E17: Rural Long | F17: Planned | H17: 36 | I17: 385 | J17: 0.098332 | K17: 0.00025541
B18: 1/07/2016 | C18: 08:20:00 | D18: HH177C | E18: Urban | F18: Planned | H18: 24 | I18: 332 | J18: 0.013102 | K18: 3.946e-05
B19: 1/07/2016 | C19: 08:38:04 | D19: GU42 | E19: Rural Long | F19: Planned | H19: 51 | I19: 408 | J19: 0.147625 | K19: 0.00036183
B20: 1/07/2016 | C20: 08:38:31 | D20: AP214A | E20: Urban | F20: Planned | H20: 14 | I20: 255 | J20: 0.00587 | K20: 2.302e-05
B21: 1/07/2016 | C21: 08:45:00 | D21: LM11 | E21: Rural Long | F21: Unknown | G21: Unknown | H21: 44.333346 | I21: 67 | J21: 0.021073 | K21: 0.00031453
B22: 1/07/2016 | C22: 08:47:06 | D22: ME131B | E22: Urban | F22: Planned | H22: 58 | I22: 289 | J22: 0.027562 | K22: 9.537e-05
B23: 1/07/2016 | C23: 08:57:00 | D23: HH522A | E23: Urban | F23: Planned | H23: 40 | I23: 103 | J23: 0.006774 | K23: 6.577e-05
B24: 1/07/2016 | C24: 09:28:00 | D24: AP529E | E24: Urban | F24: Planned | H24: 225 | I24: 267 | J24: 0.098781 | K24: 0.00036997
B25: 1/07/2016 | C25: 09:43:00 | D25: AP214A | E25: Urban | F25: Planned | H25: 72 | I25: 152 | J25: 0.017995 | K25: 0.00011839
B26: 1/07/2016 | C26: 09:50:00 | D26: AP529C | E26: Urban | F26: Planned | H26: 120 | I26: 305 | J26: 0.060181 | K26: 0.00019732
B27: 1/07/2016 | C27: 09:58:00 | D27: MV11 | E27: Rural Short | F27: Planned | H27: 1 | I27: 106 | J27: 0.000856 | K27: 8.07e-06
B28: 1/07/2016 | C28: 10:10:00 | D28: GA27 | E28: Rural Long | F28: Planned | H28: 2 | I28: 215 | J28: 0.003051 | K28: 1.419e-05
B29: 1/07/2016 | C29: 10:46:00 | D29: M01 | E29: Rural Long | F29: Planned | H29: 5 | I29: 74 | J29: 0.002625 | K29: 3.547e-05
B30: 1/07/2016 | C30: 11:05:00 | D30: G29 | E30: Rural Long | F30: Planned | H30: 12 | I30: 187 | J30: 0.01592 | K30: 8.514e-05
B31: 1/07/2016 | C31: 11:30:00 | D31: ST16 | E31: Rural Short | F31: Planned | H31: 1 | I31: 62 | J31: 0.0005 | K31: 8.07e-06
B32: 1/07/2016 | C32: 11:48:00 | D32: GA18 | E32: Rural Long | F32: Planned | H32: 2 | I32: 146 | J32: 0.002072 | K32: 1.419e-05
B33: 1/07/2016 | C33: 13:23:00 | D33: W08 | E33: Rural Short | F33: Unknown | G33: Unknown | H33: 27.666677 | I33: 74 | J33: 0.016525 | K33: 0.00022331
B34: 1/07/2016 | C34: 15:45:26 | D34: AP227D | E34: Urban | F34: Overloads | H34: 1 | I34: 93 | J34: 0.000153 | K34: 1.64e-06
B35: 1/07/2016 | C35: 17:38:09 | D35: HH432C | E35: Urban | F35: Asset failure | G35: LV | H35: 1 | I35: 463 | J35: 0.000761 | K35: 1.64e-06
B36: 1/07/2016 | C36: 18:26:00 | D36: ST36 | E36: Rural Long | F36: Unknown | G36: Unknown | H36: 12.666669 | I36: 262 | J36: 0.023545 | K36: 8.987e-05
B37: 1/07/2016 | C37: 20:48:00 | D37: HH341C | E37: Urban | F37: Vegetation | G37: Blow-in/Fall-in - NSP responsibility | H37: 265.000132 | I37: 77 | J37: 0.033552 | K37: 0.00043574
B38: 2/07/2016 | C38: 08:18:00 | D38: HH432A | E38: Urban | F38: Planned | H38: 2 | I38: 260 | J38: 0.000855 | K38: 3.29e-06
B39: 2/07/2016 | C39: 09:47:00 | D39: W01 | E39: Rural Long | F39: Animal | G39: Animal impact | H39: 18 | I39: 108 | J39: 0.013792 | K39: 0.0001277
B40: 2/07/2016 | C40: 09:52:00 | D40: NL760A | E40: Urban | F40: Unknown | G40: Unknown | H40: 1 | I40: 84 | J40: 0.000138 | K40: 1.64e-06
B41: 2/07/2016 | C41: 14:19:00 | D41: NU13 | E41: Rural Long | F41: Third Party | G41: Other | H41: 14.000001 | I41: 78 | J41: 0.007747 | K41: 9.932e-05
B42: 2/07/2016 | C42: 15:33:00 | D42: VH31 | E42: Rural Short | F42: Unknown | G42: Unknown | H42: 207 | I42: 31 | J42: 0.051794 | K42: 0.00167079
B43: 2/07/2016 | C43: 18:30:41 | D43: AP139B | E43: Urban | F43: Third Party | G43: Vehicle impact | H43: 1 | I43: 113 | J43: 0.000186 | K43: 1.64e-06
B44: 2/07/2016 | C44: 21:17:21 | D44: AP125D | E44: Urban | F44: Asset failure | G44: LV | H44: 1 | I44: 115 | J44: 0.000189 | K44: 1.64e-06
B45: 2/07/2016 | C45: 22:18:53 | D45: ST12 | E45: Rural Short | F45: Asset failure | G45: LV | H45: 1 | I45: 207 | J45: 0.001671 | K45: 8.07e-06
B46: 2/07/2016 | C46: 23:57:10 | D46: NL111Q | E46: Urban | F46: Asset failure | G46: LV | H46: 1 | I46: 586 | J46: 0.000964 | K46: 1.64e-06
B47: 3/07/2016 | C47: 00:50:00 | D47: MI06 | E47: Rural Long | F47: Asset failure | G47: Distribution substation | H47: 57 | I47: 316.1929825 | J47: 0.127867 | K47: 0.00040439
B48: 3/07/2016 | C48: 07:51:00 | D48: SA41 | E48: Urban | F48: Planned | H48: 1 | I48: 456 | J48: 0.00075 | K48: 1.64e-06
B49: 3/07/2016 | C49: 07:52:34 | D49: ME200F | E49: Urban | F49: Planned | H49: 97 | I49: 428 | J49: 0.068265 | K49: 0.0001595
B50: 3/07/2016 | C50: 08:00:00 | D50: EL260C | E50: Urban | F50: Animal | G50: Animal impact | H50: 68 | I50: 100 | J50: 0.011181 | K50: 0.00011181
B51: 3/07/2016 | C51: 08:06:58 | D51: SM374A | E51: Urban | F51: Planned | H51: 40 | I51: 423 | J51: 0.027821 | K51: 6.577e-05
B52: 3/07/2016 | C52: 08:29:32 | D52: SM350B | E52: Urban | F52: Planned | H52: 68 | I52: 295 | J52: 0.032985 | K52: 0.00011181
B53: 3/07/2016 | C53: 08:49:00 | D53: AP425C | E53: Urban | F53: Planned | H53: 2 | I53: 222 | J53: 0.00073 | K53: 3.29e-06
B54: 3/07/2016 | C54: 08:55:00 | D54: ME200F | E54: Urban | F54: Planned | H54: 30 | I54: 335 | J54: 0.016525 | K54: 4.933e-05
B55: 3/07/2016 | C55: 09:57:00 | D55: NU04 | E55: Rural Short | F55: Unknown | G55: Unknown | H55: 6.66667 | I55: 138 | J55: 0.007426 | K55: 5.381e-05
B56: 3/07/2016 | C56: 13:17:00 | D56: EL19 | E56: Urban | F56: Unknown | G56: Unknown | H56: 18.666669 | I56: 64 | J56: 0.001964 | K56: 3.069e-05
B57: 3/07/2016 | C57: 14:50:00 | D57: GU41 | E57: Rural Long | F57: Unknown | G57: Unknown | H57: 6 | I57: 70 | J57: 0.00298 | K57: 4.257e-05
B58: 3/07/2016 | C58: 16:29:44 | D58: AP227A | E58: Urban | F58: Animal | G58: Animal impact | H58: 0.999999 | I58: 128 | J58: 0.00021 | K58: 1.64e-06
B59: 3/07/2016 | C59: 16:37:37 | D59: AP226C | E59: Urban | F59: Asset failure | G59: LV | H59: 1 | I59: 222 | J59: 0.000365 | K59: 1.64e-06
B60: 3/07/2016 | C60: 21:58:00 | D60: GA800A | E60: Rural Short | F60: Unknown | G60: Unknown | H60: 27.666642 | I60: 40.71084308 | J60: 0.009091 | K60: 0.00022331
B61: 3/07/2016 | C61: 22:31:13 | D61: GA53 | E61: Rural Short | F61: Third Party | G61: Vehicle impact | H61: 1 | I61: 171 | J61: 0.00138 | K61: 8.07e-06
B62: 3/07/2016 | C62: 23:22:06 | D62: SM349F | E62: Urban | F62: Asset failure | G62: LV | H62: 21.666645 | I62: 110 | J62: 0.003919 | K62: 3.563e-05
B63: 4/07/2016 | C63: 01:55:00 | D63: EL11 | E63: Urban | F63: Third Party | G63: Vehicle impact | H63: 4 | I63: 143 | J63: 0.000941 | K63: 6.58e-06
B64: 4/07/2016 | C64: 03:41:00 | D64: SG04 | E64: Rural Short | F64: Unknown | G64: Unknown | H64: 37.000016 | I64: 253 | J64: 0.075557 | K64: 0.00029864
B65: 4/07/2016 | C65: 04:50:00 | D65: SSD324 | E65: Rural Long | F65: Planned | H65: 765 | I65: 9 | J65: 0.048847 | K65: 0.0054274
B66: 4/07/2016 | C66: 08:19:35 | D66: KA29 | E66: Rural Long | F66: Planned | H66: 34 | I66: 96 | J66: 0.023157 | K66: 0.00024122
B67: 4/07/2016 | C67: 08:24:44 | D67: HH522B | E67: Urban | F67: Planned | H67: 41 | I67: 398 | J67: 0.026832 | K67: 6.742e-05
B68: 4/07/2016 | C68: 08:27:27 | D68: NU01 | E68: Rural Short | F68: Planned | H68: 6 | I68: 135 | J68: 0.006538 | K68: 4.843e-05
B69: 4/07/2016 | C69: 08:34:03 | D69: AP424E | E69: Urban | F69: Planned | H69: 62 | I69: 371 | J69: 0.037822 | K69: 0.00010195
B70: 4/07/2016 | C70: 08:37:06 | D70: NL544A | E70: Urban | F70: Planned | H70: 96 | I70: 255 | J70: 0.040252 | K70: 0.00015785
B71: 4/07/2016 | C71: 08:56:00 | D71: GA27 | E71: Rural Long | F71: Planned | H71: 19 | I71: 351 | J71: 0.047314 | K71: 0.0001348
B72: 4/07/2016 | C72: 08:56:45 | D72: PA02 | E72: Urban | F72: Planned | H72: 35 | I72: 319 | J72: 0.018359 | K72: 5.755e-05
B73: 4/07/2016 | C73: 08:59:04 | D73: HH496C | E73: Urban | F73: Planned | H73: 41 | I73: 276 | J73: 0.018607 | K73: 6.742e-05
B74: 4/07/2016 | C74: 09:22:00 | D74: MB63 | E74: Rural Long | F74: Planned | H74: 3 | I74: 326 | J74: 0.006939 | K74: 2.128e-05
B75: 4/07/2016 | C75: 10:06:00 | D75: MG30 | E75: Rural Long | F75: Planned | H75: 1 | I75: 49 | J75: 0.000348 | K75: 7.09e-06
B76: 4/07/2016 | C76: 10:06:00 | D76: CBD366Q | E76: Urban | F76: Planned | H76: 113 | I76: 201 | J76: 0.037347 | K76: 0.00018581
B77: 4/07/2016 | C77: 10:18:00 | D77: GA27 | E77: Rural Long | F77: Planned | H77: 65 | I77: 224 | J77: 0.103298 | K77: 0.00046115
B78: 4/07/2016 | C78: 10:25:43 | D78: HH177G | E78: Urban | F78: Planned | H78: 31 | I78: 177 | J78: 0.009022 | K78: 5.097e-05
B79: 4/07/2016 | C79: 10:27:00 | D79: VH43 | E79: Rural Short | F79: Planned | H79: 8 | I79: 147 | J79: 0.009492 | K79: 6.457e-05
B80: 4/07/2016 | C80: 10:34:00 | D80: LX34 | E80: Rural Short | F80: Planned | H80: 5 | I80: 101 | J80: 0.004076 | K80: 4.036e-05
B81: 4/07/2016 | C81: 10:41:00 | D81: W25 | E81: Rural Long | F81: Unknown | G81: Unknown | H81: 2 | I81: 79 | J81: 0.001121 | K81: 1.419e-05
B82: 4/07/2016 | C82: 10:47:21 | D82: ME347G | E82: Urban | F82: Planned | H82: 113 | I82: 167 | J82: 0.031029 | K82: 0.00018581
B83: 4/07/2016 | C83: 10:48:00 | D83: LM63 | E83: Rural Long | F83: Planned | H83: 1 | I83: 28 | J83: 0.000199 | K83: 7.09e-06
B84: 4/07/2016 | C84: 11:06:00 | D84: GA39 | E84: Rural Long | F84: Unknown | G84: Unknown | H84: 2 | I84: 62 | J84: 0.00088 | K84: 1.419e-05
B85: 4/07/2016 | C85: 11:11:00 | D85: W01 | E85: Rural Long | F85: Unknown | G85: Unknown | H85: 2 | I85: 239 | J85: 0.003391 | K85: 1.419e-05
B86: 4/07/2016 | C86: 11:14:27 | D86: GU21 | E86: Rural Long | F86: Planned | H86: 10 | I86: 195 | J86: 0.013835 | K86: 7.095e-05
B87: 4/07/2016 | C87: 11:34:44 | D87: AP132D | E87: Urban | F87: Third Party | G87: Vehicle impact | H87: 49 | I87: 448 | J87: 0.036096 | K87: 8.057e-05
B88: 4/07/2016 | C88: 11:54:00 | D88: ST35 | E88: Rural Long | F88: Asset failure | G88: HV | H88: 42.666678 | I88: 38 | J88: 0.011503 | K88: 0.0003027
B89: 4/07/2016 | C89: 12:45:00 | D89: SM374A | E89: Urban | F89: Vegetation | G89: Blow-in/Fall-in - NSP responsibility | H89: 2015 | I89: 39 | J89: 0.129217 | K89: 0.00331325
B90: 4/07/2016 | C90: 13:35:00 | D90: MV11 | E90: Rural Short | F90: Planned | H90: 1 | I90: 73 | J90: 0.000589 | K90: 8.07e-06
B91: 4/07/2016 | C91: 15:12:00 | D91: SA18 | E91: Urban | F91: Vegetation | G91: Blow-in/Fall-in - NSP responsibility | H91: 1298 | I91: 48 | J91: 0.102446 | K91: 0.00213429
B92: 4/07/2016 | C92: 18:59:47 | D92: HH432B | E92: Urban | F92: Unknown | G92: Unknown | H92: 30.333303 | I92: 214 | J92: 0.010674 | K92: 4.988e-05
B93: 4/07/2016 | C93: 20:23:00 | D93: BM56 | E93: Rural Short | F93: Unknown | G93: Unknown | H93: 209 | I93: 249.6076555 | J93: 0.421071 | K93: 0.00168693
B94: 4/07/2016 | C94: 21:05:00 | D94: MB24 | E94: Rural Short | F94: Unknown | G94: Unknown | H94: 4.666662 | I94: 40 | J94: 0.001507 | K94: 3.767e-05
B95: 4/07/2016 | C95: 21:24:00 | D95: MT18 | E95: Rural Long | F95: Unknown | G95: Unknown | H95: 0.999999 | I95: 9 | J95: 6.4e-05 | K95: 7.09e-06
B96: 4/07/2016 | C96: 21:41:00 | D96: CBD353A | E96: CBD | F96: Planned | H96: 1 | I96: 313 | J96: 0.059151 | K96: 0.00018898
B97: 5/07/2016 | C97: 01:49:00 | D97: AP149A | E97: Urban | F97: Unknown | G97: Unknown | H97: 758 | I97: 158.005277 | J97: 0.196934 | K97: 0.00124638
B98: 5/07/2016 | C98: 02:03:00 | D98: AP214D | E98: Urban | F98: Vegetation | G98: Grow-in - NSP responsibility | H98: 1323 | I98: 166.7157974 | J98: 0.362674 | K98: 0.0021754
B99: 5/07/2016 | C99: 02:38:00 | D99: SA42 | E99: Urban | F99: Unknown | G99: Unknown | H99: 1 | I99: 1932 | J99: 0.003177 | K99: 1.64e-06
B100: 5/07/2016 | C100: 02:52:00 | D100: EL19 | E100: Urban | F100: Unknown | G100: Unknown | H100: 173 | I100: 175.1213873 | J100: 0.049816 | K100: 0.00028446
B101: 5/07/2016 | C101: 03:03:00 | D101: MTB14 | E101: Rural Short | F101: Vegetation | G101: Grow-in - NSP responsibility | H101: 216 | I101: 130.5555556 | J101: 0.227615 | K101: 0.00174343
B102: 5/07/2016 | C102: 03:43:00 | D102: NL115E | E102: Urban | F102: Third Party | G102: Other | H102: 2046 | I102: 5.5 | J102: 0.018503 | K102: 0.00336423
B103: 5/07/2016 | C103: 04:05:00 | D103: AP424A | E103: Urban | F103: Vegetation | G103: Grow-in - NSP responsibility | H103: 1838 | I103: 228.116975 | J103: 0.689418 | K103: 0.00302221
B104: 5/07/2016 | C104: 05:55:00 | D104: GU11 | E104: Rural Long | F104: Asset failure | G104: HV | H104: 29 | I104: 679 | J104: 0.139701 | K104: 0.00020574
B105: 5/07/2016 | C105: 07:05:00 | D105: SM216E | E105: Urban | F105: Unknown | G105: Unknown | H105: 81 | I105: 10 | J105: 0.001332 | K105: 0.00013319
B106: 5/07/2016 | C106: 08:09:11 | D106: HH428E | E106: Urban | F106: Planned | H106: 30 | I106: 400 | J106: 0.019732 | K106: 4.933e-05
B107: 5/07/2016 | C107: 08:16:07 | D107: NL451A | E107: Urban | F107: Planned | H107: 36 | I107: 38 | J107: 0.002249 | K107: 5.919e-05
B108: 5/07/2016 | C108: 08:30:00 | D108: MG46 | E108: Rural Short | F108: Planned | H108: 119 | I108: 295 | J108: 0.283348 | K108: 0.0009605
B109: 5/07/2016 | C109: 08:32:46 | D109: HH177F | E109: Urban | F109: Planned | H109: 70 | I109: 203 | J109: 0.023365 | K109: 0.0001151
B110: 5/07/2016 | C110: 08:37:30 | D110: BU01 | E110: Rural Long | F110: Planned | H110: 53 | I110: 321 | J110: 0.120701 | K110: 0.00037602
B111: 5/07/2016 | C111: 08:41:00 | D111: CD03 | E111: Rural Short | F111: Planned | H111: 67 | I111: 302 | J111: 0.163318 | K111: 0.00054079
B112: 5/07/2016 | C112: 08:41:35 | D112: VH31 | E112: Rural Short | F112: Planned | H112: 41 | I112: 230 | J112: 0.076114 | K112: 0.00033093
B113: 5/07/2016 | C113: 08:42:36 | D113: VH31 | E113: Rural Short | F113: Planned | H113: 56 | I113: 230 | J113: 0.10396 | K113: 0.000452
B114: 5/07/2016 | C114: 08:44:50 | D114: MV34 | E114: Rural Short | F114: Planned | H114: 48 | I114: 382 | J114: 0.147998 | K114: 0.00038743
B115: 5/07/2016 | C115: 08:47:11 | D115: SA711C | E115: Urban | F115: Planned | H115: 46 | I115: 246 | J115: 0.018607 | K115: 7.564e-05
B116: 5/07/2016 | C116: 09:06:44 | D116: KI11 | E116: Rural Long | F116: Planned | H116: 28 | I116: 283 | J116: 0.056218 | K116: 0.00019865
B117: 5/07/2016 | C117: 09:17:00 | D117: NL234A | E117: Urban | F117: Planned | H117: 195 | I117: 320 | J117: 0.102604 | K117: 0.00032064
B118: 5/07/2016 | C118: 09:24:58 | D118: AP529C | E118: Urban | F118: Planned | H118: 58 | I118: 184 | J118: 0.017548 | K118: 9.537e-05
B119: 5/07/2016 | C119: 09:43:00 | D119: NU25 | E119: Rural Long | F119: Planned | H119: 55 | I119: 184 | J119: 0.071798 | K119: 0.00039021
B120: 5/07/2016 | C120: 09:54:00 | D120: AP529A | E120: Urban | F120: Unknown | G120: Unknown | H120: 542.666938 | I120: 52 | J120: 0.0464 | K120: 0.0008923
B121: 5/07/2016 | C121: 11:07:00 | D121: SD391 | E121: Rural Long | F121: Unknown | G121: Unknown | H121: 1967 | I121: 120 | J121: 1.674619 | K121: 0.01395515
B122: 5/07/2016 | C122: 11:09:00 | D122: NA32 | E122: Rural Long | F122: Unknown | G122: Unknown | H122: 12.666672 | I122: 236 | J122: 0.021208 | K122: 8.987e-05
B123: 5/07/2016 | C123: 11:54:00 | D123: CM20 | E123: Rural Long | F123: Unknown | G123: Unknown | H123: 15 | I123: 136 | J123: 0.014473 | K123: 0.00010642
B124: 5/07/2016 | C124: 12:36:00 | D124: HH177E | E124: Urban | F124: Vegetation | G124: Blow-in/Fall-in - NSP responsibility | H124: 253 | I124: 5 | J124: 0.00208 | K124: 0.00041601
B125: 5/07/2016 | C125: 12:52:00 | D125: EL09 | E125: Urban | F125: Planned | H125: 2430 | I125: 4.227983539 | J125: 0.016893 | K125: 0.00399564
B126: 5/07/2016 | C126: 13:50:00 | D126: SG02 | E126: Rural Short | F126: Vegetation | G126: Blow-in/Fall-in - NSP responsibility | H126: 101 | I126: 474.2178218 | J126: 0.38659 | K126: 0.00081522
B127: 5/07/2016 | C127: 15:33:51 | D127: AP529C | E127: Urban | F127: Asset failure | G127: LV | H127: 1 | I127: 306 | J127: 0.000503 | K127: 1.64e-06
B128: 5/07/2016 | C128: 16:03:49 | D128: HH130E | E128: Urban | F128: Asset failure | G128: LV | H128: 1 | I128: 747 | J128: 0.001228 | K128: 1.64e-06
B129: 5/07/2016 | C129: 17:29:27 | D129: AP424B | E129: Urban | F129: Third Party | G129: Vehicle impact | H129: 64 | I129: 680 | J129: 0.07156 | K129: 0.00010523
B130: 5/07/2016 | C130: 17:47:08 | D130: AP125D | E130: Urban | F130: Asset failure | G130: LV | H130: 1 | I130: 205 | J130: 0.000337 | K130: 1.64e-06
B131: 5/07/2016 | C131: 19:02:00 | D131: AP424B | E131: Urban | F131: Third Party | G131: Vehicle impact | H131: 64 | I131: 500 | J131: 0.052617 | K131: 0.00010523
B132: 5/07/2016 | C132: 19:57:38 | D132: G41 | E132: Rural Long | F132: Asset failure | G132: LV | H132: 1 | I132: 149 | J132: 0.001057 | K132: 7.09e-06
B133: 5/07/2016 | C133: 21:36:59 | D133: SM137C | E133: Urban | F133: Planned | H133: 28 | I133: 37 | J133: 0.001703 | K133: 4.604e-05
B134: 5/07/2016 | C134: 21:57:28 | D134: HH121C | E134: Urban | F134: Asset failure | G134: LV | H134: 6.999993 | I134: 327 | J134: 0.003764 | K134: 1.151e-05
B135: 5/07/2016 | C135: 23:00:29 | D135: NL451C | E135: Urban | F135: Asset failure | G135: LV | H135: 1 | I135: 122 | J135: 0.000201 | K135: 1.64e-06
B136: 5/07/2016 | C136: 23:46:52 | D136: AP226D | E136: Urban | F136: Overloads | H136: 1 | I136: 100 | J136: 0.000164 | K136: 1.64e-06
B137: 6/07/2016 | C137: 01:16:05 | D137: AP149C | E137: Urban | F137: Asset failure | G137: LV | H137: 55 | I137: 92 | J137: 0.00832 | K137: 9.044e-05
B138: 6/07/2016 | C138: 01:34:47 | D138: HH177F | E138: Urban | F138: Unknown | G138: Unknown | H138: 14.666652 | I138: 121 | J138: 0.002918 | K138: 2.412e-05
B139: 6/07/2016 | C139: 06:59:23 | D139: NU06 | E139: Rural Long | F139: Planned | H139: 17 | I139: 173 | J139: 0.020865 | K139: 0.00012061
B140: 6/07/2016 | C140: 08:20:21 | D140: PA04 | E140: Urban | F140: Planned | H140: 18 | I140: 80 | J140: 0.002368 | K140: 2.96e-05
B141: 6/07/2016 | C141: 08:37:00 | D141: NU06 | E141: Rural Long | F141: Planned | H141: 22 | I141: 264 | J141: 0.041206 | K141: 0.00015608
B142: 6/07/2016 | C142: 08:51:43 | D142: CV01 | E142: Rural Short | F142: Planned | H142: 27 | I142: 400 | J142: 0.087172 | K142: 0.00021793
B143: 6/07/2016 | C143: 08:56:00 | D143: BM51 | E143: Urban | F143: Planned | H143: 35 | I143: 160 | J143: 0.009208 | K143: 5.755e-05
B144: 6/07/2016 | C144: 08:58:00 | D144: LX44 | E144: Urban | F144: Planned | H144: 4 | I144: 257 | J144: 0.00169 | K144: 6.58e-06
B145: 6/07/2016 | C145: 09:43:00 | D145: SM402E | E145: Urban | F145: Planned | H145: 121 | I145: 138 | J145: 0.027456 | K145: 0.00019896
B146: 6/07/2016 | C146: 09:45:20 | D146: SM349D | E146: Urban | F146: Planned | H146: 39 | I146: 200 | J146: 0.012825 | K146: 6.413e-05
B147: 6/07/2016 | C147: 09:50:00 | D147: SM402E | E147: Urban | F147: Network business | G147: Switching and protection error | H147: 337 | I147: 5 | J147: 0.002771 | K147: 0.00055413
B148: 6/07/2016 | C148: 09:50:00 | D148: GA25 | E148: Rural Short | F148: Planned | H148: 3 | I148: 310 | J148: 0.007506 | K148: 2.421e-05
B149: 6/07/2016 | C149: 10:22:00 | D149: EL12 | E149: Urban | F149: Planned | H149: 28 | I149: 176 | J149: 0.008103 | K149: 4.604e-05
B150: 6/07/2016 | C150: 10:32:00 | D150: VH31 | E150: Rural Short | F150: Planned | H150: 85 | I150: 250 | J150: 0.171518 | K150: 0.00068607
B151: 6/07/2016 | C151: 10:40:02 | D151: ME347A | E151: Urban | F151: Planned | H151: 52 | I151: 171 | J151: 0.014621 | K151: 8.55e-05
B152: 6/07/2016 | C152: 10:40:27 | D152: ME347C | E152: Urban | F152: Planned | H152: 96 | I152: 170 | J152: 0.026835 | K152: 0.00015785
B153: 6/07/2016 | C153: 10:45:00 | D153: SB17 | E153: Rural Long | F153: Unknown | G153: Unknown | H153: 9 | I153: 5 | J153: 0.000319 | K153: 6.385e-05
B154: 6/07/2016 | C154: 11:10:00 | D154: M13 | E154: Rural Long | F154: Planned | H154: 3 | I154: 13 | J154: 0.000277 | K154: 2.128e-05
B155: 6/07/2016 | C155: 11:29:00 | D155: LM33 | E155: Rural Long | F155: Planned | H155: 69 | I155: 6 | J155: 0.002937 | K155: 0.00048953
B156: 6/07/2016 | C156: 12:00:00 | D156: GA21 | E156: Rural Long | F156: Unknown | G156: Unknown | H156: 3 | I156: 10 | J156: 0.000213 | K156: 2.128e-05
B157: 6/07/2016 | C157: 12:17:00 | D157: GA29 | E157: Rural Long | F157: Planned | H157: 7 | I157: 143 | J157: 0.007102 | K157: 4.966e-05
B158: 6/07/2016 | C158: 13:48:18 | D158: AP372F | E158: Urban | F158: Asset failure | G158: LV | H158: 1 | I158: 263 | J158: 0.000432 | K158: 1.64e-06
B159: 6/07/2016 | C159: 13:51:00 | D159: EL16 | E159: Urban | F159: Asset failure | G159: HV | H159: 255 | I159: 21 | J159: 0.008805 | K159: 0.0004193
B160: 6/07/2016 | C160: 13:51:00 | D160: GA800A | E160: Rural Short | F160: Asset failure | G160: HV | H160: 2343 | I160: 23.59880495 | J160: 0.446287 | K160: 0.0189114
B161: 6/07/2016 | C161: 13:52:00 | D161: NL451D | E161: Urban | F161: Unknown | G161: Unknown | H161: 2 | I161: 1425 | J161: 0.004686 | K161: 3.29e-06
B162: 6/07/2016 | C162: 14:18:25 | D162: AP214B | E162: Urban | F162: Asset failure | G162: LV | H162: 28.000014 | I162: 142 | J162: 0.006538 | K162: 4.604e-05
B163: 6/07/2016 | C163: 14:20:38 | D163: AP424B | E163: Urban | F163: Asset failure | G163: LV | H163: 0.999999 | I163: 450 | J163: 0.00074 | K163: 1.64e-06
B164: 6/07/2016 | C164: 16:24:00 | D164: AP149H | E164: Urban | F164: Asset failure | G164: Distribution substation | H164: 48 | I164: 281 | J164: 0.022178 | K164: 7.893e-05
B165: 6/07/2016 | C165: 17:13:00 | D165: PA06 | E165: Rural Long | F165: Asset failure | G165: HV | H165: 921 | I165: 303.3376764 | J165: 1.982058 | K165: 0.00653416
B166: 6/07/2016 | C166: 17:13:00 | D166: PA06 | E166: Rural Long | F166: Asset failure | G166: HV | H166: 737 | I166: 1 | J166: 0.005229 | K166: 0.00522875
B167: 6/07/2016 | C167: 21:13:24 | D167: NL451A | E167: Urban | F167: Asset failure | G167: LV | H167: 1 | I167: 259 | J167: 0.000426 | K167: 1.64e-06
B168: 6/07/2016 | C168: 22:44:03 | D168: SG13 | E168: Rural Short | F168: Asset failure | G168: LV | H168: 1 | I168: 276 | J168: 0.002228 | K168: 8.07e-06
B169: 6/07/2016 | C169: 23:10:33 | D169: NL210D | E169: Urban | F169: Asset failure | G169: LV | H169: 1 | I169: 105 | J169: 0.000173 | K169: 1.64e-06
B170: 7/07/2016 | C170: 07:09:00 | D170: MT06 | E170: Rural Long | F170: Unknown | G170: Unknown | H170: 20 | I170: 78 | J170: 0.011068 | K170: 0.00014189
B171: 7/07/2016 | C171: 07:32:00 | D171: CN01 | E171: Rural Long | F171: Unknown | G171: Unknown | H171: 33 | I171: 124 | J171: 0.029031 | K171: 0.00023412
B172: 7/07/2016 | C172: 08:28:19 | D172: HH177A | E172: Urban | F172: Planned | H172: 77 | I172: 260 | J172: 0.032919 | K172: 0.00012661
B173: 7/07/2016 | C173: 08:33:46 | D173: SA744D | E173: Urban | F173: Planned | H173: 16 | I173: 137 | J173: 0.003604 | K173: 2.631e-05
B174: 7/07/2016 | C174: 08:39:07 | D174: WK41 | E174: Rural Short | F174: Planned | H174: 43 | I174: 188 | J174: 0.06525 | K174: 0.00034707
B175: 7/07/2016 | C175: 08:39:29 | D175: ST21 | E175: Rural Short | F175: Planned | H175: 38 | I175: 330 | J175: 0.101216 | K175: 0.00030672
B176: 7/07/2016 | C176: 08:52:00 | D176: GA27 | E176: Rural Long | F176: Planned | H176: 90 | I176: 292.7333333 | J176: 0.186915 | K176: 0.00063852
B177: 7/07/2016 | C177: 08:54:00 | D177: CD03 | E177: Rural Short | F177: Planned | H177: 8 | I177: 259 | J177: 0.016724 | K177: 6.457e-05
B178: 7/07/2016 | C178: 08:57:00 | D178: HH121A | E178: Urban | F178: Planned | H178: 57 | I178: 297 | J178: 0.027836 | K178: 9.372e-05
B179: 7/07/2016 | C179: 09:00:00 | D179: BM12 | E179: Rural Short | F179: Planned | H179: 6 | I179: 305 | J179: 0.014771 | K179: 4.843e-05
B180: 7/07/2016 | C180: 09:00:51 | D180: AP529C | E180: Urban | F180: Planned | H180: 56 | I180: 286 | J180: 0.026335 | K180: 9.208e-05
B181: 7/07/2016 | C181: 09:04:54 | D181: YK02 | E181: Rural Short | F181: Planned | H181: 27 | I181: 139 | J181: 0.030292 | K181: 0.00021793
B182: 7/07/2016 | C182: 09:05:32 | D182: AP424A | E182: Urban | F182: Planned | H182: 40 | I182: 208 | J182: 0.013681 | K182: 6.577e-05
B183: 7/07/2016 | C183: 09:06:00 | D183: SA744G | E183: Urban | F183: Planned | H183: 1 | I183: 309 | J183: 0.000508 | K183: 1.64e-06
B184: 7/07/2016 | C184: 09:08:55 | D184: AP424F | E184: Urban | F184: Planned | H184: 38 | I184: 384 | J184: 0.023994 | K184: 6.248e-05
B185: 7/07/2016 | C185: 09:11:11 | D185: VH12 | E185: Rural Short | F185: Planned | H185: 55 | I185: 374 | J185: 0.16603 | K185: 0.00044393
B186: 7/07/2016 | C186: 09:18:00 | D186: GU32 | E186: Rural Long | F186: Planned | H186: 6 | I186: 140 | J186: 0.005959 | K186: 4.257e-05
B187: 7/07/2016 | C187: 09:31:00 | D187: PP13 | E187: Rural Long | F187: Planned | H187: 69 | I187: 2 | J187: 0.000979 | K187: 0.00048953
B188: 7/07/2016 | C188: 09:33:08 | D188: LX43 | E188: Rural Short | F188: Planned | H188: 21 | I188: 350 | J188: 0.059325 | K188: 0.0001695
B189: 7/07/2016 | C189: 09:37:00 | D189: SM410B | E189: Urban | F189: Planned | H189: 109 | I189: 278 | J189: 0.049825 | K189: 0.00017923
B190: 7/07/2016 | C190: 09:50:00 | D190: MV64 | E190: Rural Short | F190: Planned | H190: 151 | I190: 230 | J190: 0.280321 | K190: 0.00121879
B191: 7/07/2016 | C191: 09:56:00 | D191: AP424C | E191: Urban | F191: Planned | H191: 150 | I191: 41.4 | J191: 0.010211 | K191: 0.00024664
B192: 7/07/2016 | C192: 10:34:52 | D192: SM349E | E192: Urban | F192: Planned | H192: 106 | I192: 264 | J192: 0.046014 | K192: 0.0001743
B193: 7/07/2016 | C193: 10:41:00 | D193: CL13 | E193: Rural Long | F193: Planned | H193: 1 | I193: 65 | J193: 0.000461 | K193: 7.09e-06
B194: 7/07/2016 | C194: 10:48:51 | D194: CV01 | E194: Rural Short | F194: Planned | H194: 27 | I194: 281 | J194: 0.061238 | K194: 0.00021793
B195: 7/07/2016 | C195: 10:53:54 | D195: SA744D | E195: Urban | F195: Planned | H195: 57 | I195: 210 | J195: 0.019682 | K195: 9.372e-05
B196: 7/07/2016 | C196: 10:55:38 | D196: SA711C | E196: Urban | F196: Planned | H196: 41 | I196: 214 | J196: 0.014427 | K196: 6.742e-05
B197: 7/07/2016 | C197: 11:06:08 | D197: PA04 | E197: Urban | F197: Planned | H197: 48 | I197: 226 | J197: 0.017837 | K197: 7.893e-05
B198: 7/07/2016 | C198: 11:11:00 | D198: ST21 | E198: Rural Short | F198: Planned | H198: 122 | I198: 83 | J198: 0.081731 | K198: 0.00098472
B199: 7/07/2016 | C199: 12:42:00 | D199: GU11 | E199: Rural Long | F199: Unknown | G199: Unknown | H199: 25.66667 | I199: 157 | J199: 0.028589 | K199: 0.0001821
B200: 7/07/2016 | C200: 13:01:00 | D200: EL16 | E200: Urban | F200: Animal | G200: Animal impact | H200: 255 | I200: 58 | J200: 0.024319 | K200: 0.0004193
B201: 7/07/2016 | C201: 13:01:00 | D201: GA800A | E201: Rural Short | F201: Animal | G201: Animal impact | H201: 2343 | I201: 66.10883483 | J201: 1.250211 | K201: 0.0189114
B202: 7/07/2016 | C202: 14:06:00 | D202: W16 | E202: Rural Long | F202: Unknown | G202: Unknown | H202: 3 | I202: 109 | J202: 0.00232 | K202: 2.128e-05
B203: 7/07/2016 | C203: 14:13:00 | D203: KA04 | E203: Rural Long | F203: Unknown | G203: Unknown | H203: 186 | I203: 95 | J203: 0.125362 | K203: 0.0013196
B204: 7/07/2016 | C204: 16:26:43 | D204: ME231E | E204: Urban | F204: Weather | H204: 2 | I204: 348 | J204: 0.001144 | K204: 3.29e-06
... 2202 more rows

Sheet Amendments
B1: This sheet may be used to identify amendments made to data resubmitted to the AER.
B2: NSP data amendments
B3: Worksheet | C3: Table | D3: Comments
